Workbook

Sheet InOut
A2: Actual | B2: input
A3: # atoms in plane (3 or 4) | B3: 3 | C3: =IF(AND(B4=(B5+B6),B3=3),"Arrow (α = β+γ), Chk atoms","") -> 
A4: alpha (largest) | B4: 146 | C4: =IF(B4>(B5+B6),"alpha too large, must be ≤ sum β + γ","") -> 
A5: beta | B5: 121
A6: gamma (smallest) | B6: 73
A8: Output | D8: ideal match
A9: Planar Section: | D9: Planar
A10: Sum of Angles | B10: =SUM(B4:B6) -> 340 | D10: alpha | E10: =IF($B$3=3,"pyramid",Tests!$B64) -> pyramid | F10: alpha' | G10: =IF($B$3=3,"pyramid",IF(B10=360, " ",Tests!$B74)) -> pyramid
A11: Fit asymmetry | B11: =IF(B3=3,"Pyramid? (chk # atoms in plane)",ROUND(Tests!$B68,3)) -> Pyramid? (chk # atoms in plane) | D11: beta | E11: =IF($B$3=3,"pyramid",Tests!$B65) -> pyramid
A12: polyhedral index | B12: =IF(B3=4,IF(SUM(B4:B6)=360,1,"Arrow? Chk #atoms, angles"),IF(B3=3,"See Pyramid / Chk # atoms",SUM(B4:B6)/360)) -> See Pyramid / Chk # atoms | C12: =IF(AND(B3=4,B10<360,B4<>(B5+B6)),"Not Arrow, α<>(β+γ)","") ->  | D12: Gamma | E12: =IF($B$3=3,"pyramid",Tests!$B66) -> pyramid
A13: name | B13: =IF($B3=3,"See Pyramid/Chk # atoms",Tests!B63) -> See Pyramid/Chk # atoms | D13: rms deviation (o) | E13: =IF($B$3=3,"pyramid",IF(AND(B10<360,B5>90),"Pyramid/Chk atoms Angles",ROUND(Tests!$B67, 2))) -> pyramid
A14: Alpha distortion (deg) | B14: =IF($B3=3,"See Pyramid/Chk # atoms",ABS(Tests!$B$69)) -> See Pyramid/Chk # atoms
A15: Beta distortion (deg) | B15: =IF($B3=3,"See Pyramid/Chk # atoms",ABS(Tests!$B$70)) -> See Pyramid/Chk # atoms
A16: Gamma distortion (deg) | B16: =IF($B5=3,"See Pyramid/Chk # atoms",ABS(Tests!$B$71)) -> 5
A18: Pyramid Section: | D18: Pyramid
A19: Type | B19: =IF(B10=360,"Planar",IF(B4>(B5+B6),"Alpha too large, must be < sum β + γ",Poly!G52&" "&Poly!H52&" "&Poly!I52)) -> Acute Triclinic Pyramid | D19: Base
A20: Name | B20: =Poly!B65 -> 17 % α-folded Semi-Orthogonal γ-Compressed Y | D20: =IF(OR($B$3=4,AND(Tests!B41=B4,Tests!B42=B5,Tests!$B43=B6)),"planar! Chk # atoms",ROUND(Poly!$I58, 1)) -> 79.1 | E20: ALPHA'
A21: dev.(o) | B21: =IF(Poly!B64=0.01,0,Poly!B64) -> 1.414 | D21: =IF(OR($B$3=4,AND(Tests!B41=B4,Tests!B42=B5,Tests!$B43=B6)),"planar! Chk # atoms",ROUND(Poly!$I59, 0)) -> 63 | E21: BETA'
A22: ideal Alpha | B22: =Poly!B66 -> 145 | D22: =IF(OR($B$3=4,AND(Tests!B41=B4,Tests!B42=B5,Tests!$B46=B6)),"planar! Chk # atoms",ROUND(Poly!$I60, 0)) -> 38 | E22: GAMMA'
A23: ideal Beta | B23: =Poly!B67 -> 120 | D23: Actual Base Projection | E23: ideal match | F23: (Base Projection)
A24: Ideal Gamma | B24: =Poly!B68 -> 75 | D24: =IF(OR($B$3=4,AND(Tests!B41=B4,Tests!B42=B5,Tests!$B43=B6)),"planar! Chk # atoms",Tests!$B41) -> 158 | E24: alpha | F24: =IF($B$3=4,"planar",Tests!$B64) -> 160 | G24: dev | H24: =IF($B$3=4,"planar",Tests!$B69) -> 2
A25: height | B25: =IF(B10=360,"Planar",IF(B10>360,"ANGLES >360",IF(B4>(B5+B6),"Alpha too large",ROUND(Poly!I66,3)))) -> 0.226 | D25: =IF(OR($B$3=4,AND(Tests!B41=B4,Tests!B42=B5,Tests!$B43=B6)),"planar! Chk # atoms",Tests!$B42) -> 126 | E25: beta | F25: =IF($B$3=4,"planar",Tests!$B65) -> 120 | G25: dev | H25: =IF($B$3=4,"planar",Tests!$B70) -> -6
A26: Alpha incline (deg.) | B26: =IF(B10=360,"Planar",IF(B10>360,"ANGLES >360",IF(B4>(B5+B6),"Alpha too large",ROUND(Poly!I67,1)))) -> 50.6 | D26: =IF(OR($B$3=4,AND(Tests!B41=B4,Tests!B42=B5,Tests!$B43=B6)),"planar!, Chk # atoms",Tests!$B43) -> 75 | E26: Gamma | F26: =IF($B$3=4,"planar",Tests!$B66) -> 80 | G26: dev | H26: =IF($B$3=4,"planar",Tests!$B71) -> 5
A27: Beta incline (deg.) | B27: =IF(B10=360,"Planar",IF(B10>360,"ANGLES >360",IF(B4>(B5+B6),"Alpha too large",ROUND(Poly!K67,1)))) -> 27.3 | E27: rms deviation (o) | F27: =IF($B$3=4,"planar",Tests!$B67) -> 4.654746681
A28: gamma incline (deg.) | B28: =IF(B10=360,"Planar",IF(B10>360,"ANGLES >360",IF(B4>(B5+B6),"Alpha too large",ROUND(Poly!M67,1)))) -> 16.3 | E28: Type | F28: =IF($B3=4,"See Planar Section",IF(AND(D25<90,D26<90,D24=SUM(D25,D26)),Tests!B73,Tests!B63)) -> Near 1/3 γ-Compressed Orthogonal Y (γ expanded)
E29: edge length | F29: =IF(B3=4,"See Planar Section",Poly!I57) -> 0.9740637994
E30: Asymmetry | F30: =IF(B3=4,"See Planar Section",Tests!B68) -> -0.1428571429
E31: Tri/Monoclinic relation:
E32: =IF(B10=360,"Planar",IF(B10>360,"ANGLES >360",IF(B4>(B5+B6),"Alpha too large",Poly!B65))) -> 17 % α-folded Semi-Orthogonal γ-Compressed Y
E33: rms deviation (o) (Tri/Mono)
E34: =IF(B10=360,"Planar",IF(B10>360,"ANGLES >360",IF(B4>(B5+B6),"Alpha too large",IF(Poly!B64=0.01,0,ROUND(Poly!B64,3))))) -> 1.414

Sheet Tests
A1: monoclinic | E1: %constriction | F1: 1-(γ-60)/120 | H1: beta 120 series | O1: alpha 180 series | Q1: oblique | V1: beta 135 | Z1: Monoclinic Arrows
A2: =(360-C2)/2 -> 180 | B2: =(360-C2)/2 -> 180 | C2: 0 | D2: Closed Y | E2: =(1-(C2/120))*100 -> 100 | H2: 120 | I2: 120 | J2: 120 | K2: =(1-(J2/120))*100 -> 0 | L2: trigonal planar | O2: =R2/90 -> 0 | P2: 180 | Q2: 180 | R2: =P2-Q2 -> 0 | S2: Closed Y | V2: 180 | W2: 135 | X2: =360-(V2+W2) -> 45 | Y2: Inclined Y | Z2: alpha | AA2: alpha' | AB2: beta | AC2: gamma | AD2: expansion: (g-45)/45 | AE2: or (a-90)/90]*100
A3: =(360-C3)/2 -> 177.5 | B3: =(360-C3)/2 -> 177.5 | C3: 5 | D3: Closed Y | E3: =(1-(C3/120))*100 -> 95.83333333 | F3: (near) | H3: 125 | I3: 120 | J3: 115 | K3: =((J3-90)/30)*100 -> 83.33333333 | L3: α-Expanded Trigonal Plane | O3: =R3/90 -> 0.05555555556 | P3: 180 | Q3: 175 | R3: =P3-Q3 -> 5 | S3: γ-expanded Closed Y | V3: 175 | W3: 135 | X3: =360-(V3+W3) -> 50 | Z3: 180 | AA3: =360-(AB3+AC3) -> 180 | AB3: 90 | AC3: 90 | AD3: T-shape | AE3: =((AC3/45)-1)*100 -> 100 | AF3: =(Z3-90)/90*100 -> 100
A4: =(360-C4)/2 -> 175 | B4: =(360-C4)/2 -> 175 | C4: 10 | D4: 11/12 Constricted γ-dominant Y | E4: 91.66666667 | G4: expansion % | H4: 130 | I4: 120 | J4: 110 | K4: =((J4-90)/30)*100 -> 66.66666667 | L4: 2/3 γ-Expanded Orthogonal Y | O4: 0.1111111111 | P4: 180 | Q4: 170 | R4: 10 | S4: semi-Oblique Y | T4: (constricted γ) | V4: 170 | W4: 135 | X4: =360-(V4+W4) -> 55 | Z4: 170 | AA4: 190 | AB4: 85 | AC4: 85 | AD4: 8/9 α-Expanded Arrow | AE4: 88.88888889 | AF4: =(Z4-90)/90*100 -> 88.88888889
A5: =(360-C5)/2 -> 172.5 | B5: 172.5 | C5: 15 | D5: 7/8 Constricted γ-dominant Y | E5: 87.5 | G5: [(b-90)/30] | H5: 135 | I5: 120 | J5: 105 | K5: 50 | L5: Semi-Orthogonal Y (γ-Expanded) | O5: 0.1666666667 | P5: 180 | Q5: 165 | R5: 15 | S5: Semi-Oblique Y | V5: 165 | W5: 135 | X5: 60 | Z5: 160 | AA5: 200 | AB5: 80 | AC5: 80 | AD5: 7/9 α-Expanded Arrow | AE5: 77.77777778 | AF5: =(Z5-90)/90*100 -> 77.77777778
A6: 170 | B6: 170 | C6: 20 | D6: 5/6 Constricted γ-dominant Y | E6: 83.33333333 | H6: 140 | I6: 120 | J6: 100 | K6: 33.33333333 | L6: 1/3 γ-Expanded Orthogonal Y | O6: 0.2222222222 | P6: 180 | Q6: 160 | R6: 20 | S6: semi-Oblique Y | T6: (γ- expanded) | V6: 160 | W6: 135 | X6: 65 | Z6: 150 | AA6: 210 | AB6: 75 | AC6: 75 | AD6: 2/3 α-Expanded Arrow | AE6: 66.66666667
A7: 167.5 | B7: 167.5 | C7: 25 | D7: 19/24 Constricted γ-dominant Y | E7: 79.16666667 | H7: 145 | I7: 120 | J7: 95 | K7: 16.66666667 | L7: 1/6 γ-Expanded Orthogonal Y | O7: 0.2777777778 | P7: 180 | Q7: 155 | R7: 25 | S7: oblique Y | T7: (constricted γ) | V7: 155 | W7: 135 | X7: 70 | Z7: 140 | AA7: 220 | AB7: 70 | AC7: 70 | AD7: 5/9 α-Expanded Arrow | AE7: 55.55555556
A8: 165 | B8: 165 | C8: 30 | D8: 3/4 Constricted γ-dominant Y | E8: 75 | G8: %constriction | H8: 150 | I8: 120 | J8: 90 | K8: =(1-(J8/120))*100 -> 25 | L8: Orthogonal Y | O8: 0.3333333333 | P8: 180 | Q8: 150 | R8: 30 | S8: Oblique Y | V8: 150 | W8: 135 | X8: 75 | Z8: 130 | AA8: 230 | AB8: 65 | AC8: 65 | AD8: 4/9 α-expanded Arrow | AE8: 44.44444444
A9: 162.5 | B9: 162.5 | C9: 35 | D9: 17/24 Constricted γ-dominant Y | E9: 70.83333333 | G9: [(90-b)/30] | H9: 155 | I9: 120 | J9: 85 | K9: =(90-J9)/30*100 -> 16.66666667 | L9: 1/6 γ-Compressed Orthogonal Y | O9: 0.3888888889 | P9: 180 | Q9: 145 | R9: 35 | S9: oblique Y | T9: (γ-expanded) | V9: 145 | W9: 135 | X9: 80 | Z9: 120 | AA9: 240 | AB9: 60 | AC9: 60 | AD9: 1/3 α-Expanded Arrow | AE9: 33.33333333
A10: 160 | B10: 160 | C10: 40 | D10: 2/3 Constricted γ-dominant Y | E10: 66.66666667 | H10: 160 | I10: 120 | J10: 80 | K10: =(90-J10)/30*100 -> 33.33333333 | L10: 1/3 γ-Compressed Orthogonal Y | O10: 0.4444444444 | P10: 180 | Q10: 140 | R10: 40 | S10: inclined Y | T10: (constricted γ) | V10: 140 | W10: 135 | X10: 85 | Z10: 110 | AA10: 250 | AB10: 55 | AC10: 55 | AD10: 2/9 α-Expanded Arrow | AE10: 22.22222222
A11: 157.5 | B11: 157.5 | C11: 45 | D11: 5/8 Constricted γ-dominant Y | E11: 62.5 | H11: 165 | I11: 120 | J11: 75 | K11: 50 | L11: Semi-Orthogonal Y (γ compressed) | N11: (alpha expanded) | O11: 0.5 | P11: 180 | Q11: 135 | R11: 45 | S11: Inclined Y | V11: 135 | W11: 135 | X11: 90 | Y11: 1/4 Constricted γ-dominant Y | Z11: 100 | AA11: 260 | AB11: 50 | AC11: 50 | AD11: 1/9 α-Expanded Arrow | AE11: 11.11111111
A12: 155 | B12: 155 | C12: 50 | D12: 7/12 Constricted γ-dominant Y | E12: 58.33333333 | H12: 170 | I12: 120 | J12: 70 | K12: 66.66666667 | L12: 2/3 γ-Compressed Orthogonal Y | O12: 0.5555555556 | P12: 180 | Q12: 130 | R12: 50 | S12: inclined Y | T12: (γ-expanded) | V12: beta 150 | Z12: 90 | AA12: 270 | AB12: 45 | AC12: 45 | AD12: Normal Arrow | AE12: 0
A13: 152.5 | B13: 152.5 | C13: 55 | D13: 13/24 Constricted γ-dominant Y | E13: 54.16666667 | H13: 175 | I13: 120 | J13: 65 | K13: 83.33333333 | L13: α-Constricted Oblique T | N13: (gamma expanded) | O13: 0.6111111111 | P13: 180 | Q13: 125 | R13: 55 | S13: oblique T | T13: (compressed γ) | V13: 180 | W13: 150 | X13: =360-(V13+W13) -> 30 | Y13: Oblique Y | Z13: 80 | AA13: 280 | AB13: 40 | AC13: 40 | AD13: 1/9 α-Constricted Arrow | AE13: =(1-AC13/45)*100 -> 11.11111111
A14: 150 | B14: 150 | C14: 60 | D14: 1/2 Constricted γ-dominant Y | E14: 50 | G14: a-expansion % | H14: 180 | I14: 120 | J14: 60 | K14: 50 | L14: Oblique T | O14: 0.6666666667 | P14: 180 | Q14: 120 | R14: 60 | S14: Oblique T | V14: 175 | W14: 150 | X14: =360-(V14+W14) -> 35 | Z14: 70 | AA14: 290 | AB14: 35 | AC14: 35 | AD14: 2/9 α-Constricted Arrow | AE14: 22.22222222
A15: 147.5 | B15: 147.5 | C15: 65 | D15: 11/24 Constricted γ-dominant Y | E15: 45.83333333 | G15: 100(a-90)/90 | H15: 175 | I15: 120 | J15: 55 | K15: 54.16666667 | L15: 54% Oblique 17/18 α-Expanded Arrow | O15: 0.7222222222 | P15: 180 | Q15: 115 | R15: 65 | S15: oblique T | T15: (γ-expanded) | V15: 170 | W15: 150 | X15: =360-(V15+W15) -> 40 | Z15: 60 | AA15: 300 | AB15: 30 | AC15: 30 | AD15: 1/3 α-Constricted Arrow | AE15: 33.33333333
A16: 145 | B16: 145 | C16: 70 | D16: 5/12 Constricted γ-dominant Y | E16: 41.66666667 | H16: 170 | I16: 120 | J16: 50 | K16: 58.33333333 | L16: 58% Oblique 8/9 α-Expanded Arrow | O16: 0.7777777778 | P16: 180 | Q16: 110 | R16: 70 | S16: semi oblique T | T16: (constricted γ) | V16: 165 | W16: 150 | X16: 45 | Z16: 50 | AA16: 310 | AB16: 25 | AC16: 25 | AD16: 4/9 α-Constricted Arrow | AE16: 44.44444444
A17: 142.5 | B17: 142.5 | C17: 75 | D17: 3/8 Constricted γ-dominant Y | E17: 37.5 | H17: 165 | I17: 120 | J17: 45 | K17: 62.5 | L17: 62.5% Oblique 15/18 α-Expanded Arrow | O17: 0.8333333333 | P17: 180 | Q17: 105 | R17: 75 | S17: Semi oblique T | V17: 160 | W17: 150 | X17: 50 | Z17: 40 | AA17: 320 | AB17: 20 | AC17: 20 | AD17: 5/9 α-Constricted Arrow | AE17: 55.55555556
A18: 140 | B18: 140 | C18: 80 | D18: 1/3 Constricted γ-dominant Y | E18: 33.33333333 | H18: 160 | I18: 120 | J18: 40 | K18: 66.66666667 | L18: 2/3 Oblique 7/9 α-Expanded Arrow | O18: 0.8888888889 | P18: 180 | Q18: 100 | R18: 80 | S18: semi oblique T | T18: (γ-expanded) | V18: 155 | W18: 150 | X18: 55 | Z18: 30 | AA18: 330 | AB18: 15 | AC18: 15 | AD18: 2/3 α-Constricted Arrow | AE18: 66.66666667
A19: 137.5 | B19: 137.5 | C19: 85 | D19: 7/24 Constricted γ-dominant Y | E19: 29.16666667 | H19: 155 | I19: 120 | J19: 35 | K19: 70.83333333 | L19: 71% Oblique 13/18 α-Expanded Arrow | O19: 0.9444444444 | P19: 180 | Q19: 95 | R19: 85 | S19: T -shape | T19: (constricted γ) | V19: 150 | W19: 150 | X19: 60 | Y19: 1/2 Constricted γ-dominant Y | Z19: 20 | AA19: 340 | AB19: 10 | AC19: 10 | AD19: 7/9 α-Constricted Arrow | AE19: 77.77777778
A20: 135 | B20: 135 | C20: 90 | D20: 1/4 Constricted γ-dominant Y | E20: 25 | H20: 150 | I20: 120 | J20: 30 | K20: 75 | L20: 3/4 oblique 2/3 α-Expanded Arrow | O20: 1 | P20: 180 | Q20: 90 | R20: 90 | S20: T-shape | V20: beta 165 | Z20: 10 | AA20: 350 | AB20: 5 | AC20: 5 | AD20: 8/9 α-Constricted Arrow | AE20: 88.88888889
A21: 132.5 | B21: 132.5 | C21: 95 | D21: 5/24 Constricted γ-dominant Y | E21: 20.83333333 | H21: 145 | I21: 120 | J21: 25 | K21: 79.16666667 | L21: 79% oblique 11/18 α-Expanded Arrow | P21: gamma 90 | R21: compression: (120-b)/30 | V21: 180 | W21: 165 | X21: 15 | Y21: Semi-closed Oblique Y | Z21: 0 | AA21: 360 | AB21: 0 | AC21: 0 | AD21: Closed arrow | AE21: 100
A22: 130 | B22: 130 | C22: 100 | D22: 1/6 Constricted γ-dominant Y | E22: 16.66666667 | H22: 140 | I22: 120 | J22: 20 | K22: 83.33333333 | L22: 83% Oblique 5/9 α-Expanded Arrow | P22: 180 | Q22: 90 | R22: 90 | S22: T-Shape | V22: 175 | W22: 165 | X22: 20 | Z22: arrows defined by alpha(') | AC22: at 5's round up:
A23: 127.5 | B23: 127.5 | C23: 105 | D23: 1/8 Constricted γ-dominant Y | E23: 12.5 | H23: 135 | I23: 120 | J23: 15 | K23: 87.5 | L23: 87.5% Oblique 1/2 α-Expanded Arrow | P23: =360-(Q23+R23) -> 175 | Q23: 95 | R23: 90 | S23: T-shape (expanded β) | V23: 170 | W23: 165 | X23: 25 | Z23: g/b = | AA23: obliqueness of arrow | AC23: %oblique | AD23: (1-g/gmax)*100%
A24: 125 | B24: 125 | C24: 110 | D24: 1/12 Constricted γ-dominant Y | E24: 8.333333333 | H24: 130 | I24: 120 | J24: 10 | K24: 91.66666667 | L24: 92% Oblique 4/9 α-Expanded Arrow | P24: =360-(Q24+R24) -> 170 | Q24: 100 | R24: 90 | S24: 2/3 β- compressed Orthogonal Y | V24: 165 | W24: 165 | X24: 30 | Y24: 3/4 Constricted γ-dominant Y | Z24: 0 | AA24: oblique
A25: 122.5 | B25: 122.5 | C25: 115 | D25: trigonal | E25: 4.166666667 | H25: 125 | I25: 120 | J25: 5 | K25: 95.83333333 | L25: 96% Oblique 7/18 α-Expanded Arrow | P25: 165 | Q25: 105 | R25: 90 | S25: Semi-Orthogonal Y (β- compressed) | V25: beta 105 | Z25: 0.25 | AA25: 3/4 oblique | AB25: ( g constricted)
A26: 120 | B26: 120 | C26: 120 | D26: trigonal planar | E26: 0 | H26: 120 | I26: 120 | J26: 0 | K26: 100 | L26: Oblique 1/3 α-Expanded Arrow (folded trigonal plane) | P26: 160 | Q26: 110 | R26: 90 | S26: 1/3 β-compressed Orthogonal Y | V26: 180 | W26: 105 | X26: 75 | Y26: Semi oblique T | Z26: 0.33 | AA26: 2/3 oblique
A27: 125 | B27: 117.5 | C27: 117.5 | D27: trigonal | E27: =(1-((B27-90)/30))*100 -> 8.333333333 | H27: See Arrow head section for naming | K27: obliqueness: (1-g/120)*100 | P27: 155 | Q27: 115 | R27: 90 | S27: 1/6 β-compressed Orthogonal Y | V27: 175 | W27: 105 | X27: 80 | Z27: 0.5 | AA27: Semi-oblique
A28: 130 | B28: 115 | C28: 115 | D28: 1/6 Expanded α-dominant Y | E28: =(1-((B28-90)/30))*100 -> 16.66666667 | P28: 150 | Q28: 120 | R28: 90 | S28: Orthogonal Y | V28: 170 | W28: 105 | X28: 85 | Z28: 0.67 | AA28: 1/3 oblique | AB28: (gamma expanded)
A29: 135 | B29: 112.5 | C29: 112.5 | D29: 1/4 Expanded α-dominant Y | E29: 25 | P29: 145 | Q29: 125 | R29: 90 | S29: 1/3 β-expanded Orthogonal Y | V29: 165 | W29: 105 | X29: 90 | Y29: 1/2 β- compressed Orthogonal Y | Z29: 0.75 | AA29: quarter oblique | AB29: (gamma expanded)
A30: =360-(B30+C30) -> 140 | B30: 110 | C30: 110 | D30: 1/3 Expanded α-dominant Y | E30: 33.33333333 | P30: 140 | Q30: 130 | R30: 90 | S30: 2/3 β-Expanded Orthogonal Y | V30: 160 | W30: 105 | X30: 95 | Z30: 1 | AA30: monoclinic
A31: 145 | B31: 107.5 | C31: 107.5 | D31: 1/2 Expanded α-dominant Y | E31: 41.66666667 | P31: =360-(Q31+R31) -> 135 | Q31: 135 | R31: 90 | S31: 1/4 Constricted γ-dominant Y | V31: 155 | W31: 105 | X31: 100
A32: 150 | B32: 105 | C32: 105 | D32: 1/2 Expanded α-dominant Y | E32: 50 | Q32: expansion: (b-120)/15 | V32: 150 | W32: 105 | X32: 105 | Y32: 1/2 Expanded α-dominant Y
A33: 155 | B33: 102.5 | C33: 102.5 | D33: 1/2 Expanded α-dominant Y | E33: 58.33333333
A34: 160 | B34: 100 | C34: 100 | D34: 2/3 Expanded α-dominant Y | E34: 66.66666667
A35: 165 | B35: 97.5 | C35: 97.5 | D35: 3/4 Expanded α-dominant Y | E35: 75
A36: =360-(B36+C36) -> 170 | B36: 95 | C36: 95 | D36: 3/4 Expanded α-dominant Y | E36: 83.33333333
A37: 175 | B37: 92.5 | C37: 92.5 | D37: T-shape | E37: 91.66666667
A38: 180 | B38: 90 | C38: 90 | D38: T-shape | E38: 100 | Q38: alpha180 (beta) | T38: gamma 90 | AA38: actual
E39: expansion % | Q39: actual | AA39: =$B41 -> 158 | AB39: oblique | AD39: asym g/b
A40: INPUT | E40: [(a-120)/60]*100 | O40: gamma | Q40: =360-B42-B43 -> 159 | R40: gamma | S40: gamma | T40: round alpha | V40: round beta | AA40: =$B42 -> 126 | AB40: =(1-(2*AA41/AA39))*100 -> 5.063291139
A41: alpha | B41: =IF(InOut!$B3=4,InOut!$B4,IF(InOut!$B3=3,Poly!$K58,"Atom#ERR")) -> 158 | E41: =$B41 -> 158 | I41: =$B41 -> 158 | O41: round half | P41: =P42*0.5+P43*0.5 -> 75 | Q41: =InOut!B5 -> 121 | R41: round half | S41: =(S42+S43)/2 -> 75 | T41: up | U41: =ROUNDUP(Q40, -1) -> 160 | V41: up | W41: =ROUNDUP(Q41, -1) -> 130 | AA41: =$B43 -> 75
A42: beta | B42: =IF(InOut!$B3=4,InOut!$B5,IF(InOut!$B3=3,Poly!$K59,"Atom#ERR")) -> 126 | E42: =B42 -> 126 | I42: =$B42 -> 126 | O42: gamma up | P42: =ROUNDUP(P44,0)*10 -> 80 | Q42: =InOut!B6 -> 73 | R42: roundup | S42: =ROUNDUP(S44,-1) -> 80 | T42: half | U42: =(U41+U43)/2 -> 155 | V42: half | W42: =(W41+W43)/2 -> 125 | AA42: alpha up | AB42: =ROUNDUP(B41,-1) -> 160 | AC42: beta up | AD42: =ROUNDUP($B42,-1) -> 130 | AE42: gam up | AF42: =ROUNDUP($B43,-1) -> 80
A43: gamma | B43: =IF(InOut!$B3=4,InOut!$B6,IF(InOut!$B3=3,Poly!$K60,"Atom#ERR")) -> 75 | E43: =B43 -> 75 | I43: =$B43 -> 75 | M43: Triclinic | O43: gamma down | P43: =ROUNDDOWN(P44,0)*10 -> 70 | Q43: g/90 | R43: rounddown | S43: =ROUNDDOWN(S44,-1) -> 70 | T43: down | U43: =ROUNDDOWN(Q40, -1) -> 150 | V43: down | W43: =ROUNDDOWN(Q41, -1) -> 120 | AA43: alpha down | AB43: =ROUNDDOWN(B41,-1) -> 150 | AC43: beta dwn | AD43: =ROUNDDOWN($B42,-1) -> 120 | AE43: gam dwn | AF43: =ROUNDDOWN($B43,-1) -> 70
A44: TESTS | D44: Monoclinic | M44: gamma/120 | N44: =$B43/120 -> 0.625 | O44: *12= | P44: =N44*12 -> 7.5 | Q44: oblique | R44: =$B43/90 -> 0.8333333333 | S44: =R44*90 -> 75 | Z44: Arrows | AA44: Monoclinic | AG44: Triclinic
A45: Trigonal | D45: g-dominant | E45: rndup | F45: rndhlf | G45: down10 | H45: a-dominant | I45: rndup | J45: rnd hlf | K45: rnd dwn | M45: beta120 | N45: rndup | O45: (mid) | P45: (down) | Q45: (up) | R45: (half) | S45: (down) | T45: a up | U45: a half | V45: a down | W45: b up | X45: b half | Y45: b dwn | AA45: alpha' | AB45: =360-AB42 -> 200 | AC45: =360-AB43 -> 210 | AD45: =360-AD46 -> 100 | AE45: =360-AE46 -> 120 | AF45: 200 | AG45: 220 | AH45: 150
A46: alpha | B46: 120 | D46: alpha | E46: =ROUNDUP($E41,-1) -> 160 | F46: =($E46+$G46)/2 -> 155 | G46: =ROUNDDOWN(E41,-1) -> 150 | H46: alpha | I46: =ROUNDUP(I41,-1) -> 160 | J46: =(I46+K46)/2 -> 155 | K46: =ROUNDDOWN(I41,-1) -> 150 | M46: alpha | N46: =360-(N47+N48) -> 160 | O46: =(N46+P46)/2 -> 165 | P46: =360-(P47+P48) -> 170 | Q46: 180 | R46: 180 | S46: 180 | T46: =U41 -> 160 | U46: =U42 -> 155 | V46: =U43 -> 150 | W46: =360-(W47+W48) -> 140 | X46: =360-(X47+X48) -> 145 | Y46: 150 | AA46: alpha | AB46: =AB42 -> 160 | AC46: =AB43 -> 150 | AD46: =SUM(AD47,AD48) -> 260 | AE46: =SUM(AE47,AE48) -> 240 | AF46: 160 | AG46: 140 | AH46: 210
A47: beta | B47: 120 | D47: beta | E47: =$E46 -> 160 | F47: =$F46 -> 155 | G47: =G46 -> 150 | H47: beta | I47: =(360-I46)/2 -> 100 | J47: =(I47+K47)/2 -> 102.5 | K47: =(360-K46)/2 -> 105 | M47: beta | N47: 120 | O47: =120 -> 120 | P47: 120 | Q47: =180-Q48 -> 100 | R47: =180-R48 -> 105 | S47: =180-S48 -> 110 | T47: =360-(T46+T48) -> 110 | U47: =360-(U46+U48) -> 115 | V47: 120 | W47: =W41 -> 130 | X47: =W42 -> 125 | Y47: =W43 -> 120 | AA47: beta | AB47: =(AB45)/2 -> 100 | AC47: =(AC45)/2 -> 105 | AD47: =AD42 -> 130 | AE47: =AD43 -> 120 | AF47: =AF42 -> 80 | AG47: =AF43 -> 70 | AH47: =ROUND(AA40,-1) -> 130
A48: gamma | B48: 120 | D48: gamma | E48: =360-($E46+$E47) -> 40 | F48: =360-($F46+$F47) -> 50 | G48: =360-(G46*2) -> 60 | H48: gamma | I48: =I47 -> 100 | J48: 102.5 | K48: =K47 -> 105 | M48: gamma | N48: =P42 -> 80 | O48: =360-(O46+O47) -> 75 | P48: =P43 -> 70 | Q48: =S42 -> 80 | R48: =S41 -> 75 | S48: =S43 -> 70 | T48: 90 | U48: 90 | V48: 90 | W48: 90 | X48: 90 | Y48: 90 | AA48: gamma | AB48: =AB47 -> 100 | AC48: =AC47 -> 105 | AD48: =AD42 -> 130 | AE48: =AD43 -> 120 | AF48: =AF42 -> 80 | AG48: =AF43 -> 70 | AH48: =ROUND(AA41,-1) -> 80
A50: normrms | B50: =(1/SQRT(3))*(SQRT(SUMSQ(B52:B54))) -> 34.18089135 | D50: normrms | E50: =(1/SQRT(3))*(SQRT(SUMSQ($E52:$E54))) -> 28.19574436 | F50: =(1/SQRT(3))*(SQRT(SUMSQ($F52:$F54))) -> 22.17355783 | G50: =(1/SQRT(3))*(SQRT(SUMSQ($G52:$G54))) -> 16.98038084 | H50: normrms | I50: =(1/SQRT(3))*(SQRT(SUMSQ(I52:I54))) -> 20.85665361 | J50: =(1/SQRT(3))*(SQRT(SUMSQ(J52:J54))) -> 20.95630375 | K50: 21.64101045 | M50: normrms | N50: =(1/SQRT(3))*(SQRT(SUMSQ(N52:N54))) -> 4.654746681 | O50: 5.322906474 | P50: 8.266397845 | Q50: 19.87460691 | R50: 17.55942292 | S50: 15.96871942 | T50: 12.71482075 | U50: 10.87811258 | V50: 10.40833 | W50: 13.72345923 | X50: 11.47460965 | Y50: 10.40833 | AA50: normrms | AB50: =IF(AA39<>(AA40+AA41),1000,(1/SQRT(3))*(SQRT(SUMSQ(AB52:AB54)))) -> 1000 | AC50: =IF(AA39<>(AA40+AA41),1000,(1/SQRT(3))*(SQRT(SUMSQ(AC52:AC54)))) -> 1000 | AD50: =IF(AA39<>(AA40+AA41),1000,(1/SQRT(3))*(SQRT(SUMSQ(AD52:AD54)))) -> 1000 | AE50: =IF(AA39<>(AA40+AA41),1000,(1/SQRT(3))*(SQRT(SUMSQ(AE52:AE54)))) -> 1000 | AF50: =IF(AA39<>(AA40+AA41),1000,(1/SQRT(3))*(SQRT(SUMSQ(AF52:AF54)))) -> 1000 | AG50: =IF(AA39<>(AA40+AA41),1000,(1/SQRT(3))*(SQRT(SUMSQ(AG52:AG54)))) -> 1000 | AH50: =IF(AA39<>(AA40+AA41),1000,(1/SQRT(3))*(SQRT(SUMSQ(AH52:AH54)))) -> 1000
A51: asym | B51: =IF(B48-B43=0,0,(B47-B42)/(B48-B43)) -> -0.1333333333 | D51: asym | E51: =IF($E48-$B43=0,0,($E47-$B42)/($E48-$B43)) -> -0.9714285714 | F51: =IF($F48-$B43=0,0,($F47-$B42)/($F48-$B43)) -> -1.16 | G51: =IF($G48-$B43=0,0,($G47-$B42)/($G48-$B43)) -> -1.6 | H51: Asym | I51: =IF(I48-$B43=0,0,(I47-$B42)/(I48-$B43)) -> -1.04 | J51: =IF(J48-$B43=0,0,(J47-$B42)/(J48-$B43)) -> -0.8545454545 | K51: =IF(K48-$B43=0,0,(K47-$B42)/(K48-$B43)) -> -0.7 | M51: Asymm | N51: =IF(N48-InOut!$B$6=0,0,(N47-InOut!$B$5)/(N48-InOut!$B$6)) -> -0.1428571429 | O51: =IF(O48-InOut!$B$6=0,0,(O47-InOut!$B$5)/(O48-InOut!$B$6)) -> -0.5 | P51: =IF(P48-InOut!$B$6=0,0,(P47-InOut!$B$5)/(P48-InOut!$B$6)) -> 0.3333333333 | Q51: =IF(Q54=0,0,(Q47-InOut!$B$5)/(Q48-InOut!$B$6)) -> -3 | R51: =IF(R54=0,0,(R47-InOut!$B$5)/(R48-InOut!$B$6)) -> 0 | S51: =IF(S54=0,0,(S47-InOut!$B$5)/(S48-InOut!$B$6)) -> 3.666666667 | T51: =IF(T54=0,0,(T47-InOut!$B$5)/(T48-InOut!$B$6)) -> -0.6470588235 | U51: =IF(U54=0,0,(U47-InOut!$B$5)/(U48-InOut!$B$6)) -> -0.3529411765 | V51: =IF(V54=0,0,(V47-InOut!$B$5)/(V48-InOut!$B$6)) -> -0.05882352941 | W51: =IF(W54=0,0,(W47-InOut!$B$5)/(W48-InOut!$B$6)) -> 0.5294117647 | X51: =IF(X54=0,0,(X47-InOut!$B$5)/(X48-InOut!$B$6)) -> 0.2352941176 | Y51: =IF(Y54=0,0,(Y47-InOut!$B$5)/(Y48-InOut!$B$6)) -> -0.05882352941 | AA51: Asymm | AB51: =IF(AND(AB53=0,AB54=0),AB48/AB47,IF(AB47-$AA40=0,0,(AB48-$AA$41)/(AB47-$AA$40))) -> -0.9615384615 | AC51: -1.428571429 | AD51: 13.75 | AE51: -7.5 | AF51: -0.1086956522 | AG51: 0.08928571429 | AH51: =IF(AND(AH53=0,AH54=0),AH48/AH47,IF(AH47-$AA40=0,0,(AH48-$AA$41)/(AH47-$AA$40))) -> 1.25
A52: delta a | B52: =B46-$B41 -> -38 | D52: delta a | E52: =$E41-E46 -> -2 | F52: 3 | G52: =E41-G46 -> 8 | H52: delta a | I52: =I41-I46 -> -2 | J52: =I41-J46 -> 3 | K52: =I41-K46 -> 8 | M52: delta a | N52: =N46-B41 -> 2 | O52: =O46-B41 -> 7 | P52: =P46-B41 -> 12 | Q52: =Q46-B41 -> 22 | R52: =R46-B41 -> 22 | S52: =S46-B41 -> 22 | T52: =T46-$B41 -> 2 | U52: =U46-$B41 -> -3 | V52: -8 | W52: -18 | X52: -13 | Y52: -8 | AA52: delta a | AB52: =AB46-$AA$39 -> 2 | AC52: =AC46-$AA$39 -> -8 | AD52: =AD46-$AA$39 -> 102 | AE52: =AE46-$AA$39 -> 82 | AF52: =AF46-$AA$39 -> 2 | AG52: -18 | AH52: 52
A53: delta b | B53: =B47-$B42 -> -6 | D53: delta b | E53: -34 | F53: -29 | G53: =E42-G47 -> -24 | H53: delta b | I53: =I42-I47 -> 26 | J53: =I42-J47 -> 23.5 | K53: =I42-K47 -> 21 | M53: delta b | N53: =N47-B42 -> -6 | O53: =O47-B42 -> -6 | P53: =P47-B42 -> -6 | Q53: =Q47-B42 -> -26 | R53: =R47-B42 -> -21 | S53: =S47-B42 -> -16 | T53: =T47-$B42 -> -16 | U53: =U47-$B42 -> -11 | V53: -6 | W53: 4 | X53: -1 | Y53: -6 | AA53: delta b | AB53: =AB47-AA40 -> -26 | AC53: =AC47-AA40 -> -21 | AD53: =AD47-AA40 -> 4 | AE53: =AE47-AA40 -> -6 | AF53: =AF47-AA40 -> -46 | AG53: =AG47-AA40 -> -56 | AH53: =$AH47-$AA40 -> 4
A54: delta g | B54: =B48-$B43 -> 45 | D54: delta g | E54: 35 | F54: 25 | G54: =E43-G48 -> 15 | H54: delta g | I54: =I43-I48 -> -25 | J54: =I43-J48 -> -27.5 | K54: =I43-K48 -> -30 | M54: delta g | N54: =N48-B43 -> 5 | O54: =O48-B43 -> 0 | P54: =P48-B43 -> -5 | Q54: =Q48-B43 -> 5 | R54: =R48-B43 -> 0 | S54: =S48-B43 -> -5 | T54: =T48-$B43 -> 15 | U54: =U48-$B43 -> 15 | V54: 15 | W54: 15 | X54: 15 | Y54: 15 | AA54: delta g | AB54: =AB48-AA41 -> 25 | AC54: =AC48-AA41 -> 30 | AD54: =AD48-AA41 -> 55 | AE54: =AE48-AA41 -> 45 | AF54: =AF48-AA41 -> 5 | AG54: =AG48-AA41 -> -5 | AH54: =$AH48-$AA41 -> 5
B55: =IF($B54=0,"trigonal planar",IF($B54<=15,"near trigonal","not trigonal")) -> not trigonal | E55: =IF(E46=120,$B55,IF(E50=0,VLOOKUP(E46,$B2:$F38,3,FALSE),"near "&VLOOKUP(E46,$B2:$F38,3,FALSE)&IF(E54<0," (γ constricted)",IF(E54>0," (γ expanded)"," ")))) -> near 2/3 Constricted γ-dominant Y (γ expanded) | F55: =IF(F46=120,$B55,IF(F50=0,VLOOKUP(F46,$B2:$F38,3,FALSE),"near "&VLOOKUP(F46,$B2:$F38,3,FALSE)&IF(F54<0," (γ constricted)",IF(F54>0," (γ expanded)"," ")))) -> near 7/12 Constricted γ-dominant Y (γ expanded) | G55: =IF(G46=120,$B55,IF(G50=0,VLOOKUP(G46,$B2:$F38,3,FALSE),"near "&VLOOKUP(G46,$B2:$F38,3,FALSE)&IF(G54<0," (γ constricted)",IF(G54>0," (γ expanded)"," ")))) -> near 1/2 Constricted γ-dominant Y (γ expanded) | I55: near 2/3 Constricted γ-dominant Y (γ constricted) | J55: near 7/12 Constricted γ-dominant Y (γ constricted) | K55: near 1/2 Constricted γ-dominant Y (γ constricted) | N55: =IF(N50=0,VLOOKUP(N46,$H$1:$L$26,5,FALSE),"Near "& VLOOKUP(N46,$H$1:$L$26,5,FALSE)& IF(N54>0," (γ expanded)",IF(N54<0," (γ constricted)",IF(N53<0,"(β-Expanded)","(β- compressed)")))) -> Near 1/3 γ-Compressed Orthogonal Y (γ expanded) | O55: =IF(O50=0,VLOOKUP(O46,$H$1:$L$26,5,FALSE),"Near "& VLOOKUP(O46,$H$1:$L$26,5,FALSE)& IF(O54>0," (γ constricted)",IF(O54<0," (γ expanded)",IF(O53<0,"(β-Expanded)","(β- compressed)")))) -> Near Semi-Orthogonal Y (γ compressed)(β-Expanded) | P55: Near 2/3 γ-Compressed Orthogonal Y (γ expanded) | Q55: Near Oblique T (γ constricted) | R55: Near Oblique T(β-Expanded) | S55: Near Oblique T (γ expanded) | T55: =IF(T50=0,VLOOKUP(T46,$P$22:$S$31,4,FALSE),"Near "& VLOOKUP(T46,$P$22:$S$31,4,FALSE)& IF(T54>0," (γ constricted)",IF(T54<0," (γ expanded)",IF(T53<0,"(β-Expanded)","(β- compressed)")))) -> Near 1/3 β-compressed Orthogonal Y (γ constricted) | U55: =IF(U50=0,VLOOKUP(U46,$P$22:$S$31,4,FALSE),"Near "& VLOOKUP(U46,$P$22:$S$31,4,FALSE)& IF(U54>0," (γ constricted)",IF(U54<0," (γ expanded)",IF(U53<0,"(β-Expanded)","(β- compressed)")))) -> Near 1/6 β-compressed Orthogonal Y (γ constricted) | V55: Near Orthogonal Y (γ constricted) | W55: =IF(W50=0,VLOOKUP(W47,$Q$22:$S$31,3,FALSE),"Near "& VLOOKUP(W47,$Q$22:$S$31,3,FALSE)& IF(W54>0," (γ constricted)",IF(W54<0," (γ expanded)",IF(W53<0,"(β-Expanded)","(β- compressed)")))) -> Near 2/3 β-Expanded Orthogonal Y (γ constricted) | X55: =IF(X50=0,VLOOKUP(X47,$Q$22:$S$31,3,FALSE),"Near "& VLOOKUP(X47,$Q$22:$S$31,3,FALSE)& IF(X54>0," (γ constricted)",IF(X54<0," (γ expanded)",IF(X53<0,"(β-Expanded)","(β- compressed)")))) -> Near 1/3 β-expanded Orthogonal Y (γ constricted) | Y55: Near Orthogonal Y (γ constricted) | AA55: name | AB55: =IF(AB50=0,VLOOKUP(AB46,$Z$3:$AD$21,5,FALSE), IF($AB$52<>0,"near "," ")&VLOOKUP(AB46,$Z$3:$AD$21,5,FALSE)&" ("&ROUND(AB$40,2)&" % oblique)") -> near 7/9 α-Expanded Arrow (5.06 % oblique) | AC55: =IF(AC50=0,VLOOKUP(AC46,$Z$3:$AD$21,5,FALSE), IF($AC$52<>0,"near "," ")&VLOOKUP(AC46,$Z$3:$AD$21,5,FALSE)&" ("&ROUND($AB$40,2)&" % oblique)") -> near 2/3 α-Expanded Arrow (5.06 % oblique) | AD55: =IF(AD50=0,VLOOKUP(AD46,$Z$3:$AD$21,5,FALSE), IF($AD$52<>0,"near "," ")&VLOOKUP(AD46,$Z$3:$AD$21,5,FALSE)&" ("&ROUND($AB$40,2)&" % oblique)") ->  | AE55: =IF(AE50=0,VLOOKUP(AE46,$Z$3:$AD$21,5,FALSE), IF($AE$52<>0,"near "," ")&VLOOKUP(AE46,$Z$3:$AD$21,5,FALSE)&" ("&ROUND($AB$40,2)&" % oblique)") ->  | AF55: =IF(AF50=0,VLOOKUP(AF46,$Z$3:$AD$21,5,FALSE), IF($AF$52<>0,"near "," ")&VLOOKUP(AF46,$Z$3:$AD$21,5,FALSE)&" ("&ROUND($AB$40,2)&" % oblique)") -> near 7/9 α-Expanded Arrow (5.06 % oblique) | AG55: =IF(AG50=0,VLOOKUP(AG46,$Z$3:$AD$21,5,FALSE), IF($AG$52<>0,"near "," ")&VLOOKUP(AG46,$Z$3:$AD$21,5,FALSE)&" ("&ROUND($AB$40,2)&" % oblique)") -> near 5/9 α-Expanded Arrow (5.06 % oblique) | AH55: =IF(AND(AH50=0,AH48=0),"Closed "&VLOOKUP(AH46,$Z$3:$AD$21,5,FALSE),IF(AH50=0,VLOOKUP(AH46,$Z$3:$AD$21,5,FALSE)&" ("&ROUND($AB$40,2)&" % oblique)", IF(AH48=0,"Closed",IF($AH54<>0,"near "," ")&VLOOKUP(AH46,$Z$3:$AD$21,5,FALSE)&" ("&ROUND($AB$40,2)&" % oblique)"))) -> 
A56: alpha | B56: 120 | E56: =E46 -> 160 | F56: 155 | G56: =G46 -> 150 | I56: =I46 -> 160 | J56: =J46 -> 155 | K56: =K46 -> 150 | N56: =N46 -> 160 | O56: =O46 -> 165 | P56: =P46 -> 170 | Q56: =Q46 -> 180 | R56: 180 | S56: 180 | T56: =T46 -> 160 | U56: 155 | V56: 150 | W56: 140 | X56: 145 | Y56: 150 | AA56: Alpha | AB56: =AB46 -> 160 | AC56: 150 | AD56: 260 | AE56: 240 | AF56: 160 | AG56: 140 | AH56: 210
A57: Beta | B57: 120 | E57: =E47 -> 160 | F57: 155 | G57: =G47 -> 150 | I57: =I47 -> 100 | J57: =J47 -> 102.5 | K57: =K47 -> 105 | N57: =N47 -> 120 | O57: 120 | P57: 120 | Q57: 100 | R57: 105 | S57: 110 | T57: =T47 -> 110 | U57: 115 | V57: 120 | W57: 130 | X57: 125 | Y57: 120 | AA57: beta | AB57: 100 | AC57: 105 | AD57: 130 | AE57: 120 | AF57: 80 | AG57: 70 | AH57: 130
A58: gamma | B58: 120 | E58: =E48 -> 40 | F58: 50 | G58: =G48 -> 60 | I58: =I48 -> 100 | J58: =J48 -> 102.5 | K58: =K48 -> 105 | N58: 80 | O58: 75 | P58: 70 | Q58: 80 | R58: 75 | S58: 70 | T58: =T48 -> 90 | U58: 90 | V58: 90 | W58: 90 | X58: 90 | Y58: 90 | AA58: gama | AB58: 100 | AC58: 105 | AD58: 130 | AE58: 120 | AF58: 80 | AG58: 70 | AH58: 80
Q59: t with Xo alpha distortion and xo gamma distortion | AA59: Alpha' | AB59: =AB45 -> 200 | AC59: 210 | AD59: 100 | AE59: 120 | AF59: 200 | AG59: 220 | AH59: 150
Q60: (beta distortion implied)
A61: Indexing | B61: Planar | D61: Pyramid
A62: normal
A63: Name | B63: =HLOOKUP($B67, A50:AH55,6,FALSE) -> Near 1/3 γ-Compressed Orthogonal Y (γ expanded)
A64: ideal a | B64: =HLOOKUP($B$67, $A$50:$AH$58,7,FALSE) -> 160
A65: ideal b | B65: =HLOOKUP($B$67, $A$50:$AH$58,8,FALSE) -> 120
A66: ideal g | B66: =HLOOKUP($B$67, $A$50:$AH$58,9,FALSE) -> 80
A67: Min: | B67: =MIN(B50,E50:G50,I50:K50,N50:P50,Q50:Y50, AB50:AH50) -> 4.654746681
A68: Asymm | B68: =HLOOKUP($B$67, $A$50:$AH$55,2,FALSE) -> -0.1428571429
A69: a deviate | B69: =HLOOKUP($B$67, $A$50:$AH$55,3,FALSE) -> 2
A70: b deviate | B70: =HLOOKUP($B$67, $A$50:$AH$55,4,FALSE) -> -6
A71: g deviate | B71: =HLOOKUP($B$67, $A$50:$AH$55,5,FALSE) -> 5
A72: Arrow
A73: Name | B73: =HLOOKUP($B$78,$AB$50:$AH$58,6,FALSE) -> near 7/9 α-Expanded Arrow (5.06 % oblique)
A74: Ideala' | B74: =HLOOKUP($B$78,$AB$50:$AH$59,10,FALSE) -> 200
A75: Ideal a | B75: =HLOOKUP($B$78,$AB$50:$AH$58,7,FALSE) -> 160
A76: ideal b | B76: =HLOOKUP($B$78,$AB$50:$AH$58,8,FALSE) -> 100
A77: ideal g | B77: =HLOOKUP($B$78,$AB$50:$AH$58,9,FALSE) -> 100
A78: Min: | B78: =MIN(AB50:AH50) -> 1000
A79: Asym | B79: =HLOOKUP($B$78,$AB$50:$AH$58,2,FALSE) -> -0.9615384615
A80: a dev | B80: =HLOOKUP($B$78,$AB$50:$AH$58,3,FALSE) -> 2
A81: b dev | B81: =HLOOKUP($B$78,$AB$50:$AH$58,4,FALSE) -> -26
A82: g dev | B82: =HLOOKUP($B$78,$AB$50:$AH$58,5,FALSE) -> 25
A84: min | B84: =MIN(B67,B78) -> 4.654746681

Sheet Poly
B1: Trigonal | F1: edge | G1: b (base length) | H1: s (slant height) | I1: a (apothem height) | J1: a1 | K1: a2 | L1: h | M1: h check | O1: Monoclinic | P1: a,b=150 series | R1: %fold | AJ1: zero prblm | AK1: RMSD | AL1: a,b=120 series | AS1: alpha fold | AT1: Orthogonal Y | AW1: folding | AY1: zero issue | AZ1: rmsd | BA1: alpha fold | BB1: semiorthogonal Y (g expanded) | BC1: gamma ref | BG1: zero issue | BH1: rmsd | BI1: Triclinic | BJ1: semiorthogonal Y (g expanded) | BK1: gamma ref | BO1: zero issue | BP1: rmsd | BQ1: Triclinic | BR1: semiorthogonal Y (g expanded) | BS1: gamma ref | BV1: zero issue | BW1: rmsd | BX1: Monoclinic | BY1: T-Shape | BZ1: alpha ref | CB1: zero issue | CC1: rmsd | CD1: Monoclinic | CE1: a-dominant | CF1: a-ref | CH1: zero issue | CI1: rmsd | CJ1: Monoclinic | CK1: a-dominant | CL1: a-ref | CO1: zero issue | CP1: rmsd | CQ1: Monoclinic | CR1: a-dominant | CS1: a-ref | CV1: zero issue | CW1: rmsd | CX1: Monoclinic | CY1: Arrow | CZ1: a-ref | DC1: zero issue | DD1: rmsd | DE1: Triclinic | DF1: orthogonal Y | DG1: gamma ref | DL1: zero issue | DM1: rmsd | DN1: Triclinic | DO1: semiorthogonal Y (g expanded) | DP1: gamma ref | DT1: zero issue | DU1: rmsd | DV1: Triclinic | DW1: semiorthogonal Y (g expanded) | DX1: gamma ref | EB1: zero issue | EC1: rmsd | ED1: Triclinic | EE1: semiorthogonal Y (g expanded) | EF1: gamma ref | EH1: zero issue | EI1: rmsd | EJ1: Triclinic | EK1: a180 series | EL1: gamma ref | EO1: zero issue | EP1: rmsd | EQ1: Triclinic | ER1: a180 series | ES1: gamma ref | EV1: zero issue | EW1: rmsd | EX1: Triclinic | EY1: a180 series | EZ1: gamma ref | FC1: zero issue | FD1: rmsd | FE1: Triclinic | FF1: a180 series | FG1: gamma ref | FJ1: zero issue | FK1: rmsd | FL1: Triclinic | FM1: a180 series | FN1: gamma ref
A2: =(SUM(B2:D2)/360) -> 1 | B2: 120 | C2: 120 | D2: 120 | E2: Trigonal planar | F2: 1 | G2: =2*SIN(RADIANS(B2/2)) -> 1.732050808 | H2: =COS(RADIANS(B2/2)) -> 0.5 | I2: =G2*COS(RADIANS(30)) -> 1.5 | J2: =(G2/2)*TAN(RADIANS(30)) -> 0.5 | K2: =(G2/2)/COS(RADIANS(30)) -> 1 | L2: =SQRT(F2^2-K2^2) -> 1.490116119e-08 | M2: =SQRT((H2^2)-(J2^2)) -> 1.290478414e-08 | O2: 150 | P2: 150 | Q2: 60 | R2: Constricted Y | AJ2: =IF(AK2=0,0.01,AK2) -> 31.016 | AK2: =ROUND((1/SQRT(3))*SQRT(($A$29-AL2)^2+($A$30-AM2)^2+($A$31-AN2)^2),3) -> 31.016 | AL2: 120 | AM2: 120 | AN2: 120 | AO2: trigonal planar | AR2: =IF(AS2=0,0.01,AS2) -> 10.1 | AS2: =ROUND((1/SQRT(3))*SQRT(($A$29-AT2)^2+($A$30-AU2)^2+($A$31-AV2)^2),3) -> 10.1 | AT2: 150 | AU2: 120 | AV2: 90 | AW2: Orthogonal Y | AY2: =IF(AZ2=0,0.01,AZ2) -> 19.545 | AZ2: =ROUND((1/SQRT(3))*SQRT(($A$29-BA2)^2+($A$30-BB2)^2+($A$31-BC2)^2),3) -> 19.545 | BA2: 135 | BB2: 120 | BC2: 105 | BD2: Semi-Orthogonal γ-Expanded Y | BG2: =IF(BH2=0,0.01,BH2) -> 11.045 | BH2: =ROUND((1/SQRT(3))*SQRT(($A$29-BI2)^2+($A$30-BJ2)^2+($A$31-BK2)^2),3) -> 11.045 | BI2: 165 | BJ2: 120 | BK2: 75 | BL2: Semi-Orthogonal γ-Compressed Y | BO2: =IF(BP2=0,0.01,BP2) -> 17.378 | BP2: =ROUND((1/SQRT(3))*SQRT(($A$29-BQ2)^2+($A$30-BR2)^2+($A$31-BS2)^2),3) -> 17.378 | BQ2: 165 | BR2: 105 | BS2: 90 | BT2: Semi-Orthogonal β-Compressed Y | BV2: =IF(BW2=0,0.01,BW2) -> 28.32 | BW2: =ROUND((1/SQRT(3))*SQRT(($A$29-BX2)^2+($A$30-BY2)^2+($A$31-BZ2)^2),3) -> 28.32 | BX2: 180 | BY2: 90 | BZ2: 90 | CA2: T-Shape | CB2: =IF(CC2=0,0.01,CC2) -> 22.461 | CC2: =ROUND((1/SQRT(3))*SQRT(($A$29-CD2)^2+($A$30-CE2)^2+($A$31-CF2)^2),3) -> 22.461 | CD2: 165 | CE2: =(360-165)/2 -> 97.5 | CF2: =(360-165)/2 -> 97.5 | CG2: 3/4 Expanded α-dominant Y | CH2: =IF(CI2=0,0.01,CI2) -> 20.785 | CI2: =ROUND((1/SQRT(3))*SQRT(($A$29-CJ2)^2+($A$30-CK2)^2+($A$31-CL2)^2),3) -> 20.785 | CJ2: 150 | CK2: 105 | CL2: 105 | CM2: 1/2 Expanded α-dominant Y | CO2: =IF(CP2=0,0.01,CP2) -> 24.176 | CP2: =ROUND((1/SQRT(3))*SQRT(($A$29-CQ2)^2+($A$30-CR2)^2+($A$31-CS2)^2),3) -> 24.176 | CQ2: 135 | CR2: 112.5 | CS2: 112.5 | CT2: 1/4 Expanded α-dominant Y | CV2: =IF(CW2=0,0.01,CW2) -> 26.683 | CW2: =ROUND((1/SQRT(3))*SQRT(($A$29-CX2)^2+($A$30-CY2)^2+($A$31-CZ2)^2),3) -> 26.683 | CX2: 150 | CY2: 75 | CZ2: 75 | DA2: 2/3 α-Expanded Arrow | DC2: =IF(DD2=0,0.01,DD2) -> 10.1 | DD2: =ROUND((1/SQRT(3))*SQRT(($A$29-DE2)^2+($A$30-DF2)^2+($A$31-DG2)^2),3) -> 10.1 | DE2: 150 | DF2: 120 | DG2: 90 | DH2: Orthogonal Y | DL2: =IF(DM2=0,0.01,DM2) -> 19.545 | DM2: =ROUND((1/SQRT(3))*SQRT(($A$29-DN2)^2+($A$30-DO2)^2+($A$31-DP2)^2),3) -> 19.545 | DN2: 135 | DO2: 120 | DP2: 105 | DQ2: Semi-Orthogonal γ-Expanded Y | DT2: =IF(DU2=0,0.01,DU2) -> 11.045 | DU2: =ROUND((1/SQRT(3))*SQRT(($A$29-DV2)^2+($A$30-DW2)^2+($A$31-DX2)^2),3) -> 11.045 | DV2: 165 | DW2: 120 | DX2: 75 | DY2: Semi-Orthogonal γ-Compressed Y | EB2: =IF(EC2=0,0.01,EC2) -> 17.378 | EC2: =ROUND((1/SQRT(3))*SQRT(($A$29-ED2)^2+($A$30-EE2)^2+($A$31-EF2)^2),3) -> 17.378 | ED2: 165 | EE2: 105 | EF2: 90 | EG2: Semi-Orthogonal β-Compressed Y | EH2: =IF(EI2=0,0.01,EI2) -> 21.726 | EI2: =ROUND((1/SQRT(3))*SQRT(($A$29-EJ2)^2+($A$30-EK2)^2+($A$31-EL2)^2),3) -> 21.726 | EJ2: 180 | EK2: 105 | EL2: 75 | EM2: Semi oblique T | EO2: =IF(EP2=0,0.01,EP2) -> 21.024 | EP2: =ROUND((1/SQRT(3))*SQRT(($A$29-EQ2)^2+($A$30-ER2)^2+($A$31-ES2)^2),3) -> 21.024 | EQ2: 180 | ER2: 120 | ES2: 60 | ET2: Oblique T | EV2: =IF(EW2=0,0.01,EW2) -> 26.683 | EW2: =ROUND((1/SQRT(3))*SQRT(($A$29-EX2)^2+($A$30-EY2)^2+($A$31-EZ2)^2),3) -> 26.683 | EX2: 180 | EY2: 135 | EZ2: 45 | FA2: Inclined Y | FC2: =IF(FD2=0,0.01,FD2) -> 35.805 | FD2: =ROUND((1/SQRT(3))*SQRT(($A$29-FE2)^2+($A$30-FF2)^2+($A$31-FG2)^2),3) -> 35.805 | FE2: 180 | FF2: 150 | FG2: 30 | FH2: Oblique Y | FJ2: =IF(FK2=0,0.01,FK2) -> 46.39 | FK2: =ROUND((1/SQRT(3))*SQRT(($A$29-FL2)^2+($A$30-FM2)^2+($A$31-FN2)^2),3) -> 46.39 | FL2: 180 | FM2: 165 | FN2: 15 | FO2: Semi-Oblique Y
A3: =(SUM(B3:D3)/360) -> 0.9583333333 | B3: 115 | C3: 115 | D3: 115 | E3: Trigonal Semiplanar | F3: 1 | G3: =2*SIN(RADIANS(B3/2)) -> 1.686782892 | H3: =COS(RADIANS(B3/2)) -> 0.5372996083 | I3: =G3*COS(RADIANS(30)) -> 1.460796835 | J3: =(G3/2)*TAN(RADIANS(30)) -> 0.4869322783 | K3: =(G3/2)/COS(RADIANS(30)) -> 0.9738645565 | L3: =SQRT(F3^2-K3^2) -> 0.2271295346 | M3: =SQRT((H3^2)-(J3^2)) -> 0.2271295346 | O3: 150 | P3: 150 | Q3: 55 | R3: =(1-ROUND(Q3/60,1))*100&" % folded" -> 10 % folded | AJ3: =IF(AK3=0,0.01,AK3) -> 28.525 | AK3: =ROUND((1/SQRT(3))*SQRT(($A$29-AL3)^2+($A$30-AM3)^2+($A$31-AN3)^2),3) -> 28.525 | AL3: 120 | AM3: 120 | AN3: 115 | AO3: =(1-ROUND(AN3/120,2))*100&" % folded Trigonal Plane" -> 4 % folded Trigonal Plane | AR3: =IF(AS3=0,0.01,AS3) -> 9.832 | AS3: =ROUND((1/SQRT(3))*SQRT(($A$29-AT3)^2+($A$30-AU3)^2+($A$31-AV3)^2),3) -> 9.832 | AT3: 145 | AU3: =$A$30 -> 121 | AV3: 90 | AW3: =ROUND(((150-AT3)/120)*100,0)&" % α-folded Orthogonal Y" -> 4 % α-folded Orthogonal Y | AY3: =IF(AZ3=0,0.01,AZ3) -> 20.664 | AZ3: =ROUND((1/SQRT(3))*SQRT(($A$29-BA3)^2+($A$30-BB3)^2+($A$31-BC3)^2),3) -> 20.664 | BA3: 130 | BB3: 120 | BC3: 105 | BD3: =ROUND(((135-BA3)/120)*100,0)&" % α-folded Semi-Orthogonal γ-Expanded Y" -> 4 % α-folded Semi-Orthogonal γ-Expanded Y | BG3: =IF(BH3=0,0.01,BH3) -> 8.185 | BH3: =ROUND((1/SQRT(3))*SQRT(($A$29-BI3)^2+($A$30-BJ3)^2+($A$31-BK3)^2),3) -> 8.185 | BI3: 160 | BJ3: 120 | BK3: 75 | BL3: =ROUND(((165-BI3)/120)*100,0)&" % α-folded Semi-Orthogonal γ-Compressed Y" -> 4 % α-folded Semi-Orthogonal γ-Compressed Y | BO3: =IF(BP3=0,0.01,BP3) -> 15.716 | BP3: =ROUND((1/SQRT(3))*SQRT(($A$29-BQ3)^2+($A$30-BR3)^2+($A$31-BS3)^2),3) -> 15.716 | BQ3: 160 | BR3: 105 | BS3: 90 | BT3: =ROUND(((165-BQ3)/150)*100,0)&" % α-folded Semi-Orthogonal β-Compressed Y" -> 3 % α-folded Semi-Orthogonal β-Compressed Y | BV3: =IF(BW3=0,0.01,BW3) -> 26.42 | BW3: 26.42 | BX3: 175 | BY3: =2*DEGREES(ASIN(((SIN(RADIANS(BX3/2))*SIN(RADIANS($BY$2/2))/SIN(RADIANS($BX$2/2)))))) -> 89.89098606 | BZ3: =2*DEGREES(ASIN(((SIN(RADIANS(BX3/2))*SIN(RADIANS($BZ$2/2))/SIN(RADIANS($BX$2/2)))))) -> 89.89098606 | CA3: =ROUND(100*($BX$2-BX3)/$BX$2,0)&" % closed T-shape" -> 3 % closed T-shape | CB3: =IF(CC3=0,0.01,CC3) -> 21.2 | CC3: =ROUND((1/SQRT(3))*SQRT(($A$29-CD3)^2+($A$30-CE3)^2+($A$31-CF3)^2),3) -> 21.2 | CD3: 160 | CE3: =2*DEGREES(ASIN(((SIN(RADIANS(CD3/2))*SIN(RADIANS($CE$2/2))/SIN(RADIANS($CD$2/2)))))) -> 96.62903382 | CF3: =2*DEGREES(ASIN(((SIN(RADIANS(CD3/2))*SIN(RADIANS($CE$2/2))/SIN(RADIANS($CD$2/2)))))) -> 96.62903382 | CG3: =ROUND(100*($CD$2-CD3)/$CD$2,0)&" % Closed 3/4 Expanded α-dominant Y" -> 3 % Closed 3/4 Expanded α-dominant Y | CH3: =IF(CI3=0,0.01,CI3) -> 20.234 | CI3: =ROUND((1/SQRT(3))*SQRT(($A$29-CJ3)^2+($A$30-CK3)^2+($A$31-CL3)^2),3) -> 20.234 | CJ3: 145 | CK3: =2*DEGREES(ASIN(((SIN(RADIANS(CJ3/2))*SIN(RADIANS($CK$2/2))/SIN(RADIANS($CJ$2/2)))))) -> 103.132181 | CL3: =2*DEGREES(ASIN(((SIN(RADIANS(CJ3/2))*SIN(RADIANS($CL$2/2))/SIN(RADIANS($CJ$2/2)))))) -> 103.132181 | CM3: =ROUND(100*($CJ$2-CJ3)/$CJ$2,0)&" % Closed 1/2 Expanded α-dominant Y" -> 3 % Closed 1/2 Expanded α-dominant Y | CO3: =IF(CP3=0,0.01,CP3) -> 23.88 | CP3: =ROUND((1/SQRT(3))*SQRT(($A$29-CQ3)^2+($A$30-CR3)^2+($A$31-CS3)^2),3) -> 23.88 | CQ3: 130 | CR3: =2*DEGREES(ASIN(((SIN(RADIANS(CQ3/2))*SIN(RADIANS($CR$2/2))/SIN(RADIANS($CQ$2/2)))))) -> 109.3044477 | CS3: =2*DEGREES(ASIN(((SIN(RADIANS(CQ3/2))*SIN(RADIANS($CS$2/2))/SIN(RADIANS($CQ$2/2)))))) -> 109.3044477 | CT3: =ROUND(100*($CQ$2-CQ3)/$CQ$2,0)&" % Closed 1/4 Expanded α-dominant Y" -> 4 % Closed 1/4 Expanded α-dominant Y | CV3: =IF(CW3=0,0.01,CW3) -> 27.208 | CW3: =ROUND((1/SQRT(3))*SQRT(($A$29-CX3)^2+($A$30-CY3)^2+($A$31-CZ3)^2),3) -> 27.208 | CX3: 145 | CY3: =2*DEGREES(ASIN(((SIN(RADIANS(CX3/2))*SIN(RADIANS($CY$2/2))/SIN(RADIANS($CX$2/2)))))) -> 73.89270169 | CZ3: =2*DEGREES(ASIN(((SIN(RADIANS(CX3/2))*SIN(RADIANS($CY$2/2))/SIN(RADIANS($CX$2/2)))))) -> 73.89270169 | DA3: =ROUND(100*($CX$2-CX3)/$CX$2,0)&" % Closed 2/3 α-Expanded Arrow" -> 3 % Closed 2/3 α-Expanded Arrow | DC3: =IF(DD3=0,0.01,DD3) -> 10.935 | DD3: =ROUND((1/SQRT(3))*SQRT(($A$29-DE3)^2+($A$30-DF3)^2+($A$31-DG3)^2),3) -> 10.935 | DE3: =2*DEGREES(ASIN(((SIN(RADIANS(DG3/2))*SIN(RADIANS(75))/SIN(RADIANS(45)))))) -> 134.6996672 | DF3: =2*DEGREES(ASIN(((SIN(RADIANS(DG3/2))*SIN(RADIANS(60))/SIN(RADIANS(45)))))) -> 111.6703805 | DG3: 85 | DH3: =ROUND((150-DE3)/1.5,0)&" % closed orthogonal Y" -> 10 % closed orthogonal Y | DL3: =IF(DM3=0,0.01,DM3) -> 19.788 | DM3: =ROUND((1/SQRT(3))*SQRT(($A$29-DN3)^2+($A$30-DO3)^2+($A$31-DP3)^2),3) -> 19.788 | DN3: =2*DEGREES(ASIN(((SIN(RADIANS(DP3/2))*SIN(RADIANS($DN$2/2))/SIN(RADIANS($DP$2/2)))))) -> 126.2709911 | DO3: =2*DEGREES(ASIN(((SIN(RADIANS(DP3/2))*SIN(RADIANS($DO$2/2))/SIN(RADIANS($DP$2/2)))))) -> 113.4851261 | DP3: 100 | DQ3: =ROUND(100*($DN$2-DN3)/$DN$2,0)&" % closed Semi-Orthogonal γ-Expanded Y" -> 6 % closed Semi-Orthogonal γ-Expanded Y | DT3: =IF(DU3=0,0.01,DU3) -> 8.276 | DU3: =ROUND((1/SQRT(3))*SQRT(($A$29-DV3)^2+($A$30-DW3)^2+($A$31-DX3)^2),3) -> 8.276 | DV3: =2*DEGREES(ASIN(((SIN(RADIANS(DX3/2))*SIN(RADIANS($DV$2/2))/SIN(RADIANS($DX$2/2)))))) -> 138.1798267 | DW3: =2*DEGREES(ASIN(((SIN(RADIANS(DX3/2))*SIN(RADIANS($DW$2/2))/SIN(RADIANS($DX$2/2)))))) -> 109.3670015 | DX3: 70 | DY3: =ROUND(100*($DV$2-DV3)/$DV$2,0)&" % closed Semi-Orthogonal γ-Compressed Y" -> 16 % closed Semi-Orthogonal γ-Compressed Y | EB3: =IF(EC3=0,0.01,EC3) -> 14.814 | EC3: =ROUND((1/SQRT(3))*SQRT(($A$29-ED3)^2+($A$30-EE3)^2+($A$31-EF3)^2),3) -> 14.814 | ED3: =2*DEGREES(ASIN(((SIN(RADIANS(EF3/2))*SIN(RADIANS($ED$2/2))/SIN(RADIANS($EF$2/2)))))) -> 142.6159905 | EE3: =2*DEGREES(ASIN(((SIN(RADIANS(EF3/2))*SIN(RADIANS($EE$2/2))/SIN(RADIANS($EF$2/2)))))) -> 98.57510623 | EF3: 85 | EG3: =ROUND(100*($ED$2-ED3)/$ED$2,0)&" % closed Semi-Orthogonal β-Compressed Y" -> 14 % closed Semi-Orthogonal β-Compressed Y | EH3: =IF(EI3=0,0.01,EI3) -> 14.418 | EI3: =ROUND((1/SQRT(3))*SQRT(($A$29-EJ3)^2+($A$30-EK3)^2+($A$31-EL3)^2),3) -> 14.418 | EJ3: =2*DEGREES(ASIN(((SIN(RADIANS(EL3/2))*SIN(RADIANS($EJ$2/2))/SIN(RADIANS($EL$2/2)))))) -> 140.8495204 | EK3: =2*DEGREES(ASIN(((SIN(RADIANS(EL3/2))*SIN(RADIANS($EK$2/2))/SIN(RADIANS($EL$2/2)))))) -> 96.748454 | EL3: 70 | EM3: =ROUND(100*($EL$2-EL3)/$EL$2,0)&" % closed Semi-Oblique T" -> 7 % closed Semi-Oblique T | EO3: =IF(EP3=0,0.01,EP3) -> 14.901 | EP3: =ROUND((1/SQRT(3))*SQRT(($A$29-EQ3)^2+($A$30-ER3)^2+($A$31-ES3)^2),3) -> 14.901 | EQ3: =2*DEGREES(ASIN(((SIN(RADIANS(ES3/2))*SIN(RADIANS($EQ$2/2))/SIN(RADIANS($ES$2/2)))))) -> 134.8856591 | ER3: =2*DEGREES(ASIN(((SIN(RADIANS(ES3/2))*SIN(RADIANS($ER$2/2))/SIN(RADIANS($ES$2/2)))))) -> 106.2166821 | ES3: 55 | ET3: =ROUND(100*($ES$2-ES3)/$ES$2,0)&" % closed Oblique T" -> 8 % closed Oblique T | EV3: =IF(EW3=0,0.01,EW3) -> 22.77 | EW3: =ROUND((1/SQRT(3))*SQRT(($A$29-EX3)^2+($A$30-EY3)^2+($A$31-EZ3)^2),3) -> 22.77 | EX3: =2*DEGREES(ASIN(((SIN(RADIANS(EZ3/2))*SIN(RADIANS($EX$2/2))/SIN(RADIANS($EZ$2/2)))))) -> 126.6945208 | EY3: =2*DEGREES(ASIN(((SIN(RADIANS(EZ3/2))*SIN(RADIANS($EY$2/2))/SIN(RADIANS($EZ$2/2)))))) -> 111.3210138 | EZ3: 40 | FA3: =ROUND(100*($EZ$2-EZ3)/$EZ$2,0)&" % closed Inclined Y" -> 11 % closed Inclined Y | FC3: =IF(FD3=0,0.01,FD3) -> 34.332 | FD3: =ROUND((1/SQRT(3))*SQRT(($A$29-FE3)^2+($A$30-FF3)^2+($A$31-FG3)^2),3) -> 34.332 | FE3: =2*DEGREES(ASIN(((SIN(RADIANS(FG3/2))*SIN(RADIANS($FE$2/2))/SIN(RADIANS($FG$2/2)))))) -> 113.4942102 | FF3: =2*DEGREES(ASIN(((SIN(RADIANS(FG3/2))*SIN(RADIANS($FF$2/2))/SIN(RADIANS($FG$2/2)))))) -> 107.7560091 | FG3: 25 | FH3: =ROUND(100*($FG$2-FG3)/$FG$2,0)&" % closed Oblique Y" -> 17 % closed Oblique Y | FJ3: =IF(FK3=0,0.01,FK3) -> 55.651 | FK3: =ROUND((1/SQRT(3))*SQRT(($A$29-FL3)^2+($A$30-FM3)^2+($A$31-FN3)^2),3) -> 55.651 | FL3: =2*DEGREES(ASIN(((SIN(RADIANS(FN3/2))*SIN(RADIANS($FL$2/2))/SIN(RADIANS($FN$2/2)))))) -> 83.78360856 | FM3: =2*DEGREES(ASIN(((SIN(RADIANS(FN3/2))*SIN(RADIANS($FM$2/2))/SIN(RADIANS($FN$2/2)))))) -> 82.90724423 | FN3: 10 | FO3: =ROUND(100*($FN$2-FN3)/$FN$2,0)&" % closed Semi-Oblique Y" -> 33 % closed Semi-Oblique Y
A4: 0.9166666667 | B4: 110 | C4: 110 | D4: 110 | E4: Trigonal Pyramidal | F4: 1 | G4: =2*SIN(RADIANS(B4/2)) -> 1.638304089 | H4: =COS(RADIANS(B4/2)) -> 0.5735764364 | I4: =G4*COS(RADIANS(30)) -> 1.41881296 | J4: =(G4/2)*TAN(RADIANS(30)) -> 0.4729376533 | K4: =(G4/2)/COS(RADIANS(30)) -> 0.9458753066 | L4: =SQRT(F4^2-K4^2) -> 0.3245302828 | M4: =SQRT((H4^2)-(J4^2)) -> 0.3245302828 | O4: 150 | P4: 150 | Q4: 50 | R4: =(1-ROUND(Q4/60,1))*100&" % folded" -> 20 % folded | AJ4: =IF(AK4=0,0.01,AK4) -> 26.115 | AK4: 26.115 | AL4: 120 | AM4: 120 | AN4: 110 | AO4: =(1-ROUND(AN4/120,2))*100&" % folded Trigonal Plane" -> 8 % folded Trigonal Plane | AR4: 10.408 | AS4: 10.408 | AT4: 140 | AU4: 121 | AV4: 90 | AW4: =ROUND(((150-AT4)/120)*100,0)&" % α-folded Orthogonal Y" -> 8 % α-folded Orthogonal Y | AY4: 22.106 | AZ4: 22.106 | BA4: 125 | BB4: 120 | BC4: 105 | BD4: =ROUND(((135-BA4)/120)*100,0)&" % α-folded Semi-Orthogonal γ-Expanded Y" -> 8 % α-folded Semi-Orthogonal γ-Expanded Y | BG4: 5.354 | BH4: 5.354 | BI4: 155 | BJ4: 120 | BK4: 75 | BL4: =ROUND(((165-BI4)/120)*100,0)&" % α-folded Semi-Orthogonal γ-Compressed Y" -> 8 % α-folded Semi-Orthogonal γ-Compressed Y | BO4: 14.445 | BP4: 14.445 | BQ4: 155 | BR4: 105 | BS4: 90 | BT4: =ROUND(((165-BQ4)/150)*100,0)&" % α-folded Semi-Orthogonal β-Compressed Y" -> 7 % α-folded Semi-Orthogonal β-Compressed Y | BV4: =IF(BW4=0,0.01,BW4) -> 24.756 | BW4: 24.756 | BX4: 170 | BY4: 89.56477 | BZ4: 89.56477 | CA4: 6 % closed T-shape | CB4: 20.309 | CC4: 20.309 | CD4: 155 | CE4: =2*DEGREES(ASIN(((SIN(RADIANS(CD4/2))*SIN(RADIANS($CE$2/2))/SIN(RADIANS($CD$2/2)))))) -> 95.52282117 | CF4: =2*DEGREES(ASIN(((SIN(RADIANS(CD4/2))*SIN(RADIANS($CE$2/2))/SIN(RADIANS($CD$2/2)))))) -> 95.52282117 | CG4: =ROUND(100*($CD$2-CD4)/$CD$2,0)&" % Closed 3/4 Expanded α-dominant Y" -> 6 % Closed 3/4 Expanded α-dominant Y | CH4: 20.17 | CI4: 20.17 | CJ4: 140 | CK4: =2*DEGREES(ASIN(((SIN(RADIANS(CJ4/2))*SIN(RADIANS($CK$2/2))/SIN(RADIANS($CJ$2/2)))))) -> 101.0328622 | CL4: =2*DEGREES(ASIN(((SIN(RADIANS(CJ4/2))*SIN(RADIANS($CL$2/2))/SIN(RADIANS($CJ$2/2)))))) -> 101.0328622 | CM4: =ROUND(100*($CJ$2-CJ4)/$CJ$2,0)&" % Closed 1/2 Expanded α-dominant Y" -> 7 % Closed 1/2 Expanded α-dominant Y | CO4: 24.17 | CP4: 24.17 | CQ4: 125 | CR4: =2*DEGREES(ASIN(((SIN(RADIANS(CQ4/2))*SIN(RADIANS($CR$2/2))/SIN(RADIANS($CQ$2/2)))))) -> 105.9339814 | CS4: =2*DEGREES(ASIN(((SIN(RADIANS(CQ4/2))*SIN(RADIANS($CS$2/2))/SIN(RADIANS($CQ$2/2)))))) -> 105.9339814 | CT4: =ROUND(100*($CQ$2-CQ4)/$CQ$2,0)&" % Closed 1/4 Expanded α-dominant Y" -> 7 % Closed 1/4 Expanded α-dominant Y | CV4: 28.141 | CW4: 28.141 | CX4: 140 | CY4: =2*DEGREES(ASIN(((SIN(RADIANS(CX4/2))*SIN(RADIANS($CY$2/2))/SIN(RADIANS($CX$2/2)))))) -> 72.63059204 | CZ4: =2*DEGREES(ASIN(((SIN(RADIANS(CX4/2))*SIN(RADIANS($CY$2/2))/SIN(RADIANS($CX$2/2)))))) -> 72.63059204 | DA4: =ROUND(100*($CX$2-CX4)/$CX$2,0)&" % Closed 2/3 α-Expanded Arrow" -> 7 % Closed 2/3 α-Expanded Arrow | DC4: 17.129 | DD4: 17.129 | DE4: =2*DEGREES(ASIN(((SIN(RADIANS(DG4/2))*SIN(RADIANS(75))/SIN(RADIANS(45)))))) -> 122.8194479 | DF4: =2*DEGREES(ASIN(((SIN(RADIANS(DG4/2))*SIN(RADIANS(60))/SIN(RADIANS(45)))))) -> 103.8586685 | DG4: 80 | DH4: =ROUND((150-DE4)/1.5,0)&" % closed orthogonal Y" -> 18 % closed orthogonal Y | DL4: 21.919 | DM4: 21.919 | DN4: 118.3145079 | DO4: 107.1843557 | DP4: 95 | DQ4: 12 % closed Semi-Orthogonal γ-Expanded Y | DT4: 19.05 | DU4: 19.05 | DV4: 122.1042169 | DW4: 99.70082607 | DX4: 65 | DY4: =ROUND(100*($DV$2-DV4)/$DV$2,0)&" % closed Semi-Orthogonal γ-Compressed Y" -> 26 % closed Semi-Orthogonal γ-Compressed Y | EB4: 19.777 | EC4: 19.777 | ED4: 128.6489014 | EE4: 92.30548301 | EF4: 80 | EG4: 22 % closed Semi-Orthogonal β-Compressed Y | EH4: 22.969 | EI4: 22.969 | EJ4: =2*DEGREES(ASIN(((SIN(RADIANS(EL4/2))*SIN(RADIANS($EJ$2/2))/SIN(RADIANS($EL$2/2)))))) -> 123.9179275 | EK4: =2*DEGREES(ASIN(((SIN(RADIANS(EL4/2))*SIN(RADIANS($EK$2/2))/SIN(RADIANS($EL$2/2)))))) -> 88.88971304 | EL4: 65 | EM4: =ROUND(100*($EL$2-EL4)/$EL$2,0)&" % closed Semi-Oblique T" -> 13 % closed Semi-Oblique T | EO4: 47.73 | EP4: 47.73 | EQ4: =2*DEGREES(ASIN(((SIN(RADIANS(ES4/2))*SIN(RADIANS($EJ$2/2))/SIN(RADIANS($EL$2/2)))))) -> 87.93120828 | ER4: =2*DEGREES(ASIN(((SIN(RADIANS(ES4/2))*SIN(RADIANS($EK$2/2))/SIN(RADIANS($EL$2/2)))))) -> 66.83927487 | ES4: 50 | ET4: =ROUND(100*($ES$2-ES4)/$ES$2,0)&" % closed Oblique T" -> 17 % closed Oblique T | EV4: 36.612 | EW4: =ROUND((1/SQRT(3))*SQRT(($A$29-EX4)^2+($A$30-EY4)^2+($A$31-EZ4)^2),3) -> 36.612 | EX4: =2*DEGREES(ASIN(((SIN(RADIANS(EZ4/2))*SIN(RADIANS($EX$2/2))/SIN(RADIANS($EZ$2/2)))))) -> 103.5861459 | EY4: =2*DEGREES(ASIN(((SIN(RADIANS(EZ4/2))*SIN(RADIANS($EY$2/2))/SIN(RADIANS($EZ$2/2)))))) -> 93.09887063 | EZ4: 35 | FA4: =ROUND(100*($EZ$2-EZ4)/$EZ$2,0)&" % closed Inclined Y" -> 22 % closed Inclined Y | FC4: 52.394 | FD4: =ROUND((1/SQRT(3))*SQRT(($A$29-FE4)^2+($A$30-FF4)^2+($A$31-FG4)^2),3) -> 52.394 | FE4: =2*DEGREES(ASIN(((SIN(RADIANS(FG4/2))*SIN(RADIANS($FE$2/2))/SIN(RADIANS($FG$2/2)))))) -> 84.27699976 | FF4: =2*DEGREES(ASIN(((SIN(RADIANS(FG4/2))*SIN(RADIANS($FF$2/2))/SIN(RADIANS($FG$2/2)))))) -> 80.79156179 | FG4: 20 | FH4: =ROUND(100*($FG$2-FG4)/$FG$2,0)&" % closed Oblique Y" -> 33 % closed Oblique Y | FJ4: 87.248 | FK4: =ROUND((1/SQRT(3))*SQRT(($A$29-FL4)^2+($A$30-FM4)^2+($A$31-FN4)^2),3) -> 87.248 | FL4: =2*DEGREES(ASIN(((SIN(RADIANS(FN4/2))*SIN(RADIANS($FL$2/2))/SIN(RADIANS($FN$2/2)))))) -> 39.04549833 | FM4: =2*DEGREES(ASIN(((SIN(RADIANS(FN4/2))*SIN(RADIANS($FM$2/2))/SIN(RADIANS($FN$2/2)))))) -> 38.69808744 | FN4: 5 | FO4: =ROUND(100*($FN$2-FN4)/$FN$2,0)&" % closed Semi-Oblique Y" -> 67 % closed Semi-Oblique Y
A5: 0.875 | B5: 105 | C5: 105 | D5: 105 | E5: =ROUND(((110-D5)/110)*100,1)&" % Closed Trigonal Pyramid" -> 4.5 % Closed Trigonal Pyramid | F5: 1 | G5: =2*SIN(RADIANS(B5/2)) -> 1.586706681 | H5: =COS(RADIANS(B5/2)) -> 0.608761429 | I5: =G5*COS(RADIANS(30)) -> 1.374128294 | J5: =(G5/2)*TAN(RADIANS(30)) -> 0.4580427646 | K5: =(G5/2)/COS(RADIANS(30)) -> 0.9160855292 | L5: =SQRT(F5^2-K5^2) -> 0.4009829214 | M5: =SQRT((H5^2)-(J5^2)) -> 0.4009829214 | O5: 150 | P5: 150 | Q5: 45 | R5: 20 % folded | AJ5: =IF(AK5=0,0.01,AK5) -> 23.812 | AK5: 23.812 | AL5: 120 | AM5: 120 | AN5: 105 | AO5: 12 % folded Trigonal Plane | AR5: 11.69 | AS5: 11.69 | AT5: 135 | AU5: 121 | AV5: 90 | AW5: 13 % α-folded Orthogonal Y | AY5: 23.812 | AZ5: 23.812 | BA5: 120 | BB5: 120 | BC5: 105 | BD5: 12% folded Trigonal Plane | BG5: 2.646 | BH5: 2.646 | BI5: 150 | BJ5: 120 | BK5: 75 | BL5: 13 % α-folded Semi-Orthogonal γ-Compressed Y | BO5: 13.675 | BP5: 13.675 | BQ5: 150 | BR5: 105 | BS5: 90 | BT5: 10 % α-folded Semi-Orthogonal β-Compressed Y | BV5: 23.383 | BW5: 23.383 | BX5: 165 | BY5: 89.0237996 | BZ5: 89.0237996 | CA5: 8 % closed T-shape | CB5: 19.864 | CC5: 19.864 | CD5: 150 | CE5: 94.19076284 | CF5: 94.19076284 | CG5: 9 % Closed 3/4 Expanded α-dominant Y | CH5: 20.647 | CI5: 20.647 | CJ5: 135 | CK5: 98.72039567 | CL5: 98.72039567 | CM5: 10 % Closed 1/2 Expanded α-dominant Y | CO5: 25.077 | CP5: 25.077 | CQ5: 120 | CR5: 102.4117611 | CS5: 102.4117611 | CT5: 11 % Closed 1/4 Expanded α-dominant Y | CV5: 29.452 | CW5: 29.452 | CX5: 135 | CY5: 71.21964173 | CZ5: 71.21964173 | DA5: 10 % Closed 2/3 α-Expanded Arrow | DC5: 24.007 | DD5: 24.007 | DE5: 112.5235099 | DF5: 96.41744097 | DG5: 75 | DH5: 25 % closed orthogonal Y | DL5: 25.31 | DM5: 25.31 | DN5: 110.8619608 | DO5: 101.0457662 | DP5: 90 | DQ5: 18 % closed Semi-Orthogonal γ-Expanded Y | DT5: 28.603 | DU5: 28.603 | DV5: 109.0390065 | DW5: 90.68175792 | DX5: 60 | DY5: 34 % closed Semi-Orthogonal γ-Compressed Y | EB5: 26.123 | EC5: 26.123 | ED5: 117.2005704 | EE5: 86.15903428 | EF5: 75 | EG5: 29 % closed Semi-Orthogonal β-Compressed Y | EH5: 31.663 | EI5: 31.663 | EJ5: 110.4382804 | EK5: 81.32660431 | EL5: 60 | EM5: 20 % closed Semi-Oblique T | EO5: 55.268 | EP5: 55.268 | EQ5: 77.89768902 | ER5: 59.83106864 | ES5: 45 | ET5: 25 % closed Oblique T | EV5: 49.874 | EW5: 49.874 | EX5: 85.11453102 | EY5: 77.34154265 | EZ5: 30 | FA5: 33 % closed Inclined Y | FC5: 69.744 | FD5: 69.744 | FE5: 60.57171321 | FF5: 58.30428743 | FG5: 15 | FH5: 50 % closed Oblique Y | FJ5: 117.312 | FK5: 117.312 | FL5: 0 | FM5: 0 | FN5: 0 | FO5: Closed Arrow
A6: 0.8333333333 | B6: 100 | C6: 100 | D6: 100 | E6: =ROUND(((110-D6)/110)*100,1)&" % Closed Trigonal Pyramid" -> 9.1 % Closed Trigonal Pyramid | F6: 1 | G6: 1.532088886 | H6: 0.6427876097 | I6: 1.326827896 | J6: 0.4422759654 | K6: 0.8845519309 | L6: 0.4664417236 | M6: 0.4664417236 | O6: 150 | P6: 150 | Q6: 40 | R6: 30 % folded | AJ6: 21.649 | AK6: 21.649 | AL6: 120 | AM6: 120 | AN6: 100 | AO6: 17 % folded Trigonal Plane | AR6: 13.478 | AS6: 13.478 | AT6: 130 | AU6: 121 | AV6: 90 | AW6: 17 % α-folded Orthogonal Y | AY6: 24.055 | AZ6: 24.055 | BA6: 120 | BB6: 115 | BC6: 105 | BD6: =ROUND(((135-BB6)/120)*100,0)&" % α-folded Semi-Orthogonal γ-Expanded Y" -> 17 % α-folded Semi-Orthogonal γ-Expanded Y | BG6: 1.414 | BH6: 1.414 | BI6: 145 | BJ6: 120 | BK6: 75 | BL6: 17 % α-folded Semi-Orthogonal γ-Compressed Y | BO6: 13.491 | BP6: 13.491 | BQ6: 145 | BR6: 105 | BS6: 90 | BT6: 13 % α-folded Semi-Orthogonal β-Compressed Y | BV6: 22.363 | BW6: 22.363 | BX6: 160 | BY6: 88.27205893 | BZ6: 88.27205893 | CA6: 11 % closed T-shape | CB6: 19.925 | CC6: 19.925 | CD6: 145 | CE6: 92.6435564 | CF6: 92.6435564 | CG6: 12 % Closed 3/4 Expanded α-dominant Y | CH6: 21.674 | CI6: 21.674 | CJ6: 130 | CK6: 96.21289125 | CL6: 96.21289125 | CM6: 13 % Closed 1/2 Expanded α-dominant Y | CO6: 26.578 | CP6: 26.578 | CQ6: 115 | CR6: 98.75791426 | CS6: 98.75791426 | CT6: 15 % Closed 1/4 Expanded α-dominant Y | CV6: 31.103 | CW6: 31.103 | CX6: 130 | CY6: 69.66621794 | CZ6: 69.66621794 | DA6: 13 % Closed 2/3 α-Expanded Arrow | DC6: 30.83 | DD6: 30.83 | DE6: 103.1680025 | DF6: 89.25340255 | DG6: 70 | DH6: 31 % closed orthogonal Y | DL6: 29.451 | DM6: 29.451 | DN6: 103.7640602 | DO6: 95.03353831 | DP6: 85 | DQ6: 23 % closed Semi-Orthogonal γ-Expanded Y | DT6: 37.348 | DU6: 37.348 | DV6: 97.53061335 | DW6: 82.12541586 | DX6: 55 | DY6: 41 % closed Semi-Orthogonal γ-Compressed Y | EB6: 32.641 | EC6: 32.641 | ED6: 107.0699856 | EE6: 80.11202039 | EF6: 70 | EG6: 35 % closed Semi-Orthogonal β-Compressed Y | EH6: 39.893 | EI6: 39.893 | EJ6: 98.6651647 | EK6: 73.99246519 | EL6: 55 | EM6: 27 % closed Semi-Oblique T | EO6: 62.579 | EP6: 62.579 | EQ6: 68.36483223 | ER6: 52.94002091 | ES6: 40 | ET6: 33 % closed Oblique T | EV6: 62.22 | EW6: 62.22 | EX6: 68.88570576 | EY6: 63.0044199 | EZ6: 25 | FA6: 44 % closed Inclined Y | FC6: 86.094 | FD6: 86.094 | FE6: 39.3572409 | FF6: 37.96382612 | FG6: 10 | FH6: 67 % closed Oblique Y | FM6: b-ref
A7: 0.7916666667 | B7: 95 | C7: 95 | D7: 95 | E7: 13.6 % Closed Trigonal Pyramid | F7: 1 | G7: 1.474554674 | H7: 0.6755902076 | I7: 1.277001807 | J7: 0.4256672689 | K7: 0.8513345377 | L7: 0.5246232027 | M7: 0.5246232027 | O7: 150 | P7: 150 | Q7: 35 | R7: 40 % folded | AJ7: 19.672 | AK7: 19.672 | AL7: 120 | AM7: 120 | AN7: 95 | AO7: 21 % folded Trigonal Plane | AR7: 15.599 | AS7: 15.599 | AT7: 125 | AU7: 121 | AV7: 90 | AW7: 21 % α-folded Orthogonal Y | AY7: 24.637 | AZ7: 24.637 | BA7: 120 | BB7: 110 | BC7: 105 | BD7: =ROUND(((135-BB7)/120)*100,0)&" % α-folded Semi-Orthogonal γ-Expanded Y" -> 21 % α-folded Semi-Orthogonal γ-Expanded Y | BG7: 3.697 | BH7: 3.697 | BI7: 140 | BJ7: 120 | BK7: 75 | BL7: 21 % α-folded Semi-Orthogonal γ-Compressed Y | BO7: 13.916 | BP7: 13.916 | BQ7: 140 | BR7: 105 | BS7: 90 | BT7: 17 % α-folded Semi-Orthogonal β-Compressed Y | BV7: 21.761 | BW7: 21.761 | BX7: 155 | BY7: 87.31493311 | BZ7: 87.31493311 | CA7: 14 % closed T-shape | CB7: 20.515 | CC7: 20.515 | CD7: 140 | CE7: 90.89283695 | CF7: 90.89283695 | CG7: 15 % Closed 3/4 Expanded α-dominant Y | CH7: 23.217 | CI7: 23.217 | CJ7: 125 | CK7: 93.52782342 | CL7: 93.52782342 | CM7: 17 % Closed 1/2 Expanded α-dominant Y | CO7: 28.613 | CP7: 28.613 | CQ7: 110 | CR7: 94.98982792 | CS7: 94.98982792 | CT7: 19 % Closed 1/4 Expanded α-dominant Y | CV7: 33.054 | CW7: 33.054 | CX7: 125 | CY7: 67.97697918 | CZ7: 67.97697918 | DA7: 17 % Closed 2/3 α-Expanded Arrow | DC7: 37.505 | DD7: 37.505 | DE7: 94.43964989 | DF7: 82.30339922 | DG7: 65 | DH7: 37 % closed orthogonal Y | DL7: 34.026 | DM7: 34.026 | DN7: 96.92848199 | DO7: 89.12191191 | DP7: 80 | DQ7: 28 % closed Semi-Orthogonal γ-Expanded Y | DT7: 45.564 | DU7: 45.564 | DV7: 86.98935791 | DW7: 73.91431879 | DX7: 50 | DY7: 47 % closed Semi-Orthogonal γ-Compressed Y | EB7: 39.098 | EC7: 39.098 | ED7: 97.76380515 | EE7: 74.14636472 | EF7: 65 | EG7: 41 % closed Semi-Orthogonal β-Compressed Y | EH7: 47.73 | EI7: 47.73 | EJ7: 87.93120828 | EK7: 66.83927487 | EL7: 50 | EM7: 33 % closed Semi-Oblique T | EO7: 69.717 | EP7: 69.717 | EQ7: 59.20282369 | ER7: 46.14398349 | ES7: 35 | ET7: 42 % closed Oblique T | EV7: 73.893 | EW7: 73.893 | EX7: 53.97094342 | EY7: 49.57118306 | EZ7: 20 | FA7: 56 % closed Inclined Y | FC7: 101.83 | FD7: 101.83 | FE7: 19.40499794 | FF7: 18.7377234 | FG7: 5 | FH7: 83 % closed Oblique Y | FJ7: =IF(FK7=0,0.01,FK7) -> 46.39 | FK7: =ROUND((1/SQRT(3))*SQRT(($A$29-FL7)^2+($A$30-FM7)^2+($A$31-FN7)^2),3) -> 46.39 | FL7: 180 | FM7: 165 | FN7: 15 | FO7: Semi-Oblique Y
A8: 0.75 | B8: 90 | C8: 90 | D8: 90 | E8: Triorthopyramidal | F8: 1 | G8: 1.414213562 | H8: 0.7071067812 | I8: 1.224744871 | J8: 0.4082482905 | K8: 0.8164965809 | L8: 0.5773502692 | M8: 0.5773502692 | O8: 150 | P8: 150 | Q8: 30 | R8: 50 % folded | AJ8: 17.944 | AK8: 17.944 | AL8: 120 | AM8: 120 | AN8: 90 | AO8: 25 % folded Trigonal Plane | AR8: 17.935 | AS8: 17.935 | AT8: 120 | AU8: 121 | AV8: 90 | AW8: 25% folded trigonal plane | AY8: 25.534 | AZ8: 25.534 | BA8: 120 | BB8: 105 | BC8: 105 | BD8: 7 % Closed 1/4 Expanded α-dominant Y | BG8: 6.481 | BH8: 6.481 | BI8: 135 | BJ8: 120 | BK8: 75 | BL8: 25 % α-folded Semi-Orthogonal γ-Compressed Y | BO8: 14.9 | BP8: 14.9 | BQ8: 135 | BR8: 105 | BS8: 90 | BT8: 20 % α-folded Semi-Orthogonal β-Compressed Y | BV8: 21.626 | BW8: 21.626 | BX8: 150 | BY8: 86.15903428 | BZ8: 86.15903428 | CA8: 17 % closed T-shape | CB8: 21.622 | CC8: 21.622 | CD8: 135 | CE8: 88.95083247 | CF8: 88.95083247 | CG8: 18 % Closed 3/4 Expanded α-dominant Y | CH8: 25.218 | CI8: 25.218 | CJ8: 120 | CK8: 90.68175792 | CL8: 90.68175792 | CM8: 20 % Closed 1/2 Expanded α-dominant Y | CO8: 31.102 | CP8: 31.102 | CQ8: 105 | CR8: 91.12247044 | CS8: 91.12247044 | CT8: 22 % Closed 1/4 Expanded α-dominant Y | CV8: 35.263 | CW8: 35.263 | CX8: 120 | CY8: 66.15877696 | CZ8: 66.15877696 | DA8: 20 % Closed 2/3 α-Expanded Arrow | DC8: 44.038 | DD8: 44.038 | DE8: 86.15903428 | DF8: 75.52248781 | DG8: 60 | DH8: 43 % closed orthogonal Y | DL8: 38.855 | DM8: 38.855 | DN8: 90.29384887 | DO8: 83.29173857 | DP8: 75 | DQ8: 33 % closed Semi-Orthogonal γ-Expanded Y | DT8: 53.412 | DU8: 53.412 | DV8: 77.10746426 | DW8: 65.96820696 | DX8: 45 | DY8: 53 % closed Semi-Orthogonal γ-Compressed Y | EB8: 45.454 | EC8: 45.454 | ED8: 89.0237996 | EE8: 68.24796184 | EF8: 60 | EG8: 46 % closed Semi-Orthogonal β-Compressed Y | EH8: 55.268 | EI8: 55.268 | EJ8: 77.89768902 | EK8: 59.83106864 | EL8: 45 | EM8: 40 % closed Semi-Oblique T | EO8: 76.72 | EP8: 76.72 | EQ8: 50.32117416 | ER8: 39.424866 | ES8: 30 | ET8: 50 % closed Oblique T | EV8: 85.097 | EW8: 85.097 | EX8: 39.88554223 | EY8: 36.73588748 | EZ8: 15 | FA8: 67 % closed Inclined Y | FC8: 117.312 | FD8: 117.312 | FE8: 0 | FF8: 0 | FG8: 0 | FH8: Closed Arrow | FJ8: =IF(FK8=0,0.01,FK8) -> 42.137 | FK8: =ROUND((1/SQRT(3))*SQRT(($A$29-FL8)^2+($A$30-FM8)^2+($A$31-FN8)^2),3) -> 42.137 | FL8: =2*DEGREES(ASIN(((SIN(RADIANS(FM8/2))*SIN(RADIANS($FL$7/2))/SIN(RADIANS($FM$7/2)))))) -> 166.7332247 | FM8: 160 | FN8: =2*DEGREES(ASIN(((SIN(RADIANS(FM8/2))*SIN(RADIANS($FN$7/2))/SIN(RADIANS($FM$7/2)))))) -> 14.89901266 | FO8: =ROUND(100*($FM$7-FM8)/$FM$7,0)&" % closed Semi-Oblique Y" -> 3 % closed Semi-Oblique Y
A9: 0.7083333333 | B9: 85 | C9: 85 | D9: 85 | E9: 22.7 % Closed Trigonal Pyramid | F9: 1 | G9: 1.351180415 | H9: 0.7372773368 | I9: 1.170156565 | J9: 0.3900521882 | K9: 0.7801043765 | L9: 0.6256493921 | M9: 0.6256493921 | O9: 150 | P9: 150 | Q9: 25 | R9: 60 % folded | AJ9: 16.543 | AK9: 16.543 | AL9: 120 | AM9: 120 | AN9: 85 | AO9: 29 % folded Trigonal Plane | AR9: 18.267 | AS9: 18.267 | AT9: 120 | AU9: 115 | AV9: 90 | AW9: =ROUND(((150-AU9)/120)*100,0)&" % α-folded Orthogonal Y" -> 29 % α-folded Orthogonal Y | AY9: 23.53 | AZ9: 23.53 | BA9: 120 | BB9: 105 | BC9: 100 | BD9: =ROUND(((135-BC9)/120)*100,0)&" % α-folded Semi-Orthogonal γ-Expanded Y" -> 29 % α-folded Semi-Orthogonal γ-Expanded Y | BG9: 9.327 | BH9: 9.327 | BI9: 130 | BJ9: 120 | BK9: 75 | BL9: 29 % α-folded Semi-Orthogonal γ-Compressed Y | BO9: 16.34 | BP9: 16.34 | BQ9: 130 | BR9: 105 | BS9: 90 | BT9: 23 % α-folded Semi-Orthogonal β-Compressed Y | BV9: 21.986 | BW9: 21.986 | BX9: 145 | BY9: 84.81200131 | BZ9: 84.81200131 | CA9: 19 % closed T-shape | CB9: 23.201 | CC9: 23.201 | CD9: 130 | CE9: 86.83005157 | CF9: 86.83005157 | CG9: 21 % Closed 3/4 Expanded α-dominant Y | CH9: 27.606 | CI9: 27.606 | CJ9: 115 | CK9: 87.69018197 | CL9: 87.69018197 | CM9: 23 % Closed 1/2 Expanded α-dominant Y | CO9: 33.967 | CP9: 33.967 | CQ9: 100 | CR9: 87.16871105 | CS9: 87.16871105 | CT9: 26 % Closed 1/4 Expanded α-dominant Y | CV9: 37.693 | CW9: 37.693 | CX9: 115 | CY9: 64.21856648 | CZ9: 64.21856648 | DA9: 23 % Closed 2/3 α-Expanded Arrow | DC9: 50.451 | DD9: 50.451 | DE9: 78.21248208 | DF9: 68.87740761 | DG9: 55 | DH9: 48 % closed orthogonal Y | DL9: 43.839 | DM9: 43.839 | DN9: 83.81714446 | DO9: 77.52839262 | DP9: 70 | DQ9: 38 % closed Semi-Orthogonal γ-Expanded Y | DT9: 60.992 | DU9: 60.992 | DV9: 67.70033381 | DW9: 58.22928158 | DX9: 40 | DY9: 59 % closed Semi-Orthogonal γ-Compressed Y | EB9: 51.711 | EC9: 51.711 | ED9: 80.69540854 | EE9: 62.40556897 | EF9: 55 | EG9: 51 % closed Semi-Orthogonal β-Compressed Y | EH9: 62.579 | EI9: 62.579 | EJ9: 68.36483223 | EK9: 52.94002091 | EL9: 40 | EM9: 47 % closed Semi-Oblique T | EO9: 83.621 | EP9: 83.621 | EQ9: 41.65320261 | ER9: 32.76752722 | ES9: 25 | ET9: 58 % closed Oblique T | EV9: 95.99 | EW9: 95.99 | EX9: 26.32915612 | EY9: 24.2930627 | EZ9: 10 | FA9: 78 % closed Inclined Y | FF9: b-ref | FJ9: 39.754 | FK9: =ROUND((1/SQRT(3))*SQRT(($A$29-FL9)^2+($A$30-FM9)^2+($A$31-FN9)^2),3) -> 39.754 | FL9: =2*DEGREES(ASIN(((SIN(RADIANS(FM9/2))*SIN(RADIANS($FL$7/2))/SIN(RADIANS($FM$7/2)))))) -> 159.9424549 | FM9: 155 | FN9: =2*DEGREES(ASIN(((SIN(RADIANS(FM9/2))*SIN(RADIANS($FN$7/2))/SIN(RADIANS($FM$7/2)))))) -> 14.76951867 | FO9: =ROUND(100*($FM$7-FM9)/$FM$7,0)&" % closed Semi-Oblique Y" -> 6 % closed Semi-Oblique Y
A10: 0.6666666667 | B10: 80 | C10: 80 | D10: 80 | E10: 27.3 % Closed Trigonal Pyramid | F10: 1 | G10: 1.285575219 | H10: 0.7660444431 | I10: 1.113340798 | J10: 0.3711135995 | K10: 0.742227199 | L10: 0.6701483307 | M10: 0.6701483307 | O10: 150 | P10: 150 | Q10: 20 | R10: 70 % folded | AJ10: 15.556 | AK10: 15.556 | AL10: 120 | AM10: 120 | AN10: 80 | AO10: 33 % folded Trigonal Plane | AR10: 19.026 | AS10: 19.026 | AT10: 120 | AU10: 110 | AV10: 90 | AW10: =ROUND(((150-AU10)/120)*100,0)&" % α-folded Orthogonal Y" -> 33 % α-folded Orthogonal Y | AY10: 21.726 | AZ10: 21.726 | BA10: 120 | BB10: 105 | BC10: 95 | BD10: =ROUND(((135-BC10)/120)*100,0)&" % α-folded Semi-Orthogonal γ-Expanded Y" -> 33 % α-folded Semi-Orthogonal γ-Expanded Y | BG10: 12.193 | BH10: 12.193 | BI10: 125 | BJ10: 120 | BK10: 75 | BL10: 33 % α-folded Semi-Orthogonal γ-Compressed Y | BO10: 18.129 | BP10: 18.129 | BQ10: 125 | BR10: 105 | BS10: 90 | BT10: 27 % α-folded Semi-Orthogonal β-Compressed Y | BV10: 22.835 | BW10: 22.835 | BX10: 140 | BY10: 83.28228654 | BZ10: 83.28228654 | CA10: 22 % closed T-shape | CB10: 25.188 | CC10: 25.188 | CD10: 125 | CE10: 84.54301521 | CF10: 84.54301521 | CG10: 24 % Closed 3/4 Expanded α-dominant Y | CH10: 30.316 | CI10: 30.316 | CJ10: 110 | CK10: 84.56741852 | CL10: 84.56741852 | CM10: 27 % Closed 1/2 Expanded α-dominant Y | CO10: 37.136 | CP10: 37.136 | CQ10: 95 | CR10: 83.1396167 | CS10: 83.1396167 | CT10: 30 % Closed 1/4 Expanded α-dominant Y | CV10: 40.312 | CW10: 40.312 | CX10: 110 | CY10: 62.16332808 | CZ10: 62.16332808 | DA10: 27 % Closed 2/3 α-Expanded Arrow | DC10: 56.764 | DD10: 56.764 | DE10: 70.52274637 | DF10: 62.34274254 | DG10: 50 | DH10: 53 % closed orthogonal Y | DL10: 48.92 | DM10: 48.92 | DN10: 77.46696924 | DO10: 71.82044334 | DP10: 65 | DQ10: 43 % closed Semi-Orthogonal γ-Expanded Y | DT10: 68.369 | DU10: 68.369 | DV10: 58.64664194 | DW10: 50.65411468 | DX10: 35 | DY10: 64 % closed Semi-Orthogonal γ-Compressed Y | EB10: 57.883 | EC10: 57.883 | ED10: 72.67767096 | EE10: 56.61005375 | EF10: 50 | EG10: 56 % closed Semi-Orthogonal β-Compressed Y | EH10: 69.717 | EI10: 69.717 | EJ10: 59.20282369 | EK10: 46.14398349 | EL10: 35 | EM10: 53 % closed Semi-Oblique T | EO10: 90.442 | EP10: 90.442 | EQ10: 33.14738541 | ER10: 26.15898817 | ES10: 20 | ET10: 67 % closed Oblique T | EV10: 106.694 | EW10: 106.694 | EX10: 13.08993355 | EY10: 12.08965314 | EZ10: 5 | FA10: 89 % closed Inclined Y | FC10: =IF(FD10=0,0.01,FD10) -> 35.805 | FD10: =ROUND((1/SQRT(3))*SQRT(($A$29-FE10)^2+($A$30-FF10)^2+($A$31-FG10)^2),3) -> 35.805 | FE10: 180 | FF10: 150 | FG10: 30 | FH10: Oblique Y | FJ10: 37.918 | FK10: 37.918 | FL10: 153.944379 | FM10: 150 | FN10: 14.61177687 | FO10: 9 % closed Semi-Oblique Y
A11: 0.625 | B11: 75 | C11: 75 | D11: 75 | E11: 31.8 % Closed Trigonal Pyramid | F11: 1 | G11: 1.217522858 | H11: 0.7933533403 | I11: 1.054405725 | J11: 0.3514685749 | K11: 0.7029371498 | L11: 0.711251969 | M11: 0.711251969 | O11: 150 | P11: 150 | Q11: 15 | R11: 70 % folded | AJ11: 15.067 | AK11: 15.067 | AL11: 120 | AM11: 120 | AN11: 75 | AO11: 37 % folded Trigonal Plane | AR11: 21.649 | AS11: 21.649 | AT11: 120 | AU11: 100 | AV11: 90 | AW11: 42 % α-folded Orthogonal Y | AY11: 20.174 | AZ11: 20.174 | BA11: 120 | BB11: 105 | BC11: 90 | BD11: 38 % α-folded Semi-Orthogonal γ-Expanded Y | BG11: 15.067 | BH11: 15.067 | BI11: 120 | BJ11: 120 | BK11: 75 | BL11: 37 % folded Trigonal Plane | BO11: 20.174 | BP11: 20.174 | BQ11: 120 | BR11: 105 | BS11: 90 | BT11: 30 % α-folded Semi-Orthogonal β-Compressed Y | BV11: 24.143 | BW11: 24.143 | BX11: 135 | BY11: 81.57894188 | BZ11: 81.57894188 | CA11: 25 % closed T-shape | CB11: 27.519 | CC11: 27.519 | CD11: 120 | CE11: 82.10203743 | CF11: 82.10203743 | CG11: 27 % Closed 3/4 Expanded α-dominant Y | CH11: 33.288 | CI11: 33.288 | CJ11: 105 | CK11: 81.32660431 | CL11: 81.32660431 | CM11: 30 % Closed 1/2 Expanded α-dominant Y | CO11: 40.549 | CP11: 40.549 | CQ11: 90 | CR11: 79.04471816 | CS11: 79.04471816 | CT11: 33 % Closed 1/4 Expanded α-dominant Y | CV11: 43.093 | CW11: 43.093 | CX11: 105 | CY11: 60 | CZ11: 60 | DA11: 30 % Closed 2/3 α-Expanded Arrow | DC11: 62.996 | DD11: 62.996 | DE11: 63.0345061 | DF11: 55.89853468 | DG11: 45 | DH11: 58 % closed orthogonal Y | DL11: 54.064 | DM11: 54.064 | DN11: 71.21964173 | DO11: 66.15877696 | DP11: 60 | DQ11: 47 % closed Semi-Orthogonal γ-Expanded Y | DT11: 75.594 | DU11: 75.594 | DV11: 49.86111402 | DW11: 43.20887559 | DX11: 30 | DY11: 70 % closed Semi-Orthogonal γ-Compressed Y | EB11: 63.983 | EC11: 63.983 | ED11: 64.90036481 | EE11: 50.85386821 | EF11: 45 | EG11: 61 % closed Semi-Orthogonal β-Compressed Y | EH11: 76.72 | EI11: 76.72 | EJ11: 50.32117416 | EK11: 39.424866 | EL11: 30 | EM11: 60 % closed Semi-Oblique T | EO11: 97.206 | EP11: 97.206 | EQ11: 24.76215003 | ER11: 19.58785336 | ES11: 15 | ET11: 75 % closed Oblique T | EV11: 117.312 | EW11: 117.312 | EX11: 0 | EY11: 0 | EZ11: 0 | FA11: Closed Arrow | FC11: =IF(FD11=0,0.01,FD11) -> 30.038 | FD11: =ROUND((1/SQRT(3))*SQRT(($A$29-FE11)^2+($A$30-FF11)^2+($A$31-FG11)^2),3) -> 30.038 | FE11: =2*DEGREES(ASIN(((SIN(RADIANS(FF11/2))*SIN(RADIANS($FE$2/2))/SIN(RADIANS($FF$10/2)))))) -> 161.7613758 | FF11: 145 | FG11: =2*DEGREES(ASIN(((SIN(RADIANS(FF11/2))*SIN(RADIANS($FG$10/2))/SIN(RADIANS($FF$10/2)))))) -> 29.61208116 | FH11: =ROUND(100*($FF$10-FF11)/$FF$10,0)&" % closed Oblique Y" -> 3 % closed Oblique Y | FJ11: 36.57 | FK11: 36.57 | FL11: 148.2859555 | FM11: 145 | FN11: 14.42610217 | FO11: 12 % closed Semi-Oblique Y
A12: 0.5833333333 | B12: 70 | C12: 70 | D12: 70 | E12: 36.4 % Closed Trigonal Pyramid | F12: 1 | G12: 1.147152873 | H12: 0.8191520443 | I12: 0.9934635298 | J12: 0.3311545099 | K12: 0.6623090199 | L12: 0.7492307803 | M12: 0.7492307803 | O12: 150 | P12: 150 | Q12: 10 | R12: 80 % folded | AJ12: 15.122 | AK12: 15.122 | AL12: 120 | AM12: 120 | AN12: 70 | AO12: 42 % folded Trigonal Plane | AR12: 23.388 | AS12: 23.388 | AT12: 120 | AU12: 95 | AV12: 90 | AW12: 46 % α-folded Orthogonal Y | AY12: 18.938 | AZ12: 18.938 | BA12: 120 | BB12: 105 | BC12: 85 | BD12: 42 % α-folded Semi-Orthogonal γ-Expanded Y | BG12: 15.449 | BH12: 15.449 | BI12: 120 | BJ12: 115 | BK12: 75 | BL12: =ROUND(((165-BJ12)/120)*100,0)&" % α-folded Semi-Orthogonal γ-Compressed Y" -> 42 % α-folded Semi-Orthogonal γ-Compressed Y | BO12: 22.405 | BP12: 22.405 | BQ12: 115 | BR12: 105 | BS12: 90 | BT12: 33 % α-folded Semi-Orthogonal β-Compressed Y | BV12: 25.857 | BW12: 25.857 | BX12: 130 | BY12: 79.71141486 | BZ12: 79.71141486 | CA12: 28 % closed T-shape | CB12: 30.134 | CC12: 30.134 | CD12: 115 | CE12: 79.51905564 | CF12: 79.51905564 | CG12: 30 % Closed 3/4 Expanded α-dominant Y | CH12: 36.476 | CI12: 36.476 | CJ12: 100 | CK12: 77.97971368 | CL12: 77.97971368 | CM12: 33 % Closed 1/2 Expanded α-dominant Y | CO12: 44.161 | CP12: 44.161 | CQ12: 85 | CR12: 74.89224286 | CS12: 74.89224286 | CT12: 37 % Closed 1/4 Expanded α-dominant Y | CV12: 46.012 | CW12: 46.012 | CX12: 100 | CY12: 57.73542268 | CZ12: 57.73542268 | DA12: 33 % Closed 2/3 α-Expanded Arrow | DC12: 69.162 | DD12: 69.162 | DE12: 55.70645422 | DF12: 49.5287307 | DG12: 40 | DH12: 63 % closed orthogonal Y | DL12: 59.25 | DM12: 59.25 | DN12: 65.05680813 | DO12: 60.53599661 | DP12: 55 | DQ12: 52 % closed Semi-Orthogonal γ-Expanded Y | DT12: 82.7 | DU12: 82.7 | DV12: 41.2805128 | DW12: 35.86634265 | DX12: 25 | DY12: 75 % closed Semi-Orthogonal γ-Compressed Y | EB12: 70.025 | EC12: 70.025 | ED12: 57.312227 | EE12: 45.13067091 | EF12: 40 | EG12: 65 % closed Semi-Orthogonal β-Compressed Y | EH12: 83.621 | EI12: 83.621 | EJ12: 41.65320261 | EK12: 32.76752722 | EL12: 25 | EM12: 67 % closed Semi-Oblique T | EO12: 103.929 | EP12: 103.929 | EQ12: 16.46252452 | ER12: 13.04386917 | ES12: 10 | ET12: 83 % closed Oblique T | EY12: bref | FC12: 27.897 | FD12: =ROUND((1/SQRT(3))*SQRT(($A$29-FE12)^2+($A$30-FF12)^2+($A$31-FG12)^2),3) -> 27.897 | FE12: =2*DEGREES(ASIN(((SIN(RADIANS(FF12/2))*SIN(RADIANS($FE$2/2))/SIN(RADIANS($FF$10/2)))))) -> 153.2324112 | FF12: 140 | FG12: =2*DEGREES(ASIN(((SIN(RADIANS(FF12/2))*SIN(RADIANS($FG$10/2))/SIN(RADIANS($FF$10/2)))))) -> 29.16690661 | FH12: =ROUND(100*($FF$10-FF12)/$FF$10,0)&" % closed Oblique Y" -> 7 % closed Oblique Y | FJ12: 35.717 | FK12: 35.717 | FL12: 142.8117791 | FM12: 140 | FN12: 14.21286467 | FO12: 15 % closed Semi-Oblique Y
A13: 0.5416666667 | B13: 65 | C13: 65 | D13: 65 | E13: 40.9 % Closed Trigonal Pyramid | F13: 1 | G13: 1.074599217 | H13: 0.8433914458 | I13: 0.9306302205 | J13: 0.3102100735 | K13: 0.620420147 | L13: 0.7842696227 | M13: 0.7842696227 | O13: 150 | P13: 150 | Q13: 5 | R13: 90 % folded | AJ13: 15.716 | AK13: 15.716 | AL13: 120 | AM13: 120 | AN13: 65 | AO13: 46 % folded Trigonal Plane | AR13: 25.338 | AS13: 25.338 | AT13: 120 | AU13: 90 | AV13: 90 | AW13: 33% α-folded T | AY13: 18.083 | AZ13: 18.083 | BA13: 120 | BB13: 105 | BC13: 80 | BD13: 46 % α-folded Semi-Orthogonal γ-Expanded Y | BG13: 16.34 | BH13: 16.34 | BI13: 120 | BJ13: 110 | BK13: 75 | BL13: =ROUND(((165-BJ13)/120)*100,0)&" % α-folded Semi-Orthogonal γ-Compressed Y" -> 46 % α-folded Semi-Orthogonal γ-Compressed Y | BO13: 24.772 | BP13: 24.772 | BQ13: 110 | BR13: 105 | BS13: 90 | BT13: 37 % α-folded Semi-Orthogonal β-Compressed Y | BV13: 27.921 | BW13: 27.921 | BX13: 125 | BY13: 77.68936241 | BZ13: 77.68936241 | CA13: 31 % closed T-shape | CB13: 32.983 | CC13: 32.983 | CD13: 110 | CE13: 76.80550712 | CF13: 76.80550712 | CG13: 33 % Closed 3/4 Expanded α-dominant Y | CH13: 39.842 | CI13: 39.842 | CJ13: 95 | CK13: 74.53761309 | CL13: 74.53761309 | CM13: 37 % Closed 1/2 Expanded α-dominant Y | CO13: 47.932 | CP13: 47.932 | CQ13: 80 | CR13: 70.6893153 | CS13: 70.6893153 | CT13: 41 % Closed 1/4 Expanded α-dominant Y | CV13: 49.051 | CW13: 49.051 | CX13: 95 | CY13: 55.37629417 | CZ13: 55.37629417 | DA13: 37 % Closed 2/3 α-Expanded Arrow | DC13: 75.274 | DD13: 75.274 | DE13: 48.50664971 | DF13: 43.2201309 | DG13: 35 | DH13: 68 % closed orthogonal Y | DL13: 64.466 | DM13: 64.466 | DN13: 58.96390575 | DO13: 54.9460006 | DP13: 50 | DQ13: 56 % closed Semi-Orthogonal γ-Expanded Y | DT13: 89.717 | DU13: 89.717 | DV13: 32.85573158 | DW13: 28.60393589 | DX13: 20 | DY13: 80 % closed Semi-Orthogonal γ-Compressed Y | EB13: 76.02 | EC13: 76.02 | ED13: 49.87432525 | EE13: 39.4350492 | EF13: 35 | EG13: 70 % closed Semi-Orthogonal β-Compressed Y | EH13: 90.442 | EI13: 90.442 | EJ13: 33.14738541 | EK13: 26.15898817 | EL13: 20 | EM13: 73 % closed Semi-Oblique T | EO13: 110.626 | EP13: 110.626 | EQ13: 8.217834344 | ER13: 6.517572857 | ES13: 5 | ET13: 92 % closed Oblique T | EV13: =IF(EW13=0,0.01,EW13) -> 22.517 | EW13: =ROUND((1/SQRT(3))*SQRT(($A$29-EX13)^2+($A$30-EY13)^2+($A$31-EZ13)^2),3) -> 22.517 | EX13: 180 | EY13: 135 | EZ13: 60 | FA13: Inclined Y | FC13: 26.842 | FD13: 26.842 | FE13: 146.0650113 | FF13: 135 | FG13: 28.66549023 | FH13: 10 % closed Oblique Y | FJ13: 35.371 | FK13: 35.371 | FL13: 137.4506365 | FM13: 135 | FN13: 13.97248869 | FO13: 18 % closed Semi-Oblique Y
A14: 0.5 | B14: 60 | C14: 60 | D14: 60 | E14: Equilateral pyramid | F14: 1 | G14: 1 | H14: 0.8660254038 | I14: 0.8660254038 | J14: 0.2886751346 | K14: 0.5773502692 | L14: 0.8164965809 | M14: 0.8164965809 | O14: 150 | P14: 150 | Q14: 0 | R14: planar | S14: 1.932 | AJ14: 16.793 | AK14: 16.793 | AL14: 120 | AM14: 120 | AN14: 60 | AO14: 50 % folded Trigonal Plane | AR14: 24.365 | AS14: 24.365 | AT14: 120 | AU14: 90 | AV14: 85 | AW14: =ROUND(((150-AV14)/120)*100,0)&" % α-folded Orthogonal Y" -> 54 % α-folded Orthogonal Y | AY14: 17.664 | AZ14: 17.664 | BA14: 120 | BB14: 105 | BC14: 75 | BD14: 50 % α-folded Semi-Orthogonal γ-Expanded Y | BG14: 17.664 | BH14: 17.664 | BI14: 120 | BJ14: 105 | BK14: 75 | BL14: 50 % α-folded Semi-Orthogonal γ-Compressed Y | BO14: 27.24 | BP14: 27.24 | BQ14: 105 | BR14: 105 | BS14: 90 | BT14: 40 % α-folded Semi-Orthogonal β-Compressed Y | BV14: 30.28 | BW14: 30.28 | BX14: 120 | BY14: 75.52248781 | BZ14: 75.52248781 | CA14: 33 % closed T-shape | CB14: 36.026 | CC14: 36.026 | CD14: 105 | CE14: 73.9722463 | CF14: 73.9722463 | CG14: 36 % Closed 3/4 Expanded α-dominant Y | CH14: 43.355 | CI14: 43.355 | CJ14: 90 | CK14: 71.01013443 | CL14: 71.01013443 | CM14: 40 % Closed 1/2 Expanded α-dominant Y | CO14: 51.835 | CP14: 51.835 | CQ14: 75 | CR14: 66.44212805 | CS14: 66.44212805 | CT14: 44 % Closed 1/4 Expanded α-dominant Y | CV14: 52.193 | CW14: 52.193 | CX14: 90 | CY14: 52.92913598 | CZ14: 52.92913598 | DA14: 40 % Closed 2/3 α-Expanded Arrow | DC14: 81.344 | DD14: 81.344 | DE14: 41.40962211 | DF14: 36.96165386 | DG14: 30 | DH14: 72 % closed orthogonal Y | DL14: 69.702 | DM14: 69.702 | DN14: 52.92913598 | DO14: 49.38367834 | DP14: 45 | DQ14: 61 % closed Semi-Orthogonal γ-Expanded Y | DT14: 96.669 | DU14: 96.669 | DV14: 24.54699049 | DW14: 21.40236093 | DX14: 15 | DY14: 85 % closed Semi-Orthogonal γ-Compressed Y | EB14: 81.976 | EC14: 81.976 | ED14: 42.55606711 | EE14: 33.76231022 | EF14: 30 | EG14: 74 % closed Semi-Orthogonal β-Compressed Y | EH14: 97.206 | EI14: 97.206 | EJ14: 24.76215003 | EK14: 19.58785336 | EL14: 15 | EM14: 80 % closed Semi-Oblique T | EO14: 117.312 | EP14: 117.312 | EQ14: 0 | ER14: 0 | ES14: 0 | ET14: =ROUND(100*($EL$2-ES14)/$EL$2,0)&" % closed Semi-Oblique T" -> 100 % closed Semi-Oblique T | EV14: =IF(EW14=0,0.01,EW14) -> 11.819 | EW14: =ROUND((1/SQRT(3))*SQRT(($A$29-EX14)^2+($A$30-EY14)^2+($A$31-EZ14)^2),3) -> 11.819 | EX14: =2*DEGREES(ASIN(((SIN(RADIANS(EY14/2))*SIN(RADIANS($EX$13/2))/SIN(RADIANS($EY$13/2)))))) -> 157.6149454 | EY14: 130 | EZ14: =2*DEGREES(ASIN(((SIN(RADIANS(EY14/2))*SIN(RADIANS($EZ$13/2))/SIN(RADIANS($EY$13/2)))))) -> 58.74561742 | FA14: =ROUND(100*($EY$13-EY14)/$EY$13,0)&" % closed Inclined Y" -> 4 % closed Inclined Y | FC14: 26.696 | FD14: 26.696 | FE14: 139.5289885 | FF14: 130 | FG14: 28.10896504 | FH14: 13 % closed Oblique Y | FJ14: 35.535 | FK14: 35.535 | FL14: 132.1644664 | FM14: 130 | FN14: 13.70545164 | FO14: 21 % closed Semi-Oblique Y
A15: 0.4583333333 | B15: 55 | C15: 55 | D15: 55 | E15: Trigonal Semipyramidal | F15: 1 | G15: 0.9234972265 | H15: 0.8870108332 | I15: 0.7997720584 | J15: 0.2665906861 | K15: 0.5331813723 | L15: 0.8460009599 | M15: 0.8460009599 | AJ15: 18.267 | AK15: 18.267 | AL15: 120 | AM15: 120 | AN15: 55 | AO15: 54 % folded Trigonal Plane | AR15: 23.707 | AS15: 23.707 | AT15: 120 | AU15: 90 | AV15: 80 | AW15: =ROUND(((150-AV15)/120)*100,0)&" % α-folded Orthogonal Y" -> 58 % α-folded Orthogonal Y | AY15: 17.711 | AZ15: 17.711 | BA15: 120 | BB15: 105 | BC15: 70 | BD15: 54 % α-folded Semi-Orthogonal γ-Expanded Y | BG15: 19.33 | BH15: 19.33 | BI15: 120 | BJ15: 100 | BK15: 75 | BL15: 54 % α-folded Semi-Orthogonal γ-Compressed Y | BO15: 28.349 | BP15: 28.349 | BQ15: 105 | BR15: 100 | BS15: 90 | BT15: =ROUND(((165-BR15)/150)*100,0)&" % α-folded Semi-Orthogonal β-Compressed Y" -> 43 % α-folded Semi-Orthogonal β-Compressed Y | BV15: 32.883 | BW15: 32.883 | BX15: 115 | BY15: 73.22040351 | BZ15: 73.22040351 | CA15: 36 % closed T-shape | CB15: 39.23 | CC15: 39.23 | CD15: 100 | CE15: 71.02949639 | CF15: 71.02949639 | CG15: 39 % Closed 3/4 Expanded α-dominant Y | CH15: 46.991 | CI15: 46.991 | CJ15: 85 | CK15: 67.40615827 | CL15: 67.40615827 | CM15: 43 % Closed 1/2 Expanded α-dominant Y | CO15: 55.846 | CP15: 55.846 | CQ15: 70 | CR15: 62.15608657 | CS15: 62.15608657 | CT15: 48 % Closed 1/4 Expanded α-dominant Y | CV15: 55.426 | CW15: 55.426 | CX15: 85 | CY15: 50.40026828 | CZ15: 50.40026828 | DA15: 43 % Closed 2/3 α-Expanded Arrow | DC15: 87.38 | DD15: 87.38 | DE15: 34.39447738 | DF15: 30.74380596 | DG15: 25 | DH15: 77 % closed orthogonal Y | DL15: 74.954 | DM15: 74.954 | DN15: 46.94275465 | DO15: 43.84468639 | DP15: 40 | DQ15: 65 % closed Semi-Orthogonal γ-Expanded Y | DT15: 103.574 | DU15: 103.574 | DV15: 16.320721 | DW15: 14.24463095 | DX15: 10 | DY15: 90 % closed Semi-Orthogonal γ-Compressed Y | EB15: 87.902 | EC15: 87.902 | ED15: 35.33266056 | EE15: 28.1083203 | EF15: 25 | EG15: 79 % closed Semi-Orthogonal β-Compressed Y | EH15: 103.929 | EI15: 103.929 | EJ15: 16.46252452 | EK15: 13.04386917 | EL15: 10 | EM15: 87 % closed Semi-Oblique T | ER15: bref | EV15: 9.352 | EW15: =ROUND((1/SQRT(3))*SQRT(($A$29-EX15)^2+($A$30-EY15)^2+($A$31-EZ15)^2),3) -> 9.352 | EX15: =2*DEGREES(ASIN(((SIN(RADIANS(EY15/2))*SIN(RADIANS($EX$13/2))/SIN(RADIANS($EY$13/2)))))) -> 147.5179219 | EY15: 125 | EZ15: =2*DEGREES(ASIN(((SIN(RADIANS(EY15/2))*SIN(RADIANS($EZ$13/2))/SIN(RADIANS($EY$13/2)))))) -> 57.37691776 | FA15: =ROUND(100*($EY$13-EY15)/$EY$13,0)&" % closed Inclined Y" -> 7 % closed Inclined Y | FC15: 27.363 | FD15: 27.363 | FE15: 133.3579545 | FF15: 125 | FG15: 27.49857774 | FH15: 17 % closed Oblique Y | FJ15: 36.195 | FK15: 36.195 | FL15: 126.9308174 | FM15: 125 | FN15: 13.41228274 | FO15: 24 % closed Semi-Oblique Y
A16: 0.4166666667 | B16: 50 | C16: 50 | D16: 50 | E16: 54.5 % Closed Trigonal Pyramid | F16: 1 | G16: 0.8452365235 | H16: 0.906307787 | I16: 0.7319963015 | J16: 0.2439987672 | K16: 0.4879975344 | L16: 0.8728450071 | M16: 0.8728450071 | P16: folded | R16: folding | AJ16: 20.05 | AK16: 20.05 | AL16: 120 | AM16: 120 | AN16: 50 | AO16: 58 % folded Trigonal Plane | AR16: 23.388 | AS16: 23.388 | AT16: 120 | AU16: 90 | AV16: 75 | AW16: 63 % α-folded Orthogonal Y | AY16: 18.221 | AZ16: 18.221 | BA16: 120 | BB16: 105 | BC16: 65 | BD16: 58 % α-folded Semi-Orthogonal γ-Expanded Y | BG16: 21.26 | BH16: 21.26 | BI16: 120 | BJ16: 95 | BK16: 75 | BL16: 58 % α-folded Semi-Orthogonal γ-Compressed Y | BO16: 29.698 | BP16: 29.698 | BQ16: 105 | BR16: 95 | BS16: 90 | BT16: =ROUND(((165-BR16)/150)*100,0)&" % α-folded Semi-Orthogonal β-Compressed Y" -> 47 % α-folded Semi-Orthogonal β-Compressed Y | BV16: 35.692 | BW16: 35.692 | BX16: 110 | BY16: 70.79252027 | BZ16: 70.79252027 | CA16: 39 % closed T-shape | CB16: 42.57 | CC16: 42.57 | CD16: 95 | CE16: 67.98682861 | CF16: 67.98682861 | CG16: 42 % Closed 3/4 Expanded α-dominant Y | CH16: 50.732 | CI16: 50.732 | CJ16: 80 | CK16: 63.73370079 | CL16: 63.73370079 | CM16: 47 % Closed 1/2 Expanded α-dominant Y | CO16: 59.946 | CP16: 59.946 | CQ16: 65 | CR16: 57.8359316 | CS16: 57.8359316 | CT16: 52 % Closed 1/4 Expanded α-dominant Y | CV16: 58.737 | CW16: 58.737 | CX16: 80 | CY16: 47.79579344 | CZ16: 47.79579344 | DA16: 47 % Closed 2/3 α-Expanded Arrow | DC16: 93.391 | DD16: 93.391 | DE16: 27.44360429 | DF16: 24.5582872 | DG16: 20 | DH16: 82 % closed orthogonal Y | DL16: 80.218 | DM16: 80.218 | DN16: 40.99656707 | DO16: 38.32527993 | DP16: 35 | DQ16: 70 % closed Semi-Orthogonal γ-Expanded Y | DT16: 110.449 | DU16: 110.449 | DV16: 8.147410409 | DW16: 7.11532599 | DX16: 5 | DY16: 95 % closed Semi-Orthogonal γ-Compressed Y | EB16: 93.805 | EC16: 93.805 | ED16: 28.18341929 | EE16: 22.46937875 | EF16: 20 | EG16: 83 % closed Semi-Orthogonal β-Compressed Y | EH16: 110.626 | EI16: 110.626 | EJ16: 8.217834344 | EK16: 6.517572857 | EL16: 5 | EM16: =ROUND(100*($EL$2-EL16)/$EL$2,0)&" % closed Semi-Oblique T" -> 93 % closed Semi-Oblique T | EO16: =IF(EP16=0,0.01,EP16) -> 21.024 | EP16: =ROUND((1/SQRT(3))*SQRT(($A$29-EQ16)^2+($A$30-ER16)^2+($A$31-ES16)^2),3) -> 21.024 | EQ16: 180 | ER16: 120 | ES16: 60 | ET16: Oblique T | EV16: 10.634 | EW16: 10.634 | EX16: 139.2319505 | EY16: 120 | EZ16: 55.89853468 | FA16: 11 % closed Inclined Y | FC16: 28.736 | FD16: 28.736 | FE16: 127.4230336 | FF16: 120 | FG16: 26.83568298 | FH16: 20 % closed Oblique Y | FJ16: 37.321 | FK16: 37.321 | FL16: 121.7354909 | FM16: 120 | FN16: 13.0935617 | FO16: 27 % closed Semi-Oblique Y
A17: 0.375 | B17: 45 | C17: 45 | D17: 45 | E17: 59.1 % Closed Trigonal Pyramid | F17: 1 | G17: 0.7653668647 | H17: 0.9238795325 | I17: 0.6628271481 | J17: 0.2209423827 | K17: 0.4418847654 | L17: 0.8970718222 | M17: 0.8970718222 | O17: a>120 | P17: α-dominant | R17: (1-g/gmax)x100% | AJ17: 22.068 | AK17: 22.068 | AL17: 120 | AM17: 120 | AN17: 45 | AO17: 62 % folded Trigonal Plane | AR17: 23.424 | AS17: 23.424 | AT17: 120 | AU17: 90 | AV17: 70 | AW17: 67 % α-folded Orthogonal Y | AY17: 19.157 | AZ17: 19.157 | BA17: 120 | BB17: 105 | BC17: 60 | BD17: 63 % α-folded Semi-Orthogonal γ-Expanded Y | BG17: 23.388 | BH17: 23.388 | BI17: 120 | BJ17: 90 | BK17: 75 | BL17: 63 % α-folded Semi-Orthogonal γ-Compressed Y | BO17: 31.257 | BP17: 31.257 | BQ17: 105 | BR17: 90 | BS17: 90 | BT17: 50 % α-folded Semi-Orthogonal β-Compressed Y | BV17: 38.671 | BW17: 38.671 | BX17: 105 | BY17: 68.24796184 | BZ17: 68.24796184 | CA17: 42 % closed T-shape | CB17: 46.025 | CC17: 46.025 | CD17: 90 | CE17: 64.85316288 | CF17: 64.85316288 | CG17: 45 % Closed 3/4 Expanded α-dominant Y | CH17: 54.562 | CI17: 54.562 | CJ17: 75 | CK17: 60 | CL17: 60 | CM17: 50 % Closed 1/2 Expanded α-dominant Y | CO17: 64.122 | CP17: 64.122 | CQ17: 60 | CR17: 53.48584241 | CS17: 53.48584241 | CT17: 56 % Closed 1/4 Expanded α-dominant Y | CV17: 62.117 | CW17: 62.117 | CX17: 75 | CY17: 45.12158673 | CZ17: 45.12158673 | DA17: 50 % Closed 2/3 α-Expanded Arrow | DC17: 99.383 | DD17: 99.383 | DE17: 20.54175441 | DF17: 18.39768955 | DG17: 15 | DH17: 86 % closed orthogonal Y | DL17: 85.492 | DM17: 85.492 | DN17: 35.08355918 | DO17: 32.82218346 | DP17: 30 | DQ17: 74 % closed Semi-Orthogonal γ-Expanded Y | DT17: 117.312 | DU17: 117.312 | DV17: 0 | DW17: 0 | DX17: 0 | DY17: Closed Arrow | EB17: 99.692 | EC17: 99.692 | ED17: 21.09058118 | EE17: 16.84211624 | EF17: 15 | EG17: 87 % closed Semi-Orthogonal β-Compressed Y | EH17: 117.312 | EI17: 117.312 | EJ17: 0 | EK17: 0 | EL17: 0 | EM17: Closed Arrow | EO17: =IF(EP17=0,0.01,EP17) -> 10.209 | EP17: =ROUND((1/SQRT(3))*SQRT(($A$29-EQ17)^2+($A$30-ER17)^2+($A$31-ES17)^2),3) -> 10.209 | EQ17: =2*DEGREES(ASIN(((SIN(RADIANS(ER17/2))*SIN(RADIANS($EQ$16/2))/SIN(RADIANS($ER$16/2)))))) -> 153.7437317 | ER17: 115 | ES17: =2*DEGREES(ASIN(((SIN(RADIANS(ER17/2))*SIN(RADIANS($ES$16/2))/SIN(RADIANS($ER$16/2)))))) -> 58.27829554 | ET17: =ROUND(100*($ER$16-ER17)/$ER$16,0)&" % closed Oblique T" -> 4 % closed Oblique T | EV17: 13.981 | EW17: 13.981 | EX17: 131.8129517 | EY17: 115 | EZ17: 54.31527019 | FA17: 15 % closed Inclined Y | FC17: 30.694 | FD17: 30.694 | FE17: 121.6519303 | FF17: 115 | FG17: 26.12173723 | FH17: 23 % closed Oblique Y | FJ17: 38.868 | FK17: 38.868 | FL17: 116.5690246 | FM17: 115 | FN17: 12.74991718 | FO17: 30 % closed Semi-Oblique Y
A18: 0.3333333333 | B18: 40 | C18: 40 | D18: 40 | E18: 63.6 % Closed Trigonal Pyramid | F18: 1 | G18: 0.6840402867 | H18: 0.9396926208 | I18: 0.5923962655 | J18: 0.1974654218 | K18: 0.3949308436 | L18: 0.9187108515 | M18: 0.9187108515 | O18: a=120 | P18: trigonal plane | AJ18: 24.262 | AK18: 24.262 | AL18: 120 | AM18: 120 | AN18: 40 | AO18: 67 % folded Trigonal Plane | AR18: 23.812 | AS18: 23.812 | AT18: 120 | AU18: 90 | AV18: 65 | AW18: 71 % α-folded Orthogonal Y | AY18: 20.461 | AZ18: 20.461 | BA18: 120 | BB18: 105 | BC18: 55 | BD18: 67 % α-folded Semi-Orthogonal γ-Expanded Y | BG18: 25.665 | BH18: 25.665 | BI18: 120 | BJ18: 85 | BK18: 75 | BL18: 67 % α-folded Semi-Orthogonal γ-Compressed Y | BO18: 30.474 | BP18: 30.474 | BQ18: 105 | BR18: 90 | BS18: 85 | BT18: =ROUND(((165-BS18)/150)*100,0)&" % α-folded Semi-Orthogonal β-Compressed Y" -> 53 % α-folded Semi-Orthogonal β-Compressed Y | BV18: 41.795 | BW18: 41.795 | BX18: 100 | BY18: 65.59550266 | BZ18: 65.59550266 | CA18: 44 % closed T-shape | CB18: 49.579 | CC18: 49.579 | CD18: 85 | CE18: 61.63678434 | CF18: 61.63678434 | CG18: 48 % Closed 3/4 Expanded α-dominant Y | CH18: 58.468 | CI18: 58.468 | CJ18: 70 | CK18: 56.21159856 | CL18: 56.21159856 | CM18: 53 % Closed 1/2 Expanded α-dominant Y | CO18: 68.362 | CP18: 68.362 | CQ18: 55 | CR18: 49.10952395 | CS18: 49.10952395 | CT18: 59 % Closed 1/4 Expanded α-dominant Y | CV18: 65.559 | CW18: 65.559 | CX18: 70 | CY18: 42.38329307 | CZ18: 42.38329307 | DA18: 53 % Closed 2/3 α-Expanded Arrow | DC18: 105.363 | DD18: 105.363 | DE18: 13.67536025 | DF18: 12.25525838 | DG18: 10 | DH18: 91 % closed orthogonal Y | DL18: 90.775 | DM18: 90.775 | DN18: 29.19762111 | DO18: 27.33248963 | DP18: 25 | DQ18: 78 % closed Semi-Orthogonal γ-Expanded Y | DW18: bref | EB18: =IF(EC18=0,0.01,EC18) -> 105.568 | EC18: =ROUND((1/SQRT(3))*SQRT(($A$29-ED18)^2+($A$30-EE18)^2+($A$31-EF18)^2),3) -> 105.568 | ED18: 14.03844759 | EE18: 11.22341081 | EF18: 10 | EG18: 91 % closed Semi-Orthogonal β-Compressed Y | EK18: bref | EO18: 11.689 | EP18: 11.689 | EQ18: =2*DEGREES(ASIN(((SIN(RADIANS(ER18/2))*SIN(RADIANS($EQ$16/2))/SIN(RADIANS($ER$16/2)))))) -> 142.1257605 | ER18: 110 | ES18: =2*DEGREES(ASIN(((SIN(RADIANS(ER18/2))*SIN(RADIANS($ES$16/2))/SIN(RADIANS($ER$16/2)))))) -> 56.45031112 | ET18: =ROUND(100*($ER$16-ER18)/$ER$16,0)&" % closed Oblique T" -> 8 % closed Oblique T | EV18: 18.08 | EW18: 18.08 | EX18: 124.9089792 | EY18: 110 | EZ18: 52.63204756 | FA18: 19 % closed Inclined Y | FC18: 33.12 | FD18: 33.12 | FE18: 116.0001089 | FF18: 110 | FG18: 25.35829261 | FH18: 27 % closed Oblique Y | FJ18: 40.788 | FK18: 40.788 | FL18: 111.424849 | FM18: 110 | FN18: 12.38202525 | FO18: 33 % closed Semi-Oblique Y
A19: 0.2916666667 | B19: 35 | C19: 35 | D19: 35 | E19: 68.2 % Closed Trigonal Pyramid | F19: 1 | G19: 0.601411599 | H19: 0.9537169507 | I19: 0.5208377229 | J19: 0.1736125743 | K19: 0.3472251486 | L19: 0.9377817956 | M19: 0.9377817956 | O19: 90<a<120 | P19: γ-dominant Y | AJ19: 26.589 | AK19: 26.589 | AL19: 120 | AM19: 120 | AN19: 35 | AO19: 71 % folded Trigonal Plane | AR19: 24.536 | AS19: 24.536 | AT19: 120 | AU19: 90 | AV19: 60 | AW19: 75 % α-folded Orthogonal Y | AY19: 22.068 | AZ19: 22.068 | BA19: 120 | BB19: 105 | BC19: 50 | BD19: 71 % α-folded Semi-Orthogonal γ-Expanded Y | BG19: 28.054 | BH19: 28.054 | BI19: 120 | BJ19: 80 | BK19: 75 | BL19: 71 % α-folded Semi-Orthogonal γ-Compressed Y | BO19: 29.95 | BP19: 29.95 | BQ19: 105 | BR19: 90 | BS19: 80 | BT19: =ROUND(((165-BS19)/150)*100,0)&" % α-folded Semi-Orthogonal β-Compressed Y" -> 57 % α-folded Semi-Orthogonal β-Compressed Y | BV19: 45.042 | BW19: 45.042 | BX19: 95 | BY19: 62.84352612 | BZ19: 62.84352612 | CA19: 47 % closed T-shape | CB19: 53.218 | CC19: 53.218 | CD19: 80 | CE19: 58.34537123 | CF19: 58.34537123 | CG19: 52 % Closed 3/4 Expanded α-dominant Y | CH19: 62.439 | CI19: 62.439 | CJ19: 65 | CK19: 52.37442159 | CL19: 52.37442159 | CM19: 57 % Closed 1/2 Expanded α-dominant Y | CO19: 72.655 | CP19: 72.655 | CQ19: 50 | CR19: 44.71028063 | CS19: 44.71028063 | CT19: 63 % Closed 1/4 Expanded α-dominant Y | CV19: 69.055 | CW19: 69.055 | CX19: 65 | CY19: 39.58632879 | CZ19: 39.58632879 | DA19: 57 % Closed 2/3 α-Expanded Arrow | DC19: 111.337 | DD19: 111.337 | DE19: 6.832006754 | DF19: 6.124697074 | DG19: 5 | DH19: 95 % closed orthogonal Y | DL19: 96.066 | DM19: 96.066 | DN19: 23.33333492 | DO19: 21.85357846 | DP19: 20 | DQ19: 83 % closed Semi-Orthogonal γ-Expanded Y | DT19: =IF(DU19=0,0.01,DU19) -> 11.045 | DU19: =ROUND((1/SQRT(3))*SQRT(($A$29-DV19)^2+($A$30-DW19)^2+($A$31-DX19)^2),3) -> 11.045 | DV19: 165 | DW19: 120 | DX19: 75 | DY19: Semi-Orthogonal γ-Compressed Y | EB19: 111.439 | EC19: 111.439 | ED19: 7.012725993 | EE19: 5.610316435 | EF19: 5 | EG19: 96 % closed Semi-Orthogonal β-Compressed Y | EH19: =IF(EI19=0,0.01,EI19) -> 21.726 | EI19: =ROUND((1/SQRT(3))*SQRT(($A$29-EJ19)^2+($A$30-EK19)^2+($A$31-EL19)^2),3) -> 21.726 | EJ19: 180 | EK19: 105 | EL19: 75 | EM19: Semi oblique T | EO19: 16.06 | EP19: 16.06 | EQ19: 132.7207199 | ER19: 105 | ES19: 54.52176524 | ET19: 13 % closed Oblique T | EV19: 22.444 | EW19: 22.444 | EX19: 118.3462148 | EY19: 105 | EZ19: 50.85386821 | FA19: 22 % closed Inclined Y | FC19: 35.909 | FD19: 35.909 | FE19: 110.4382804 | FF19: 105 | FG19: 24.54699049 | FH19: 30 % closed Oblique Y | FJ19: 43.029 | FK19: 43.029 | FL19: 106.2982489 | FM19: 105 | FN19: 11.99060771 | FO19: 36 % closed Semi-Oblique Y
A20: 0.25 | B20: 30 | C20: 30 | D20: 30 | E20: 72.7 % Closed Trigonal Pyramid | F20: 1 | G20: 0.5176380902 | H20: 0.9659258263 | I20: 0.4482877361 | J20: 0.1494292454 | K20: 0.2988584907 | L20: 0.9542974392 | M20: 0.9542974392 | O20: a = 90 | P20: T | AJ20: 29.017 | AK20: 29.017 | AL20: 120 | AM20: 120 | AN20: 30 | AO20: 75 % folded Trigonal Plane | AR20: 25.567 | AS20: 25.567 | AT20: 120 | AU20: 90 | AV20: 55 | AW20: 79 % α-folded Orthogonal Y | AY20: 23.917 | AZ20: 23.917 | BA20: 120 | BB20: 105 | BC20: 45 | BD20: 75 % α-folded Semi-Orthogonal γ-Expanded Y | BG20: 30.529 | BH20: 30.529 | BI20: 120 | BJ20: 75 | BK20: 75 | BL20: 75 % α-folded Semi-Orthogonal γ-Compressed Y | BO20: 29.698 | BP20: 29.698 | BQ20: 105 | BR20: 90 | BS20: 75 | BT20: 60 % α-folded Semi-Orthogonal β-Compressed Y | BV20: 48.394 | BW20: 48.394 | BX20: 90 | BY20: 60 | BZ20: 60 | CA20: 50 % closed T-shape | CB20: 56.931 | CC20: 56.931 | CD20: 75 | CE20: 54.98603008 | CF20: 54.98603008 | CG20: 55 % Closed 3/4 Expanded α-dominant Y | CH20: 66.467 | CI20: 66.467 | CJ20: 60 | CK20: 48.49384864 | CL20: 48.49384864 | CM20: 60 % Closed 1/2 Expanded α-dominant Y | CO20: 76.995 | CP20: 76.995 | CQ20: 45 | CR20: 40.29107884 | CS20: 40.29107884 | CT20: 67 % Closed 1/4 Expanded α-dominant Y | CV20: 72.598 | CW20: 72.598 | CX20: 60 | CY20: 36.73588748 | CZ20: 36.73588748 | DA20: 60 % Closed 2/3 α-Expanded Arrow | DC20: 117.312 | DD20: 117.312 | DE20: 0 | DF20: =2*DEGREES(ASIN(((SIN(RADIANS(DG20/2))*SIN(RADIANS(60))/SIN(RADIANS(45)))))) -> 0 | DG20: 0 | DH20: closed arrow | DL20: 101.365 | DM20: 101.365 | DN20: 17.48580711 | DO20: 16.38305131 | DP20: 15 | DQ20: 87 % closed Semi-Orthogonal γ-Expanded Y | DT20: 4.112 | DU20: 4.112 | DV20: =2*DEGREES(ASIN(((SIN(RADIANS(DW20/2))*SIN(RADIANS($DV$2/2))/SIN(RADIANS($DW$2/2)))))) -> 149.8265713 | DW20: 115 | DX20: =2*DEGREES(ASIN(((SIN(RADIANS(DW20/2))*SIN(RADIANS($DX$2/2))/SIN(RADIANS($DW$2/2)))))) -> 72.71919731 | DY20: =ROUND(100*($DW$2-DW20)/$DW$2,0)&" % closed Semi-Orthogonal γ-Compressed Y" -> 4 % closed Semi-Orthogonal γ-Compressed Y | EB20: 117.312 | EC20: 117.312 | ED20: 0 | EE20: 0 | EF20: 0 | EG20: Closed Arrow | EH20: =IF(EI20=0,0.01,EI20) -> 12.339 | EI20: =ROUND((1/SQRT(3))*SQRT(($A$29-EJ20)^2+($A$30-EK20)^2+($A$31-EL20)^2),3) -> 12.339 | EJ20: =2*DEGREES(ASIN(((SIN(RADIANS(EK20/2))*SIN(RADIANS($EJ$19/2))/SIN(RADIANS($EK$19/2)))))) -> 149.8463358 | EK20: 100 | EL20: =2*DEGREES(ASIN(((SIN(RADIANS(EK20/2))*SIN(RADIANS($EL$19/2))/SIN(RADIANS($EK$19/2)))))) -> 72.00302027 | EM20: =ROUND(100*($EK$2-EK20)/$EK$2,0)&" % closed Semi-Oblique T" -> 5 % closed Semi-Oblique T | EO20: 21.041 | EP20: 21.041 | EQ20: 124.3928642 | ER20: 100 | ES20: 52.49837419 | ET20: 17 % closed Oblique T | EV20: 26.907 | EW20: 26.907 | EX20: 112.025201 | EY20: 100 | EZ20: 48.98577313 | FA20: 26 % closed Inclined Y | FC20: 38.978 | FD20: 38.978 | FE20: 104.9462229 | FF20: 100 | FG20: 23.68955514 | FH20: 33 % closed Oblique Y | FJ20: 45.542 | FK20: 45.542 | FL20: 101.1857454 | FM20: 100 | FN20: 11.57643037 | FO20: 39 % closed Semi-Oblique Y
A21: 0.2083333333 | B21: 25 | C21: 25 | D21: 25 | E21: 77.3 % Closed Trigonal Pyramid | F21: 1 | G21: 0.4328792279 | H21: 0.9762960071 | I21: 0.3748844081 | J21: 0.1249614694 | K21: 0.2499229387 | L21: 0.9682657304 | M21: 0.9682657304 | O21: 60<a<90 | P21: extended Arrow | AJ21: 31.522 | AK21: 31.522 | AL21: 120 | AM21: 120 | AN21: 25 | AO21: 79 % folded Trigonal Plane | AR21: 26.87 | AS21: 26.87 | AT21: 120 | AU21: 90 | AV21: 50 | AW21: 83 % α-folded Orthogonal Y | AY21: 25.955 | AZ21: 25.955 | BA21: 120 | BB21: 105 | BC21: 40 | BD21: 79 % α-folded Semi-Orthogonal γ-Expanded Y | BG21: 30.556 | BH21: 30.556 | BI21: 120 | BJ21: 75 | BK21: 70 | BL21: =ROUND(((165-BK21)/120)*100,0)&" % α-folded Semi-Orthogonal γ-Compressed Y" -> 79 % α-folded Semi-Orthogonal γ-Compressed Y | BO21: 29.727 | BP21: 29.727 | BQ21: 105 | BR21: 90 | BS21: 70 | BT21: 63 % α-folded Semi-Orthogonal β-Compressed Y | BV21: 51.838 | BW21: 51.838 | BX21: 85 | BY21: 57.07246618 | BZ21: 57.07246618 | CA21: 53 % closed T-shape | CB21: 60.709 | CC21: 60.709 | CD21: 70 | CE21: 51.56533563 | CF21: 51.56533563 | CG21: 58 % Closed 3/4 Expanded α-dominant Y | CH21: 70.545 | CI21: 70.545 | CJ21: 55 | CK21: 44.57477955 | CL21: 44.57477955 | CM21: 63 % Closed 1/2 Expanded α-dominant Y | CO21: 81.375 | CP21: 81.375 | CQ21: 40 | CR21: 35.85460037 | CS21: 35.85460037 | CT21: 70 % Closed 1/4 Expanded α-dominant Y | CV21: 76.184 | CW21: 76.184 | CX21: 55 | CY21: 33.83694904 | CZ21: 33.83694904 | DA21: 63 % Closed 2/3 α-Expanded Arrow | DF21: beta ref | DL21: 106.672 | DM21: 106.672 | DN21: 11.65053285 | DO21: 10.91867571 | DP21: 10 | DQ21: 91 % closed Semi-Orthogonal γ-Expanded Y | DT21: 7.577 | DU21: 7.577 | DV21: 139.3650946 | DW21: 110 | DX21: 70.31309033 | DY21: 8 % closed Semi-Orthogonal γ-Compressed Y | EE21: bref | EH21: 16.125 | EI21: 16.125 | EJ21: =2*DEGREES(ASIN(((SIN(RADIANS(EK21/2))*SIN(RADIANS($EJ$19/2))/SIN(RADIANS($EK$19/2)))))) -> 136.6574248 | EK21: 95 | EL21: =2*DEGREES(ASIN(((SIN(RADIANS(EK21/2))*SIN(RADIANS($EL$19/2))/SIN(RADIANS($EK$19/2)))))) -> 68.90638721 | EM21: =ROUND(100*($EK$2-EK21)/$EK$2,0)&" % closed Semi-Oblique T" -> 10 % closed Semi-Oblique T | EO21: 26.109 | EP21: 26.109 | EQ21: 116.7142382 | ER21: 95 | ES21: 50.38581333 | ET21: 21 % closed Oblique T | EV21: 31.409 | EW21: 31.409 | EX21: 105.883496 | EY21: 95 | EZ21: 47.03280913 | FA21: 30 % closed Inclined Y | FC21: 42.264 | FD21: 42.264 | FE21: 99.50943478 | FF21: 95 | FG21: 22.78778742 | FH21: 37 % closed Oblique Y | FJ21: 48.284 | FK21: 48.284 | FL21: 96.08471125 | FM21: 95 | FN21: 11.14030122 | FO21: 42 % closed Semi-Oblique Y
A22: 0.1666666667 | B22: 20 | C22: 20 | D22: 20 | E22: 81.8 % Closed Trigonal Pyramid | F22: 1 | G22: 0.3472963553 | H22: 0.984807753 | I22: 0.3007674664 | J22: 0.1002558221 | K22: 0.2005116442 | L22: 0.979691319 | M22: 0.979691319 | O22: a=60 | P22: arrow | AJ22: =IF(AK22=0,0.01,AK22) -> 34.088 | AK22: 34.088 | AL22: 120 | AM22: 120 | AN22: 20 | AO22: 83 % folded Trigonal Plane | AR22: 28.408 | AS22: 28.408 | AT22: 120 | AU22: 90 | AV22: 45 | AW22: 88 % α-folded Orthogonal Y | AY22: 28.142 | AZ22: 28.142 | BA22: 120 | BB22: 105 | BC22: 35 | BD22: 83 % α-folded Semi-Orthogonal γ-Expanded Y | BG22: 30.854 | BH22: 30.854 | BI22: 120 | BJ22: 75 | BK22: 65 | BL22: =ROUND(((165-BK22)/120)*100,0)&" % α-folded Semi-Orthogonal γ-Compressed Y" -> 83 % α-folded Semi-Orthogonal γ-Compressed Y | BO22: 30.033 | BP22: 30.033 | BQ22: 105 | BR22: 90 | BS22: 65 | BT22: 67 % α-folded Semi-Orthogonal β-Compressed Y | BV22: 55.36 | BW22: 55.36 | BX22: 80 | BY22: 54.06804168 | BZ22: 54.06804168 | CA22: 56 % closed T-shape | CB22: 64.543 | CC22: 64.543 | CD22: 65 | CE22: 48.08937291 | CF22: 48.08937291 | CG22: 61 % Closed 3/4 Expanded α-dominant Y | CH22: 74.666 | CI22: 74.666 | CJ22: 50 | CK22: 40.62169433 | CL22: 40.62169433 | CM22: 67 % Closed 1/2 Expanded α-dominant Y | CO22: 85.788 | CP22: 85.788 | CQ22: 35 | CR22: 31.40328813 | CS22: 31.40328813 | CT22: 74 % Closed 1/4 Expanded α-dominant Y | CV22: 79.808 | CW22: 79.808 | CX22: 50 | CY22: 30.89429129 | CZ22: 30.89429129 | DA22: 67 % Closed 2/3 α-Expanded Arrow | DC22: 10.1 | DD22: 10.1 | DE22: 150 | DF22: 120 | DG22: 90 | DH22: Orthogonal Y | DL22: 111.987 | DM22: 111.987 | DN22: 5.82328198 | DO22: 5.45833778 | DP22: 5 | DQ22: 96 % closed Semi-Orthogonal γ-Expanded Y | DT22: 13.197 | DU22: 13.197 | DV22: 130.5287794 | DW22: 105 | DX22: 67.7906711 | DY22: 13 % closed Semi-Orthogonal γ-Compressed Y | EB22: =IF(EC22=0,0.01,EC22) -> 17.378 | EC22: =ROUND((1/SQRT(3))*SQRT(($A$29-ED22)^2+($A$30-EE22)^2+($A$31-EF22)^2),3) -> 17.378 | ED22: 165 | EE22: 105 | EF22: 90 | EG22: Semi-Orthogonal β-Compressed Y | EH22: 21.688 | EI22: 21.688 | EJ22: 126.0712399 | EK22: 90 | EL22: 65.71917661 | EM22: 14 % closed Semi-Oblique T | EO22: 31.15 | EP22: 31.15 | EQ22: 109.4712206 | ER22: 90 | ES22: 48.1896851 | ET22: 25 % closed Oblique T | EV22: 35.926 | EW22: 35.926 | EX22: 99.87928195 | EY22: 90 | EZ22: 45 | FA22: 33 % closed Inclined Y | FC22: 45.716 | FD22: 45.716 | FE22: 94.11719427 | FF22: 90 | FG22: 21.84355849 | FH22: 40 % closed Oblique Y | FJ22: 51.219 | FK22: 51.219 | FL22: 90.99312196 | FM22: 90 | FN22: 10.68306856 | FO22: 45 % closed Semi-Oblique Y
A23: 0.125 | B23: 15 | C23: 15 | D23: 15 | E23: 86.4 % Closed Trigonal Pyramid | F23: 1 | G23: 0.2610523844 | H23: 0.9914448614 | I23: 0.2260779966 | J23: 0.07535933221 | K23: 0.1507186644 | L23: 0.9885766962 | M23: 0.9885766962 | O23: a<60 | P23: compressed Arrow | AJ23: 36.701 | AK23: 36.701 | AL23: 120 | AM23: 120 | AN23: 15 | AO23: 87 % folded Trigonal Plane | AR23: 30.144 | AS23: 30.144 | AT23: 120 | AU23: 90 | AV23: 40 | AW23: 92 % α-folded Orthogonal Y | AY23: 30.447 | AZ23: 30.447 | BA23: 120 | BB23: 105 | BC23: 30 | BD23: 88 % α-folded Semi-Orthogonal γ-Expanded Y | BG23: 31.417 | BH23: 31.417 | BI23: 120 | BJ23: 75 | BK23: 60 | BL23: 88 % α-folded Semi-Orthogonal γ-Compressed Y | BO23: 30.61 | BP23: 30.61 | BQ23: 105 | BR23: 90 | BS23: 60 | BT23: 70 % α-folded Semi-Orthogonal β-Compressed Y | BV23: 58.953 | BW23: 58.953 | BX23: 75 | BY23: 50.9934284 | BZ23: 50.9934284 | CA23: 58 % closed T-shape | CB23: 68.428 | CC23: 68.428 | CD23: 60 | CE23: 44.56378008 | CF23: 44.56378008 | CG23: 64 % Closed 3/4 Expanded α-dominant Y | CH23: 78.825 | CI23: 78.825 | CJ23: 45 | CK23: 36.63870733 | CL23: 36.63870733 | CM23: 70 % Closed 1/2 Expanded α-dominant Y | CO23: 90.231 | CP23: 90.231 | CQ23: 30 | CR23: 26.93938568 | CS23: 26.93938568 | CT23: 78 % Closed 1/4 Expanded α-dominant Y | CV23: 83.465 | CW23: 83.465 | CX23: 45 | CY23: 27.9125035 | CZ23: 27.9125035 | DA23: 70 % Closed 2/3 α-Expanded Arrow | DC23: 9.404 | DD23: 9.404 | DE23: =2*DEGREES(ASIN(((SIN(RADIANS(DF23/2))*SIN(RADIANS(75))/SIN(RADIANS(60)))))) -> 140.3324506 | DF23: 115 | DG23: =2*DEGREES(ASIN(((SIN(RADIANS(DF23/2))*SIN(RADIANS(45))/SIN(RADIANS(60)))))) -> 87.04292272 | DH23: =ROUND((150-DE23)/1.5,0)&" % closed orthogonal Y" -> 6 % closed orthogonal Y | DL23: 117.312 | DM23: 117.312 | DN23: 0 | DO23: 0 | DP23: 0 | DQ23: closed arrow | DT23: 18.725 | DU23: 18.725 | DV23: 122.5614275 | DW23: 100 | DX23: 65.16060063 | DY23: 17 % closed Semi-Orthogonal γ-Compressed Y | EB23: 14.298 | EC23: 14.298 | ED23: =2*DEGREES(ASIN(((SIN(RADIANS(EE23/2))*SIN(RADIANS($ED$2/2))/SIN(RADIANS($EE$2/2)))))) -> 146.3991033 | EE23: 100 | EF23: =2*DEGREES(ASIN(((SIN(RADIANS(EE23/2))*SIN(RADIANS($EF$2/2))/SIN(RADIANS($EE$2/2)))))) -> 86.12044148 | EG23: =ROUND(100*($EE$2-EE23)/$EE$2,0)&" % closed Semi-Orthogonal β-Compressed Y" -> 5 % closed Semi-Orthogonal β-Compressed Y | EH23: 27.459 | EI23: 27.459 | EJ23: 116.7641186 | EK23: 85 | EL23: 62.44978774 | EM23: 19 % closed Semi-Oblique T | EO23: 36.14 | EP23: 36.14 | EQ23: 102.540266 | ER23: 85 | ES23: 45.91549349 | ET23: 29 % closed Oblique T | EV23: 40.448 | EW23: 40.448 | EX23: 93.98317711 | EY23: 85 | EZ23: 42.8923225 | FA23: 37 % closed Inclined Y | FC23: 49.298 | FD23: 49.298 | FE23: 88.76137081 | FF23: 85 | FG23: 20.85880375 | FH23: 43 % closed Oblique Y | FJ23: 54.314 | FK23: 54.314 | FL23: 85.90938984 | FM23: 85 | FN23: 10.20561906 | FO23: 48 % closed Semi-Oblique Y
A24: 0.08333333333 | B24: 10 | C24: 10 | D24: 10 | E24: 90.9 % Closed Trigonal Pyramid | F24: 1 | G24: 0.1743114855 | H24: 0.9961946981 | I24: 0.1509581746 | J24: 0.05031939154 | K24: 0.1006387831 | L24: 0.9949230299 | M24: 0.9949230299 | AJ24: 39.353 | AK24: 39.353 | AL24: 120 | AM24: 120 | AN24: 10 | AO24: 92 % folded Trigonal Plane | AR24: 32.047 | AS24: 32.047 | AT24: 120 | AU24: 90 | AV24: 35 | AW24: 96 % α-folded Orthogonal Y | AY24: 32.843 | AZ24: 32.843 | BA24: 120 | BB24: 105 | BC24: 25 | BD24: 92 % α-folded Semi-Orthogonal γ-Expanded Y | BG24: 32.228 | BH24: 32.228 | BI24: 120 | BJ24: 75 | BK24: 55 | BL24: 92 % α-folded Semi-Orthogonal γ-Compressed Y | BO24: 31.443 | BP24: 31.443 | BQ24: 105 | BR24: 90 | BS24: 55 | BT24: 73 % α-folded Semi-Orthogonal β-Compressed Y | BV24: 62.606 | BW24: 62.606 | BX24: 70 | BY24: 47.85492944 | BZ24: 47.85492944 | CA24: 61 % closed T-shape | CB24: 72.357 | CC24: 72.357 | CD24: 55 | CE24: 40.99379083 | CF24: 40.99379083 | CG24: 67 % Closed 3/4 Expanded α-dominant Y | CH24: 83.016 | CI24: 83.016 | CJ24: 40 | CK24: 32.62961623 | CL24: 32.62961623 | CM24: 73 % Closed 1/2 Expanded α-dominant Y | CO24: 94.699 | CP24: 94.699 | CQ24: 25 | CR24: 22.46497163 | CS24: 22.46497163 | CT24: 81 % Closed 1/4 Expanded α-dominant Y | CV24: 87.151 | CW24: 87.151 | CX24: 40 | CY24: 24.8960013 | CZ24: 24.8960013 | DA24: 73 % Closed 2/3 α-Expanded Arrow | DC24: 12.058 | DD24: 12.058 | DE24: =2*DEGREES(ASIN(((SIN(RADIANS(DF24/2))*SIN(RADIANS(75))/SIN(RADIANS(60)))))) -> 132.0281613 | DF24: 110 | DG24: =2*DEGREES(ASIN(((SIN(RADIANS(DF24/2))*SIN(RADIANS(45))/SIN(RADIANS(60)))))) -> 83.95440207 | DH24: =ROUND((150-DE24)/1.5,0)&" % closed orthogonal Y" -> 12 % closed orthogonal Y | DO24: bref | DT24: 24.083 | DU24: 24.083 | DV24: 115.140855 | DW24: 95 | DX24: 62.43116629 | DY24: 21 % closed Semi-Orthogonal γ-Compressed Y | EB24: 17.301 | EC24: 17.301 | ED24: 134.2535957 | EE24: 95 | EF24: 82.16223722 | EG24: 10 % closed Semi-Orthogonal β-Compressed Y | EH24: 33.168 | EI24: 33.168 | EJ24: 108.2340909 | EK24: 80 | EL24: 59.10597771 | EM24: 24 % closed Semi-Oblique T | EO24: 41.081 | EP24: 41.081 | EQ24: 95.84297187 | ER24: 80 | ES24: 43.56862449 | ET24: 33 % closed Oblique T | EV24: 44.971 | EW24: 44.971 | EX24: 88.17375339 | EY24: 80 | EZ24: 40.71468698 | FA24: 41 % closed Inclined Y | FC24: 52.984 | FD24: 52.984 | FE24: 83.43566475 | FF24: 80 | FG24: 19.83551699 | FH24: 47 % closed Oblique Y | FJ24: 57.543 | FK24: 57.543 | FL24: 80.83225003 | FM24: 80 | FN24: 9.708875849 | FO24: 52 % closed Semi-Oblique Y
A25: 0.04166666667 | B25: 5 | C25: 5 | D25: 5 | E25: 95.5 % Closed Trigonal Pyramid | F25: 1 | G25: 0.08723877473 | H25: 0.9990482216 | I25: 0.07555099511 | J25: 0.02518366504 | K25: 0.05036733007 | L25: 0.9987307605 | M25: 0.9987307605 | AJ25: 42.036 | AK25: 42.036 | AL25: 120 | AM25: 120 | AN25: 5 | AO25: 96 % folded Trigonal Plane | AR25: 34.088 | AS25: 34.088 | AT25: 120 | AU25: 90 | AV25: 30 | AW25: 50% oblique 1/3 α-Expanded Arrow | AY25: 35.313 | AZ25: 35.313 | BA25: 120 | BB25: 105 | BC25: 20 | BD25: 96 % α-folded Semi-Orthogonal γ-Expanded Y | BG25: 33.272 | BH25: 33.272 | BI25: 120 | BJ25: 75 | BK25: 50 | BL25: 96 % α-folded Semi-Orthogonal γ-Compressed Y | BO25: 32.512 | BP25: 32.512 | BQ25: 105 | BR25: 90 | BS25: 50 | BT25: 77 % α-folded Semi-Orthogonal β-Compressed Y | BV25: 66.313 | BW25: 66.313 | BX25: 65 | BY25: 44.65847012 | BZ25: 44.65847012 | CA25: 64 % closed T-shape | CB25: 76.324 | CC25: 76.324 | CD25: 50 | CE25: 37.38427547 | CF25: 37.38427547 | CG25: 70 % Closed 3/4 Expanded α-dominant Y | CH25: 87.237 | CI25: 87.237 | CJ25: 35 | CK25: 28.59794629 | CL25: 28.59794629 | CM25: 77 % Closed 1/2 Expanded α-dominant Y | CO25: 99.19 | CP25: 99.19 | CQ25: 20 | CR25: 17.98198999 | CS25: 17.98198999 | CT25: 85 % Closed 1/4 Expanded α-dominant Y | CV25: 90.863 | CW25: 90.863 | CX25: 35 | CY25: 21.84904268 | CZ25: 21.84904268 | DA25: 77 % Closed 2/3 α-Expanded Arrow | DC25: 16.119 | DD25: 16.119 | DE25: 124.4712206 | DF25: 105 | DG25: 80.74740294 | DH25: 17 % closed orthogonal Y | DL25: 19.545 | DM25: 19.545 | DN25: 135 | DO25: 120 | DP25: 105 | DQ25: Semi-Orthogonal γ-Expanded Y | DT25: 29.309 | DU25: 29.309 | DV25: 108.0964308 | DW25: 90 | DX25: 59.61025612 | DY25: 25 % closed Semi-Orthogonal γ-Compressed Y | EB25: 22.088 | EC25: 22.088 | ED25: 124.174993 | EE25: 90 | EF25: 78.13510322 | EG25: 14 % closed Semi-Orthogonal β-Compressed Y | EH25: 38.775 | EI25: 38.775 | EJ25: 100.2289155 | EK25: 75 | EL25: 55.69490258 | EM25: 29 % closed Semi-Oblique T | EO25: 45.978 | EP25: 45.978 | EQ25: 89.32625906 | ER25: 75 | ES25: 41.1543321 | ET25: 38 % closed Oblique T | EV25: 49.493 | EW25: 49.493 | EX25: 82.43490573 | EY25: 75 | EZ25: 38.47192237 | FA25: 44 % closed Inclined Y | FC25: 56.751 | FD25: 56.751 | FE25: 78.13510322 | FF25: 75 | FG25: 18.77574469 | FH25: 50 % closed Oblique Y | FJ25: 60.885 | FK25: 60.885 | FL25: 75.76068047 | FM25: 75 | FN25: 9.193796468 | FO25: 55 % closed Semi-Oblique Y
A26: =(SUM(B26:D26)/360) -> 0 | B26: 0 | C26: 0 | D26: 0 | E26: Closed Arrow | F26: 1 | G26: =2*SIN(RADIANS(B26/2)) -> 0 | H26: =COS(RADIANS(B26/2)) -> 1 | I26: =G26*COS(RADIANS(30)) -> 0 | J26: =(G26/2)*TAN(RADIANS(30)) -> 0 | K26: =(G26/2)/COS(RADIANS(30)) -> 0 | L26: =SQRT(F26^2-K26^2) -> 1 | M26: =SQRT((H26^2)-(J26^2)) -> 1 | AJ26: 44.744 | AK26: 44.744 | AL26: 120 | AM26: 120 | AN26: 0 | AO26: folded trigonal plane | AS26: betafold | AY26: 37.842 | AZ26: 37.842 | BA26: 120 | BB26: 105 | BC26: 15 | BD26: 75% oblique 1/3 a-expanded Arrow | BG26: 34.525 | BH26: 34.525 | BI26: 120 | BJ26: 75 | BK26: 45 | BL26: near 4/9 α-expanded Arrow (25 % oblique) | BO26: 33.793 | BP26: 33.793 | BQ26: 105 | BR26: 90 | BS26: 45 | BT26: 80 % α-folded Semi-Orthogonal β-Compressed Y | BV26: 70.068 | BW26: 70.068 | BX26: 60 | BY26: 41.40962211 | BZ26: =2*DEGREES(ASIN(((SIN(RADIANS(BX26/2))*SIN(RADIANS($BZ$2/2))/SIN(RADIANS($BX$2/2)))))) -> 41.40962211 | CA26: =ROUND(100*($BX$2-BX26)/$BX$2,0)&" % closed T-shape" -> 67 % closed T-shape | CB26: 80.326 | CC26: 80.326 | CD26: 45 | CE26: 33.73978042 | CF26: 33.73978042 | CG26: 73 % Closed 3/4 Expanded α-dominant Y | CH26: 91.482 | CI26: 91.482 | CJ26: 30 | CK26: 24.54699049 | CL26: 24.54699049 | CM26: 80 % Closed 1/2 Expanded α-dominant Y | CO26: 103.698 | CP26: 103.698 | CQ26: 15 | CR26: 13.49227712 | CS26: 13.49227712 | CT26: 89 % Closed 1/4 Expanded α-dominant Y | CV26: 94.598 | CW26: 94.598 | CX26: 30 | CY26: 18.77574469 | CZ26: 18.77574469 | DA26: 80 % Closed 2/3 α-Expanded Arrow | DC26: 20.65 | DD26: 20.65 | DE26: 117.3895731 | DF26: 100 | DG26: 77.43377698 | DH26: 22 % closed orthogonal Y | DL26: 19.539 | DM26: 19.539 | DN26: =2*DEGREES(ASIN(((SIN(RADIANS(DP26/2))*SIN(RADIANS($DN$2/2))/SIN(RADIANS($DP$2/2)))))) -> 128.2461264 | DO26: 115 | DP26: =2*DEGREES(ASIN(((SIN(RADIANS(DO26/2))*SIN(RADIANS($DP$25/2))/SIN(RADIANS($DO$25/2)))))) -> 101.1792633 | DQ26: =ROUND(100*($DN$2-DN26)/$DN$2,0)&" % closed Semi-Orthogonal γ-Expanded Y" -> 5 % closed Semi-Orthogonal γ-Expanded Y | DT26: 34.435 | DU26: 34.435 | DV26: 101.3258999 | DW26: 85 | DX26: 56.70534709 | DY26: 29 % closed Semi-Orthogonal γ-Compressed Y | EB26: 27.364 | EC26: 27.364 | ED26: 115.1892343 | EE26: 85 | EF26: 74.04747505 | EG26: 19 % closed Semi-Orthogonal β-Compressed Y | EH26: 44.287 | EI26: 44.287 | EJ26: 92.60168011 | EK26: 70 | EL26: 52.2231624 | EM26: 33 % closed Semi-Oblique T | EO26: 50.84 | EP26: 50.84 | EQ26: 82.95242084 | ER26: 70 | ES26: 38.67772905 | ET26: 42 % closed Oblique T | EV26: 54.014 | EW26: 54.014 | EX26: 76.75422298 | EY26: 70 | EZ26: 36.16876511 | FA26: 48 % closed Inclined Y | FC26: 60.584 | FD26: 60.584 | FE26: 72.85569539 | FF26: 70 | FG26: 17.68158071 | FH26: 53 % closed Oblique Y | FJ26: 64.321 | FK26: 64.321 | FL26: 70.69384453 | FM26: 70 | FN26: 8.661370872 | FO26: 58 % closed Semi-Oblique Y
O27: Reference | P27: alpha | Q27: asym | R27: Reference | S27: beta | U27: Reference | V27: gamma | X27: Reference | Y27: alpha | AA27: Reference | AB27: beta | AD27: Reference | AE27: gamma | AG27: ARROW | AJ27: RMSD | AK27: RMSD | AL27: Monoclinic | AM27: diorthogonal pyramid | AO27: T | AR27: 10.1 | AS27: 10.1 | AT27: 150 | AU27: 120 | AV27: 90 | AW27: Orthogonal Y | BB27: beta fold | BJ27: b-fold | BO27: 35.266 | BP27: 35.266 | BQ27: 105 | BR27: 90 | BS27: 40 | BT27: 83 % α-folded Semi-Orthogonal β-Compressed Y | BV27: 73.865 | BW27: 73.865 | BX27: 55 | BY27: 38.11362962 | BZ27: 38.11362962 | CA27: 69 % closed T-shape | CB27: 84.358 | CC27: 84.358 | CD27: 40 | CE27: 30.06456571 | CF27: 30.06456571 | CG27: 76 % Closed 3/4 Expanded α-dominant Y | CH27: 95.749 | CI27: 95.749 | CJ27: 25 | CK27: 20.47984599 | CL27: 20.47984599 | CM27: 83 % Closed 1/2 Expanded α-dominant Y | CO27: 108.223 | CP27: 108.223 | CQ27: 10 | CR27: 8.99758619 | CS27: 8.99758619 | CT27: 93 % Closed 1/4 Expanded α-dominant Y | CV27: 98.351 | CW27: 98.351 | CX27: 25 | CY27: 15.68010058 | CZ27: 15.68010058 | DA27: 83 % Closed 2/3 α-Expanded Arrow | DC27: 25.348 | DD27: 25.348 | DE27: 110.6366388 | DF27: 95 | DG27: 74.02430838 | DH27: 26 % closed orthogonal Y | DL27: 20.766 | DM27: 20.766 | DN27: 121.8241825 | DO27: 110 | DP27: 97.25238969 | DQ27: 10 % closed Semi-Orthogonal γ-Expanded Y | DT27: 39.488 | DU27: 39.488 | DV27: 94.76280493 | DW27: 80 | DX27: 53.72350456 | DY27: 33 % closed Semi-Orthogonal γ-Compressed Y | EB27: 32.763 | EC27: 32.763 | ED27: 106.8898149 | EE27: 80 | EF27: 69.90669543 | EG27: 24 % closed Semi-Orthogonal β-Compressed Y | EH27: 49.72 | EI27: 49.72 | EJ27: 85.25844843 | EK27: 65 | EL27: 48.69684782 | EM27: 38 % closed Semi-Oblique T | EO27: 55.671 | EP27: 55.671 | EQ27: 76.69364466 | ER27: 65 | ES27: 36.1437819 | ET27: 46 % closed Oblique T | EV27: 58.534 | EW27: 58.534 | EX27: 71.12193381 | EY27: 65 | EZ27: 33.80985178 | FA27: 52 % closed Inclined Y | FC27: 64.471 | FD27: 64.471 | FE27: 67.59419054 | FF27: 65 | FG27: 16.55516121 | FH27: 57 % closed Oblique Y | FJ27: 67.837 | FK27: 67.837 | FL27: 65.63104907 | FM27: 65 | FN27: 8.112619383 | FO27: 61 % closed Semi-Oblique Y
A28: INPUT | B28: Trigonal | C28: roundup a | D28: roundwn a | E28: roundhalf a | F28: roundup b | G28: rdown b | H28: rhalf b | I28: round g | J28: round g | K28: round g | N28: Monoclinic | O28: Alpha Dominant | Q28: beta/gamma | X28: Gamma Dominant | Z28: alpha/beta | AA28: b up | AB28: b down | AC28: b half | AG28: ref a | AH28: ref b | AI28: ref g | AJ28: 28.32 | AK28: =ROUND((1/SQRT(3))*SQRT(($A$29-AL28)^2+($A$30-AM28)^2+($A$31-AN28)^2),3) -> 28.32 | AL28: 180 | AM28: 90 | AN28: 90 | AO28: T-shape | AR28: 10.661 | AS28: 10.661 | AT28: 150 | AU28: 115 | AV28: 90 | AW28: =ROUND(((120-AU28)/60)*100,0)&" % β-folded Orthogonal Y" -> 8 % β-folded Orthogonal Y | AY28: =IF(AZ28=0,0.01,AZ28) -> 19.545 | AZ28: =ROUND((1/SQRT(3))*SQRT(($A$29-BA28)^2+($A$30-BB28)^2+($A$31-BC28)^2),3) -> 19.545 | BA28: 135 | BB28: 120 | BC28: 105 | BD28: Semi-Orthogonal γ-Expanded Y | BG28: =IF(BH28=0,0.01,BH28) -> 11.045 | BH28: =ROUND((1/SQRT(3))*SQRT(($A$29-BI28)^2+($A$30-BJ28)^2+($A$31-BK28)^2),3) -> 11.045 | BI28: 165 | BJ28: 120 | BK28: 75 | BL28: Semi-Orthogonal γ-Compressed Y | BO28: 36.905 | BP28: 36.905 | BQ28: 105 | BR28: 90 | BS28: 35 | BT28: 87 % α-folded Semi-Orthogonal β-Compressed Y | BV28: 77.7 | BW28: 77.7 | BX28: 50 | BY28: 34.77543667 | BZ28: 34.77543667 | CA28: 72 % closed T-shape | CB28: 88.416 | CC28: 88.416 | CD28: 35 | CE28: 26.36264043 | CF28: 26.36264043 | CG28: 79 % Closed 3/4 Expanded α-dominant Y | CH28: 100.035 | CI28: 100.035 | CJ28: 20 | CK28: 16.39944759 | CL28: 16.39944759 | CM28: 87 % Closed 1/2 Expanded α-dominant Y | CO28: 112.762 | CP28: 112.762 | CQ28: 5 | CR28: 4.499609599 | CS28: 4.499609599 | CT28: 96 % Closed 1/4 Expanded α-dominant Y | CV28: 102.121 | CW28: 102.121 | CX28: 20 | CY28: 12.56599732 | CZ28: 12.56599732 | DA28: 87 % Closed 2/3 α-Expanded Arrow | DC28: 30.115 | DD28: 30.115 | DE28: 104.1237451 | DF28: 90 | DG28: 70.52877937 | DH28: 31 % closed orthogonal Y | DL28: 23.004 | DM28: 23.004 | DN28: 115.6343085 | DO28: 105 | DP28: 93.23416893 | DQ28: 14 % closed Semi-Orthogonal γ-Expanded Y | DT28: 44.485 | DU28: 44.485 | DV28: 88.36137636 | DW28: 75 | DX28: 50.67139054 | DY28: 38 % closed Semi-Orthogonal γ-Compressed Y | EB28: 38.175 | EC28: 38.175 | ED28: 99.06291099 | EE28: 75 | EF28: 65.71917661 | EG28: 29 % closed Semi-Orthogonal β-Compressed Y | EH28: 55.087 | EI28: 55.087 | EJ28: 78.13510322 | EK28: 60 | EL28: 45.12158673 | EM28: 43 % closed Semi-Oblique T | EO28: 60.478 | EP28: 60.478 | EQ28: 70.52877937 | ER28: 60 | ES28: 33.55730976 | ET28: 50 % closed Oblique T | EV28: 63.053 | EW28: 63.053 | EX28: 65.53019948 | EY28: 60 | EZ28: 31.39971481 | FA28: 56 % closed Inclined Y | FC28: 68.402 | FD28: 68.402 | FE28: 62.34790439 | FF28: 60 | FG28: 15.39865989 | FH28: 60 % closed Oblique Y | FJ28: 71.421 | FK28: 71.421 | FL28: 60.57171321 | FM28: 60 | FN28: 7.548590642 | FO28: 64 % closed Semi-Oblique Y
A29: =InOut!B4 -> 146 | B29: normrms | C29: =(1/SQRT(3))*(SQRT(SUMSQ(C31:C33))) -> 47.5604878 | D29: 40.35674252 | E29: 43.82160806 | F29: 34.57359301 | G29: 31.01612484 | H29: 32.46023208 | I29: 45.04072232 | J29: 52.87091198 | K29: 48.856934 | N29: normrms | O29: =(1/SQRT(3))*(SQRT(SUMSQ(O31:O33))) -> 20.78460969 | P29: 22.55363977 | Q29: 21.39704029 | R29: 42.60672873 | S29: 31.01612484 | T29: 36.58779396 | U29: 39.35310238 | V29: 51.91659979 | W29: 45.51922671 | X29: 18.49324201 | Y29: 12.19289411 | Z29: 13.9761702 | AA29: 18.85028735 | AB29: 31.01612484 | AC29: 24.67117076 | AD29: 12.19289411 | AE29: 13.9761702 | AF29: 12.62933094 | AG29: 27.71281292 | AH29: 61.96773354 | AI29: 27.71281292 | AJ29: 24.671 | AK29: 24.671 | AL29: 170 | AM29: 90 | AN29: 90 | AO29: =ROUND(((180-AL29)/180)*100,0) &"% α-folded T" -> 6% α-folded T | AP29: Alpha Dominant Diorthopyramid | AR29: 11.916 | AS29: 11.916 | AT29: 150 | AU29: 110 | AV29: 90 | AW29: 17 % β-folded Orthogonal Y | AY29: =IF(AZ29=0,0.01,AZ29) -> 19.841 | AZ29: =ROUND((1/SQRT(3))*SQRT(($A$29-BA29)^2+($A$30-BB29)^2+($A$31-BC29)^2),3) -> 19.841 | BA29: 135 | BB29: 115 | BC29: 105 | BD29: =ROUND(((120-BB29)/90)*100,0)&" % β-folded Semi-Orthogonal γ-Expanded Y" -> 6 % β-folded Semi-Orthogonal γ-Expanded Y | BG29: =IF(BH29=0,0.01,BH29) -> 11.561 | BH29: =ROUND((1/SQRT(3))*SQRT(($A$29-BI29)^2+($A$30-BJ29)^2+($A$31-BK29)^2),3) -> 11.561 | BI29: 165 | BJ29: 115 | BK29: 75 | BL29: =ROUND(((120-BJ29)/30)*100,0)&" % β-folded Semi-Orthogonal γ-Compressed Y" -> 17 % β-folded Semi-Orthogonal γ-Compressed Y | BO29: 38.691 | BP29: 38.691 | BQ29: 105 | BR29: 90 | BS29: 30 | BT29: 90 % α-folded Semi-Orthogonal β-Compressed Y | BV29: 81.568 | BW29: 81.568 | BX29: 45 | BY29: 31.39971481 | BZ29: 31.39971481 | CA29: 75 % closed T-shape | CB29: 92.498 | CC29: 92.498 | CD29: 30 | CE29: 22.63779629 | CF29: 22.63779629 | CG29: 82 % Closed 3/4 Expanded α-dominant Y | CH29: 104.336 | CI29: 104.336 | CJ29: 15 | CK29: 12.30859855 | CL29: 12.30859855 | CM29: 90 % Closed 1/2 Expanded α-dominant Y | CO29: 117.312 | CP29: 117.312 | CQ29: 0 | CR29: 0 | CS29: 0 | CT29: Closed Arrow | CV29: 105.905 | CW29: 105.905 | CX29: 15 | CY29: 9.437233156 | CZ29: 9.437233156 | DA29: 90 % Closed 2/3 α-Expanded Arrow | DC29: 34.912 | DD29: 34.912 | DE29: 97.79295299 | DF29: 85 | DG29: 66.9560466 | DH29: 35 % closed orthogonal Y | DI29: folded orthogonal Y | DL29: 25.983 | DM29: 25.983 | DN29: 109.6148167 | DO29: 100 | DP29: 89.13711885 | DQ29: 19 % closed Semi-Orthogonal γ-Expanded Y | DT29: 49.441 | DU29: 49.441 | DV29: 82.08867818 | DW29: 70 | DX29: 47.55527848 | DY29: 42 % closed Semi-Orthogonal γ-Compressed Y | EB29: 43.57 | EC29: 43.57 | ED29: 91.58052359 | EE29: 70 | EF29: 61.49053963 | EG29: 33 % closed Semi-Orthogonal β-Compressed Y | EH29: 60.402 | EI29: 60.402 | EJ29: 71.18568468 | EK29: 55 | EL29: 41.50258985 | EM29: 48 % closed Semi-Oblique T | EO29: 65.264 | EP29: 65.264 | EQ29: 64.44132085 | ER29: 55 | ES29: 30.92298615 | ET29: 54 % closed Oblique T | EV29: 67.572 | EW29: 67.572 | EX29: 59.97262476 | EY29: 55 | EZ29: 28.94278112 | FA29: 59 % closed Inclined Y | FC29: 72.37 | FD29: 72.37 | FE29: 57.11459182 | FF29: 55 | FG29: 14.21428361 | FH29: 63 % closed Oblique Y | FJ29: 75.063 | FK29: 75.063 | FL29: 55.51534482 | FM29: 55 | FN29: 6.970359545 | FO29: 67 % closed Semi-Oblique Y
A30: =InOut!B5 -> 121 | B30: asym | C30: =0 -> 0 | D30: =0 -> 0 | E30: =0 -> 0 | F30: =0 -> 0 | G30: =0 -> 0 | H30: =0 -> 0 | I30: =0 -> 0 | J30: =0 -> 0 | K30: =0 -> 0 | N30: asym | O30: =IF(O37-$A31=0,0,((O36-$A30)/(O37-$A31))) -> -0.5 | P30: -0.2972972973 | Q30: -0.3913043478 | R30: 0.1578947368 | S30: -0.02127659574 | T30: 0.07692307692 | U30: -5.857142857 | V30: 17 | W30: -23 | X30: =IF(X36-$A30=0,0,((X35-$A29)/(X36-$A30))) -> 0.1379310345 | Y30: =IF(Y36-$A30=0,0,((Y35-$A29)/(Y36-$A30))) -> -0.3157894737 | Z30: =IF(Z36-$A30=0,0,((Z35-$A29)/(Z36-$A30))) -> -0.04166666667 | AA30: =IF(AA37-$A31=0,0,((AA36-$A30)/(AA37-$A31))) -> 0.3333333333 | AB30: -0.02127659574 | AC30: 0.1081081081 | AD30: 2.714285714 | AE30: -8 | AF30: 10.75 | AG30: 0 | AH30: 0 | AI30: 0 | AJ30: 21.954 | AK30: 21.954 | AL30: 160 | AM30: 90 | AN30: 90 | AO30: =ROUND(((180-AL30)/180)*100,0) &"% α-folded T" -> 11% α-folded T | AP30: Alpha Dominant Diorthopyramid | AR30: 13.675 | AS30: 13.675 | AT30: 150 | AU30: 105 | AV30: 90 | AW30: =ROUND(((120-AU30)/60)*100,0)&" % β-folded Orthogonal Y" -> 25 % β-folded Orthogonal Y | AY30: 20.543 | AZ30: 20.543 | BA30: 135 | BB30: 110 | BC30: 105 | BD30: =ROUND(((120-BB30)/90)*100,0)&" % β-folded Semi-Orthogonal γ-Expanded Y" -> 11 % β-folded Semi-Orthogonal γ-Expanded Y | BG30: =IF(BH30=0,0.01,BH30) -> 12.728 | BH30: =ROUND((1/SQRT(3))*SQRT(($A$29-BI30)^2+($A$30-BJ30)^2+($A$31-BK30)^2),3) -> 12.728 | BI30: 165 | BJ30: 110 | BK30: 75 | BL30: =ROUND(((120-BJ30)/30)*100,0)&" % β-folded Semi-Orthogonal γ-Compressed Y" -> 33 % β-folded Semi-Orthogonal γ-Compressed Y | BO30: 40.604 | BP30: 40.604 | BQ30: 105 | BR30: 90 | BS30: 25 | BT30: 93 % α-folded Semi-Orthogonal β-Compressed Y | BV30: 85.464 | BW30: 85.464 | BX30: 40 | BY30: 27.99089072 | BZ30: 27.99089072 | CA30: 78 % closed T-shape | CB30: 96.599 | CC30: 96.599 | CD30: 25 | CE30: 18.89363912 | CF30: 18.89363912 | CG30: 85 % Closed 3/4 Expanded α-dominant Y | CH30: 108.651 | CI30: 108.651 | CJ30: 10 | CK30: 8.209999369 | CL30: 8.209999369 | CM30: 93 % Closed 1/2 Expanded α-dominant Y | CR30: b/g ref | CV30: 109.699 | CW30: 109.699 | CX30: 10 | CY30: 6.297535403 | CZ30: 6.297535403 | DA30: 93 % Closed 2/3 α-Expanded Arrow | DC30: 39.723 | DD30: 39.723 | DE30: 91.60424288 | DF30: 80 | DG30: 63.31412237 | DH30: 39 % closed orthogonal Y | DI30: 150 | DJ30: 120 | DK30: gamma<90 | DL30: 29.476 | DM30: 29.476 | DN30: 103.7249166 | DO30: 95 | DP30: 84.97185434 | DQ30: 23 % closed Semi-Orthogonal γ-Expanded Y | DT30: 54.364 | DU30: 54.364 | DV30: 75.92017101 | DW30: 65 | DX30: 44.38107287 | DY30: 46 % closed Semi-Orthogonal γ-Compressed Y | EB30: 48.937 | EC30: 48.937 | ED30: 84.35928814 | EE30: 65 | EF30: 57.22573338 | EG30: 38 % closed Semi-Orthogonal β-Compressed Y | EH30: 65.674 | EI30: 65.674 | EJ30: 64.37594888 | EK30: 50 | EL30: 37.84469446 | EM30: 52 % closed Semi-Oblique T | EO30: 70.035 | EP30: 70.035 | EQ30: 58.41810017 | ER30: 50 | ES30: 28.24534342 | ET30: 58 % closed Oblique T | EV30: 72.09 | EW30: 72.09 | EX30: 54.4439105 | EY30: 50 | EZ30: 26.44337311 | FA30: 63 % closed Inclined Y | FC30: 76.369 | FD30: 76.369 | FE30: 51.89235185 | FF30: 50 | FG30: 13.00426827 | FH30: 67 % closed Oblique Y | FJ30: 78.755 | FK30: 78.755 | FL30: 50.46152247 | FM30: 50 | FN30: 6.379025187 | FO30: 70 % closed Semi-Oblique Y
A31: =InOut!B6 -> 73 | B31: delta a | C31: =$A29-$C35 -> -4 | D31: =$A29-$D35 -> 6 | E31: =$A29-$E35 -> 1 | F31: =$A29-$F35 -> 16 | G31: =$A29-$G35 -> 26 | H31: =$A29-$H35 -> 21 | I31: =$A29-$I35 -> 66 | J31: =$A29-$J35 -> 76 | K31: =$A29-$K35 -> 71 | N31: delta a | O31: =$A29-O35 -> -4 | P31: 6 | Q31: 1 | R31: 46 | S31: 26 | T31: 36 | U31: -54 | V31: -74 | W31: -64 | X31: =$A29-X35 -> -4 | Y31: 6 | Z31: 1 | AA31: 16 | AB31: =$A29-AB35 -> 26 | AC31: 21 | AD31: 6 | AE31: 1 | AF31: 3.5 | AG31: =AG35-$A29 -> 0 | AH31: 96 | AI31: 0 | AJ31: 20.543 | AK31: 20.543 | AL31: 150 | AM31: 90 | AN31: 90 | AO31: 17% α-folded T | AP31: Alpha Dominant Diorthopyramid | AR31: 15.769 | AS31: 15.769 | AT31: 150 | AU31: 100 | AV31: 90 | AW31: 33 % β-folded Orthogonal Y | AY31: 21.61 | AZ31: 21.61 | BA31: 135 | BB31: 105 | BC31: 105 | BD31: 17 % β-folded Semi-Orthogonal γ-Expanded Y | BG31: 14.387 | BH31: 14.387 | BI31: 165 | BJ31: 105 | BK31: 75 | BL31: 50 % β-folded Semi-Orthogonal γ-Compressed Y | BO31: 42.626 | BP31: 42.626 | BQ31: 105 | BR31: 90 | BS31: 20 | BT31: 97 % α-folded Semi-Orthogonal β-Compressed Y | BV31: 89.387 | BW31: 89.387 | BX31: 35 | BY31: 24.55317347 | BZ31: 24.55317347 | CA31: 81 % closed T-shape | CB31: 100.718 | CC31: 100.718 | CD31: 20 | CE31: 15.13361882 | CF31: 15.13361882 | CG31: 88 % Closed 3/4 Expanded α-dominant Y | CH31: 112.977 | CI31: 112.977 | CJ31: 5 | CK31: 4.106274846 | CL31: 4.106274846 | CM31: 97 % Closed 1/2 Expanded α-dominant Y | CO31: =IF(CP31=0,0.01,CP31) -> 24.176 | CP31: =ROUND((1/SQRT(3))*SQRT(($A$29-CQ31)^2+($A$30-CR31)^2+($A$31-CS31)^2),3) -> 24.176 | CQ31: 135 | CR31: 112.5 | CS31: 112.5 | CT31: 1/4 Expanded α-dominant Y | CV31: 113.502 | CW31: 113.502 | CX31: 5 | CY31: 3.150578145 | CZ31: 3.150578145 | DA31: 97 % Closed 2/3 α-Expanded Arrow | DC31: 44.542 | DD31: 44.542 | DE31: 85.52877937 | DF31: 75 | DG31: 59.61025612 | DH31: 43 % closed orthogonal Y | DI31: 150 | DJ31: 90<beta<120 | DK31: 90 | DL31: 33.322 | DM31: 33.322 | DN31: 97.93624951 | DO31: 90 | DP31: 80.74740294 | DQ31: 27 % closed Semi-Orthogonal γ-Expanded Y | DT31: 59.262 | DU31: 59.262 | DV31: 69.83704172 | DW31: 60 | DX31: 41.1543321 | DY31: 50 % closed Semi-Orthogonal γ-Compressed Y | EB31: 54.277 | EC31: 54.277 | ED31: 77.34154265 | EE31: 60 | EF31: 52.92913598 | EG31: 43 % closed Semi-Orthogonal β-Compressed Y | EH31: 70.912 | EI31: 70.912 | EJ31: 57.67955204 | EK31: 45 | EL31: 34.1524061 | EM31: 57 % closed Semi-Oblique T | EO31: 74.792 | EP31: 74.792 | EQ31: 52.44839709 | ER31: 45 | ES31: 25.52877937 | ET31: 63 % closed Oblique T | EV31: 76.609 | EW31: 76.609 | EX31: 48.93960104 | EY31: 45 | EZ31: 23.90571178 | FA31: 67 % closed Inclined Y | FC31: 80.394 | FD31: 80.394 | FE31: 46.67955564 | FF31: 45 | FG31: 11.77087505 | FH31: 70 % closed Oblique Y | FJ31: 82.489 | FK31: 82.489 | FL31: 45.40988139 | FM31: 45 | FN31: 5.775708795 | FO31: 73 % closed Semi-Oblique Y
B32: delta b | C32: =$A30-$C36 -> -29 | D32: =$A30-$D36 -> -19 | E32: =$A30-$E36 -> -24 | F32: =$A30-$F36 -> -9 | G32: =$A30-$G36 -> 1 | H32: =$A30-$H36 -> -4 | I32: =$A30-$I36 -> 41 | J32: =$A30-$J36 -> 51 | K32: =$A30-$K36 -> 46 | N32: delta b | O32: =$A30-O36 -> 16 | P32: 11 | Q32: 13.5 | R32: -9 | S32: 1 | T32: -4 | U32: 41 | V32: 51 | W32: 46 | X32: -29 | Y32: -19 | Z32: -24 | AA32: -9 | AB32: 1 | AC32: -4 | AD32: -19 | AE32: -24 | AF32: -21.5 | AG32: -48 | AH32: 0 | AI32: -48 | AJ32: 20.704 | AK32: 20.704 | AL32: 140 | AM32: 90 | AN32: 90 | AO32: 22% α-folded T | AP32: Alpha Dominant Diorthopyramid | AR32: 18.083 | AS32: 18.083 | AT32: 150 | AU32: 95 | AV32: 90 | AW32: =ROUND(((120-AU32)/60)*100,0)&" % β-folded Orthogonal Y" -> 42 % β-folded Orthogonal Y | AY32: 19.201 | AZ32: 19.201 | BA32: 135 | BB32: 105 | BC32: 100 | BD32: =ROUND(((120-BC32)/90)*100,0)&" % β-folded Semi-Orthogonal γ-Expanded Y" -> 22 % β-folded Semi-Orthogonal γ-Expanded Y | BG32: 16.391 | BH32: 16.391 | BI32: 165 | BJ32: 100 | BK32: 75 | BL32: 67 % β-folded Semi-Orthogonal γ-Compressed Y | BO32: 44.744 | BP32: 44.744 | BQ32: 105 | BR32: 90 | BS32: 15 | BT32: near 2/9 α-Expanded Arrow (71.43 % oblique) | BV32: 93.332 | BW32: 93.332 | BX32: 30 | BY32: 21.09058118 | BZ32: 21.09058118 | CA32: 83 % closed T-shape | CB32: 104.851 | CC32: 104.851 | CD32: 15 | CE32: 11.36105768 | CF32: 11.36105768 | CG32: 91 % Closed 3/4 Expanded α-dominant Y | CH32: 117.312 | CI32: 117.312 | CJ32: 0 | CK32: 0 | CL32: 0 | CM32: Closed Arrow | CO32: =IF(CP32=0,0.01,CP32) -> 23.896 | CP32: =ROUND((1/SQRT(3))*SQRT(($A$29-CQ32)^2+($A$30-CR32)^2+($A$31-CS32)^2),3) -> 23.896 | CQ32: =2*DEGREES(ASIN(((SIN(RADIANS(CR32/2))*SIN(RADIANS($CQ$31/2))/SIN(RADIANS($CR$31/2)))))) -> 131.0640683 | CR32: 110 | CS32: 110 | CT32: =ROUND(100*($CR$31-CR32)/$CR$31,0)&" % Closed 1/4 Expanded α-dominant Y" -> 2 % Closed 1/4 Expanded α-dominant Y | CV32: 117.312 | CW32: 117.312 | CX32: 0 | CY32: 0 | CZ32: 0 | DA32: Closed Arrow | DC32: 49.367 | DD32: 49.367 | DE32: 79.5450762 | DF32: 70 | DG32: 55.85101342 | DH32: 47 % closed orthogonal Y | DI32: 150 | DJ32: 90 | DK32: gamma<90 | DL32: 37.414 | DM32: 37.414 | DN32: 92.22832175 | DO32: 85 | DP32: 76.47147059 | DQ32: 32 % closed Semi-Orthogonal γ-Expanded Y | DT32: 64.141 | DU32: 64.141 | DV32: 63.82451303 | DW32: 55 | DX32: 37.88029352 | DY32: 54 % closed Semi-Orthogonal γ-Compressed Y | EB32: 59.592 | EC32: 59.592 | ED32: 70.48553718 | EE32: 55 | EF32: 48.60464108 | EG32: 48 % closed Semi-Orthogonal β-Compressed Y | EH32: 76.122 | EI32: 76.122 | EJ32: 51.07566172 | EK32: 40 | EL32: 30.42993778 | EM32: 62 % closed Semi-Oblique T | EO32: 79.538 | EP32: 79.538 | EQ32: 46.52332205 | ER32: 40 | ES32: 22.77756558 | ET32: 67 % closed Oblique T | EV32: 81.129 | EW32: 81.129 | EX32: 43.45589669 | EY32: 40 | EZ32: 21.33392158 | FA32: 70 % closed Inclined Y | FC32: 84.441 | FD32: 84.441 | FE32: 41.47479083 | FF32: 40 | FG32: 10.51638698 | FH32: 73 % closed Oblique Y | FJ32: 86.261 | FK32: 86.261 | FL32: 40.3601025 | FM32: 40 | FN32: 5.16155168 | FO32: 76 % closed Semi-Oblique Y
B33: delta g | C33: =$A31-$C37 -> -77 | D33: =$A31-$D37 -> -67 | E33: =$A31-$E37 -> -72 | F33: =$A31-$F37 -> -57 | G33: =$A31-$G37 -> -47 | H33: =$A31-$H37 -> -52 | I33: =$A31-$I37 -> -7 | J33: =$A31-$J37 -> 3 | K33: =$A31-$K37 -> -2 | N33: delta g | O33: =$A31-O37 -> -32 | P33: -37 | Q33: -34.5 | R33: -57 | S33: -47 | T33: -52 | U33: -7 | V33: 3 | W33: -2 | X33: 13 | Y33: -7 | Z33: 3 | AA33: -27 | AB33: -47 | AC33: -37 | AD33: -7 | AE33: 3 | AF33: -2 | AG33: 0 | AH33: 48 | AI33: 0 | AJ33: 21.378 | AK33: 21.378 | AL33: 135 | AM33: 90 | AN33: 90 | AO33: 25% α-folded T | AP33: Alpha Dominant Diorthopyramid | AR33: 20.543 | AS33: 20.543 | AT33: 150 | AU33: 90 | AV33: 90 | AW33: =ROUND(((180-AT33)/180)*100,0) &"% α-folded T" -> 17% α-folded T | AY33: 16.941 | AZ33: 16.941 | BA33: 135 | BB33: 105 | BC33: 95 | BD33: =ROUND(((120-BC33)/90)*100,0)&" % β-folded Semi-Orthogonal γ-Expanded Y" -> 28 % β-folded Semi-Orthogonal γ-Expanded Y | BG33: 18.628 | BH33: 18.628 | BI33: 165 | BJ33: 95 | BK33: 75 | BL33: 83 % β-folded Semi-Orthogonal γ-Compressed Y | BR33: b-fold | BV33: 97.296 | BW33: 97.296 | BX33: 25 | BY33: 17.60696699 | BZ33: 17.60696699 | CA33: 86 % closed T-shape | CB33: 108.996 | CC33: 108.996 | CD33: 10 | CE33: 7.579177487 | CF33: 7.579177487 | CG33: 94 % Closed 3/4 Expanded α-dominant Y | CK33: b/g ref | CO33: 24.354 | CP33: 24.354 | CQ33: 123.6542334 | CR33: 105 | CS33: 105 | CT33: 7 % Closed 1/4 Expanded α-dominant Y | CZ33: gref | DC33: 54.196 | DD33: 54.196 | DE33: 73.63667521 | DF33: 65 | DG33: 52.04235075 | DH33: 51 % closed orthogonal Y | DI33: 120<alpha<150 | DJ33: 120 | DK33: 90 | DL33: 41.68 | DM33: 41.68 | DN33: 86.58585579 | DO33: 80 | DP33: 72.15066329 | DQ33: 36 % closed Semi-Orthogonal γ-Expanded Y | DT33: 69.005 | DU33: 69.005 | DV33: 57.87072852 | DW33: 50 | DX33: 34.56389966 | DY33: 58 % closed Semi-Orthogonal γ-Compressed Y | EB33: 64.886 | EC33: 64.886 | ED33: 63.75991825 | EE33: 50 | EF33: 44.25573153 | EG33: 52 % closed Semi-Orthogonal β-Compressed Y | EH33: 81.31 | EI33: 81.31 | EJ33: 44.54739216 | EK33: 35 | EL33: 26.68124686 | EM33: 67 % closed Semi-Oblique T | EO33: 84.276 | EP33: 84.276 | EQ33: 40.63537285 | ER33: 35 | ES33: 19.99585723 | ET33: 71 % closed Oblique T | EV33: 85.649 | EW33: 85.649 | EX33: 37.9895117 | EY33: 35 | EZ33: 18.73203672 | FA33: 74 % closed Inclined Y | FC33: 88.506 | FD33: 88.506 | FE33: 36.27681808 | FF33: 35 | FG33: 9.243105812 | FH33: 77 % closed Oblique Y | FJ33: 90.065 | FK33: 90.065 | FL33: 35.31190357 | FM33: 35 | FN33: 4.537713188 | FO33: 79 % closed Semi-Oblique Y
AJ34: 22.405 | AK34: 22.405 | AL34: 130 | AM34: 90 | AN34: 90 | AO34: 28% α-folded T | AP34: Alpha Dominant Diorthopyramid | AR34: 19.33 | AS34: 19.33 | AT34: 150 | AU34: 90 | AV34: 85 | AW34: =ROUND(((120-AV34)/60)*100,0)&" % β-folded Orthogonal Y" -> 58 % β-folded Orthogonal Y | AY34: 14.9 | AZ34: 14.9 | BA34: 135 | BB34: 105 | BC34: 90 | BD34: 33 % β-folded Semi-Orthogonal γ-Expanded Y | BG34: 21.024 | BH34: 21.024 | BI34: 165 | BJ34: 90 | BK34: 75 | BL34: near 8/9 α-Expanded Arrow (9.09 % oblique) | BO34: =IF(BP34=0,0.01,BP34) -> 17.378 | BP34: =ROUND((1/SQRT(3))*SQRT(($A$29-BQ34)^2+($A$30-BR34)^2+($A$31-BS34)^2),3) -> 17.378 | BQ34: 165 | BR34: 105 | BS34: 90 | BT34: Semi-Orthogonal β-Compressed Y | BV34: 101.277 | BW34: 101.277 | BX34: 20 | BY34: 14.10604426 | BZ34: 14.10604426 | CA34: 89 % closed T-shape | CB34: 113.15 | CC34: 113.15 | CD34: 5 | CE34: 3.79112556 | CF34: 3.79112556 | CG34: 97 % Closed 3/4 Expanded α-dominant Y | CH34: =IF(CI34=0,0.01,CI34) -> 20.785 | CI34: =ROUND((1/SQRT(3))*SQRT(($A$29-CJ34)^2+($A$30-CK34)^2+($A$31-CL34)^2),3) -> 20.785 | CJ34: 150 | CK34: 105 | CL34: 105 | CM34: 1/2 Expanded α-dominant Y | CO34: 26.01 | CP34: 26.01 | CQ34: 116.6811416 | CR34: 100 | CS34: 100 | CT34: 11 % Closed 1/4 Expanded α-dominant Y | CV34: =IF(CW34=0,0.01,CW34) -> 26.683 | CW34: =ROUND((1/SQRT(3))*SQRT(($A$29-CX34)^2+($A$30-CY34)^2+($A$31-CZ34)^2),3) -> 26.683 | CX34: 150 | CY34: 75 | CZ34: 75 | DA34: 2/3 α-Expanded Arrow | DC34: 59.029 | DD34: 59.029 | DE34: 67.7906711 | DF34: 60 | DG34: 48.1896851 | DH34: 55 % closed orthogonal Y | DI34: 120 | DJ34: 90<beta<120 | DK34: 90 | DL34: 46.074 | DM34: 46.074 | DN34: 80.99716646 | DO34: 75 | DP34: 67.7906711 | DQ34: 40 % closed Semi-Orthogonal γ-Expanded Y | DT34: 73.858 | DU34: 73.858 | DV34: 51.96599108 | DW34: 45 | DX34: 31.20982509 | DY34: 63 % closed Semi-Orthogonal γ-Compressed Y | EB34: 70.163 | EC34: 70.163 | ED34: 57.1404117 | EE34: 45 | EF34: 39.88554223 | EG34: 57 % closed Semi-Orthogonal β-Compressed Y | EH34: 86.48 | EI34: 86.48 | EJ34: 38.08073886 | EK34: 30 | EL34: 22.91006973 | EM34: 71 % closed Semi-Oblique T | EO34: 89.006 | EP34: 89.006 | EQ34: 34.77810867 | ER34: 30 | ES34: 17.1877039 | ET34: 75 % closed Oblique T | EV34: 90.17 | EW34: 90.17 | EX34: 32.53756459 | EY34: 30 | EZ34: 16.10400874 | FA34: 78 % closed Inclined Y | FC34: 92.588 | FD34: 92.588 | FE34: 31.08453645 | FF34: 30 | FG34: 7.953349141 | FH34: 80 % closed Oblique Y | FJ34: 93.896 | FK34: 93.896 | FL34: 30.26503214 | FM34: 30 | FN34: 3.905368658 | FO34: 82 % closed Semi-Oblique Y
B35: alpha | C35: =ROUNDUP(A29,-1) -> 150 | D35: =ROUNDDOWN(A29,-1) -> 140 | E35: =(C35+D35)/2 -> 145 | F35: =ROUNDUP($A30,-1) -> 130 | G35: =ROUNDDOWN($A30,-1) -> 120 | H35: =(F35+G35)/2 -> 125 | I35: =ROUNDUP($A31,-1) -> 80 | J35: =ROUNDDOWN($A31,-1) -> 70 | K35: =(I35+J35)/2 -> 75 | N35: alpha | O35: =ROUNDUP(A29,-1) -> 150 | P35: =ROUNDDOWN(A29,-1) -> 140 | Q35: =(O35+P35)/2 -> 145 | R35: =(360-R36-R37) -> 100 | S35: 120 | T35: 110 | U35: 200 | V35: 220 | W35: 210 | X35: =ROUNDUP(A29,-1) -> 150 | Y35: =ROUNDDOWN(A29,-1) -> 140 | Z35: =(X35+Y35)/2 -> 145 | AA35: =AA36 -> 130 | AB35: 120 | AC35: 125 | AD35: 140 | AE35: 145 | AF35: 142.5 | AG35: =$A29 -> 146 | AH35: =AH36+AH37 -> 242 | AI35: =AI36+AI37 -> 146 | AJ35: 25.338 | AK35: 25.338 | AL35: 120 | AM35: 90 | AN35: 90 | AO35: 33% α-folded T | AP35: Alpha Dominant Diorthopyramid | AR35: 18.493 | AS35: 18.493 | AT35: 150 | AU35: 90 | AV35: 80 | AW35: =ROUND(((120-AV35)/60)*100,0)&" % β-folded Orthogonal Y" -> 67 % β-folded Orthogonal Y | AY35: 13.178 | AZ35: 13.178 | BA35: 135 | BB35: 105 | BC35: 85 | BD35: 39 % β-folded Semi-Orthogonal γ-Expanded Y | BK35: g-fold | BO35: =IF(BP35=0,0.01,BP35) -> 19.07 | BP35: =ROUND((1/SQRT(3))*SQRT(($A$29-BQ35)^2+($A$30-BR35)^2+($A$31-BS35)^2),3) -> 19.07 | BQ35: 165 | BR35: 100 | BS35: 90 | BT35: =ROUND(((105-BR35)/30)*100,0)&" % β-folded Semi-Orthogonal β-Compressed Y" -> 17 % β-folded Semi-Orthogonal β-Compressed Y | BV35: 105.271 | BW35: 105.271 | BX35: 15 | BY35: 10.59141113 | BZ35: 10.59141113 | CA35: 92 % closed T-shape | CB35: 117.312 | CC35: 117.312 | CD35: 0 | CE35: 0 | CF35: 0 | CG35: Closed Arrow | CH35: =IF(CI35=0,0.01,CI35) -> 20.32 | CI35: =ROUND((1/SQRT(3))*SQRT(($A$29-CJ35)^2+($A$30-CK35)^2+($A$31-CL35)^2),3) -> 20.32 | CJ35: =2*DEGREES(ASIN(((SIN(RADIANS(CK35/2))*SIN(RADIANS($CJ$34/2))/SIN(RADIANS($CK$34/2)))))) -> 137.7119421 | CK35: 100 | CL35: 100 | CM35: =ROUND(100*($CK$34-CK35)/$CK$34,0)&" % Closed 1/2 Expanded α-dominant Y" -> 5 % Closed 1/2 Expanded α-dominant Y | CO35: 28.607 | CP35: 28.607 | CQ35: 110.0133146 | CR35: 95 | CS35: 95 | CT35: 16 % Closed 1/4 Expanded α-dominant Y | CV35: =IF(CW35=0,0.01,CW35) -> 30.735 | CW35: =ROUND((1/SQRT(3))*SQRT(($A$29-CX35)^2+($A$30-CY35)^2+($A$31-CZ35)^2),3) -> 30.735 | CX35: =2*DEGREES(ASIN(((SIN(RADIANS(CY35/2))*SIN(RADIANS($CX$34/2))/SIN(RADIANS($CY$34/2)))))) -> 131.0376751 | CY35: 70 | CZ35: 70 | DA35: =ROUND(100*($CY$34-CY35)/$CY$34,0)&" % Closed 2/3 α-Expanded Arrow" -> 7 % Closed 2/3 α-Expanded Arrow | DC35: 63.865 | DD35: 63.865 | DE35: 61.99673577 | DF35: 55 | DG35: 44.29795802 | DH35: 59 % closed orthogonal Y | DI35: 120 | DJ35: 90 | DK35: gamma<90 | DL35: 50.564 | DM35: 50.564 | DN35: 75.45311913 | DO35: 70 | DP35: 63.39642039 | DQ35: 44 % closed Semi-Orthogonal γ-Expanded Y | DT35: 78.701 | DU35: 78.701 | DV35: 46.10222716 | DW35: 40 | DX35: 27.82250321 | DY35: 67 % closed Semi-Orthogonal γ-Compressed Y | EB35: 75.426 | EC35: 75.426 | ED35: 50.60772073 | EE35: 40 | EF35: 35.49691416 | EG35: 62 % closed Semi-Orthogonal β-Compressed Y | EH35: 91.637 | EI35: 91.637 | EJ35: 31.66382779 | EK35: 25 | EL35: 19.11995422 | EM35: 76 % closed Semi-Oblique T | EO35: 93.731 | EP35: 93.731 | EQ35: 28.94590429 | ER35: 25 | ES35: 14.35706138 | ET35: 79 % closed Oblique T | EV35: 94.692 | EW35: 94.692 | EX35: 27.09749195 | EY35: 25 | EZ35: 13.45371502 | FA35: 81 % closed Inclined Y | FC35: 96.684 | FD35: 96.684 | FE35: 25.89695537 | FF35: 25 | FG35: 6.649447828 | FH35: 83 % closed Oblique Y | FJ35: 97.753 | FK35: 97.753 | FL35: 25.21925966 | FM35: 25 | FN35: 3.265707397 | FO35: 85 % closed Semi-Oblique Y
B36: Beta | C36: =C35 -> 150 | D36: 140 | E36: 145 | F36: 130 | G36: 120 | H36: 125 | I36: 80 | J36: =J35 -> 70 | K36: =K35 -> 75 | N36: Beta | O36: =(360-O35)/2 -> 105 | P36: =(360-P35)/2 -> 110 | Q36: =(360-Q35)/2 -> 107.5 | R36: =ROUNDUP($A30,-1) -> 130 | S36: =ROUNDDOWN($A30,-1) -> 120 | T36: =(R36+S36)/2 -> 125 | U36: =U37 -> 80 | V36: =V37 -> 70 | W36: =W37 -> 75 | X36: =X35 -> 150 | Y36: =Y35 -> 140 | Z36: =Z35 -> 145 | AA36: =ROUNDUP($A30,-1) -> 130 | AB36: =ROUNDDOWN($A30,-1) -> 120 | AC36: =(AA36+AB36)/2 -> 125 | AD36: =(360-AD37)/2 -> 140 | AE36: =(360-AE37)/2 -> 145 | AF36: =(360-AF37)/2 -> 142.5 | AG36: =(AG35/2) -> 73 | AH36: =$A30 -> 121 | AI36: =AI37 -> 73 | AJ36: =IF(AK36=0,0.01,AK36) -> 29.132 | AK36: 29.132 | AL36: 110 | AM36: 90 | AN36: 90 | AO36: 39% α-folded T | AP36: Alpha Dominant Diorthopyramid | AR36: 18.083 | AS36: 18.083 | AT36: 150 | AU36: 90 | AV36: 75 | AW36: 75 % β-folded Orthogonal Y | AY36: 11.916 | AZ36: 11.916 | BA36: 135 | BB36: 105 | BC36: 80 | BD36: 44 % β-folded Semi-Orthogonal γ-Expanded Y | BG36: =IF(BH36=0,0.01,BH36) -> 11.045 | BH36: =ROUND((1/SQRT(3))*SQRT(($A$29-BI36)^2+($A$30-BJ36)^2+($A$31-BK36)^2),3) -> 11.045 | BI36: 165 | BJ36: 120 | BK36: 75 | BL36: Semi-Orthogonal γ-Compressed Y | BO36: 21.024 | BP36: 21.024 | BQ36: 165 | BR36: 95 | BS36: 90 | BT36: =ROUND(((105-BR36)/30)*100,0)&" % β-folded Semi-Orthogonal β-Compressed Y" -> 33 % β-folded Semi-Orthogonal β-Compressed Y | BV36: 109.276 | BW36: 109.276 | BX36: 10 | BY36: 7.066574389 | BZ36: 7.066574389 | CA36: 94 % closed T-shape | CE36: b/g ref | CH36: 22.322 | CI36: 22.322 | CJ36: 127.702261 | CK36: 95 | CL36: 95 | CM36: 10 % Closed 1/2 Expanded α-dominant Y | CO36: 31.887 | CP36: 31.887 | CQ36: 103.5699983 | CR36: 90 | CS36: 90 | CT36: 20 % Closed 1/4 Expanded α-dominant Y | CV36: 36.707 | CW36: 36.707 | CX36: 116.9773515 | CY36: 65 | CZ36: 65 | DA36: 13 % Closed 2/3 α-Expanded Arrow | DC36: 68.705 | DD36: 68.705 | DE36: 56.24645085 | DF36: 50 | DG36: 40.37169406 | DH36: 63 % closed orthogonal Y | DL36: 55.127 | DM36: 55.127 | DN36: 69.94643618 | DO36: 65 | DP36: 58.97219992 | DQ36: 48 % closed Semi-Orthogonal γ-Expanded Y | DT36: 83.538 | DU36: 83.538 | DV36: 40.27259955 | DW36: 35 | DX36: 24.40615289 | DY36: 71 % closed Semi-Orthogonal γ-Compressed Y | EB36: 80.677 | EC36: 80.677 | ED36: 44.14613529 | EE36: 35 | EF36: 31.09244086 | EG36: 67 % closed Semi-Orthogonal β-Compressed Y | EH36: 96.782 | EI36: 96.782 | EJ36: 25.28636882 | EK36: 20 | EL36: 15.3142902 | EM36: 81 % closed Semi-Oblique T | EO36: 98.452 | EP36: 98.452 | EQ36: 23.13376036 | ER36: 20 | ES36: 11.50780407 | ET36: 83 % closed Oblique T | EV36: 99.214 | EW36: 99.214 | EX36: 21.66697919 | EY36: 20 | EZ36: 10.78496809 | FA36: 85 % closed Inclined Y | FC36: 100.791 | FD36: 100.791 | FE36: 20.71317173 | FF36: 20 | FG36: 5.333743646 | FH36: 87 % closed Oblique Y | FJ36: 101.631 | FK36: 101.631 | FL36: 20.17437665 | FM36: 20 | FN36: 2.619930661 | FO36: 88 % closed Semi-Oblique Y
B37: gamma | C37: =C35 -> 150 | D37: 140 | E37: 145 | F37: 130 | G37: 120 | H37: 125 | I37: 80 | J37: =J35 -> 70 | K37: =K35 -> 75 | N37: gamma | O37: =O36 -> 105 | P37: 110 | Q37: 107.5 | R37: 130 | S37: 120 | T37: 125 | U37: =ROUNDUP($A31,-1) -> 80 | V37: =ROUNDDOWN($A31,-1) -> 70 | W37: =(U37+V37)/2 -> 75 | X37: =(360-(X35+X36)) -> 60 | Y37: =(360-(Y35+Y36)) -> 80 | Z37: =(360-(Z35+Z36)) -> 70 | AA37: =360-(AA35+AA36) -> 100 | AB37: =360-(AB35+AB36) -> 120 | AC37: =360-(AC35+AC36) -> 110 | AD37: =ROUNDUP($A31,-1) -> 80 | AE37: =ROUNDDOWN($A31,-1) -> 70 | AF37: =(AD37+AE37)/2 -> 75 | AG37: =(AG35/2) -> 73 | AH37: =AH36 -> 121 | AI37: =$A31 -> 73 | AJ37: 33.496 | AK37: 33.496 | AL37: 100 | AM37: 90 | AN37: 90 | AO37: 44% α-folded T | AP37: Alpha Dominant Diorthopyramid | AR37: 18.129 | AS37: 18.129 | AT37: 150 | AU37: 90 | AV37: 70 | AW37: 83 % β-folded Orthogonal Y | AY37: 11.269 | AZ37: 11.269 | BA37: 135 | BB37: 105 | BC37: 75 | BD37: 50 % β-folded Semi-Orthogonal γ-Expanded Y | BG37: =IF(BH37=0,0.01,BH37) -> 11.121 | BH37: =ROUND((1/SQRT(3))*SQRT(($A$29-BI37)^2+($A$30-BJ37)^2+($A$31-BK37)^2),3) -> 11.121 | BI37: 165 | BJ37: 120 | BK37: 70 | BL37: =ROUND(((75-BK37)/30)*100,0)&" % γ-folded Semi-Orthogonal γ-Compressed Y" -> 17 % γ-folded Semi-Orthogonal γ-Compressed Y | BO37: 23.173 | BP37: 23.173 | BQ37: 165 | BR37: 90 | BS37: 90 | BT37: 50 % β-folded Semi-Orthogonal β-Compressed Y | BV37: 113.291 | BW37: 113.291 | BX37: 5 | BY37: 3.534972789 | BZ37: 3.534972789 | CA37: 97 % closed T-shape | CB37: =IF(CC37=0,0.01,CC37) -> 22.461 | CC37: =ROUND((1/SQRT(3))*SQRT(($A$29-CD37)^2+($A$30-CE37)^2+($A$31-CF37)^2),3) -> 22.461 | CD37: 165 | CE37: =(360-165)/2 -> 97.5 | CF37: =(360-165)/2 -> 97.5 | CG37: 3/4 Expanded α-dominant Y | CH37: 25.74 | CI37: 25.74 | CJ37: 118.839776 | CK37: 90 | CL37: 90 | CM37: 14 % Closed 1/2 Expanded α-dominant Y | CO37: 35.646 | CP37: 35.646 | CQ37: 97.29787191 | CR37: 85 | CS37: 85 | CT37: 24 % Closed 1/4 Expanded α-dominant Y | CV37: 43.093 | CW37: 43.093 | CX37: 105 | CY37: 60 | CZ37: 60 | DA37: 20 % Closed 2/3 α-Expanded Arrow | DC37: 73.549 | DD37: 73.549 | DE37: 50.53283787 | DF37: 45 | DG37: 36.41505395 | DH37: 66 % closed orthogonal Y | DL37: 59.748 | DM37: 59.748 | DN37: 64.47122063 | DO37: 60 | DP37: 54.52176524 | DQ37: 52 % closed Semi-Orthogonal γ-Expanded Y | DT37: 88.369 | DU37: 88.369 | DV37: 34.47122063 | DW37: 30 | DX37: 20.96480457 | DY37: 75 % closed Semi-Orthogonal γ-Compressed Y | EB37: 85.92 | EC37: 85.92 | ED37: 37.74257732 | EE37: 30 | EF37: 26.67450893 | EG37: 71 % closed Semi-Orthogonal β-Compressed Y | EH37: 101.92 | EI37: 101.92 | EJ37: 18.93924478 | EK37: 15 | EL37: 11.49633852 | EM37: 86 % closed Semi-Oblique T | EO37: 103.17 | EP37: 103.17 | EQ37: 17.337153 | ER37: 15 | ES37: 8.643737908 | ET37: 88 % closed Oblique T | EV37: 103.738 | EW37: 103.738 | EX37: 16.24390382 | EY37: 15 | EZ37: 8.101525617 | FA37: 89 % closed Inclined Y | FC37: 104.909 | FD37: 104.909 | FE37: 15.53235051 | FF37: 15 | FG37: 4.008587129 | FH37: 90 % closed Oblique Y | FJ37: 105.528 | FK37: 105.528 | FL37: 15.13018855 | FM37: 15 | FN37: 1.969249644 | FO37: 91 % closed Semi-Oblique Y
N38: folding | O38: =ROUND(((O35-$A29)/O35)*100,0) -> 3 | P38: =ROUND(((P35-$A29)/P35)*100,0) -> -4 | Q38: -1 | R38: =ROUND(((R35-$A29)/R35)*100,0) -> -46 | S38: -22 | T38: -33 | U38: =ROUND(((U35-$A29)/U35)*100,0) -> 27 | V38: 34 | W38: 30 | X38: =ROUND((1-($A31/X37))*100,0) -> -22 | Y38: 9 | Z38: -4 | AA38: 27 | AB38: 39 | AC38: 34 | AD38: =ROUND((1-($A30/AD36))*100,0) -> 14 | AE38: =ROUND((1-($A30/AE36))*100,0) -> 17 | AF38: =ROUND((1-($A30/AF36))*100,0) -> 15 | AG38: =ROUND(((AG35-$A29)/AG35)*100,0) -> 0 | AH38: =ROUND(((AH36-$A30)/AH36)*100,0) -> 0 | AI38: =ROUND(((AI36-$A30)/AI36)*100,0) -> -66 | AJ38: 38.236 | AK38: 38.236 | AL38: 90 | AM38: 90 | AN38: 90 | AO38: Orthopyramidal | AR38: 18.628 | AS38: 18.628 | AT38: 150 | AU38: 90 | AV38: 65 | AW38: 92 % β-folded Orthogonal Y | AY38: 11.343 | AZ38: 11.343 | BA38: 135 | BB38: 105 | BC38: 70 | BD38: 56 % β-folded Semi-Orthogonal γ-Expanded Y | BG38: 11.916 | BH38: 11.916 | BI38: 165 | BJ38: 120 | BK38: 65 | BL38: =ROUND(((75-BK38)/30)*100,0)&" % γ-folded Semi-Orthogonal γ-Compressed Y" -> 33 % γ-folded Semi-Orthogonal γ-Compressed Y | BO38: 22.106 | BP38: 22.106 | BQ38: 165 | BR38: 90 | BS38: 85 | BT38: =ROUND(((105-BS38)/30)*100,0)&" % β-folded Semi-Orthogonal β-Compressed Y" -> 67 % β-folded Semi-Orthogonal β-Compressed Y | BV38: 117.312 | BW38: 117.312 | BX38: 0 | BY38: 0 | BZ38: 0 | CA38: Closed Arrow | CB38: =IF(CC38=0,0.01,CC38) -> 20.068 | CC38: =ROUND((1/SQRT(3))*SQRT(($A$29-CD38)^2+($A$30-CE38)^2+($A$31-CF38)^2),3) -> 20.068 | CD38: =2*DEGREES(ASIN(((SIN(RADIANS(CE38/2))*SIN(RADIANS($CD$2/2))/SIN(RADIANS($CE$2/2)))))) -> 152.9370113 | CE38: 95 | CF38: 95 | CG38: =ROUND(100*($CE$2-CE38)/$CE$2,0)&" % Closed 3/4 Expanded α-dominant Y" -> 3 % Closed 3/4 Expanded α-dominant Y | CH38: 29.93 | CI38: 29.93 | CJ38: 110.6810574 | CK38: 85 | CL38: 85 | CM38: 19 % Closed 1/2 Expanded α-dominant Y | CO38: 39.738 | CP38: 39.738 | CQ38: 91.15982263 | CR38: 80 | CS38: 80 | CT38: 29 % Closed 1/4 Expanded α-dominant Y | CV38: 49.535 | CW38: 49.535 | CX38: 94.2196487 | CY38: 55 | CZ38: 55 | DA38: 27 % Closed 2/3 α-Expanded Arrow | DC38: 78.397 | DD38: 78.397 | DE38: 44.85001885 | DF38: 40 | DG38: 32.4318828 | DH38: 70 % closed orthogonal Y | DL38: 64.415 | DM38: 64.415 | DN38: 59.02262014 | DO38: 55 | DP38: 50.04842551 | DQ38: 56 % closed Semi-Orthogonal γ-Expanded Y | DT38: 93.197 | DU38: 93.197 | DV38: 28.69293496 | DW38: 25 | DX38: 17.50232568 | DY38: 79 % closed Semi-Orthogonal γ-Compressed Y | EB38: 91.156 | EC38: 91.156 | ED38: 31.38592306 | EE38: 25 | EF38: 22.24533333 | EG38: 76 % closed Semi-Orthogonal β-Compressed Y | EH38: 107.053 | EI38: 107.053 | EJ38: 12.61419184 | EK38: 10 | EL38: 7.669258461 | EM38: 90 % closed Semi-Oblique T | EO38: 107.885 | EP38: =ROUND((1/SQRT(3))*SQRT(($A$29-EQ38)^2+($A$30-ER38)^2+($A$31-ES38)^2),3) -> 107.885 | EQ38: 11.55191125 | ER38: 10 | ES38: 5.768613669 | ET38: 92 % closed Oblique T | EV38: 108.262 | EW38: 108.262 | EX38: 10.8262877 | EY38: 10 | EZ38: 5.407100809 | FA38: 93 % closed Inclined Y | FC38: 109.036 | FD38: 109.036 | FE38: 10.35370834 | FF38: 10 | FG38: 2.676335609 | FH38: 93 % closed Oblique Y | FJ38: 109.441 | FK38: 109.441 | FL38: 10.08651218 | FM38: 10 | FN38: 1.314883481 | FO38: 94 % closed Semi-Oblique Y
B39: folding? | O39: =O38&" % folded (alpha)" -> 3 % folded (alpha) | P39: -4 % folded (alpha) | Q39: -1 % folded (alpha) | R39: -46 % folded (alpha) | S39: -22 % folded (alpha) | T39: -33 % folded (alpha) | U39: 27 % folded (alpha) | V39: 34 % folded (alpha) | W39: 30 % folded (alpha) | X39: =X38&" % gamma folded" -> -22 % gamma folded | Y39: =Y38&" % gamma folded" -> 9 % gamma folded | Z39: =Z38&" % gamma folded" -> -4 % gamma folded | AA39: =AA38&" % folded (gamma)" -> 27 % folded (gamma) | AB39: 39 % folded (gamma) | AC39: 34 % folded (gamma) | AD39: =AD38&" % folded (beta)" -> 14 % folded (beta) | AE39: 17 % folded (gamma) | AF39: 15 % folded (gamma) | AG39: =ROUND((1-$A31/AG37)*100, 0)&" % gamma folded" -> 0 % gamma folded | AI39: =ROUND((1-$A29/AI35)*100,0)&" % Alpha folded" -> 0 % Alpha folded | AJ39: 37.175 | AK39: 37.175 | AL39: 90 | AM39: 90 | AN39: 80 | AO39: =ROUND(100-(AN39/180)*100,0) &"% α-folded T" -> 56% α-folded T | AP39: Gamma Dominant Diorthopyramid | AR39: 19.545 | AS39: 19.545 | AT39: 150 | AU39: 90 | AV39: 60 | AW39: 20% oblique 2/3 α-Expanded Arrow | AY39: 12.124 | AZ39: 12.124 | BA39: 135 | BB39: 105 | BC39: 65 | BD39: 61 % β-folded Semi-Orthogonal γ-Expanded Y | BG39: 13.304 | BH39: 13.304 | BI39: 165 | BJ39: 120 | BK39: 60 | BL39: 50 % γ-folded Semi-Orthogonal γ-Compressed Y | BO39: 21.378 | BP39: 21.378 | BQ39: 165 | BR39: 90 | BS39: 80 | BT39: =ROUND(((105-BS39)/30)*100,0)&" % β-folded Semi-Orthogonal β-Compressed Y" -> 83 % β-folded Semi-Orthogonal β-Compressed Y | BX39: b/g ref | CB39: 20.975 | CC39: 20.975 | CD39: =2*DEGREES(ASIN(((SIN(RADIANS(CE39/2))*SIN(RADIANS($CD$2/2))/SIN(RADIANS($CE$2/2)))))) -> 137.6418456 | CE39: 90 | CF39: 90 | CG39: =ROUND(100*($CE$2-CE39)/$CE$2,0)&" % Closed 3/4 Expanded α-dominant Y" -> 8 % Closed 3/4 Expanded α-dominant Y | CH39: 34.54 | CI39: 34.54 | CJ39: 103.000083 | CK39: 80 | CL39: 80 | CM39: 24 % Closed 1/2 Expanded α-dominant Y | CO39: 44.065 | CP39: 44.065 | CQ39: 85.128953 | CR39: 75 | CS39: 75 | CT39: 33 % Closed 1/4 Expanded α-dominant Y | CV39: 55.936 | CW39: 55.936 | CX39: 84.22233419 | CY39: 50 | CZ39: 50 | DA39: 33 % Closed 2/3 α-Expanded Arrow | DC39: 83.248 | DD39: 83.248 | DE39: 39.19296551 | DF39: 35 | DG39: 28.42575382 | DH39: 74 % closed orthogonal Y | DL39: 69.12 | DM39: 69.12 | DN39: 53.59658421 | DO39: 50 | DP39: 45.55511585 | DQ39: 60 % closed Semi-Orthogonal γ-Expanded Y | DT39: 98.022 | DU39: 98.022 | DV39: 22.93315043 | DW39: 20 | DX39: 14.02244551 | DY39: 83 % closed Semi-Orthogonal γ-Compressed Y | EB39: 96.388 | EC39: 96.388 | ED39: 25.0665066 | EE39: 20 | EF39: 17.80698871 | EG39: 81 % closed Semi-Orthogonal β-Compressed Y | EH39: 112.183 | EI39: 112.183 | EJ39: 6.303541027 | EK39: 5 | EL39: 3.836134128 | EM39: 95 % closed Semi-Oblique T | EO39: 112.598 | EP39: 112.598 | EQ39: 5.774113995 | ER39: 5 | ES39: 2.886140567 | ET39: 96 % closed Oblique T | EV39: 112.786 | EW39: 112.786 | EX39: 5.412255906 | EY39: 5 | EZ39: 2.70537326 | FA39: 96 % closed Inclined Y | FC39: 113.17 | FD39: 113.17 | FE39: 5.176498927 | FF39: 5 | FG39: 1.339351383 | FH39: 97 % closed Oblique Y | FJ39: 113.37 | FK39: 113.37 | FL39: 5.04317256 | FM39: 5 | FN39: 0.6580572516 | FO39: 97 % closed Semi-Oblique Y
B40: name | C40: =IF(C35>120,"Imaginary",VLOOKUP(C35,$B$2:M26,4,FALSE)) -> Imaginary | D40: =IF(D35>120,"Imaginary",VLOOKUP(D35,$B$2:N26,4,FALSE)) -> Imaginary | E40: =IF(E35>120,"Imaginary",VLOOKUP(E35,$B$2:O26,4,FALSE)) -> Imaginary | F40: =IF(F35>120,"Imaginary",VLOOKUP(F35,$B$2:P26,4,FALSE)) -> Imaginary | G40: =IF(G35>120,"Imaginary",VLOOKUP(G35,$B$2:Q26,4,FALSE)) -> Trigonal planar | H40: =IF(H35>120,"Imaginary",VLOOKUP(H35,$B$2:R26,4,FALSE)) -> Imaginary | I40: =IF(I35>120,"Imaginary",VLOOKUP(I35,$B$2:S26,4,FALSE)) -> 27.3 % Closed Trigonal Pyramid | J40: =IF(J35>120,"Imaginary",VLOOKUP(J35,$B$2:T26,4,FALSE)) -> 36.4 % Closed Trigonal Pyramid | K40: =IF(K35>120,"Imaginary",VLOOKUP(K35,$B$2:U26,4,FALSE)) -> 31.8 % Closed Trigonal Pyramid | N40: name | O40: =IF(OR(O35<O36,O35>180),"Err",O39&" Expanded α-dominant Y") -> 3 % folded (alpha) Expanded α-dominant Y | P40: =IF(OR(P35<P36,P35>180),"Err",P39&" Expanded α-dominant Y") -> -4 % folded (alpha) Expanded α-dominant Y | Q40: -1 % folded (alpha) Expanded α-dominant Y | R40: Err | S40: -22 % folded (alpha) Expanded α-dominant Y | T40: Err | U40: =IF(OR(U35<U36,U35>180),"Err",U39&" Expanded α-dominant Y") -> Err | V40: =IF(OR(V35<V36,V35>180),"Err",V39&" Expanded α-dominant Y") -> Err | W40: =IF(OR(W35<W36,W35>180),"Err",W39&" Expanded α-dominant Y") -> Err | X40: =IF(OR(X35<X36,X35>180),"Err",X39&" Constricted γ-dominant Y") -> -22 % gamma folded Constricted γ-dominant Y | Y40: =IF(OR(Y35<Y36,Y35>180),"Err",Y39&" Constricted γ-dominant Y") -> 9 % gamma folded Constricted γ-dominant Y | Z40: -4 % gamma folded Constricted γ-dominant Y | AA40: 27 % folded (gamma) Constricted γ-dominant Y | AB40: 39 % folded (gamma) Constricted γ-dominant Y | AC40: 34 % folded (gamma) Constricted γ-dominant Y | AD40: 14 % folded (beta) Constricted γ-dominant Y | AE40: 17 % folded (gamma) Constricted γ-dominant Y | AF40: 15 % folded (gamma) Constricted γ-dominant Y | AG40: =IF(AG35>180,"Err",AG39&" Arrow") -> 0 % gamma folded Arrow | AH40: =IF(AH35>180,"Err",AH39&" Arrow") -> Err | AI40: =IF(AI35>180,"Err",AI39&" Arrow") -> 0 % Alpha folded Arrow | AJ40: 36.995 | AK40: 36.995 | AL40: 90 | AM40: 90 | AN40: 70 | AO40: =ROUND(100-(AN40/180)*100,0) &"% α-folded T" -> 61% α-folded T | AP40: Gamma Dominant Diorthopyramid | AS40: gamma fold | AY40: 13.491 | AZ40: 13.491 | BA40: 135 | BB40: 105 | BC40: 60 | BD40: 67 % β-folded Semi-Orthogonal γ-Expanded Y | BG40: 15.122 | BH40: 15.122 | BI40: 165 | BJ40: 120 | BK40: 55 | BL40: 67 % γ-folded Semi-Orthogonal γ-Compressed Y | BO40: 21.024 | BP40: 21.024 | BQ40: 165 | BR40: 90 | BS40: 75 | BT40: near 8/9 α-Expanded Arrow (9.09 % oblique) | BV40: =IF(BW40=0,0.01,BW40) -> 28.32 | BW40: =ROUND((1/SQRT(3))*SQRT(($A$29-BX40)^2+($A$30-BY40)^2+($A$31-BZ40)^2),3) -> 28.32 | BX40: 180 | BY40: 90 | BZ40: 90 | CA40: T-Shape | CB40: 24.773 | CC40: 24.773 | CD40: 125.9718954 | CE40: 85 | CF40: 85 | CG40: 13 % Closed 3/4 Expanded α-dominant Y | CH40: 39.386 | CI40: 39.386 | CJ40: 95.6642244 | CK40: 75 | CL40: 75 | CM40: 29 % Closed 1/2 Expanded α-dominant Y | CO40: 48.56 | CP40: 48.56 | CQ40: 79.18512855 | CR40: 70 | CS40: 70 | CT40: 38 % Closed 1/4 Expanded α-dominant Y | CV40: 62.271 | CW40: 62.271 | CX40: 74.77555494 | CY40: 45 | CZ40: 45 | DA40: 40 % Closed 2/3 α-Expanded Arrow | DC40: 88.103 | DD40: 88.103 | DE40: 33.55730976 | DF40: 30 | DG40: 24.40000808 | DH40: 78 % closed orthogonal Y | DL40: 73.856 | DM40: 73.856 | DN40: 48.1896851 | DO40: 45 | DP40: 41.04445797 | DQ40: 64 % closed Semi-Orthogonal γ-Expanded Y | DT40: 102.845 | DU40: 102.845 | DV40: 17.1877039 | DW40: 15 | DX40: 10.52877937 | DY40: 88 % closed Semi-Orthogonal γ-Compressed Y | EB40: 101.618 | EC40: 101.618 | ED40: 18.77574469 | EE40: 15 | EF40: 13.36143734 | EG40: 86 % closed Semi-Orthogonal β-Compressed Y | EH40: 117.312 | EI40: 117.312 | EJ40: 0 | EK40: 0 | EL40: 0 | EM40: Closed Arrow | EO40: 117.312 | EP40: 117.312 | EQ40: 0 | ER40: 0 | ES40: 0 | ET40: Closed Arrow | EV40: 117.312 | EW40: 117.312 | EX40: 0 | EY40: 0 | EZ40: 0 | FA40: Closed Arrow | FC40: 117.312 | FD40: 117.312 | FE40: 0 | FF40: 0 | FG40: 0 | FH40: Closed Arrow | FJ40: 117.312 | FK40: 117.312 | FL40: 0 | FM40: 0 | FN40: 0 | FO40: Closed Arrow
A41: OUTPUT | B41: rmsd | C41: name | D41: alph | E41: beta | F41: gamma | AJ41: 37.709 | AK41: 37.709 | AL41: 90 | AM41: 90 | AN41: 60 | AO41: 67% α-folded T | AP41: Gamma Dominant Diorthopyramid | AR41: 10.1 | AS41: 10.1 | AT41: 150 | AU41: 120 | AV41: 90 | AW41: Orthogonal Y | AY41: 15.286 | AZ41: 15.286 | BA41: 135 | BB41: 105 | BC41: 55 | BD41: 72 % β-folded Semi-Orthogonal γ-Expanded Y | BG41: 17.234 | BH41: 17.234 | BI41: 165 | BJ41: 120 | BK41: 50 | BL41: 83 % γ-folded Semi-Orthogonal γ-Compressed Y | BS41: g-fold | BV41: 21.91 | BW41: 21.91 | BX41: =2*DEGREES(ASIN(((SIN(RADIANS(BY41/2))*SIN(RADIANS($BX$2/2))/SIN(RADIANS($BY$2/2)))))) -> 145.6583583 | BY41: 85 | BZ41: 85 | CA41: =ROUND(100*($BY$2-BY41)/$BY$2,0)&" % closed T-shape" -> 6 % closed T-shape | CB41: 29.638 | CC41: 29.638 | CD41: 115.9115127 | CE41: 80 | CF41: 80 | CG41: 18 % Closed 3/4 Expanded α-dominant Y | CH41: 44.37 | CI41: 44.37 | CJ41: 88.58833422 | CK41: 70 | CL41: 70 | CM41: 33 % Closed 1/2 Expanded α-dominant Y | CO41: 53.177 | CP41: 53.177 | CQ41: 73.31286932 | CR41: 65 | CS41: 65 | CT41: 42 % Closed 1/4 Expanded α-dominant Y | CV41: 68.539 | CW41: 68.539 | CX41: 65.73330049 | CY41: 40 | CZ41: 40 | DA41: 47 % Closed 2/3 α-Expanded Arrow | DC41: 92.962 | DD41: 92.962 | DE41: 27.93919754 | DF41: 25 | DG41: 20.35779077 | DH41: 81 % closed orthogonal Y | DL41: 78.618 | DM41: 78.618 | DN41: 42.79898324 | DO41: 40 | DP41: 36.51881124 | DQ41: 68 % closed Semi-Orthogonal γ-Expanded Y | DT41: 107.667 | DU41: 107.667 | DV41: 11.45275122 | DW41: 10 | DX41: 7.024852138 | DY41: 92 % closed Semi-Orthogonal γ-Compressed Y | EB41: 106.847 | EC41: 106.847 | ED41: 12.50584331 | EE41: 10 | EF41: 8.910554537 | EG41: 90 % closed Semi-Orthogonal β-Compressed Y | EJ41: a-ref | EQ41: a-ref | EW41: a-ref | FE41: a-ref
A42: Min 1 (Trig) | B42: =MIN(C29:K29,O29:AF29) -> 12.19289411 | C42: =HLOOKUP($B42,C29:AI40,12,FALSE) -> 9 % gamma folded Constricted γ-dominant Y | D42: =HLOOKUP($B42,C29:AJ40,7,FALSE) -> 140 | E42: =HLOOKUP($B42,D29:AJ40,8,FALSE) -> 140 | F42: =HLOOKUP($B42,C29:AJ40,9,FALSE) -> 80 | G42: METRICS | H42: of Input Pyramid | I42: a+b | J42: a+g | K42: b+g | AJ42: 39.268 | AK42: 39.268 | AL42: 90 | AM42: 90 | AN42: 50 | AO42: 72% α-folded T | AP42: Gamma Dominant Diorthopyramid | AR42: 7.326 | AS42: 7.326 | AT42: 150 | AU42: 120 | AV42: 85 | AW42: =ROUND(((90-AV42)/60)*100,0)&" % γ-folded Orthogonal Y" -> 8 % γ-folded Orthogonal Y | AY42: 17.378 | AZ42: 17.378 | BA42: 135 | BB42: 105 | BC42: 50 | BD42: 78 % β-folded Semi-Orthogonal γ-Expanded Y | BG42: 19.545 | BH42: 19.545 | BI42: 165 | BJ42: 120 | BK42: 45 | BL42: near 8/9 α-Expanded Arrow (45.45 % oblique) | BO42: =IF(BP42=0,0.01,BP42) -> 17.378 | BP42: =ROUND((1/SQRT(3))*SQRT(($A$29-BQ42)^2+($A$30-BR42)^2+($A$31-BS42)^2),3) -> 17.378 | BQ42: 165 | BR42: 105 | BS42: 90 | BT42: Semi-Orthogonal β-Compressed Y | BV42: =IF(BW42=0,0.01,BW42) -> 25.578 | BW42: 25.578 | BX42: 130.7457566 | BY42: 80 | BZ42: 80 | CA42: 11 % closed T-shape | CB42: 34.916 | CC42: 34.916 | CD42: 106.7906072 | CE42: 75 | CF42: 75 | CG42: 23 % Closed 3/4 Expanded α-dominant Y | CH42: 49.439 | CI42: 49.439 | CJ42: 81.71417985 | CK42: 65 | CL42: 65 | CM42: 38 % Closed 1/2 Expanded α-dominant Y | CO42: 57.886 | CP42: 57.886 | CQ42: 67.5 | CR42: 60 | CS42: 60 | CT42: 47 % Closed 1/4 Expanded α-dominant Y | CV42: 74.748 | CW42: 74.748 | CX42: 56.99649777 | CY42: 35 | CZ42: 35 | DA42: 53 % Closed 2/3 α-Expanded Arrow | DC42: 97.824 | DD42: 97.824 | DE42: 22.33517343 | DF42: 20 | DG42: 16.30208445 | DH42: 85 % closed orthogonal Y | DL42: 83.402 | DM42: 83.402 | DN42: 37.42192402 | DO42: 35 | DP42: 31.98031609 | DQ42: 72 % closed Semi-Orthogonal γ-Expanded Y | DT42: 112.489 | DU42: 112.489 | DV42: 5.724674336 | DW42: 5 | DX42: 3.514121385 | DY42: 96 % closed Semi-Orthogonal γ-Compressed Y | EB42: 112.078 | EC42: 112.078 | ED42: 6.249559598 | EE42: 5 | EF42: 4.456152047 | EG42: 95 % closed Semi-Orthogonal β-Compressed Y | EH42: 21.726 | EI42: =ROUND((1/SQRT(3))*SQRT(($A$29-EJ42)^2+($A$30-EK42)^2+($A$31-EL42)^2),3) -> 21.726 | EJ42: 180 | EK42: 105 | EL42: 75 | EM42: Semi oblique T | EO42: 21.024 | EP42: =ROUND((1/SQRT(3))*SQRT(($A$29-EQ42)^2+($A$30-ER42)^2+($A$31-ES42)^2),3) -> 21.024 | EQ42: 180 | ER42: 120 | ES42: 60 | ET42: Oblique T | EV42: =IF(EW42=0,0.01,EW42) -> 26.683 | EW42: =ROUND((1/SQRT(3))*SQRT(($A$29-EX42)^2+($A$30-EY42)^2+($A$31-EZ42)^2),3) -> 26.683 | EX42: 180 | EY42: 135 | EZ42: 45 | FA42: Inclined Y | FC42: =IF(FD42=0,0.01,FD42) -> 26.683 | FD42: =ROUND((1/SQRT(3))*SQRT(($A$29-FE42)^2+($A$30-FF42)^2+($A$31-FG42)^2),3) -> 26.683 | FE42: 180 | FF42: 135 | FG42: 45 | FH42: Oblique Y
A43: Min 2 (fold) | B43: =MIN(AJ2:AJ26,AJ28:AJ49) -> 15.067 | C43: =VLOOKUP(B43,AJ2:AO48,6,FALSE) -> 37 % folded Trigonal Plane | D43: =VLOOKUP($B43,$AJ2:$AO48,3,FALSE) -> 120 | E43: =VLOOKUP($B43,$AJ2:$AO48,4,FALSE) -> 120 | F43: =VLOOKUP($B43,$AJ2:$AO48,5,FALSE) -> 75 | I43: =$I49+$I50 -> 267 | J43: =$I49+$I51 -> 219 | K43: =$I50+$I51 -> 194 | AJ43: 40.336 | AK43: 40.336 | AL43: 90 | AM43: 90 | AN43: 45 | AO43: 75% α-folded T | AP43: Gamma Dominant Diorthopyramid | AR43: 4.69 | AS43: 4.69 | AT43: 150 | AU43: 120 | AV43: 80 | AW43: =ROUND(((90-AV43)/60)*100,0)&" % γ-folded Orthogonal Y" -> 17 % γ-folded Orthogonal Y | AY43: 19.672 | AZ43: 19.672 | BA43: 135 | BB43: 105 | BC43: 45 | BD43: 83 % β-folded Semi-Orthogonal γ-Expanded Y | BO43: =IF(BP43=0,0.01,BP43) -> 15.927 | BP43: =ROUND((1/SQRT(3))*SQRT(($A$29-BQ43)^2+($A$30-BR43)^2+($A$31-BS43)^2),3) -> 15.927 | BQ43: 165 | BR43: 105 | BS43: 85 | BT43: =ROUND(((90-BS43)/30)*100,0)&" % γ-folded Semi-Orthogonal β-Compressed Y" -> 17 % γ-folded Semi-Orthogonal β-Compressed Y | BV43: 30.864 | BW43: 30.864 | BX43: 118.839776 | BY43: 75 | BZ43: 75 | CA43: 17 % closed T-shape | CB43: 40.358 | CC43: 40.358 | CD43: 98.29052162 | CE43: 70 | CF43: 70 | CG43: 28 % Closed 3/4 Expanded α-dominant Y | CH43: 54.562 | CI43: 54.562 | CJ43: 75 | CK43: 60 | CL43: 60 | CM43: 43 % Closed 1/2 Expanded α-dominant Y | CO43: 62.664 | CP43: 62.664 | CQ43: 61.73675177 | CR43: 55 | CS43: 55 | CT43: 51 % Closed 1/4 Expanded α-dominant Y | CV43: 80.906 | CW43: 80.906 | CX43: 48.49384864 | CY43: 30 | CZ43: 30 | DA43: 60 % Closed 2/3 α-Expanded Arrow | DC43: 102.69 | DD43: 102.69 | DE43: 16.7420876 | DF43: 15 | DG43: 12.2357399 | DH43: 89 % closed orthogonal Y | DL43: 88.206 | DM43: 88.206 | DN43: 32.05625738 | DO43: 30 | DP43: 27.43093102 | DQ43: 76 % closed Semi-Orthogonal γ-Expanded Y | DT43: 117.312 | DU43: 117.312 | DV43: =2*DEGREES(ASIN(((SIN(RADIANS(DX43/2))*SIN(RADIANS($DN$2/2))/SIN(RADIANS($DP$2/2)))))) -> 0 | DW43: 0 | DX43: =2*DEGREES(ASIN(((SIN(RADIANS(DW43/2))*SIN(RADIANS($DP$25/2))/SIN(RADIANS($DO$25/2)))))) -> 0 | DY43: Closed Arrow | EB43: 117.312 | EC43: 117.312 | ED43: =2*DEGREES(ASIN(((SIN(RADIANS(EE43/2))*SIN(RADIANS($DV$2/2))/SIN(RADIANS($DW$2/2)))))) -> 0 | EE43: 0 | EF43: 0 | EG43: Closed Arrow | EH43: 19.194 | EI43: 19.194 | EJ43: 175 | EK43: =2*DEGREES(ASIN(((SIN(RADIANS(EJ43/2))*SIN(RADIANS($EK$2/2))/SIN(RADIANS($EJ$2/2)))))) -> 104.8579774 | EL43: =2*DEGREES(ASIN(((SIN(RADIANS(EJ43/2))*SIN(RADIANS($EL$2/2))/SIN(RADIANS($EJ$2/2)))))) -> 74.91633432 | EM43: =ROUND(100*($EJ$42-EJ43)/$EJ$42,0)&" % closed Semi-Oblique T" -> 3 % closed Semi-Oblique T | EO43: 18.376 | EP43: 18.376 | EQ43: 175 | ER43: =2*DEGREES(ASIN(((SIN(RADIANS(EQ43/2))*SIN(RADIANS($ER$2/2))/SIN(RADIANS($EQ$42/2)))))) -> 119.8113614 | ES43: =2*DEGREES(ASIN(((SIN(RADIANS(EQ43/2))*SIN(RADIANS($ES$42/2))/SIN(RADIANS($EQ$42/2)))))) -> 59.93704083 | ET43: =ROUND(100*($EQ$42-EQ43)/$EQ$42,0)&" % closed Oblique T" -> 3 % closed Oblique T | EV43: 24.605 | EW43: 24.605 | EX43: 175 | EY43: =2*DEGREES(ASIN(((SIN(RADIANS(EX43/2))*SIN(RADIANS($EY$42/2))/SIN(RADIANS($EX$42/2)))))) -> 134.737418 | EZ43: =2*DEGREES(ASIN(((SIN(RADIANS(EX43/2))*SIN(RADIANS($EZ$42/2))/SIN(RADIANS($EX$42/2)))))) -> 44.95482716 | FA43: =ROUND(100*($EX$42-EX43)/$EX$42,0)&" % closed Inclined Y" -> 3 % closed Inclined Y | FC43: 24.605 | FD43: 24.605 | FE43: 175 | FF43: =2*DEGREES(ASIN(((SIN(RADIANS(FE43/2))*SIN(RADIANS($FF$42/2))/SIN(RADIANS($FE$42/2)))))) -> 134.737418 | FG43: =2*DEGREES(ASIN(((SIN(RADIANS(FE43/2))*SIN(RADIANS($FG$42/2))/SIN(RADIANS($FE$42/2)))))) -> 44.95482716 | FH43: =ROUND(100*($FE$42-FE43)/$FE$42,0)&" % closed Oblique Y" -> 3 % closed Oblique Y
A44: Min2 (folded Orthogonal Y) | B44: =MIN(AR2:AR53) -> 2.646 | C44: =VLOOKUP(B44,AR2:AW53,6,FALSE) -> 25 % γ-folded Orthogonal Y | D44: =VLOOKUP($B$44,$AR$2:$AW$53,3,FALSE) -> 150 | E44: =VLOOKUP($B$44,$AR$2:$AW$53,4,FALSE) -> 120 | F44: =VLOOKUP($B$44,$AR$2:$AW$53,5,FALSE) -> 75 | I44: =IF($I43<180,"Yes, vary gamma","No Normal") -> No Normal | J44: =IF($J43<180,"Yes, vary beta","No Normal") -> No Normal | K44: =IF($K43<180,"Yes, vary alpha","No Normal") -> No Normal | AJ44: 41.577 | AK44: 41.577 | AL44: 90 | AM44: 90 | AN44: 40 | AO44: 78% α-folded T | AP44: Gamma Dominant Diorthopyramid | AR44: 2.646 | AS44: 2.646 | AT44: 150 | AU44: 120 | AV44: 75 | AW44: 25 % γ-folded Orthogonal Y | AY44: 22.106 | AZ44: 22.106 | BA44: 135 | BB44: 105 | BC44: 40 | BD44: 89 % β-folded Semi-Orthogonal γ-Expanded Y | BO44: 14.9 | BP44: 14.9 | BQ44: 165 | BR44: 105 | BS44: 80 | BT44: =ROUND(((90-BS44)/30)*100,0)&" % γ-folded Semi-Orthogonal β-Compressed Y" -> 33 % γ-folded Semi-Orthogonal β-Compressed Y | BV44: 36.617 | BW44: 36.617 | BX44: 108.4187605 | BY44: 70 | BZ44: 70 | CA44: 22 % closed T-shape | CB44: 45.863 | CC44: 45.863 | CD44: 90.2312806 | CE44: 65 | CF44: 65 | CG44: 33 % Closed 3/4 Expanded α-dominant Y | CH44: 59.72 | CI44: 59.72 | CJ44: 68.4147026 | CK44: 55 | CL44: 55 | CM44: 48 % Closed 1/2 Expanded α-dominant Y | CO44: 67.496 | CP44: 67.496 | CQ44: 56.01514484 | CR44: 50 | CS44: 50 | CT44: 56 % Closed 1/4 Expanded α-dominant Y | CV44: 87.024 | CW44: 87.024 | CX44: 40.1715072 | CY44: 25 | CZ44: 25 | DA44: 67 % Closed 2/3 α-Expanded Arrow | DC44: 107.56 | DD44: 107.56 | DE44: 11.15701862 | DF44: 10 | DG44: 8.161504791 | DH44: 93 % closed orthogonal Y | DL44: 93.026 | DM44: 93.026 | DN44: 26.69997404 | DO44: 25 | DP44: 22.87246466 | DQ44: 80 % closed Semi-Orthogonal γ-Expanded Y | DV44: aref | ED44: aref | EH44: 16.864 | EI44: 16.864 | EJ44: 170 | EK44: =2*DEGREES(ASIN(((SIN(RADIANS(EJ44/2))*SIN(RADIANS($EK$2/2))/SIN(RADIANS($EJ$2/2)))))) -> 104.4335437 | EL44: =2*DEGREES(ASIN(((SIN(RADIANS(EJ44/2))*SIN(RADIANS($EL$2/2))/SIN(RADIANS($EJ$2/2)))))) -> 74.66577639 | EM44: 6 % closed Semi-Oblique T | EO44: 15.861 | EP44: 15.861 | EQ44: 170 | ER44: 119.2489869 | ES44: 59.74840252 | ET44: 6 % closed Oblique T | EV44: 22.643 | EW44: =ROUND((1/SQRT(3))*SQRT(($A$29-EX44)^2+($A$30-EY44)^2+($A$31-EZ44)^2),3) -> 22.643 | EX44: 170 | EY44: 133.9586771 | EZ44: 44.81943876 | FA44: 6 % closed Inclined Y | FC44: 22.643 | FD44: =ROUND((1/SQRT(3))*SQRT(($A$29-FE44)^2+($A$30-FF44)^2+($A$31-FG44)^2),3) -> 22.643 | FE44: 170 | FF44: 133.9586771 | FG44: 44.81943876 | FH44: 6 % closed Oblique Y
A45: Min 2(fold Semi1) | B45: =MIN(AY2:AY66) -> 6.481 | C45: =VLOOKUP($B45,$AY2:$BD66,6,FALSE) -> 33 % γ-folded Semi-Orthogonal γ-Expanded Y | D45: =VLOOKUP($B45,$AY2:$BD66,3,FALSE) -> 135 | E45: =VLOOKUP($B45,$AY2:$BD66,4,FALSE) -> 120 | F45: =VLOOKUP($B45,$AY2:$BD66,5,FALSE) -> 75 | H45: normal b | I45: =SQRT($K54^2+$M54^2) -> 2.108395774 | J45: =SQRT($I54^2+$M54^2) -> 2.252405766 | K45: =SQRT($I54^2+$K54^2) -> 2.586146031 | AJ45: 44.52 | AK45: 44.52 | AL45: 90 | AM45: 90 | AN45: 30 | AO45: 83% α-folded T | AP45: Gamma Dominant Diorthopyramid | AR45: 2.944 | AS45: 2.944 | AT45: 150 | AU45: 120 | AV45: 70 | AW45: 33 % γ-folded Orthogonal Y | AY45: 24.637 | AZ45: 24.637 | BA45: 135 | BB45: 105 | BC45: 35 | BD45: 94 % β-folded Semi-Orthogonal γ-Expanded Y | BO45: 14.387 | BP45: 14.387 | BQ45: 165 | BR45: 105 | BS45: 75 | BT45: 50 % γ-folded Semi-Orthogonal β-Compressed Y | BV45: 42.498 | BW45: 42.498 | BX45: 98.90307893 | BY45: 65 | BZ45: 65 | CA45: 28 % closed T-shape | CB45: 51.388 | CC45: 51.388 | CD45: 82.5 | CE45: 60 | CF45: 60 | CG45: 38 % Closed 3/4 Expanded α-dominant Y | CH45: 64.903 | CI45: 64.903 | CJ45: 61.93441392 | CK45: 50 | CL45: 50 | CM45: 52 % Closed 1/2 Expanded α-dominant Y | CO45: 72.372 | CP45: 72.372 | CQ45: 50.32855194 | CR45: 45 | CS45: 45 | CT45: 60 % Closed 1/4 Expanded α-dominant Y | CV45: 93.111 | CW45: 93.111 | CX45: 31.98705021 | CY45: 20 | CZ45: 20 | DA45: 73 % Closed 2/3 α-Expanded Arrow | DC45: 112.434 | DD45: 112.434 | DE45: 5.577207582 | DF45: 5 | DG45: 4.082050895 | DH45: 96 % closed orthogonal Y | DL45: 97.86 | DM45: 97.86 | DN45: 21.3512538 | DO45: 20 | DP45: 18.30660371 | DQ45: 84 % closed Semi-Orthogonal γ-Expanded Y | DT45: =IF(DU45=0,0.01,DU45) -> 11.045 | DU45: =ROUND((1/SQRT(3))*SQRT(($A$29-DV45)^2+($A$30-DW45)^2+($A$31-DX45)^2),3) -> 11.045 | DV45: 165 | DW45: 120 | DX45: 75 | DY45: Semi-Orthogonal γ-Compressed Y | EB45: =IF(EC45=0,0.01,EC45) -> 17.378 | EC45: =ROUND((1/SQRT(3))*SQRT(($A$29-ED45)^2+($A$30-EE45)^2+($A$31-EF45)^2),3) -> 17.378 | ED45: 165 | EE45: 105 | EF45: 90 | EG45: Semi-Orthogonal β-Compressed Y | EH45: 14.841 | EI45: 14.841 | EJ45: 165 | EK45: 103.7315111 | EL45: 74.24963332 | EM45: 8 % closed Semi-Oblique T | EO45: 13.567 | EP45: 13.567 | EQ45: 165 | ER45: 118.3231792 | ES45: 59.43479904 | ET45: 8 % closed Oblique T | EV45: 20.853 | EW45: 20.853 | EX45: 165 | EY45: 132.6893189 | EZ45: 44.59422385 | FA45: 8 % closed Inclined Y | FC45: 20.853 | FD45: 20.853 | FE45: 165 | FF45: 132.6893189 | FG45: 44.59422385 | FH45: 8 % closed Oblique Y
A46: Min 2(fold Semi2) | B46: =MIN(BG2:BG42) -> 1.414 | C46: =VLOOKUP($B46,$BG2:$BL42,6,FALSE) -> 17 % α-folded Semi-Orthogonal γ-Compressed Y | D46: =VLOOKUP($B46,$BG2:$BL42,3,FALSE) -> 145 | E46: =VLOOKUP($B46,$BG2:$BL42,4,FALSE) -> 120 | F46: =VLOOKUP($B46,$BG2:$BL42,5,FALSE) -> 75 | H46: normal lim | I46: =IF(I45>2,"No Normal",2*DEGREES(ASIN(I45/2))) -> No Normal | J46: =IF(J45>2,"No Normal",2*DEGREES(ASIN(J45/2))) -> No Normal | K46: =IF(K45>2,"No Normal",2*DEGREES(ASIN(K45/2))) -> No Normal | AJ46: 47.979 | AK46: 47.979 | AL46: 90 | AM46: 90 | AN46: 20 | AO46: 89% α-folded T | AP46: Gamma Dominant Diorthopyramid | AR46: 5.196 | AS46: 5.196 | AT46: 150 | AU46: 120 | AV46: 65 | AW46: 42 % γ-folded Orthogonal Y | AY46: 27.24 | AZ46: 27.24 | BA46: 135 | BB46: 105 | BC46: 30 | BD46: 5/9 α-Expanded Arrow (55.56 % oblique) | BO46: 14.445 | BP46: 14.445 | BQ46: 165 | BR46: 105 | BS46: 70 | BT46: 67 % γ-folded Semi-Orthogonal β-Compressed Y | BV46: 48.394 | BW46: 48.394 | BX46: 90 | BY46: 60 | BZ46: 60 | CA46: 33 % closed T-shape | CB46: 56.915 | CC46: 56.915 | CD46: 75.02059886 | CE46: 55 | CF46: 55 | CG46: 44 % Closed 3/4 Expanded α-dominant Y | CH46: 70.102 | CI46: 70.102 | CJ46: 55.54031281 | CK46: 45 | CL46: 45 | CM46: 57 % Closed 1/2 Expanded α-dominant Y | CO46: 77.282 | CP46: 77.282 | CQ46: 44.67138186 | CR46: 40 | CS46: 40 | CT46: 64 % Closed 1/4 Expanded α-dominant Y | CV46: 99.175 | CW46: 99.175 | CX46: 23.90571178 | CY46: 15 | CZ46: 15 | DA46: 80 % Closed 2/3 α-Expanded Arrow | DC46: 117.312 | DD46: 117.312 | DE46: 0 | DF46: 0 | DG46: 0 | DH46: closed arrow | DL46: 102.707 | DM46: 102.707 | DN46: 16.00842294 | DO46: 15 | DP46: 13.73493768 | DQ46: 88 % closed Semi-Orthogonal γ-Expanded Y | DT46: 8.233 | DU46: 8.233 | DV46: 160 | DW46: =2*DEGREES(ASIN(((SIN(RADIANS(DV46/2))*SIN(RADIANS($DW$2/2))/SIN(RADIANS($DV$2/2)))))) -> 118.6843625 | DX46: =2*DEGREES(ASIN(((SIN(RADIANS(DV46/2))*SIN(RADIANS($DX$2/2))/SIN(RADIANS($DV$2/2)))))) -> 74.41252153 | DY46: =ROUND(100*($DV$2-DV46)/$DV$2,0)&" % closed Semi-Orthogonal γ-Compressed Y" -> 3 % closed Semi-Orthogonal γ-Compressed Y | EB46: 15.794 | EC46: 15.794 | ED46: 160 | EE46: =2*DEGREES(ASIN(((SIN(RADIANS(ED46/2))*SIN(RADIANS($EE$2/2))/SIN(RADIANS($ED$2/2)))))) -> 104.0058778 | EF46: =2*DEGREES(ASIN(((SIN(RADIANS(ED46/2))*SIN(RADIANS($EF$2/2))/SIN(RADIANS($ED$2/2)))))) -> 89.2354256 | EG46: =ROUND(100*($ED$2-ED46)/$ED$2,0)&" % closed Semi-Orthogonal β-Compressed Y" -> 3 % closed Semi-Orthogonal β-Compressed Y | EH46: 13.281 | EI46: 13.281 | EJ46: 160 | EK46: 102.7596091 | EL46: 73.67005002 | EM46: 11 % closed Semi-Oblique T | EO46: 11.657 | EP46: 11.657 | EQ46: 160 | ER46: 117.0501022 | ES46: 58.99740846 | ET46: 11 % closed Oblique T | EV46: 19.324 | EW46: 19.324 | EX46: 160 | EY46: 130.9675292 | EZ46: 44.27982689 | FA46: 11 % closed Inclined Y | FC46: 19.324 | FD46: 19.324 | FE46: 160 | FF46: 130.9675292 | FG46: 44.27982689 | FH46: 11 % closed Oblique Y
A47: Min 2(fold Semi3) | B47: =MIN(BO2:BO48) -> 13.491 | C47: =VLOOKUP($B47,$BO2:$BT48,6,FALSE) -> 13 % α-folded Semi-Orthogonal β-Compressed Y | D47: =VLOOKUP($B47,$BO2:$BT48,3,FALSE) -> 145 | E47: =VLOOKUP($B47,$BO2:$BT48,4,FALSE) -> 105 | F47: =VLOOKUP($B47,$BO2:$BT48,5,FALSE) -> 90 | AJ47: 51.852 | AK47: 51.852 | AL47: 90 | AM47: 90 | AN47: 10 | AO47: 94% α-folded T | AP47: Gamma Dominant Diorthopyramid | AR47: 7.874 | AS47: 7.874 | AT47: 150 | AU47: 120 | AV47: 60 | AW47: 50 % γ-folded Orthogonal Y | BC47: g-fold | BO47: 15.067 | BP47: 15.067 | BQ47: 165 | BR47: 105 | BS47: 65 | BT47: 83 % γ-folded Semi-Orthogonal β-Compressed Y | BV47: 54.269 | BW47: 54.269 | BX47: 81.53803278 | BY47: 55 | BZ47: 55 | CA47: 39 % closed T-shape | CB47: 62.436 | CC47: 62.436 | CD47: 67.73899602 | CE47: 50 | CF47: 50 | CG47: 49 % Closed 3/4 Expanded α-dominant Y | CH47: 75.315 | CI47: 75.315 | CJ47: 49.21721009 | CK47: 40 | CL47: 40 | CM47: 62 % Closed 1/2 Expanded α-dominant Y | CO47: 82.221 | CP47: 82.221 | CQ47: 39.03884492 | CR47: 35 | CS47: 35 | CT47: 69 % Closed 1/4 Expanded α-dominant Y | CV47: 105.224 | CW47: 105.224 | CX47: 15.8978853 | CY47: 10 | CZ47: 10 | DA47: 87 % Closed 2/3 α-Expanded Arrow | DE47: alpha ref | DL47: 107.565 | DM47: 107.565 | DN47: 10.66991806 | DO47: 10 | DP47: 9.158981091 | DQ47: 92 % closed Semi-Orthogonal γ-Expanded Y | DT47: 5.691 | DU47: 5.691 | DV47: 155 | DW47: 117.0335063 | DX47: 73.66243896 | DY47: 6 % closed Semi-Orthogonal γ-Compressed Y | EB47: 14.687 | EC47: 14.687 | ED47: 155 | EE47: 102.7468904 | EF47: 88.26220004 | EG47: 6 % closed Semi-Orthogonal β-Compressed Y | EH47: 12.385 | EI47: 12.385 | EJ47: 155 | EK47: 101.5280867 | EL47: 72.92996079 | EM47: 14 % closed Semi-Oblique T | EO47: 10.39 | EP47: 10.39 | EQ47: 155 | ER47: 115.4504798 | ES47: 58.43785548 | ET47: 14 % closed Oblique T | EV47: 18.171 | EW47: 18.171 | EX47: 155 | EY47: 128.8390979 | EZ47: 43.87714176 | FA47: 14 % closed Inclined Y | FC47: 18.171 | FD47: 18.171 | FE47: 155 | FF47: 128.8390979 | FG47: 43.87714176 | FH47: 14 % closed Oblique Y
A48: Min 3 (closed Triclinic1) | B48: =MIN(DC2:DC78) -> 9.222 | C48: =VLOOKUP(B48,DC3:DH78,6,FALSE) -> 3 % closed orthogonal Y | D48: =VLOOKUP($B48,DC3:DH78,3,FALSE) -> 145 | E48: =VLOOKUP($B48,DC3:DH78,4,FALSE) -> 117.5369767 | F48: =VLOOKUP($B48,DC3:DH78,5,FALSE) -> 88.56061542 | H48: sorted | AJ48: =IF(AK48=0,0.01,AK48) -> 56.054 | AK48: =ROUND((1/SQRT(3))*SQRT(($A$29-AL48)^2+($A$30-AM48)^2+($A$31-AN48)^2),3) -> 56.054 | AL48: 90 | AM48: 90 | AN48: 0 | AO48: Orthogonal Arrow | AP48: (Folded T) | AR48: =IF(AS48=0,0.01,AS48) -> 10.661 | AS48: =ROUND((1/SQRT(3))*SQRT(($A$29-AT48)^2+($A$30-AU48)^2+($A$31-AV48)^2),3) -> 10.661 | AT48: 150 | AU48: 120 | AV48: 55 | AW48: 58 % γ-folded Orthogonal Y | AY48: =IF(AZ48=0,0.01,AZ48) -> 19.545 | AZ48: =ROUND((1/SQRT(3))*SQRT(($A$29-BA48)^2+($A$30-BB48)^2+($A$31-BC48)^2),3) -> 19.545 | BA48: 135 | BB48: 120 | BC48: 105 | BD48: Semi-Orthogonal γ-Expanded Y | BO48: 16.186 | BP48: 16.186 | BQ48: 165 | BR48: 105 | BS48: 60 | BT48: 8/9 α-Expanded Arrow (27.27 % oblique) | BV48: 60.11 | BW48: 60.11 | BX48: 73.40676473 | BY48: 50 | BZ48: 50 | CA48: 44 % closed T-shape | CB48: 67.947 | CC48: 67.947 | CD48: 60.61510639 | CE48: 45 | CF48: 45 | CG48: 54 % Closed 3/4 Expanded α-dominant Y | CH48: 80.537 | CI48: 80.537 | CJ48: 42.9525815 | CK48: 35 | CL48: 35 | CM48: 67 % Closed 1/2 Expanded α-dominant Y | CO48: 87.183 | CP48: 87.183 | CQ48: 33.42677518 | CR48: 30 | CS48: 30 | CT48: 73 % Closed 1/4 Expanded α-dominant Y | CV48: 111.267 | CW48: 111.267 | CX48: 7.937361784 | CY48: 5 | CZ48: 5 | DA48: 93 % Closed 2/3 α-Expanded Arrow | DC48: 10.1 | DD48: 10.1 | DE48: 150 | DF48: 120 | DG48: 90 | DH48: Orthogonal Y | DL48: 112.434 | DM48: 112.434 | DN48: 5.334254864 | DO48: 5 | DP48: 4.580193809 | DQ48: 96 % closed Semi-Orthogonal γ-Expanded Y | DT48: 4.131 | DU48: 4.131 | DV48: 150 | DW48: 115.0732159 | DX48: 72.7535218 | DY48: 9 % closed Semi-Orthogonal γ-Compressed Y | EB48: 14.202 | EC48: 14.202 | ED48: 150 | EE48: 101.2360159 | EF48: 87.08720502 | EG48: 9 % closed Semi-Orthogonal β-Compressed Y | EH48: 12.327 | EI48: 12.327 | EJ48: 150 | EK48: 100.0492226 | EL48: 72.03302525 | EM48: 17 % closed Semi-Oblique T | EO48: 10.064 | EP48: 10.064 | EQ48: 150 | ER48: 113.5481156 | ES48: 57.75818803 | ET48: 17 % closed Oblique T | EV48: 17.527 | EW48: 17.527 | EX48: 150 | EY48: 126.3525647 | EZ48: 43.38730369 | FA48: 17 % closed Inclined Y | FC48: 17.527 | FD48: 17.527 | FE48: 150 | FF48: 126.3525647 | FG48: 43.38730369 | FH48: 17 % closed Oblique Y
A49: Min4 (Cl.Tricl.2) | B49: =MIN(DL2:DL78) -> 15.341 | C49: =VLOOKUP(B49,DL2:DQ78,6,FALSE) -> 4 % closed Semi-Orthogonal γ-Expanded Y | D49: =VLOOKUP($B49,$DL2:$DQ78,3,FALSE) -> 130 | E49: =VLOOKUP($B49,$DL2:$DQ78,4,FALSE) -> 116.3263896 | F49: =VLOOKUP($B49,$DL2:$DQ78,5,FALSE) -> 93.69377433 | H49: alpha | I49: =SMALL($A29:$A31,3) -> 146 | J49: max alpha | K49: =$I50+$I51 -> 194 | AR49: 13.491 | AS49: 13.491 | AT49: 150 | AU49: 120 | AV49: 50 | AW49: 67 % γ-folded Orthogonal Y | AY49: =IF(AZ49=0,0.01,AZ49) -> 16.842 | AZ49: =ROUND((1/SQRT(3))*SQRT(($A$29-BA49)^2+($A$30-BB49)^2+($A$31-BC49)^2),3) -> 16.842 | BA49: 135 | BB49: 120 | BC49: 100 | BD49: =ROUND(((105-BC49)/90)*100,0)&" % γ-folded Semi-Orthogonal γ-Expanded Y" -> 6 % γ-folded Semi-Orthogonal γ-Expanded Y | BV49: 65.918 | BW49: 65.918 | BX49: 65.53019948 | BY49: 45 | BZ49: 45 | CA49: 50 % closed T-shape | CB49: 73.449 | CC49: 73.449 | CD49: 53.61817438 | CE49: 40 | CF49: 40 | CG49: 59 % Closed 3/4 Expanded α-dominant Y | CH49: 85.768 | CI49: 85.768 | CJ49: 36.73588748 | CK49: 30 | CL49: 30 | CM49: 71 % Closed 1/2 Expanded α-dominant Y | CO49: 92.166 | CP49: 92.166 | CQ49: 27.83149297 | CR49: 25 | CS49: 25 | CT49: 78 % Closed 1/4 Expanded α-dominant Y | CV49: 117.312 | CW49: 117.312 | CX49: 0 | CY49: 0 | CZ49: 0 | DA49: Closed Arrow | DC49: 9.222 | DD49: 9.222 | DE49: 145 | DF49: =2*DEGREES(ASIN(((SIN(RADIANS(DE49/2))*SIN(RADIANS(60))/SIN(RADIANS(75)))))) -> 117.5369767 | DG49: =2*DEGREES(ASIN(((SIN(RADIANS(DE49/2))*SIN(RADIANS(45))/SIN(RADIANS(75)))))) -> 88.56061542 | DH49: =ROUND((150-DE49)/1.5,0)&" % closed orthogonal Y" -> 3 % closed orthogonal Y | DL49: 117.312 | DM49: 117.312 | DN49: 0 | DO49: 0 | DP49: 0 | DQ49: closed arrow | DT49: 4.811 | DU49: 4.811 | DV49: 145 | DW49: 112.8308386 | DX49: 71.69020438 | DY49: 12 % closed Semi-Orthogonal γ-Compressed Y | EB49: 14.44 | EC49: 14.44 | ED49: 145 | EE49: 99.48776848 | EF49: 85.7183785 | EG49: 12 % closed Semi-Orthogonal β-Compressed Y | EH49: 13.149 | EI49: 13.149 | EJ49: 145 | EK49: 98.3367939 | EL49: 70.98355184 | EM49: 19 % closed Semi-Oblique T | EO49: 10.817 | EP49: 10.817 | EQ49: 145 | ER49: 111.3684495 | ES49: 56.9608486 | ET49: 19 % closed Oblique T | EV49: 17.501 | EW49: 17.501 | EX49: 145 | EY49: 123.5554257 | EZ49: 42.81167924 | FA49: 19 % closed Inclined Y | FC49: 17.501 | FD49: 17.501 | FE49: 145 | FF49: 123.5554257 | FG49: 42.81167924 | FH49: 19 % closed Oblique Y
A50: Min4 (Cl.Tricl.3) | B50: =MIN(DT2:DT78) -> 4.112 | C50: =VLOOKUP(B50,DT2:DY78,6,FALSE) -> 4 % closed Semi-Orthogonal γ-Compressed Y | D50: =VLOOKUP($B50,$DT2:$DY78,3,FALSE) -> 149.8265713 | E50: =VLOOKUP($B50,$DT2:$DY78,4,FALSE) -> 115 | F50: =VLOOKUP($B50,$DT2:$DY78,5,FALSE) -> 72.71919731 | H50: beta | I50: =SMALL($A$29:$A$31,2) -> 121 | J50: sum angles | K50: =SUM($I49:$I51) -> 340 | AR50: 16.34 | AS50: 16.34 | AT50: 150 | AU50: 120 | AV50: 45 | AW50: 75 % γ-folded Orthogonal Y | AY50: 14.213 | AZ50: 14.213 | BA50: 135 | BB50: 120 | BC50: 95 | BD50: =ROUND(((105-BC50)/90)*100,0)&" % γ-folded Semi-Orthogonal γ-Expanded Y" -> 11 % γ-folded Semi-Orthogonal γ-Expanded Y | BV50: 71.693 | BW50: 71.693 | BX50: 57.8532986 | BY50: 40 | BZ50: 40 | CA50: 56 % closed T-shape | CB50: 78.942 | CC50: 78.942 | CD50: 46.7238871 | CE50: 35 | CF50: 35 | CG50: 64 % Closed 3/4 Expanded α-dominant Y | CH50: 91.007 | CI50: 91.007 | CJ50: 30.55808005 | CK50: 25 | CL50: 25 | CM50: 76 % Closed 1/2 Expanded α-dominant Y | CO50: 97.167 | CP50: 97.167 | CQ50: 22.24969626 | CR50: 20 | CS50: 20 | CT50: 82 % Closed 1/4 Expanded α-dominant Y | CX50: Monoclinic | CY50: Arrow | CZ50: a-ref | DC50: 9.457 | DD50: 9.457 | DE50: 140 | DF50: =2*DEGREES(ASIN(((SIN(RADIANS(DE50/2))*SIN(RADIANS(60))/SIN(RADIANS(75)))))) -> 114.8112646 | DG50: =2*DEGREES(ASIN(((SIN(RADIANS(DE50/2))*SIN(RADIANS(45))/SIN(RADIANS(75)))))) -> 86.9286423 | DH50: =ROUND((150-DE50)/1.5,0)&" % closed orthogonal Y" -> 7 % closed orthogonal Y | DN50: aref | DT50: 7.214 | DU50: 7.214 | DV50: 140 | DW50: 110.3339085 | DX50: 70.47749663 | DY50: 15 % closed Semi-Orthogonal γ-Compressed Y | EB50: 15.406 | EC50: 15.406 | ED50: 140 | EE50: 97.51763029 | EF50: 84.16448826 | EG50: 15 % closed Semi-Orthogonal β-Compressed Y | EH50: 14.733 | EI50: 14.733 | EJ50: 140 | EK50: 96.40554977 | EL50: 69.78641269 | EM50: 22 % closed Semi-Oblique T | EO50: 12.501 | EP50: 12.501 | EQ50: 140 | ER50: 108.9373045 | ES50: 56.04864135 | ET50: 22 % closed Oblique T | EV50: 18.146 | EW50: 18.146 | EX50: 140 | EY50: 120.4916789 | EZ50: 42.15185455 | FA50: 22 % closed Inclined Y | FC50: 18.146 | FD50: 18.146 | FE50: 140 | FF50: 120.4916789 | FG50: 42.15185455 | FH50: 22 % closed Oblique Y
A51: Min4 (Cl.Tricl.42) | B51: =MIN(EB2:EB78) -> 14.202 | C51: =VLOOKUP(B51,EB2:EG78,6,FALSE) -> 9 % closed Semi-Orthogonal β-Compressed Y | D51: =VLOOKUP($B51,$EB2:$EG78,3,FALSE) -> 150 | E51: =VLOOKUP($B51,$EB2:$EG78,4,FALSE) -> 101.2360159 | F51: =VLOOKUP($B51,$EB2:$EG78,5,FALSE) -> 87.08720502 | H51: gamma | I51: =SMALL($A$29:$A$31,1) -> 73 | AR51: 19.201 | AS51: 19.201 | AT51: 150 | AU51: 120 | AV51: 40 | AW51: 83 % γ-folded Orthogonal Y | AY51: 11.705 | AZ51: 11.705 | BA51: 135 | BB51: 120 | BC51: 90 | BD51: 17 % γ-folded Semi-Orthogonal γ-Expanded Y | BV51: 77.442 | BW51: 77.442 | BX51: 50.33452441 | BY51: 35 | BZ51: 35 | CA51: 61 % closed T-shape | CB51: 84.429 | CC51: 84.429 | CD51: 39.91249961 | CE51: 30 | CF51: 30 | CG51: 69 % Closed 3/4 Expanded α-dominant Y | CH51: 96.253 | CI51: 96.253 | CJ51: 24.41123506 | CK51: 20 | CL51: 20 | CM51: 81 % Closed 1/2 Expanded α-dominant Y | CO51: 102.183 | CP51: 102.183 | CQ51: 16.67837266 | CR51: 15 | CS51: 15 | CT51: 87 % Closed 1/4 Expanded α-dominant Y | CV51: =IF(CW51=0,0.01,CW51) -> 39.013 | CW51: =ROUND((1/SQRT(3))*SQRT(($A$29-CX51)^2+($A$30-CY51)^2+($A$31-CZ51)^2),3) -> 39.013 | CX51: 120 | CY51: 60 | CZ51: 60 | DA51: 1/3 α-Expanded Arrow | DC51: 10.823 | DD51: 10.823 | DE51: 135 | DF51: 111.854673 | DG51: 85.11453102 | DH51: 10 % closed orthogonal Y | DL51: =IF(DM51=0,0.01,DM51) -> 19.545 | DM51: =ROUND((1/SQRT(3))*SQRT(($A$29-DN51)^2+($A$30-DO51)^2+($A$31-DP51)^2),3) -> 19.545 | DN51: 135 | DO51: 120 | DP51: 105 | DQ51: Semi-Orthogonal γ-Expanded Y | DT51: 10.253 | DU51: 10.253 | DV51: 135 | DW51: 107.6090986 | DX51: 69.12088978 | DY51: 18 % closed Semi-Orthogonal γ-Compressed Y | EB51: 17.013 | EC51: 17.013 | ED51: 135 | EE51: 95.34153428 | EF51: 82.43490573 | EG51: 18 % closed Semi-Orthogonal β-Compressed Y | EH51: 16.894 | EI51: 16.894 | EJ51: 135 | EK51: 94.2707281 | EL51: 68.44695355 | EM51: 25 % closed Semi-Oblique T | EO51: 14.841 | EP51: 14.841 | EQ51: 135 | ER51: 106.2799062 | ES51: 55.02469615 | ET51: 25 % closed Oblique T | EV51: 19.437 | EW51: 19.437 | EX51: 135 | EY51: 117.2005704 | EZ51: 41.40962211 | FA51: 25 % closed Inclined Y | FC51: 19.437 | FD51: 19.437 | FE51: 135 | FF51: 117.2005704 | FG51: 41.40962211 | FH51: 25 % closed Oblique Y
A52: Min 5 (Cl. Mon. Arrow) | B52: =MIN(CV2:CV155) -> 26.683 | C52: =VLOOKUP(B52,CV2:DA155,6,FALSE) -> 2/3 α-Expanded Arrow | D52: =VLOOKUP($B52,$CV2:$DA155,3,FALSE) -> 150 | E52: =VLOOKUP($B52,$CV2:$DA155,4,FALSE) -> 75 | F52: =VLOOKUP($B52,$CV2:$DA155,5,FALSE) -> 75 | G52: =IF(OR($I49>$K49,$I54>($K54+$M54)),"Not Pyramid, alpha too large",IF(SUM($I49:$I51)>360,"Not Pyramid, >360o",IF(AND($I49=$I50,$I49=$I51),"Right ",IF(OR(ROUNDDOWN($I66,2)=0,SUM($I49:$I51)=360),"Planar",IF(AND($I45>2,$J45>2,$K45>2),"Acute ",IF(OR(ROUND($I58,0)=90,$I49=ROUND($I46,0)),"Normal ",IF($I49<ROUND($I46,0),"Acute ","Obtuse "))))))) -> Acute | H52: =IF(AND($I49=$I50,$I49=$I51),"Trigonal ",IF(AND($I49=$I50,$I50>$I51),"Monoclinic ",IF(AND($I50=$I51,$I49>$I50),"Monoclinic ","Triclinic "))) -> Triclinic | I52: =IF(OR(G52="Obtuse ",G52="Normal ", G52="Acute ",G52="Right "),"Pyramid","") -> Pyramid | AR52: 22.068 | AS52: 22.068 | AT52: 150 | AU52: 120 | AV52: 35 | AW52: 92 % γ-folded Orthogonal Y | AY52: 9.416 | AZ52: 9.416 | BA52: 135 | BB52: 120 | BC52: 85 | BD52: 22 % γ-folded Semi-Orthogonal γ-Expanded Y | BV52: 83.169 | BW52: 83.169 | BX52: 42.94140286 | BY52: 30 | BZ52: 30 | CA52: 67 % closed T-shape | CB52: 89.91 | CC52: 89.91 | CD52: 33.16756541 | CE52: 25 | CF52: 25 | CG52: 74 % Closed 3/4 Expanded α-dominant Y | CH52: 101.506 | CI52: 101.506 | CJ52: 18.28826959 | CK52: 15 | CL52: 15 | CM52: 86 % Closed 1/2 Expanded α-dominant Y | CO52: 107.213 | CP52: 107.213 | CQ52: 11.11472649 | CR52: 10 | CS52: 10 | CT52: 91 % Closed 1/4 Expanded α-dominant Y | CV52: =IF(CW52=0,0.01,CW52) -> 41.278 | CW52: =ROUND((1/SQRT(3))*SQRT(($A$29-CX52)^2+($A$30-CY52)^2+($A$31-CZ52)^2),3) -> 41.278 | CX52: 115 | CY52: =2*DEGREES(ASIN(((SIN(RADIANS(CX52/2))*SIN(RADIANS($CY$51/2))/SIN(RADIANS($CX$51/2)))))) -> 58.27829554 | CZ52: =2*DEGREES(ASIN(((SIN(RADIANS(CX52/2))*SIN(RADIANS($CY$51/2))/SIN(RADIANS($CX$51/2)))))) -> 58.27829554 | DA52: =ROUND(100*($CX$51-CX52)/$CX$51,0)&" % Closed 1/3 α-Expanded Arrow" -> 4 % Closed 1/3 α-Expanded Arrow | DC52: 13.038 | DD52: 13.038 | DE52: 130 | DF52: 108.6962406 | DG52: 83.12909064 | DH52: 13 % closed orthogonal Y | DL52: =IF(DM52=0,0.01,DM52) -> 15.341 | DM52: =ROUND((1/SQRT(3))*SQRT(($A$29-DN52)^2+($A$30-DO52)^2+($A$31-DP52)^2),3) -> 15.341 | DN52: 130 | DO52: =2*DEGREES(ASIN(((SIN(RADIANS(DN52/2))*SIN(RADIANS($DO$51/2))/SIN(RADIANS($DN$51/2)))))) -> 116.3263896 | DP52: =2*DEGREES(ASIN(((SIN(RADIANS(DO52/2))*SIN(RADIANS($DP$51/2))/SIN(RADIANS($DN$51/2)))))) -> 93.69377433 | DQ52: =ROUND(100*($DN$2-DN52)/$DN$2,0)&" % closed Semi-Orthogonal γ-Expanded Y" -> 4 % closed Semi-Orthogonal γ-Expanded Y | DT52: 13.554 | DU52: 13.554 | DV52: 130 | DW52: 104.6815093 | DX52: 67.62626111 | DY52: 21 % closed Semi-Orthogonal γ-Compressed Y | EB52: 19.133 | EC52: 19.133 | ED52: 130 | EE52: 92.97542395 | EF52: 80.53939143 | EG52: 21 % closed Semi-Orthogonal β-Compressed Y | EH52: 19.463 | EI52: 19.463 | EJ52: 130 | EK52: 91.94763888 | EL52: 66.97090241 | EM52: 28 % closed Semi-Oblique T | EO52: 17.608 | EP52: 17.608 | EQ52: 130 | ER52: 103.4201917 | ES52: 53.89243053 | ET52: 28 % closed Oblique T | EV52: 21.289 | EW52: 21.289 | EX52: 130 | EY52: 113.7162173 | EZ52: 40.58696646 | FA52: 28 % closed Inclined Y | FC52: 21.289 | FD52: 21.289 | FE52: 130 | FF52: 113.7162173 | FG52: 40.58696646 | FH52: 28 % closed Oblique Y
A53: Min 6 (cl.Mon.180) | B53: =MIN(BV2:BV58) -> 21.626 | C53: =VLOOKUP(B53,BV2:CA58,6,FALSE) -> 17 % closed T-shape | D53: =VLOOKUP($B53,$BV2:$CA58,3,FALSE) -> 150 | E53: =VLOOKUP($B53,$BV2:$CA58,4,FALSE) -> 86.15903428 | F53: =VLOOKUP($B53,$BV2:$CA58,5,FALSE) -> 86.15903428 | H53: s1 | I53: =COS(RADIANS($I49/2)) -> 0.2923717047 | J53: s2 | K53: =COS(RADIANS($I50/2)) -> 0.4924235601 | L53: s3 | M53: =COS(RADIANS($I51/2)) -> 0.8038568606 | AR53: 24.94 | AS53: 24.94 | AT53: 150 | AU53: 120 | AV53: 30 | AW53: 60% oblique 2/3 α-Expanded Arrow | AY53: 7.55 | AZ53: 7.55 | BA53: 135 | BB53: 120 | BC53: 80 | BD53: 28 % γ-folded Semi-Orthogonal γ-Expanded Y | BV53: 88.877 | BW53: 88.877 | BX53: 35.64772704 | BY53: 25 | BZ53: 25 | CA53: 72 % closed T-shape | CB53: 95.387 | CC53: 95.387 | CD53: 26.47504372 | CE53: 20 | CF53: 20 | CG53: 79 % Closed 3/4 Expanded α-dominant Y | CH53: 106.766 | CI53: 106.766 | CJ53: 12.18271787 | CK53: 10 | CL53: 10 | CM53: 90 % Closed 1/2 Expanded α-dominant Y | CO53: 112.256 | CP53: =ROUND((1/SQRT(3))*SQRT(($A$29-CQ53)^2+($A$30-CR53)^2+($A$31-CS53)^2),3) -> 112.256 | CQ53: 5.556116359 | CR53: 5 | CS53: 5 | CT53: 96 % Closed 1/4 Expanded α-dominant Y | CV53: 43.729 | CW53: 43.729 | CX53: 110 | CY53: 56.45031112 | CZ53: 56.45031112 | DA53: 8 % Closed 1/3 α-Expanded Arrow | DC53: 15.804 | DD53: 15.804 | DE53: 125 | DF53: 105.3619382 | DG53: 80.98326581 | DH53: 17 % closed orthogonal Y | DL53: 16.75 | DM53: 16.75 | DN53: 125 | DO53: 112.4991423 | DP53: 91.12188602 | DQ53: 7 % closed Semi-Orthogonal γ-Expanded Y | DT53: 17.004 | DU53: 17.004 | DV53: 125 | DW53: 101.5742522 | DX53: 65.99978085 | DY53: 24 % closed Semi-Orthogonal γ-Compressed Y | EB53: 21.644 | EC53: 21.644 | ED53: 125 | EE53: 90.43490198 | EF53: 78.48790034 | EG53: 24 % closed Semi-Orthogonal β-Compressed Y | EH53: 22.321 | EI53: 22.321 | EJ53: 125 | EK53: 89.45132686 | EL53: 65.36428004 | EM53: 31 % closed Semi-Oblique T | EO53: 20.656 | EP53: 20.656 | EQ53: 125 | ER53: 100.38038 | ES53: 52.65551067 | ET53: 31 % closed Oblique T | EV53: 23.596 | EW53: 23.596 | EX53: 125 | EY53: 110.0677774 | EZ53: 39.68604901 | FA53: 31 % closed Inclined Y | FC53: 23.596 | FD53: 23.596 | FE53: 125 | FF53: 110.0677774 | FG53: 39.68604901 | FH53: 31 % closed Oblique Y
A54: Min 6 (cl.Mon.165) | B54: =MIN(CB2:CB100) -> 19.864 | C54: =VLOOKUP(B54,CB2:CG100,6,FALSE) -> 9 % Closed 3/4 Expanded α-dominant Y | D54: =VLOOKUP($B54,$CB2:$CG100,3,FALSE) -> 150 | E54: =VLOOKUP($B54,$CB2:$CG100,4,FALSE) -> 94.19076284 | F54: =VLOOKUP($B54,$CB2:$CG100,5,FALSE) -> 94.19076284 | H54: b1 | I54: =2*SIN(RADIANS($I49/2)) -> 1.912609512 | J54: b2 | K54: =2*SIN(RADIANS($I50/2)) -> 1.740711392 | L54: b3 | M54: =2*SIN(RADIANS($I51/2)) -> 1.189645574 | AY54: 6.481 | AZ54: 6.481 | BA54: 135 | BB54: 120 | BC54: 75 | BD54: 33 % γ-folded Semi-Orthogonal γ-Expanded Y | BV54: 94.573 | BW54: 94.573 | BX54: 28.43170582 | BY54: 20 | BZ54: 20 | CA54: 78 % closed T-shape | CB54: 100.864 | CC54: 100.864 | CD54: 19.82264826 | CE54: 15 | CF54: 15 | CG54: 85 % Closed 3/4 Expanded α-dominant Y | CH54: 112.035 | CI54: 112.035 | CJ54: 6.088547145 | CK54: 5 | CL54: 5 | CM54: 95 % Closed 1/2 Expanded α-dominant Y | CO54: 117.312 | CP54: 117.312 | CQ54: 0 | CR54: 0 | CS54: 0 | CT54: Closed Arrow | CV54: 46.339 | CW54: 46.339 | CX54: 105 | CY54: 54.52176524 | CZ54: 54.52176524 | DA54: 13 % Closed 1/3 α-Expanded Arrow | DC54: 18.922 | DD54: 18.922 | DE54: 120 | DF54: 101.8746578 | DG54: 78.68794722 | DH54: 20 % closed orthogonal Y | DL54: 18.868 | DM54: 18.868 | DN54: 120 | DO54: 108.5431939 | DP54: 88.39014425 | DQ54: 11 % closed Semi-Orthogonal γ-Expanded Y | DT54: 20.555 | DU54: 20.555 | DV54: 120 | DW54: 98.30826428 | DX54: 64.24782418 | DY54: 27 % closed Semi-Orthogonal γ-Compressed Y | EB54: 24.45 | EC54: 24.45 | ED54: 120 | EE54: 87.73496809 | EF54: 76.29041253 | EG54: 27 % closed Semi-Orthogonal β-Compressed Y | EH54: 25.388 | EI54: 25.388 | EJ54: 120 | EK54: 86.79631522 | EL54: 63.63331518 | EM54: 33 % closed Semi-Oblique T | EO54: 23.899 | EP54: 23.899 | EQ54: 120 | ER54: 97.18075578 | ES54: 51.31781255 | ET54: 33 % closed Oblique T | EV54: 26.259 | EW54: 26.259 | EX54: 120 | EY54: 106.2799062 | EZ54: 38.7091923 | FA54: 33 % closed Inclined Y | FC54: 26.259 | FD54: 26.259 | FE54: 120 | FF54: 106.2799062 | FG54: 38.7091923 | FH54: 33 % closed Oblique Y
A55: Min 6 (cl.Mon.150) | B55: =MIN(CH2:CH101) -> 13.766 | C55: =VLOOKUP(B55,CH2:CM101,6,FALSE) -> 10 % Closed 1/2 Constricted γ-dominant Y | D55: =VLOOKUP($B55,$CH2:$CM101,3,FALSE) -> 135 | E55: =VLOOKUP($B55,$CH2:$CM101,4,FALSE) -> 135 | F55: =VLOOKUP($B55,$CH2:$CM101,5,FALSE) -> 57.1404117 | H55: p | I55: =$I54+$K54+$M54 -> 4.842966477 | AY55: 6.608 | AZ55: 6.608 | BA55: 135 | BB55: 120 | BC55: 70 | BD55: 39 % γ-folded Semi-Orthogonal γ-Expanded Y | BV55: 100.26 | BW55: 100.26 | BX55: 21.27468175 | BY55: 15 | BZ55: 15 | CA55: 83 % closed T-shape | CB55: 106.342 | CC55: 106.342 | CD55: 13.19935377 | CE55: 10 | CF55: 10 | CG55: 90 % Closed 3/4 Expanded α-dominant Y | CH55: 117.312 | CI55: =ROUND((1/SQRT(3))*SQRT(($A$29-CJ55)^2+($A$30-CK55)^2+($A$31-CL55)^2),3) -> 117.312 | CJ55: 0 | CK55: 0 | CL55: 0 | CM55: Closed Arrow | CQ55: Monoclinic | CR55: g-dominant | CS55: a-ref | CV55: 49.088 | CW55: 49.088 | CX55: 100 | CY55: 52.49837419 | CZ55: 52.49837419 | DA55: 17 % Closed 1/3 α-Expanded Arrow | DC55: 22.278 | DD55: 22.278 | DE55: 115 | DF55: 98.2543781 | DG55: 76.25381762 | DH55: 23 % closed orthogonal Y | DL55: 21.529 | DM55: 21.529 | DN55: 115 | DO55: 104.4790345 | DP55: 85.51304456 | DQ55: 15 % closed Semi-Orthogonal γ-Expanded Y | DT55: 24.186 | DU55: 24.186 | DV55: 115 | DW55: 94.90228837 | DX55: 62.37689049 | DY55: 30 % closed Semi-Orthogonal γ-Compressed Y | EB55: 27.482 | EC55: 27.482 | ED55: 115 | EE55: 84.88983869 | EF55: 73.95679182 | EG55: 30 % closed Semi-Orthogonal β-Compressed Y | EH55: 28.613 | EI55: 28.613 | EJ55: 115 | EK55: 83.99642487 | EL55: 61.78436631 | EM55: 36 % closed Semi-Oblique T | EO55: 27.283 | EP55: 27.283 | EQ55: 115 | ER55: 93.83961039 | ES55: 49.88338387 | ET55: 36 % closed Oblique T | EV55: 29.194 | EW55: 29.194 | EX55: 115 | EY55: 102.3733275 | EZ55: 37.6588641 | FA55: 36 % closed Inclined Y | FC55: 29.194 | FD55: 29.194 | FE55: 115 | FF55: 102.3733275 | FG55: 37.6588641 | FH55: 36 % closed Oblique Y
A56: Min 6 (cl.Mon.135) | B56: =MIN(CO2:CO103) -> 13.629 | C56: =VLOOKUP(B56,CO2:CT103,6,FALSE) -> 4 % Closed 1/4 Constricted γ-dominant Y | D56: =VLOOKUP($B56,$CO2:$CT103,3,FALSE) -> 130 | E56: =VLOOKUP($B56,$CO2:$CT103,4,FALSE) -> 130 | F56: =VLOOKUP($B56,$CO2:$CT103,5,FALSE) -> 87.84073874 | H56: phalf | I56: =$I55/2 -> 2.421483239 | AY56: 7.874 | AZ56: 7.874 | BA56: 135 | BB56: 120 | BC56: 65 | BD56: 44 % γ-folded Semi-Orthogonal γ-Expanded Y | BV56: 105.943 | BW56: 105.943 | BX56: 14.16020247 | BY56: 10 | BZ56: 10 | CA56: 89 % closed T-shape | CB56: 111.824 | CC56: 111.824 | CD56: 6.595006314 | CE56: 5 | CF56: 5 | CG56: 95 % Closed 3/4 Expanded α-dominant Y | CJ56: Monoclinic | CK56: g-dominant | CL56: a-ref | CO56: =IF(CP56=0,0.01,CP56) -> 14.213 | CP56: =ROUND((1/SQRT(3))*SQRT(($A$29-CQ56)^2+($A$30-CR56)^2+($A$31-CS56)^2),3) -> 14.213 | CQ56: 135 | CR56: 135 | CS56: =(360-CQ56-CR56) -> 90 | CT56: 1/4 Constricted γ-dominant Y | CV56: 51.958 | CW56: 51.958 | CX56: 95 | CY56: 50.38581333 | CZ56: 50.38581333 | DA56: 21 % Closed 1/3 α-Expanded Arrow | DC56: 25.805 | DD56: 25.805 | DE56: 110 | DF56: 94.51842291 | DG56: 73.69123274 | DH56: 27 % closed orthogonal Y | DL56: 24.589 | DM56: 24.589 | DN56: 110 | DO56: 100.3235032 | DP56: 82.50413285 | DQ56: 19 % closed Semi-Orthogonal γ-Expanded Y | DT56: 27.885 | DU56: 27.885 | DV56: 110 | DW56: 91.37296176 | DX56: 60.39353124 | DY56: 33 % closed Semi-Orthogonal γ-Compressed Y | EB56: 30.692 | EC56: 30.692 | ED56: 110 | EE56: 81.91283657 | EF56: 71.49667273 | EG56: 33 % closed Semi-Orthogonal β-Compressed Y | EH56: 31.961 | EI56: 31.961 | EJ56: 110 | EK56: 81.06465928 | EL56: 59.82385164 | EM56: 39 % closed Semi-Oblique T | EO56: 30.775 | EP56: 30.775 | EQ56: 110 | ER56: 90.3732908 | ES56: 48.35640792 | ET56: 39 % closed Oblique T | EV56: 32.341 | EW56: 32.341 | EX56: 110 | EY56: 98.36541432 | EZ56: 36.53766145 | FA56: 39 % closed Inclined Y | FC56: 32.341 | FD56: 32.341 | FE56: 110 | FF56: 98.36541432 | FG56: 36.53766145 | FH56: 39 % closed Oblique Y
A57: Min 7 (cl.tri180105) | B57: =MIN(EH2:EH40) -> 12.339 | C57: =VLOOKUP(B57,EH2:EM40,6,FALSE) -> 5 % closed Semi-Oblique T | D57: =VLOOKUP($B57,$EH2:$EM40,3,FALSE) -> 149.8463358 | E57: =VLOOKUP($B57,$EH2:$EM40,4,FALSE) -> 100 | F57: =VLOOKUP($B57,$EH2:$EM40,5,FALSE) -> 72.00302027 | H57: Rcc | I57: =($I54*$K54*$M54)/(SQRT(($I55)*($I54+$K54-$M54)*($I54+$M54-$K54)*($M54+$K54-$I54))) -> 0.9740637994 | J57: Dcc | K57: =2*$I57 -> 1.948127599 | AY57: 9.849 | AZ57: 9.849 | BA57: 135 | BB57: 120 | BC57: 60 | BD57: 50 % γ-folded Semi-Orthogonal γ-Expanded Y | BV57: 111.625 | BW57: 111.625 | BX57: 7.073315169 | BY57: 5 | BZ57: 5 | CA57: 94 % closed T-shape | CB57: 117.312 | CC57: 117.312 | CD57: 0 | CE57: 0 | CF57: 0 | CG57: Closed Arrow | CH57: =IF(CI57=0,0.01,CI57) -> 18.493 | CI57: =ROUND((1/SQRT(3))*SQRT(($A$29-CJ57)^2+($A$30-CK57)^2+($A$31-CL57)^2),3) -> 18.493 | CJ57: 150 | CK57: 150 | CL57: =(360-CJ57-CK57) -> 60 | CM57: 1/2 Constricted γ-dominant Y | CO57: =IF(CP57=0,0.01,CP57) -> 13.629 | CP57: =ROUND((1/SQRT(3))*SQRT(($A$29-CQ57)^2+($A$30-CR57)^2+($A$31-CS57)^2),3) -> 13.629 | CQ57: 130 | CR57: 130 | CS57: =2*DEGREES(ASIN(((SIN(RADIANS(CQ57/2))*SIN(RADIANS($CS$56/2))/SIN(RADIANS($CQ$56/2)))))) -> 87.84073874 | CT57: =ROUND(100*($CR$56-CR57)/$CR$56,0)&" % Closed 1/4 Constricted γ-dominant Y" -> 4 % Closed 1/4 Constricted γ-dominant Y | CV57: 54.933 | CW57: 54.933 | CX57: 90 | CY57: 48.1896851 | CZ57: 48.1896851 | DA57: 25 % Closed 1/3 α-Expanded Arrow | DC57: 29.463 | DD57: 29.463 | DE57: 105 | DF57: 90.68175792 | DG57: 71.01013443 | DH57: 30 % closed orthogonal Y | DL57: 27.941 | DM57: 27.941 | DN57: 105 | DO57: 96.09047025 | DP57: 79.37595731 | DQ57: 22 % closed Semi-Orthogonal γ-Expanded Y | DT57: 31.641 | DU57: 31.641 | DV57: 105 | DW57: 87.73496809 | DX57: 58.30428743 | DY57: 36 % closed Semi-Orthogonal γ-Compressed Y | EB57: 34.045 | EC57: 34.045 | ED57: 105 | EE57: 78.81633689 | EF57: 68.91937438 | EG57: 36 % closed Semi-Orthogonal β-Compressed Y | EH57: 35.408 | EI57: 35.408 | EJ57: 105 | EK57: 78.01314321 | EL57: 57.75818803 | EM57: 42 % closed Semi-Oblique T | EO57: 34.353 | EP57: 34.353 | EQ57: 105 | ER57: 86.79631522 | ES57: 46.74116957 | ET57: 42 % closed Oblique T | EV57: 35.652 | EW57: 35.652 | EX57: 105 | EY57: 94.2707281 | EZ57: 35.34829511 | FA57: 42 % closed Inclined Y | FC57: 35.652 | FD57: 35.652 | FE57: 105 | FF57: 94.2707281 | FG57: 35.34829511 | FH57: 42 % closed Oblique Y
A58: Min 7 (cl.tri180120) | B58: =MIN(EO2:EO40) -> 10.209 | C58: =VLOOKUP(B58,EO2:ET40,6,FALSE) -> 4 % closed Oblique T | D58: =VLOOKUP($B58,$EO2:$ET40,3,FALSE) -> 153.7437317 | E58: =VLOOKUP($B58,$EO2:$ET40,4,FALSE) -> 115 | F58: =VLOOKUP($B58,$EO2:$ET40,5,FALSE) -> 58.27829554 | H58: ALPHA' | I58: =DEGREES(ASIN(ROUND($I54,3)/ROUND($K57,3))) -> 79.12248774 | J58: anew | K58: =ROUND(2*$I58,0) -> 158 | L58: =DEGREES(ACOS((2-$I$54^2)/2)) -> 146 | AY58: 12.193 | AZ58: 12.193 | BA58: 135 | BB58: 120 | BC58: 55 | BD58: 56 % γ-folded Semi-Orthogonal γ-Expanded Y | BV58: 117.312 | BW58: 117.312 | BX58: 0 | BY58: 0 | BZ58: 0 | CA58: Closed Arrow | CD58: Monoclinic | CE58: g-dominant | CF58: a-ref | CH58: =IF(CI58=0,0.01,CI58) -> 16.004 | CI58: =ROUND((1/SQRT(3))*SQRT(($A$29-CJ58)^2+($A$30-CK58)^2+($A$31-CL58)^2),3) -> 16.004 | CJ58: 145 | CK58: 145 | CL58: =2*DEGREES(ASIN(((SIN(RADIANS(CJ58/2))*SIN(RADIANS($CL$57/2))/SIN(RADIANS($CJ$57/2)))))) -> 59.16552042 | CM58: =ROUND(100*($CK$57-CK58)/$CK$57,0)&" % Closed 1/2 Constricted γ-dominant Y" -> 3 % Closed 1/2 Constricted γ-dominant Y | CO58: 14.301 | CP58: 14.301 | CQ58: 125 | CR58: 125 | CS58: 85.51372618 | CT58: 7 % Closed 1/4 Constricted γ-dominant Y | CV58: 58.001 | CW58: 58.001 | CX58: 85 | CY58: 45.91549349 | CZ58: 45.91549349 | DA58: 29 % Closed 1/3 α-Expanded Arrow | DC58: 33.224 | DD58: 33.224 | DE58: 100 | DF58: 86.75729008 | DG58: 68.21999217 | DH58: 33 % closed orthogonal Y | DL58: 31.512 | DM58: 31.512 | DN58: 100 | DO58: 91.79140247 | DP58: 76.14006433 | DQ58: 26 % closed Semi-Orthogonal γ-Expanded Y | DT58: 35.449 | DU58: 35.449 | DV58: 100 | DW58: 84.00122043 | DX58: 56.11563678 | DY58: 39 % closed Semi-Orthogonal γ-Compressed Y | EB58: 37.514 | EC58: 37.514 | ED58: 100 | EE58: 75.61175648 | EF58: 66.23383875 | EG58: 39 % closed Semi-Orthogonal β-Compressed Y | EH58: 38.938 | EI58: 38.938 | EJ58: 100 | EK58: 74.85310339 | EL58: 55.5937392 | EM58: 44 % closed Semi-Oblique T | EO58: 38.002 | EP58: 38.002 | EQ58: 100 | ER58: 83.12152514 | ES58: 45.04202424 | ET58: 44 % closed Oblique T | EV58: 39.091 | EW58: 39.091 | EX58: 100 | EY58: 90.10149273 | EZ58: 34.09357441 | FA58: 44 % closed Inclined Y | FC58: 39.091 | FD58: 39.091 | FE58: 100 | FF58: 90.10149273 | FG58: 34.09357441 | FH58: 44 % closed Oblique Y
A59: Min 7 (cl.tri180135) | B59: =MIN(EV2:EV40) -> 9.352 | C59: =VLOOKUP(B59,EV2:FA40,6,FALSE) -> 7 % closed Inclined Y | D59: =VLOOKUP($B59,$EV2:$FA40,3,FALSE) -> 147.5179219 | E59: =VLOOKUP($B59,$EV2:$FA40,4,FALSE) -> 125 | F59: =VLOOKUP($B59,$EV2:$FA40,5,FALSE) -> 57.37691776 | H59: BETA' | I59: =DEGREES(ASIN(ROUND($K54,2)/ROUND($K57,2))) -> 63.16467835 | J59: bnew | K59: =ROUND(2*$I59,0) -> 126 | L59: =DEGREES(ACOS((2-$K$54^2)/2)) -> 121 | AY59: 14.731 | AZ59: 14.731 | BA59: 135 | BB59: 120 | BC59: 50 | BD59: 61 % γ-folded Semi-Orthogonal γ-Expanded Y | CB59: =IF(CC59=0,0.01,CC59) -> 37.175 | CC59: =ROUND((1/SQRT(3))*SQRT(($A$29-CD59)^2+($A$30-CE59)^2+($A$31-CF59)^2),3) -> 37.175 | CD59: 165 | CE59: 165 | CF59: =(360-CD59-CE59) -> 30 | CG59: 3/4 Constricted γ-dominant Y | CH59: 14.326 | CI59: 14.326 | CJ59: 140 | CK59: 140 | CL59: 58.21118877 | CM59: 7 % Closed 1/2 Constricted γ-dominant Y | CO59: 16.1 | CP59: 16.1 | CQ59: 120 | CR59: 120 | CS59: 83.03169052 | CT59: 11 % Closed 1/4 Constricted γ-dominant Y | CV59: 61.15 | CW59: 61.15 | CX59: 80 | CY59: 43.56862449 | CZ59: 43.56862449 | DA59: 33 % Closed 1/3 α-Expanded Arrow | DC59: 37.069 | DD59: 37.069 | DE59: 95 | DF59: 82.75614993 | DG59: 65.32976857 | DH59: 37 % closed orthogonal Y | DL59: 35.25 | DM59: 35.25 | DN59: 95 | DO59: 87.43582462 | DP59: 72.80702586 | DQ59: 30 % closed Semi-Orthogonal γ-Expanded Y | DT59: 39.304 | DU59: 39.304 | DV59: 95 | DW59: 80.18305365 | DX59: 53.83395065 | DY59: 42 % closed Semi-Orthogonal γ-Compressed Y | EB59: 41.081 | EC59: 41.081 | ED59: 95 | EE59: 72.30957445 | EF59: 63.44859027 | EG59: 42 % closed Semi-Orthogonal β-Compressed Y | EH59: 42.538 | EI59: 42.538 | EJ59: 95 | EK59: 71.5948803 | EL59: 53.33677315 | EM59: 47 % closed Semi-Oblique T | EO59: 41.71 | EP59: 41.71 | EQ59: 95 | ER59: 79.3602525 | ES59: 43.26336983 | ET59: 47 % closed Oblique T | EV59: 42.635 | EW59: 42.635 | EX59: 95 | EY59: 85.86799882 | EZ59: 32.77639291 | FA59: 47 % closed Inclined Y | FC59: 42.635 | FD59: 42.635 | FE59: 95 | FF59: 85.86799882 | FG59: 32.77639291 | FH59: 47 % closed Oblique Y
A60: Min 7 (cl.tri180150) | B60: =MIN(FC2:FC40) -> 26.696 | C60: =VLOOKUP(B60,FC2:FH40,6,FALSE) -> 13 % closed Oblique Y | D60: =VLOOKUP($B60,$FC2:$FH40,3,FALSE) -> 139.5289885 | E60: =VLOOKUP($B60,$FC2:$FH40,4,FALSE) -> 130 | F60: =VLOOKUP($B60,$FC2:$FH40,5,FALSE) -> 28.10896504 | H60: GAMMA' | I60: =DEGREES(ASIN(ROUND($M54,2)/ROUND($K57,2))) -> 37.60804541 | J60: gnew | K60: =ROUND(2*$I60,0) -> 75 | L60: =DEGREES(ACOS((2-$M$54^2)/2)) -> 73 | AY60: 17.378 | AZ60: 17.378 | BA60: 135 | BB60: 120 | BC60: 45 | BD60: 67 % γ-folded Semi-Orthogonal γ-Expanded Y | CB60: =IF(CC60=0,0.01,CC60) -> 34.563 | CC60: =ROUND((1/SQRT(3))*SQRT(($A$29-CD60)^2+($A$30-CE60)^2+($A$31-CF60)^2),3) -> 34.563 | CD60: 160 | CE60: 160 | CF60: =2*DEGREES(ASIN(((SIN(RADIANS(CD60/2))*SIN(RADIANS($CF$59/2))/SIN(RADIANS($CD$59/2)))))) -> 29.79450024 | CG60: =ROUND(100*($CE$59-CE60)/$CE$59,0)&" % Closed 3/4 Constricted γ-dominant Y" -> 3 % Closed 3/4 Constricted γ-dominant Y | CH60: 13.766 | CI60: 13.766 | CJ60: 135 | CK60: 135 | CL60: 57.1404117 | CM60: 10 % Closed 1/2 Constricted γ-dominant Y | CO60: 18.725 | CP60: 18.725 | CQ60: 115 | CR60: 115 | CS60: 80.40692835 | CT60: 15 % Closed 1/4 Constricted γ-dominant Y | CV60: 64.37 | CW60: 64.37 | CX60: 75 | CY60: 41.1543321 | CZ60: 41.1543321 | DA60: 38 % Closed 1/3 α-Expanded Arrow | DC60: 40.987 | DD60: 40.987 | DE60: 90 | DF60: 78.68794722 | DG60: 62.34790439 | DH60: 40 % closed orthogonal Y | DL60: 39.118 | DM60: 39.118 | DN60: 90 | DO60: 83.03169052 | DP60: 69.38648785 | DQ60: 33 % closed Semi-Orthogonal γ-Expanded Y | DT60: 43.2 | DU60: 43.2 | DV60: 90 | DW60: 76.29041253 | DX60: 51.46546007 | DY60: 45 % closed Semi-Orthogonal γ-Compressed Y | EB60: 44.732 | EC60: 44.732 | ED60: 90 | EE60: 68.91937438 | EF60: 60.57171321 | EG60: 45 % closed Semi-Orthogonal β-Compressed Y | EH60: 46.199 | EI60: 46.199 | EJ60: 90 | EK60: 68.24796184 | EL60: 50.9934284 | EM60: 50 % closed Semi-Oblique T | EO60: 45.469 | EP60: 45.469 | EQ60: 90 | ER60: 75.52248781 | ES60: 41.40962211 | ET60: 50 % closed Oblique T | EV60: 46.262 | EW60: 46.262 | EX60: 90 | EY60: 81.57894188 | EZ60: 31.39971481 | FA60: 50 % closed Inclined Y | FC60: 46.262 | FD60: 46.262 | FE60: 90 | FF60: 81.57894188 | FG60: 31.39971481 | FH60: 50 % closed Oblique Y
A61: Min 7 (cl.tri180165) | B61: =MIN(FJ2:FJ40) -> 35.371 | C61: =VLOOKUP(B61,FJ2:FO40,6,FALSE) -> 18 % closed Semi-Oblique Y | D61: =VLOOKUP($B61,$FJ2:$FO40,3,FALSE) -> 137.4506365 | E61: =VLOOKUP($B61,$FJ2:$FO40,4,FALSE) -> 135 | F61: =VLOOKUP($B61,$FJ2:$FO40,5,FALSE) -> 13.97248869 | H61: Area | I61: =SQRT(($I56)*($I56-$I54)*($I56-$K54)*($I56-$M54)) -> 1.016537212 | AY61: 20.091 | AZ61: 20.091 | BA61: 135 | BB61: 120 | BC61: 40 | BD61: 72 % γ-folded Semi-Orthogonal γ-Expanded Y | CB61: 32.283 | CC61: 32.283 | CD61: 155 | CE61: 155 | CF61: 29.5311008 | CG61: 6 % Closed 3/4 Constricted γ-dominant Y | CH61: 14.462 | CI61: 14.462 | CJ61: 130 | CK61: 130 | CL61: 55.95689939 | CM61: 13 % Closed 1/2 Constricted γ-dominant Y | CO61: 21.899 | CP61: 21.899 | CQ61: 110 | CR61: 110 | CS61: 77.6511811 | CT61: 19 % Closed 1/4 Constricted γ-dominant Y | CV61: 67.653 | CW61: 67.653 | CX61: 70 | CY61: 38.67772905 | CZ61: 38.67772905 | DA61: 42 % Closed 1/3 α-Expanded Arrow | DC61: 44.966 | DD61: 44.966 | DE61: 85 | DF61: 74.5609964 | DG61: 59.282319 | DH61: 43 % closed orthogonal Y | DL61: 43.091 | DM61: 43.091 | DN61: 85 | DO61: 78.58568075 | DP61: 65.88723168 | DQ61: 37 % closed Semi-Orthogonal γ-Expanded Y | DT61: 47.134 | DU61: 47.134 | DV61: 85 | DW61: 72.33202782 | DX61: 49.01623019 | DY61: 48 % closed Semi-Orthogonal γ-Compressed Y | EB61: 48.455 | EC61: 48.455 | ED61: 85 | EE61: 65.4499 | EF61: 57.61084369 | EG61: 48 % closed Semi-Orthogonal β-Compressed Y | EH61: 49.913 | EI61: 49.913 | EJ61: 85 | EK61: 64.82103132 | EL61: 48.56968829 | EM61: 53 % closed Semi-Oblique T | EO61: 49.271 | EP61: 49.271 | EQ61: 85 | ER61: 71.61704098 | ES61: 39.48519338 | ET61: 53 % closed Oblique T | EV61: 49.959 | EW61: 49.959 | EX61: 85 | EY61: 77.24170199 | EZ61: 29.96656249 | FA61: 53 % closed Inclined Y | FC61: 49.959 | FD61: 49.959 | FE61: 85 | FF61: 77.24170199 | FG61: 29.96656249 | FH61: 53 % closed Oblique Y
G62: Alt X1 | H62: Ric | I62: =2*$I61/$I55 -> 0.4197994004 | AY62: 22.847 | AZ62: 22.847 | BA62: 135 | BB62: 120 | BC62: 35 | BD62: 78 % γ-folded Semi-Orthogonal γ-Expanded Y | CB62: 30.411 | CC62: 30.411 | CD62: 150 | CE62: 150 | CF62: 29.21040668 | CG62: 9 % Closed 3/4 Constricted γ-dominant Y | CH62: 16.26 | CI62: 16.26 | CJ62: 125 | CK62: 125 | CL62: 54.66462087 | CM62: 17 % Closed 1/2 Constricted γ-dominant Y | CO62: 25.431 | CP62: 25.431 | CQ62: 105 | CR62: 105 | CS62: 74.77555494 | CT62: 22 % Closed 1/4 Constricted γ-dominant Y | CV62: 70.993 | CW62: 70.993 | CX62: 65 | CY62: 36.1437819 | CZ62: 36.1437819 | DA62: 46 % Closed 1/3 α-Expanded Arrow | DC62: 48.998 | DD62: 48.998 | DE62: 80 | DF62: 70.38251214 | DG62: 56.14042241 | DH62: 47 % closed orthogonal Y | DL62: 47.15 | DM62: 47.15 | DN62: 80 | DO62: 74.10344067 | DP62: 62.31724248 | DQ62: 41 % closed Semi-Orthogonal γ-Expanded Y | DT62: 51.102 | DU62: 51.102 | DV62: 80 | DW62: 68.31557639 | DX62: 46.49214237 | DY62: 52 % closed Semi-Orthogonal γ-Compressed Y | EB62: 52.241 | EC62: 52.241 | ED62: 80 | EE62: 61.90911857 | EF62: 54.57317305 | EG62: 52 % closed Semi-Orthogonal β-Compressed Y | EH62: 53.674 | EI62: 53.674 | EJ62: 80 | EK62: 61.32202404 | EL62: 46.07136273 | EM62: 56 % closed Semi-Oblique T | EO62: 53.112 | EP62: 53.112 | EQ62: 80 | ER62: 67.65168994 | ES62: 37.4944745 | ET62: 56 % closed Oblique T | EV62: 53.713 | EW62: 53.713 | EX62: 80 | EY62: 72.86257357 | EZ62: 28.48000499 | FA62: 56 % closed Inclined Y | FC62: 53.713 | FD62: 53.713 | FE62: 80 | FF62: 72.86257357 | FG62: 28.48000499 | FH62: 56 % closed Oblique Y
G63: =$I57*SIN(RADIANS(DEGREES(ACOS(($I54/2)/$I57)))) -> 0.1851526373 | H63: X1 | I63: =SQRT(ROUND($I57,5)^2-(ROUND($I54,5)/2)^2) -> 0.1851313873 | J63: X2 | K63: =SQRT($I57^2-(K54/2)^2) -> 0.4373571171 | L63: X3 | M63: =SQRT($I57^2-($M54/2)^2) -> 0.7713534454 | AY63: 25.632 | AZ63: 25.632 | BA63: 135 | BB63: 120 | BC63: 30 | BD63: 83 % γ-folded Semi-Orthogonal γ-Expanded Y | CB63: 29.027 | CC63: 29.027 | CD63: 145 | CE63: 145 | CF63: 28.83315089 | CG63: 12 % Closed 3/4 Constricted γ-dominant Y | CH63: 18.853 | CI63: 18.853 | CJ63: 120 | CK63: 120 | CL63: 53.26775967 | CM63: 20 % Closed 1/2 Constricted γ-dominant Y | CO63: 29.203 | CP63: 29.203 | CQ63: 100 | CR63: 100 | CS63: 71.79047651 | CT63: 26 % Closed 1/4 Constricted γ-dominant Y | CV63: 74.382 | CW63: 74.382 | CX63: 60 | CY63: 33.55730976 | CZ63: 33.55730976 | DA63: 50 % Closed 1/3 α-Expanded Arrow | DC63: 53.077 | DD63: 53.077 | DE63: 75 | DF63: 66.15877696 | DG63: 52.92913598 | DH63: 50 % closed orthogonal Y | DL63: 51.28 | DM63: 51.28 | DN63: 75 | DO63: 69.58977108 | DP63: 58.68377984 | DQ63: 44 % closed Semi-Orthogonal γ-Expanded Y | DT63: 55.102 | DU63: 55.102 | DV63: 75 | DW63: 64.24782418 | DX63: 43.89888285 | DY63: 55 % closed Semi-Orthogonal γ-Compressed Y | EB63: 56.082 | EC63: 56.082 | ED63: 75 | EE63: 58.30428743 | EF63: 51.46546007 | EG63: 55 % closed Semi-Orthogonal β-Compressed Y | EH63: 57.476 | EI63: 57.476 | EJ63: 75 | EK63: 57.75818803 | EL63: 43.50407632 | EM63: 58 % closed Semi-Oblique T | EO63: 56.987 | EP63: 56.987 | EQ63: 75 | ER63: 63.63331518 | ES63: 35.44182019 | ET63: 58 % closed Oblique T | EV63: 57.515 | EW63: 57.515 | EX63: 75 | EY63: 68.44695355 | EZ63: 26.94314768 | FA63: 58 % closed Inclined Y | FC63: 57.515 | FD63: 57.515 | FE63: 75 | FF63: 68.44695355 | FG63: 26.94314768 | FH63: 58 % closed Oblique Y
A64: Min | B64: =MIN(B42:B61) -> 1.414 | H64: Y1 | I64: =$I62/TAN(RADIANS($I59/2)) -> 0.6828457155 | J64: Y2 | K64: =$I62/TAN(RADIANS($I60/2)) -> 1.232868897 | L64: Y3 | M64: =$I62/TAN(RADIANS($I58/2)) -> 0.5081497562 | AY64: 28.437 | AZ64: 28.437 | BA64: 135 | BB64: 120 | BC64: 25 | BD64: 89 % γ-folded Semi-Orthogonal γ-Expanded Y | CB64: 28.202 | CC64: 28.202 | CD64: 140 | CE64: 140 | CF64: 28.40019071 | CG64: 15 % Closed 3/4 Constricted γ-dominant Y | CH64: 21.967 | CI64: 21.967 | CJ64: 115 | CK64: 115 | CL64: 51.77067093 | CM64: 23 % Closed 1/2 Constricted γ-dominant Y | CO64: 33.143 | CP64: 33.143 | CQ64: 95 | CR64: 95 | CS64: 68.70567726 | CT64: 30 % Closed 1/4 Constricted γ-dominant Y | CV64: 77.815 | CW64: 77.815 | CX64: 55 | CY64: 30.92298615 | CZ64: 30.92298615 | DA64: 54 % Closed 1/3 α-Expanded Arrow | DC64: 57.197 | DD64: 57.197 | DE64: 70 | DF64: 61.89528406 | DG64: 49.65491887 | DH64: 53 % closed orthogonal Y | DL64: 55.47 | DM64: 55.47 | DN64: 70 | DO64: 65.04878116 | DP64: 54.99344807 | DQ64: 48 % closed Semi-Orthogonal γ-Expanded Y | DT64: 59.13 | DU64: 59.13 | DV64: 70 | DW64: 60.13475223 | DX64: 41.24193721 | DY64: 58 % closed Semi-Orthogonal γ-Compressed Y | EB64: 59.972 | EC64: 59.972 | ED64: 70 | EE64: 54.64202074 | EF64: 48.29404955 | EG64: 58 % closed Semi-Orthogonal β-Compressed Y | EH64: 61.316 | EI64: 61.316 | EJ64: 70 | EK64: 54.13614594 | EL64: 40.87326213 | EM64: 61 % closed Semi-Oblique T | EO64: 60.892 | EP64: 60.892 | EQ64: 70 | ER64: 59.56801968 | ES64: 33.33153735 | ET64: 61 % closed Oblique T | EV64: 61.359 | EW64: 61.359 | EX64: 70 | EY64: 63.9994954 | EZ64: 25.3591231 | FA64: 61 % closed Inclined Y | FC64: 61.359 | FD64: 61.359 | FE64: 70 | FF64: 63.9994954 | FG64: 25.3591231 | FH64: 61 % closed Oblique Y
A65: Name | B65: =VLOOKUP(B64,B42:C61,2,FALSE) -> 17 % α-folded Semi-Orthogonal γ-Compressed Y | H65: Z1 | I65: =($I54/2)-$I64 -> 0.2734590404 | J65: Z2 | K65: =SQRT($I65^2+$M65^2) -> 0.3603455607 | L65: Z3 | M65: =IF(G52="obtuse",($I62+$I63),($I62-$I63)) -> 0.2346680131 | AY65: 31.257 | AZ65: 31.257 | BA65: 135 | BB65: 120 | BC65: 20 | BD65: 94 % γ-folded Semi-Orthogonal γ-Expanded Y | CB65: 27.987 | CC65: 27.987 | CD65: 135 | CE65: 135 | CF65: 27.9125035 | CG65: 18 % Closed 3/4 Constricted γ-dominant Y | CH65: 25.416 | CI65: 25.416 | CJ65: 110 | CK65: 110 | CL65: 50.17784077 | CM65: 27 % Closed 1/2 Constricted γ-dominant Y | CO65: 37.206 | CP65: 37.206 | CQ65: 90 | CR65: 90 | CS65: 65.53019948 | CT65: 33 % Closed 1/4 Constricted γ-dominant Y | CV65: 81.286 | CW65: 81.286 | CX65: 50 | CY65: 28.24534342 | CZ65: 28.24534342 | DA65: 58 % Closed 1/3 α-Expanded Arrow | DC65: 61.353 | DD65: 61.353 | DE65: 65 | DF65: 57.59685848 | DG65: 46.32379844 | DH65: 57 % closed orthogonal Y | DL65: 59.711 | DM65: 59.711 | DN65: 65 | DO65: 60.48401168 | DP65: 51.25226386 | DQ65: 52 % closed Semi-Orthogonal γ-Expanded Y | DT65: 63.184 | DU65: 63.184 | DV65: 65 | DW65: 55.98166676 | DX65: 38.52658956 | DY65: 61 % closed Semi-Orthogonal γ-Compressed Y | EB65: 63.905 | EC65: 63.905 | ED65: 65 | EE65: 50.92835434 | EF65: 45.06489544 | EG65: 61 % closed Semi-Orthogonal β-Compressed Y | EH65: 65.189 | EI65: 65.189 | EJ65: 65 | EK65: 50.46195582 | EL65: 38.18416023 | EM65: 64 % closed Semi-Oblique T | EO65: 64.823 | EP65: 64.823 | EQ65: 65 | ER65: 55.4612347 | ES65: 31.16787625 | ET65: 64 % closed Oblique T | EV65: 65.237 | EW65: 65.237 | EX65: 65 | EY65: 59.52423537 | EZ65: 23.73108294 | FA65: 64 % closed Inclined Y | FC65: 65.237 | FD65: 65.237 | FE65: 65 | FF65: 59.52423537 | FG65: 23.73108294 | FH65: 64 % closed Oblique Y
A66: a | B66: =ROUND(VLOOKUP($B64,$B$42:$F$61,3,FALSE),0) -> 145 | H66: h | I66: =SQRT(ROUND($I53,3)^2-ROUND($I63,3)^2) -> 0.2259181268 | K66: =($K54/2)-($I62/TAN(RADIANS($I58/2))) -> 0.3622059398 | AY66: 34.088 | AZ66: 34.088 | BA66: 135 | BB66: 120 | BC66: 15 | BD66: near 5/9 α-Expanded Arrow (77.78 % oblique) | CB66: 28.396 | CC66: 28.396 | CD66: 130 | CE66: 130 | CF66: 27.37118198 | CG66: 21 % Closed 3/4 Constricted γ-dominant Y | CH66: 29.084 | CI66: 29.084 | CJ66: 105 | CK66: 105 | CL66: 48.49384864 | CM66: 30 % Closed 1/2 Constricted γ-dominant Y | CO66: 41.361 | CP66: 41.361 | CQ66: 85 | CR66: 85 | CS66: 62.27241819 | CT66: 37 % Closed 1/4 Constricted γ-dominant Y | CV66: 84.792 | CW66: 84.792 | CX66: 45 | CY66: 25.52877937 | CZ66: 25.52877937 | DA66: 63 % Closed 1/3 α-Expanded Arrow | DC66: 65.542 | DD66: 65.542 | DE66: 60 | DF66: 53.26775967 | DG66: 42.94140286 | DH66: 60 % closed orthogonal Y | DL66: 63.995 | DM66: 63.995 | DN66: 60 | DO66: 55.89853468 | DP66: 47.46572026 | DQ66: 56 % closed Semi-Orthogonal γ-Expanded Y | DT66: 67.262 | DU66: 67.262 | DV66: 60 | DW66: 51.79329486 | DX66: 35.75792584 | DY66: 64 % closed Semi-Orthogonal γ-Compressed Y | EB66: 67.876 | EC66: 67.876 | ED66: 60 | EE66: 47.16880739 | EF66: 41.78358697 | EG66: 64 % closed Semi-Orthogonal β-Compressed Y | EH66: 69.092 | EI66: 69.092 | EJ66: 60 | EK66: 46.74116957 | EL66: 35.44182019 | EM66: 67 % closed Semi-Oblique T | EO66: 68.779 | EP66: 68.779 | EQ66: 60 | ER66: 51.31781255 | ES66: 28.95502437 | ET66: 67 % closed Oblique T | EV66: 69.146 | EW66: 69.146 | EX66: 60 | EY66: 55.02469615 | EZ66: 22.06219116 | FA66: 67 % closed Inclined Y | FC66: 69.146 | FD66: 69.146 | FE66: 60 | FF66: 55.02469615 | FG66: 22.06219116 | FH66: 67 % closed Oblique Y
A67: b | B67: =ROUND(VLOOKUP($B64,$B$42:$F$61,4,FALSE),0) -> 120 | H67: (f1)incl | I67: =IF(G52="Obtuse ",180-DEGREES(ASIN($I66/$I53)),IF(G52="Normal ",90,DEGREES(ASIN($I66/$I53)))) -> 50.59774455 | J67: (f2)incl | K67: =DEGREES(ASIN($I66/$K53)) -> 27.30894092 | L67: (f3)incl | M67: =DEGREES(ASIN($I66/$M53)) -> 16.32244795 | CB67: 29.403 | CC67: 29.403 | CD67: 125 | CE67: 125 | CF67: 26.7774291 | CG67: 24 % Closed 3/4 Constricted γ-dominant Y | CH67: 32.901 | CI67: 32.901 | CJ67: 100 | CK67: 100 | CL67: 46.72333308 | CM67: 33 % Closed 1/2 Constricted γ-dominant Y | CO67: 45.588 | CP67: 45.588 | CQ67: 80 | CR67: 80 | CS67: 58.94007398 | CT67: 41 % Closed 1/4 Constricted γ-dominant Y | CV67: 88.329 | CW67: 88.329 | CX67: 40 | CY67: 22.77756558 | CZ67: 22.77756558 | DA67: 67 % Closed 1/3 α-Expanded Arrow | DC67: =IF(DD67=0,0.01,DD67) -> 69.759 | DD67: =ROUND((1/SQRT(3))*SQRT(($A$29-DE67)^2+($A$30-DF67)^2+($A$31-DG67)^2),3) -> 69.759 | DE67: 55 | DF67: 48.91176844 | DG67: 39.51299469 | DH67: 63 % closed orthogonal Y | DL67: 68.318 | DM67: 68.318 | DN67: 55 | DO67: 51.29503449 | DP67: 43.63884631 | DQ67: 59 % closed Semi-Orthogonal γ-Expanded Y | DT67: 71.361 | DU67: 71.361 | DV67: 55 | DW67: 47.57386748 | DX67: 32.94084031 | DY67: 67 % closed Semi-Orthogonal γ-Compressed Y | EB67: 71.882 | EC67: 71.882 | ED67: 55 | EE67: 43.36844025 | EF67: 38.45537651 | EG67: 67 % closed Semi-Orthogonal β-Compressed Y | EH67: 73.021 | EI67: 73.021 | EJ67: 55 | EK67: 42.97888818 | EL67: 32.65110682 | EM67: 69 % closed Semi-Oblique T | EO67: 72.755 | EP67: 72.755 | EQ67: 55 | ER67: 47.14210762 | ES67: 26.69710257 | ET67: 69 % closed Oblique T | EV67: 73.08 | EW67: 73.08 | EX67: 55 | EY67: 50.50397236 | EZ67: 20.35561824 | FA67: 69 % closed Inclined Y | FC67: 73.08 | FD67: 73.08 | FE67: 55 | FF67: 50.50397236 | FG67: 20.35561824 | FH67: 69 % closed Oblique Y
A68: g | B68: =ROUND(VLOOKUP($B64,$B$42:$F$61,5,FALSE),0) -> 75 | CB68: 30.949 | CC68: 30.949 | CD68: 120 | CE68: 120 | CF68: 26.13255267 | CG68: 27 % Closed 3/4 Constricted γ-dominant Y | CH68: 36.825 | CI68: 36.825 | CJ68: 95 | CK68: 95 | CL68: 44.87096134 | CM68: 37 % Closed 1/2 Constricted γ-dominant Y | CO68: 49.873 | CP68: 49.873 | CQ68: 75 | CR68: 75 | CS68: 55.54031281 | CT68: 44 % Closed 1/4 Constricted γ-dominant Y | CV68: 91.892 | CW68: 91.892 | CX68: 35 | CY68: 19.99585723 | CZ68: 19.99585723 | DA68: 71 % Closed 1/3 α-Expanded Arrow | DC68: 74.002 | DD68: 74.002 | DE68: 50 | DF68: 44.53226069 | DG68: 36.04350458 | DH68: 67 % closed orthogonal Y | DL68: 72.673 | DM68: 72.673 | DN68: 50 | DO68: 46.67587413 | DP68: 39.77626211 | DQ68: 63 % closed Semi-Orthogonal γ-Expanded Y | DT68: 75.479 | DU68: 75.479 | DV68: 50 | DW68: 43.3271913 | DX68: 30.08004463 | DY68: 70 % closed Semi-Orthogonal γ-Compressed Y | EB68: 75.918 | EC68: 75.918 | ED68: 50 | EE68: 39.53190809 | EF68: 35.08520844 | EG68: 70 % closed Semi-Orthogonal β-Compressed Y | EH68: 76.975 | EI68: 76.975 | EJ68: 50 | EK68: 39.1798133 | EL68: 29.8167085 | EM68: 72 % closed Semi-Oblique T | EO68: 76.75 | EP68: 76.75 | EQ68: 50 | ER68: 42.93804704 | ES68: 24.39816338 | ET68: 72 % closed Oblique T | EV68: 77.037 | EW68: 77.037 | EX68: 50 | EY68: 45.96480135 | EZ68: 18.61453647 | FA68: 72 % closed Inclined Y | FC68: 77.037 | FD68: 77.037 | FE68: 50 | FF68: 45.96480135 | FG68: 18.61453647 | FH68: 72 % closed Oblique Y
CB69: 32.96 | CC69: 32.96 | CD69: 115 | CE69: 115 | CF69: 25.43795961 | CG69: 30 % Closed 3/4 Constricted γ-dominant Y | CH69: 40.827 | CI69: 40.827 | CJ69: 90 | CK69: 90 | CL69: 42.94140286 | CM69: 40 % Closed 1/2 Constricted γ-dominant Y | CO69: 54.205 | CP69: 54.205 | CQ69: 70 | CR69: 70 | CS69: 52.07972991 | CT69: 48 % Closed 1/4 Constricted γ-dominant Y | CV69: 95.478 | CW69: 95.478 | CX69: 30 | CY69: 17.1877039 | CZ69: 17.1877039 | DA69: 75 % Closed 1/3 α-Expanded Arrow | DC69: 78.268 | DD69: 78.268 | DE69: 45 | DF69: 40.13227019 | DG69: 32.53756459 | DH69: 70 % closed orthogonal Y | DL69: 77.056 | DM69: 77.056 | DN69: 45 | DO69: 42.04314991 | DP69: 35.8822294 | DQ69: 67 % closed Semi-Orthogonal γ-Expanded Y | DT69: 79.614 | DU69: 79.614 | DV69: 45 | DW69: 39.05671101 | DX69: 27.18007906 | DY69: 73 % closed Semi-Orthogonal γ-Compressed Y | EB69: 79.981 | EC69: 79.981 | ED69: 45 | EE69: 35.66351039 | EF69: 31.67774808 | EG69: 73 % closed Semi-Orthogonal β-Compressed Y | EH69: 80.949 | EI69: 80.949 | EJ69: 45 | EK69: 35.34829511 | EL69: 26.94314768 | EM69: 75 % closed Semi-Oblique T | EO69: 80.762 | EP69: 80.762 | EQ69: 45 | ER69: 38.7091923 | ES69: 22.06219116 | ET69: 75 % closed Oblique T | EV69: 81.013 | EW69: 81.013 | EX69: 45 | EY69: 41.40962211 | EZ69: 16.84211624 | FA69: 75 % closed Inclined Y | FC69: 81.013 | FD69: 81.013 | FE69: 45 | FF69: 41.40962211 | FG69: 16.84211624 | FH69: 75 % closed Oblique Y
CB70: 35.357 | CC70: 35.357 | CD70: 110 | CE70: 110 | CF70: 24.69515014 | CG70: 33 % Closed 3/4 Constricted γ-dominant Y | CH70: 44.888 | CI70: 44.888 | CJ70: 85 | CK70: 85 | CL70: 40.93930671 | CM70: 43 % Closed 1/2 Constricted γ-dominant Y | CO70: 58.578 | CP70: 58.578 | CQ70: 65 | CR70: 65 | CS70: 48.56441537 | CT70: 52 % Closed 1/4 Constricted γ-dominant Y | CV70: 99.084 | CW70: 99.084 | CX70: 25 | CY70: 14.35706138 | CZ70: 14.35706138 | DA70: 79 % Closed 1/3 α-Expanded Arrow | DC70: 82.554 | DD70: 82.554 | DE70: 40 | DF70: 35.71454222 | DG70: 28.99954053 | DH70: 73 % closed orthogonal Y | DL70: 81.465 | DM70: 81.465 | DN70: 40 | DO70: 37.39873675 | DP70: 31.96069784 | DQ70: 70 % closed Semi-Orthogonal γ-Expanded Y | DT70: 83.764 | DU70: 83.764 | DV70: 40 | DW70: 34.76556346 | DX70: 24.24532516 | DY70: 76 % closed Semi-Orthogonal γ-Compressed Y | EB70: 84.068 | EC70: 84.068 | ED70: 40 | EE70: 31.76723637 | EF70: 28.23741055 | EG70: 76 % closed Semi-Orthogonal β-Compressed Y | EH70: 84.943 | EI70: 84.943 | EJ70: 40 | EK70: 31.48837656 | EL70: 24.03479285 | EM70: 78 % closed Semi-Oblique T | EO70: 84.788 | EP70: 84.788 | EQ70: 40 | ER70: 34.45879313 | ES70: 19.69310388 | ET70: 78 % closed Oblique T | EV70: 85.006 | EW70: 85.006 | EX70: 40 | EY70: 36.8406247 | EZ70: 15.04152326 | FA70: 78 % closed Inclined Y | FC70: 85.006 | FD70: 85.006 | FE70: 40 | FF70: 36.8406247 | FG70: 15.04152326 | FH70: 78 % closed Oblique Y
CB71: 38.067 | CC71: 38.067 | CD71: 105 | CE71: 105 | CF71: 23.90571178 | CG71: 36 % Closed 3/4 Constricted γ-dominant Y | CH71: 48.996 | CI71: 48.996 | CJ71: 80 | CK71: 80 | CL71: 38.86928292 | CM71: 47 % Closed 1/2 Constricted γ-dominant Y | CO71: 62.984 | CP71: 62.984 | CQ71: 60 | CR71: 60 | CS71: 45 | CT71: 56 % Closed 1/4 Constricted γ-dominant Y | CV71: 102.706 | CW71: 102.706 | CX71: 20 | CY71: 11.50780407 | CZ71: 11.50780407 | DA71: 83 % Closed 1/3 α-Expanded Arrow | DC71: 86.858 | DD71: 86.858 | DE71: 35 | DF71: 31.28157967 | DG71: 25.43356321 | DH71: 77 % closed orthogonal Y | DL71: 85.895 | DM71: 85.895 | DN71: 35 | DO71: 32.74432612 | DP71: 28.01534731 | DQ71: 74 % closed Semi-Orthogonal γ-Expanded Y | DT71: 87.928 | DU71: 87.928 | DV71: 35 | DW71: 30.45662495 | DX71: 21.28001973 | DY71: 79 % closed Semi-Orthogonal γ-Compressed Y | EB71: 88.176 | EC71: 88.176 | ED71: 35 | EE71: 27.8468067 | EF71: 24.76838892 | EG71: 79 % closed Semi-Orthogonal β-Compressed Y | EH71: 88.953 | EI71: 88.953 | EJ71: 35 | EK71: 27.6038341 | EL71: 21.09587191 | EM71: 81 % closed Semi-Oblique T | EO71: 88.827 | EP71: 88.827 | EQ71: 35 | ER71: 30.18983469 | ES71: 17.29475633 | ET71: 81 % closed Oblique T | EV71: 89.013 | EW71: 89.013 | EX71: 35 | EY71: 32.25979189 | EZ71: 13.21591661 | FA71: 81 % closed Inclined Y | FC71: 89.013 | FD71: 89.013 | FE71: 35 | FF71: 32.25979189 | FG71: 13.21591661 | FH71: 81 % closed Oblique Y
CB72: 41.028 | CC72: 41.028 | CD72: 100 | CE72: 100 | CF72: 23.07131331 | CG72: 39 % Closed 3/4 Constricted γ-dominant Y | CH72: 53.142 | CI72: 53.142 | CJ72: 75 | CK72: 75 | CL72: 36.73588748 | CM72: 50 % Closed 1/2 Constricted γ-dominant Y | CO72: 67.419 | CP72: 67.419 | CQ72: 55 | CR72: 55 | CS72: 41.3917001 | CT72: 59 % Closed 1/4 Constricted γ-dominant Y | CV72: 106.343 | CW72: 106.343 | CX72: 15 | CY72: 8.643737908 | CZ72: 8.643737908 | DA72: 88 % Closed 1/3 α-Expanded Arrow | DC72: 91.177 | DD72: 91.177 | DE72: 30 | DF72: 26.83568298 | DG72: 21.84355849 | DH72: 80 % closed orthogonal Y | DL72: 90.344 | DM72: 90.344 | DN72: 30 | DO72: 28.08145804 | DP72: 24.04962668 | DQ72: 78 % closed Semi-Orthogonal γ-Expanded Y | DT72: 92.104 | DU72: 92.104 | DV72: 30 | DW72: 26.13255267 | DX72: 18.28826959 | DY72: 82 % closed Semi-Orthogonal γ-Compressed Y | EB72: 92.302 | EC72: 92.302 | ED72: 30 | EE72: 23.90571178 | EF72: 21.27468175 | EG72: 82 % closed Semi-Orthogonal β-Compressed Y | EH72: 92.977 | EI72: 92.977 | EJ72: 30 | EK72: 23.69821527 | EL72: 18.1304863 | EM72: 83 % closed Semi-Oblique T | EO72: 92.876 | EP72: 92.876 | EQ72: 30 | ER72: 25.90507928 | ES72: 14.87094445 | ET72: 83 % closed Oblique T | EV72: 93.032 | EW72: 93.032 | EX72: 30 | EY72: 27.6689347 | EZ72: 11.36844757 | FA72: 83 % closed Inclined Y | FC72: 93.032 | FD72: 93.032 | FE72: 30 | FF72: 27.6689347 | FG72: 11.36844757 | FH72: 83 % closed Oblique Y
CB73: 44.19 | CC73: 44.19 | CD73: 95 | CE73: 95 | CF73: 22.19369882 | CG73: 42 % Closed 3/4 Constricted γ-dominant Y | CH73: 57.318 | CI73: 57.318 | CJ73: 70 | CK73: 70 | CL73: 34.54361079 | CM73: 53 % Closed 1/2 Constricted γ-dominant Y | CO73: 71.879 | CP73: 71.879 | CQ73: 50 | CR73: 50 | CS73: 37.74436076 | CT73: 63 % Closed 1/4 Constricted γ-dominant Y | CV73: 109.991 | CW73: 109.991 | CX73: 10 | CY73: 5.768613669 | CZ73: 5.768613669 | DA73: 92 % Closed 1/3 α-Expanded Arrow | DC73: 95.51 | DD73: 95.51 | DE73: 25 | DF73: 22.37898488 | DG73: 18.23327607 | DH73: 83 % closed orthogonal Y | DL73: 94.809 | DM73: 94.809 | DN73: 25 | DO73: 23.41154845 | DP73: 20.06678935 | DQ73: 81 % closed Semi-Orthogonal γ-Expanded Y | DT73: =IF(DU73=0,0.01,DU73) -> 96.289 | DU73: =ROUND((1/SQRT(3))*SQRT(($A$29-DV73)^2+($A$30-DW73)^2+($A$31-DX73)^2),3) -> 96.289 | DV73: 25 | DW73: 21.79582138 | DX73: 15.27406701 | DY73: 85 % closed Semi-Orthogonal γ-Compressed Y | EB73: 96.444 | EC73: 96.444 | ED73: 25 | EE73: 19.94724698 | EF73: 17.76011971 | EG73: 85 % closed Semi-Orthogonal β-Compressed Y | EH73: 97.014 | EI73: 97.014 | EJ73: 25 | EK73: 19.77487345 | EL73: 15.14262592 | EM73: 86 % closed Semi-Oblique T | EO73: 96.935 | EP73: 96.935 | EQ73: 25 | ER73: 21.60710328 | ES73: 12.42541079 | ET73: 86 % closed Oblique T | EV73: 97.062 | EW73: 97.062 | EX73: 25 | EY73: 23.06972285 | EZ73: 9.502259124 | FA73: 86 % closed Inclined Y | FC73: 97.062 | FD73: 97.062 | FE73: 25 | FF73: 23.06972285 | FG73: 9.502259124 | FH73: 86 % closed Oblique Y
CB74: 47.513 | CC74: 47.513 | CD74: 90 | CE74: 90 | CF74: 21.27468175 | CG74: 45 % Closed 3/4 Constricted γ-dominant Y | CH74: 61.519 | CI74: 61.519 | CJ74: 65 | CK74: 65 | CL74: 32.2968693 | CM74: 57 % Closed 1/2 Constricted γ-dominant Y | CO74: 76.361 | CP74: 76.361 | CQ74: 45 | CR74: 45 | CS74: 34.06249692 | CT74: 67 % Closed 1/4 Constricted γ-dominant Y | CV74: 113.648 | CW74: 113.648 | CX74: 5 | CY74: 2.886140567 | CZ74: 2.886140567 | DA74: 96 % Closed 1/3 α-Expanded Arrow | DC74: 99.854 | DD74: 99.854 | DE74: 20 | DF74: 17.91348118 | DG74: 14.6063171 | DH74: 87 % closed orthogonal Y | DL74: 99.289 | DM74: 99.289 | DN74: 20 | DO74: 18.73591277 | DP74: 16.06992614 | DQ74: 85 % closed Semi-Orthogonal γ-Expanded Y | DT74: 100.483 | DU74: 100.483 | DV74: 20 | DW74: 17.44875613 | DX74: 12.24130561 | DY74: 88 % closed Semi-Orthogonal γ-Compressed Y | EB74: 100.599 | EC74: 100.599 | ED74: 20 | EE74: 15.97454529 | EF74: 14.22839143 | EG74: 88 % closed Semi-Orthogonal β-Compressed Y | EH74: 101.06 | EI74: 101.06 | EJ74: 20 | EK74: 15.83700016 | EL74: 12.1361845 | EM74: 89 % closed Semi-Oblique T | EO74: 101.001 | EP74: 101.001 | EQ74: 20 | ER74: 17.29833021 | ES74: 9.961850644 | ET74: 89 % closed Oblique T | EV74: 101.101 | EW74: 101.101 | EX74: 20 | EY74: 18.46371134 | EZ74: 7.620486032 | FA74: 89 % closed Inclined Y | FC74: 101.101 | FD74: 101.101 | FE74: 20 | FF74: 18.46371134 | FG74: 7.620486032 | FH74: 89 % closed Oblique Y
CB75: 50.966 | CC75: 50.966 | CD75: 85 | CE75: 85 | CF75: 20.3161391 | CG75: 48 % Closed 3/4 Constricted γ-dominant Y | CH75: 65.742 | CI75: 65.742 | CJ75: 60 | CK75: 60 | CL75: 30 | CM75: 60 % Closed 1/2 Constricted γ-dominant Y | CO75: 80.862 | CP75: 80.862 | CQ75: 40 | CR75: 40 | CS75: 30.35033232 | CT75: 70 % Closed 1/4 Constricted γ-dominant Y | CV75: 117.312 | CW75: 117.312 | CX75: 0 | CY75: 0 | CZ75: 0 | DA75: Closed Arrow | DC75: 104.208 | DD75: 104.208 | DE75: 15 | DF75: 13.44105813 | DG75: 10.96616072 | DH75: 90 % closed orthogonal Y | DL75: 103.781 | DM75: 103.781 | DN75: 15 | DO75: 14.0557866 | DP75: 12.06199579 | DQ75: 89 % closed Semi-Orthogonal γ-Expanded Y | DT75: 104.684 | DU75: 104.684 | DV75: 15 | DW75: 13.0935617 | DX75: 9.193796468 | DY75: 91 % closed Semi-Orthogonal γ-Compressed Y | EB75: 104.766 | EC75: 104.766 | ED75: 15 | EE75: 11.99060771 | EF75: 10.68306856 | EG75: 91 % closed Semi-Orthogonal β-Compressed Y | EH75: 105.115 | EI75: 105.115 | EJ75: 15 | EK75: 11.8876552 | EL75: 9.114975237 | EM75: 92 % closed Semi-Oblique T | EO75: 105.074 | EP75: 105.074 | EQ75: 15 | ER75: 12.98106073 | ES75: 7.48391903 | ET75: 92 % closed Oblique T | EV75: 105.147 | EW75: 105.147 | EX75: 15 | EY75: 13.85236385 | EZ75: 5.726255457 | FA75: 92 % closed Inclined Y | FC75: 105.147 | FD75: 105.147 | FE75: 15 | FF75: 13.85236385 | FG75: 5.726255457 | FH75: 92 % closed Oblique Y
CB76: 54.524 | CC76: 54.524 | CD76: 80 | CE76: 80 | CF76: 19.32000587 | CG76: 52 % Closed 3/4 Constricted γ-dominant Y | CH76: 69.983 | CI76: 69.983 | CJ76: 55 | CK76: 55 | CL76: 27.65725748 | CM76: 63 % Closed 1/2 Constricted γ-dominant Y | CO76: 85.379 | CP76: 85.379 | CQ76: 35 | CR76: 35 | CS76: 26.61183609 | CT76: 74 % Closed 1/4 Constricted γ-dominant Y | CZ76: gref | DC76: 108.57 | DD76: 108.57 | DE76: 10 | DF76: 8.963517258 | DG76: 7.316189604 | DH76: 93 % closed orthogonal Y | DL76: 108.283 | DM76: 108.283 | DN76: 10 | DO76: 9.372344198 | DP76: 8.045853643 | DQ76: 93 % closed Semi-Orthogonal γ-Expanded Y | DT76: 108.89 | DU76: 108.89 | DV76: 10 | DW76: 8.732349572 | DX76: 6.135284523 | DY76: 94 % closed Semi-Orthogonal γ-Compressed Y | EB76: 108.941 | EC76: 108.941 | ED76: 10 | EE76: 7.998331834 | EF76: 7.127630002 | EG76: 94 % closed Semi-Orthogonal β-Compressed Y | EH76: 109.177 | EI76: 109.177 | EJ76: 10 | EK76: 7.929795086 | EL76: 6.082746746 | EM76: 94 % closed Semi-Oblique T | EO76: 109.15 | EP76: 109.15 | EQ76: 10 | ER76: 8.657500026 | ES76: 4.99523809 | ET76: 94 % closed Oblique T | EV76: 109.198 | EW76: 109.198 | EX76: 10 | EY76: 9.237073677 | EZ76: 3.822687971 | FA76: 94 % closed Inclined Y | FC76: 109.198 | FD76: 109.198 | FE76: 10 | FF76: 9.237073677 | FG76: 3.822687971 | FH76: 94 % closed Oblique Y
CB77: 58.167 | CC77: 58.167 | CD77: 75 | CE77: 75 | CF77: 18.28826959 | CG77: 55 % Closed 3/4 Constricted γ-dominant Y | CH77: 74.24 | CI77: 74.24 | CJ77: 50 | CK77: 50 | CL77: 25.27281325 | CM77: 67 % Closed 1/2 Constricted γ-dominant Y | CO77: 89.911 | CP77: 89.911 | CQ77: 30 | CR77: 30 | CS77: 22.85075704 | CT77: 78 % Closed 1/4 Constricted γ-dominant Y | CV77: =IF(CW77=0,0.01,CW77) -> 39.013 | CW77: =ROUND((1/SQRT(3))*SQRT(($A$29-CX77)^2+($A$30-CY77)^2+($A$31-CZ77)^2),3) -> 39.013 | CX77: 120 | CY77: 60 | CZ77: 60 | DA77: 1/3 α-Expanded Arrow | DC77: 112.939 | DD77: 112.939 | DE77: 5 | DF77: 4.482598176 | DG77: 3.659714818 | DH77: 97 % closed orthogonal Y | DL77: 112.794 | DM77: 112.794 | DN77: 5 | DO77: 4.686715165 | DP77: 4.024278769 | DQ77: 96 % closed Semi-Orthogonal γ-Expanded Y | DT77: 113.1 | DU77: 113.1 | DV77: 5 | DW77: 4.367162884 | DX77: 3.069465008 | DY77: 97 % closed Semi-Orthogonal γ-Compressed Y | EB77: 113.124 | EC77: 113.124 | ED77: 5 | EE77: 4.000538933 | EF77: 3.565485735 | EG77: 97 % closed Semi-Orthogonal β-Compressed Y | EH77: 113.243 | EI77: 113.243 | EJ77: 5 | EK77: 3.966300034 | EL77: 3.043199107 | EM77: 97 % closed Semi-Oblique T | EO77: 113.23 | EP77: 113.23 | EQ77: 5 | ER77: 4.329783333 | ES77: 2.499404973 | ET77: 97 % closed Oblique T | EV77: 113.253 | EW77: 113.253 | EX77: 5 | EY77: 4.619182867 | EZ77: 1.912898915 | FA77: 97 % closed Inclined Y | FC77: 113.253 | FD77: 113.253 | FE77: 5 | FF77: 4.619182867 | FG77: 1.912898915 | FH77: 97 % closed Oblique Y
CB78: 61.882 | CC78: 61.882 | CD78: 70 | CE78: 70 | CF78: 17.22296521 | CG78: 58 % Closed 3/4 Constricted γ-dominant Y | CH78: 78.511 | CI78: 78.511 | CJ78: 45 | CK78: 45 | CL78: 22.85075704 | CM78: 70 % Closed 1/2 Constricted γ-dominant Y | CO78: 94.455 | CP78: 94.455 | CQ78: 25 | CR78: 25 | CS78: 19.07065606 | CT78: 81 % Closed 1/4 Constricted γ-dominant Y | CV78: =IF(CW78=0,0.01,CW78) -> 45.69 | CW78: =ROUND((1/SQRT(3))*SQRT(($A$29-CX78)^2+($A$30-CY78)^2+($A$31-CZ78)^2),3) -> 45.69 | CX78: =2*DEGREES(ASIN(((SIN(RADIANS(CY78/2))*SIN(RADIANS($CX$77/2))/SIN(RADIANS($CY$77/2)))))) -> 106.2166821 | CY78: 55 | CZ78: 55 | DA78: =ROUND(100*($CY$77-CY78)/$CY$77,0)&" % Closed 1/3 α-Expanded Arrow" -> 8 % Closed 1/3 α-Expanded Arrow | DC78: =IF(DD78=0,0.01,DD78) -> 117.312 | DD78: =ROUND((1/SQRT(3))*SQRT(($A$29-DE78)^2+($A$30-DF78)^2+($A$31-DG78)^2),3) -> 117.312 | DE78: 0 | DF78: =2*DEGREES(ASIN(((SIN(RADIANS(DE78/2))*SIN(RADIANS(60))/SIN(RADIANS(75)))))) -> 0 | DG78: =2*DEGREES(ASIN(((SIN(RADIANS(DE78/2))*SIN(RADIANS(45))/SIN(RADIANS(75)))))) -> 0 | DH78: closed arrow | DL78: 117.312 | DM78: 117.312 | DN78: 0 | DO78: 0 | DP78: 0 | DQ78: closed arrow | DT78: =IF(DU78=0,0.01,DU78) -> 117.312 | DU78: =ROUND((1/SQRT(3))*SQRT(($A$29-DV78)^2+($A$30-DW78)^2+($A$31-DX78)^2),3) -> 117.312 | DV78: 0 | DW78: 0 | DX78: 0 | DY78: Closed Arrow | EB78: =IF(EC78=0,0.01,EC78) -> 117.312 | EC78: =ROUND((1/SQRT(3))*SQRT(($A$29-ED78)^2+($A$30-EE78)^2+($A$31-EF78)^2),3) -> 117.312 | ED78: 0 | EE78: =2*DEGREES(ASIN(((SIN(RADIANS(ED78/2))*SIN(RADIANS($DW$2/2))/SIN(RADIANS($DV$2/2)))))) -> 0 | EF78: =2*DEGREES(ASIN(((SIN(RADIANS(ED78/2))*SIN(RADIANS($DX$2/2))/SIN(RADIANS($DV$2/2)))))) -> 0 | EG78: Closed Arrow | EH78: 117.312 | EI78: 117.312 | EJ78: 0 | EK78: 0 | EL78: 0 | EM78: Closed Arrow | EO78: 117.312 | EP78: 117.312 | EQ78: 0 | ER78: 0 | ES78: 0 | ET78: Closed Arrow | EV78: 117.312 | EW78: 117.312 | EX78: 0 | EY78: 0 | EZ78: 0 | FA78: Closed Arrow | FC78: 117.312 | FD78: 117.312 | FE78: 0 | FF78: 0 | FG78: 0 | FH78: Closed Arrow
CB79: 65.655 | CC79: 65.655 | CD79: 65 | CE79: 65 | CF79: 16.12617021 | CG79: 61 % Closed 3/4 Constricted γ-dominant Y | CH79: 82.793 | CI79: 82.793 | CJ79: 40 | CK79: 40 | CL79: 20.39509981 | CM79: 73 % Closed 1/2 Constricted γ-dominant Y | CO79: 99.01 | CP79: 99.01 | CQ79: 20 | CR79: 20 | CS79: 15.27493645 | CT79: 85 % Closed 1/4 Constricted γ-dominant Y | CV79: 52.481 | CW79: 52.481 | CX79: 94.10802633 | CY79: 50 | CZ79: 50 | DA79: 17 % Closed 1/3 α-Expanded Arrow
CB80: 69.477 | CC80: 69.477 | CD80: 60 | CE80: 60 | CF80: 15 | CG80: 64 % Closed 3/4 Constricted γ-dominant Y | CH80: 87.086 | CI80: 87.086 | CJ80: 35 | CK80: 35 | CL80: 17.90977814 | CM80: 77 % Closed 1/2 Constricted γ-dominant Y | CO80: 103.575 | CP80: 103.575 | CQ80: 15 | CR80: 15 | CS80: 11.46687279 | CT80: 89 % Closed 1/4 Constricted γ-dominant Y | CV80: 59.231 | CW80: 59.231 | CX80: 83.03169052 | CY80: 45 | CZ80: 45 | DA80: 25 % Closed 1/3 α-Expanded Arrow
CB81: 73.34 | CC81: 73.34 | CD81: 55 | CE81: 55 | CF81: 13.8466036 | CG81: 67 % Closed 3/4 Constricted γ-dominant Y | CH81: 91.387 | CI81: 91.387 | CJ81: 30 | CK81: 30 | CL81: 15.39865989 | CM81: 80 % Closed 1/2 Constricted γ-dominant Y | CO81: 108.148 | CP81: 108.148 | CQ81: 10 | CR81: 10 | CS81: 7.649638285 | CT81: 93 % Closed 1/4 Constricted γ-dominant Y | CV81: 65.903 | CW81: 65.903 | CX81: 72.654479 | CY81: 40 | CZ81: 40 | DA81: 33 % Closed 1/3 α-Expanded Arrow
CB82: 77.238 | CC82: 77.238 | CD82: 50 | CE82: 50 | CF82: 12.66815967 | CG82: 70 % Closed 3/4 Constricted γ-dominant Y | CH82: 95.696 | CI82: 95.696 | CJ82: 25 | CK82: 25 | CL82: 12.86555089 | CM82: 83 % Closed 1/2 Constricted γ-dominant Y | CO82: 112.727 | CP82: 112.727 | CQ82: 5 | CR82: 5 | CS82: 3.826331143 | CT82: 96 % Closed 1/4 Constricted γ-dominant Y | CV82: 72.494 | CW82: 72.494 | CX82: 62.77692216 | CY82: 35 | CZ82: 35 | DA82: 42 % Closed 1/3 α-Expanded Arrow
CB83: 81.165 | CC83: 81.165 | CD83: 45 | CE83: 45 | CF83: 11.46687279 | CG83: 73 % Closed 3/4 Constricted γ-dominant Y | CH83: 100.011 | CI83: 100.011 | CJ83: 20 | CK83: 20 | CL83: 10.3142024 | CM83: 87 % Closed 1/2 Constricted γ-dominant Y | CO83: 117.312 | CP83: 117.312 | CQ83: 0 | CR83: 0 | CS83: 0 | CT83: Closed Arrow | CV83: 79.013 | CW83: 79.013 | CX83: 53.26775967 | CY83: 30 | CZ83: 30 | DA83: 50 % Closed 1/3 α-Expanded Arrow
CB84: 85.118 | CC84: 85.118 | CD84: 40 | CE84: 40 | CF84: 10.24497003 | CG84: 76 % Closed 3/4 Constricted γ-dominant Y | CH84: 104.331 | CI84: 104.331 | CJ84: 15 | CK84: 15 | CL84: 7.748319288 | CM84: 90 % Closed 1/2 Constricted γ-dominant Y | CS84: gref | CV84: 85.473 | CW84: 85.473 | CX84: 44.03433747 | CY84: 25 | CZ84: 25 | DA84: 58 % Closed 1/3 α-Expanded Arrow
CB85: 89.092 | CC85: 89.092 | CD85: 35 | CE85: 35 | CF85: 9.004697875 | CG85: 79 % Closed 3/4 Constricted γ-dominant Y | CH85: 108.655 | CI85: 108.655 | CJ85: 10 | CK85: 10 | CL85: 5.171568697 | CM85: 93 % Closed 1/2 Constricted γ-dominant Y | CO85: 14.213 | CP85: =ROUND((1/SQRT(3))*SQRT(($A$29-CQ85)^2+($A$30-CR85)^2+($A$31-CS85)^2),3) -> 14.213 | CQ85: 135 | CR85: 135 | CS85: 90 | CT85: 1/4 Constricted γ-dominant Y | CV85: 91.886 | CW85: 91.886 | CX85: 35.00740951 | CY85: 20 | CZ85: 20 | DA85: 67 % Closed 1/3 α-Expanded Arrow
CB86: 93.086 | CC86: 93.086 | CD86: 30 | CE86: 30 | CF86: 7.748319288 | CG86: 82 % Closed 3/4 Constricted γ-dominant Y | CH86: 112.982 | CI86: 112.982 | CJ86: 5 | CK86: 5 | CL86: 2.587589168 | CM86: 97 % Closed 1/2 Constricted γ-dominant Y | CO86: 14.598 | CP86: 14.598 | CQ86: =2*DEGREES(ASIN(((SIN(RADIANS(CS86/2))*SIN(RADIANS($CQ$85/2))/SIN(RADIANS($CS$85/2)))))) -> 123.9398751 | CR86: =2*DEGREES(ASIN(((SIN(RADIANS(CS86/2))*SIN(RADIANS($CR$85/2))/SIN(RADIANS($CS$85/2)))))) -> 123.9398751 | CS86: 85 | CT86: =ROUND(100*($CR$85-CR86)/$CR$85,0)&" % Closed 1/2 Constricted γ-dominant Y" -> 8 % Closed 1/2 Constricted γ-dominant Y | CV86: 98.265 | CW86: 98.265 | CX86: 26.13255267 | CY86: 15 | CZ86: 15 | DA86: 75 % Closed 1/3 α-Expanded Arrow
CB87: 97.095 | CC87: 97.095 | CD87: 25 | CE87: 25 | CF87: 6.478111128 | CG87: 85 % Closed 3/4 Constricted γ-dominant Y | CH87: 117.312 | CI87: 117.312 | CJ87: 0 | CK87: 0 | CL87: =2*DEGREES(ASIN(((SIN(RADIANS(CJ87/2))*SIN(RADIANS($CF$59/2))/SIN(RADIANS($CD$59/2)))))) -> 0 | CM87: Closed Arrow | CO87: 19.173 | CP87: 19.173 | CQ87: 114.2469803 | CR87: 114.2469803 | CS87: 80 | CT87: 15 % Closed 1/2 Constricted γ-dominant Y | CV87: 104.622 | CW87: 104.622 | CX87: 17.3649165 | CY87: 10 | CZ87: 10 | DA87: 83 % Closed 1/3 α-Expanded Arrow
CB88: 101.118 | CC88: 101.118 | CD88: 20 | CE88: 20 | CF88: 5.196361723 | CG88: 88 % Closed 3/4 Constricted γ-dominant Y | CL88: gref | CO88: 25.15 | CP88: 25.15 | CQ88: 105.383296 | CR88: 105.383296 | CS88: 75 | CT88: 22 % Closed 1/2 Constricted γ-dominant Y | CV88: 110.967 | CW88: 110.967 | CX88: 8.665763649 | CY88: 5 | CZ88: 5 | DA88: 92 % Closed 1/3 α-Expanded Arrow
CB89: 105.152 | CC89: 105.152 | CD89: 15 | CE89: 15 | CF89: 3.905368658 | CG89: 91 % Closed 3/4 Constricted γ-dominant Y | CH89: 18.493 | CI89: =ROUND((1/SQRT(3))*SQRT(($A$29-CJ89)^2+($A$30-CK89)^2+($A$31-CL89)^2),3) -> 18.493 | CJ89: 150 | CK89: 150 | CL89: 60 | CM89: 1/2 Constricted γ-dominant Y | CO89: 31.488 | CP89: 31.488 | CQ89: 97.07923761 | CR89: 97.07923761 | CS89: 70 | CT89: 28 % Closed 1/2 Constricted γ-dominant Y | CV89: 117.312 | CW89: 117.312 | CX89: 0 | CY89: 0 | CZ89: 0 | DA89: Closed Arrow
CB90: 109.197 | CC90: 109.197 | CD90: 10 | CE90: 10 | CF90: 2.607436722 | CG90: 94 % Closed 3/4 Constricted γ-dominant Y | CH90: 15.72 | CI90: 15.72 | CJ90: =2*DEGREES(ASIN(((SIN(RADIANS(CL90/2))*SIN(RADIANS($CK$57/2))/SIN(RADIANS($CL$57/2)))))) -> 126.2588641 | CK90: =2*DEGREES(ASIN(((SIN(RADIANS(CL90/2))*SIN(RADIANS($CK$57/2))/SIN(RADIANS($CL$57/2)))))) -> 126.2588641 | CL90: 55 | CM90: =ROUND(100*($CK$57-CK90)/$CK$57,0)&" % Closed 1/2 Constricted γ-dominant Y" -> 16 % Closed 1/2 Constricted γ-dominant Y | CO90: 37.883 | CP90: 37.883 | CQ90: 89.17790803 | CR90: 89.17790803 | CS90: 65 | CT90: 34 % Closed 1/2 Constricted γ-dominant Y | CX90: Monoclinic | CY90: Arrow | CZ90: a-ref
CB91: 113.251 | CC91: 113.251 | CD91: 5 | CE91: 5 | CF91: 1.304875989 | CG91: 97 % Closed 3/4 Constricted γ-dominant Y | CH91: 25.803 | CI91: 25.803 | CJ91: 109.4591553 | CK91: 109.4591553 | CL91: 50 | CM91: 27 % Closed 1/2 Constricted γ-dominant Y | CO91: 44.246 | CP91: 44.246 | CQ91: 81.57894188 | CR91: 81.57894188 | CS91: 60 | CT91: 40 % Closed 1/2 Constricted γ-dominant Y | CV91: =IF(CW91=0,0.01,CW91) -> 56.851 | CW91: =ROUND((1/SQRT(3))*SQRT(($A$29-CX91)^2+($A$30-CY91)^2+($A$31-CZ91)^2),3) -> 56.851 | CX91: 90 | CY91: 45 | CZ91: 45 | DA91: Normal Arrow
CB92: 117.312 | CC92: 117.312 | CD92: 0 | CE92: 0 | CF92: 0 | CG92: Closed Arrow | CH92: 36.554 | CI92: 36.554 | CJ92: 95.34153428 | CK92: 95.34153428 | CL92: 45 | CM92: 36 % Closed 1/2 Constricted γ-dominant Y | CO92: 50.551 | CP92: 50.551 | CQ92: 74.21374289 | CR92: 74.21374289 | CS92: 55 | CT92: 45 % Closed 1/2 Constricted γ-dominant Y | CV92: =IF(CW92=0,0.01,CW92) -> 59.8 | CW92: =ROUND((1/SQRT(3))*SQRT(($A$29-CX92)^2+($A$30-CY92)^2+($A$31-CZ92)^2),3) -> 59.8 | CX92: 85 | CY92: =2*DEGREES(ASIN(((SIN(RADIANS(CX92/2))*SIN(RADIANS($CY$91/2))/SIN(RADIANS($CX$91/2)))))) -> 42.8923225 | CZ92: =2*DEGREES(ASIN(((SIN(RADIANS(CX92/2))*SIN(RADIANS($CY$91/2))/SIN(RADIANS($CX$91/2)))))) -> 42.8923225 | DA92: =ROUND(100*($CX$91-CX92)/$CX$91,0)&" % Closed Normal Arrow" -> 6 % Closed Normal Arrow
CF93: gref | CH93: 46.763 | CI93: 46.763 | CJ93: 82.71147372 | CK93: 82.71147372 | CL93: 40 | CM93: 45 % Closed 1/2 Constricted γ-dominant Y | CO93: 56.796 | CP93: 56.796 | CQ93: 67.03303639 | CR93: 67.03303639 | CS93: 50 | CT93: 50 % Closed 1/2 Constricted γ-dominant Y | CV93: 62.833 | CW93: 62.833 | CX93: 80 | CY93: 40.71468698 | CZ93: 40.71468698 | DA93: 11 % Closed Normal Arrow
CB94: 37.175 | CC94: =ROUND((1/SQRT(3))*SQRT(($A$29-CD94)^2+($A$30-CE94)^2+($A$31-CF94)^2),3) -> 37.175 | CD94: 165 | CE94: 165 | CF94: 30 | CG94: 3/4 Constricted γ-dominant Y | CH94: 56.455 | CI94: 56.455 | CJ94: 71.03041178 | CK94: 71.03041178 | CL94: 35 | CM94: 53 % Closed 1/2 Constricted γ-dominant Y | CO94: 62.984 | CP94: 62.984 | CQ94: 60 | CR94: 60 | CS94: 45 | CT94: 56 % Closed 1/2 Constricted γ-dominant Y | CV94: 65.94 | CW94: 65.94 | CX94: 75 | CY94: 38.47192237 | CZ94: 38.47192237 | DA94: 17 % Closed Normal Arrow
CB95: 34.35 | CC95: 34.35 | CD95: =2*DEGREES(ASIN(((SIN(RADIANS(CF95/2))*SIN(RADIANS($CE$59/2))/SIN(RADIANS($CF$59/2)))))) -> 112.0136434 | CE95: =2*DEGREES(ASIN(((SIN(RADIANS(CF95/2))*SIN(RADIANS($CE$59/2))/SIN(RADIANS($CF$59/2)))))) -> 112.0136434 | CF95: 25 | CG95: =ROUND(100*($CF$59-CF95)/$CF$59,0)&" % Closed 3/4 Constricted γ-dominant Y" -> 17 % Closed 3/4 Constricted γ-dominant Y | CH95: 65.742 | CI95: 65.742 | CJ95: 60 | CK95: 60 | CL95: 30 | CM95: 60 % Closed 1/2 Constricted γ-dominant Y | CO95: 69.124 | CP95: 69.124 | CQ95: 53.08619527 | CR95: 53.08619527 | CS95: 40 | CT95: 61 % Closed 1/2 Constricted γ-dominant Y | CV95: 69.111 | CW95: 69.111 | CX95: 70 | CY95: 36.16876511 | CZ95: 36.16876511 | DA95: 22 % Closed Normal Arrow
CB96: 52.099 | CC96: 52.099 | CD96: 83.39306713 | CE96: 83.39306713 | CF96: 20 | CG96: =ROUND(100*($CF$59-CF96)/$CF$59,0)&" % Closed 3/4 Constricted γ-dominant Y" -> 33 % Closed 3/4 Constricted γ-dominant Y | CH96: 74.724 | CI96: =ROUND((1/SQRT(3))*SQRT(($A$29-CJ96)^2+($A$30-CK96)^2+($A$31-CL96)^2),3) -> 74.724 | CJ96: 49.43306785 | CK96: 49.43306785 | CL96: 25 | CM96: 67 % Closed 1/2 Constricted γ-dominant Y | CO96: 75.222 | CP96: 75.222 | CQ96: 46.26901938 | CR96: 46.26901938 | CS96: 35 | CT96: 66 % Closed 1/2 Constricted γ-dominant Y | CV96: 72.339 | CW96: 72.339 | CX96: 65 | CY96: 33.80985178 | CZ96: 33.80985178 | DA96: 28 % Closed Normal Arrow
CB97: 69.477 | CC97: 69.477 | CD97: 60 | CE97: 60 | CF97: 15 | CG97: =ROUND(100*($CF$59-CF97)/$CF$59,0)&" % Closed 3/4 Constricted γ-dominant Y" -> 50 % Closed 3/4 Constricted γ-dominant Y | CH97: 83.478 | CI97: 83.478 | CJ97: 39.20133187 | CK97: 39.20133187 | CL97: 20 | CM97: 74 % Closed 1/2 Constricted γ-dominant Y | CO97: 81.286 | CP97: 81.286 | CQ97: 39.53003327 | CR97: 39.53003327 | CS97: 30 | CT97: 71 % Closed 1/2 Constricted γ-dominant Y | CV97: 75.619 | CW97: 75.619 | CX97: 60 | CY97: 31.39971481 | CZ97: 31.39971481 | DA97: 33 % Closed Normal Arrow
CB98: 85.906 | CC98: 85.906 | CD98: 39.00682968 | CE98: 39.00682968 | CF98: 10 | CG98: =ROUND(100*($CF$59-CF98)/$CF$59,0)&" % Closed 3/4 Constricted γ-dominant Y" -> 67 % Closed 3/4 Constricted γ-dominant Y | CH98: 92.067 | CI98: 92.067 | CJ98: 29.21040668 | CK98: 29.21040668 | CL98: 15 | CM98: 81 % Closed 1/2 Constricted γ-dominant Y | CO98: 87.323 | CP98: =ROUND((1/SQRT(3))*SQRT(($A$29-CQ98)^2+($A$30-CR98)^2+($A$31-CS98)^2),3) -> 87.323 | CQ98: 32.85381986 | CR98: 32.85381986 | CS98: 25 | CT98: 76 % Closed 1/2 Constricted γ-dominant Y | CV98: 78.944 | CW98: 78.944 | CX98: 55 | CY98: 28.94278112 | CZ98: 28.94278112 | DA98: 39 % Closed Normal Arrow
CB99: 101.732 | CC99: 101.732 | CD99: 19.2374011 | CE99: 19.2374011 | CF99: 5 | CG99: =ROUND(100*($CF$59-CF99)/$CF$59,0)&" % Closed 3/4 Constricted γ-dominant Y" -> 83 % Closed 3/4 Constricted γ-dominant Y | CH99: 100.541 | CI99: 100.541 | CJ99: 19.38635035 | CK99: 19.38635035 | CL99: 10 | CM99: 87 % Closed 1/2 Constricted γ-dominant Y | CO99: 93.339 | CP99: 93.339 | CQ99: 26.2271752 | CR99: 26.2271752 | CS99: 20 | CT99: 81 % Closed 1/2 Constricted γ-dominant Y | CV99: 82.309 | CW99: 82.309 | CX99: 50 | CY99: 26.44337311 | CZ99: 26.44337311 | DA99: 44 % Closed Normal Arrow
CB100: 117.312 | CC100: 117.312 | CD100: 0 | CE100: 0 | CF100: 0 | CG100: Closed Arrow | CH100: 108.942 | CI100: 108.942 | CJ100: 9.667658015 | CK100: 9.667658015 | CL100: 5 | CM100: 94 % Closed 1/2 Constricted γ-dominant Y | CO100: 99.34 | CP100: 99.34 | CQ100: 19.63851464 | CR100: 19.63851464 | CS100: 15 | CT100: 85 % Closed 1/2 Constricted γ-dominant Y | CV100: 85.71 | CW100: 85.71 | CX100: 45 | CY100: 23.90571178 | CZ100: 23.90571178 | DA100: 50 % Closed Normal Arrow
CH101: 117.312 | CI101: 117.312 | CJ101: 0 | CK101: 0 | CL101: 0 | CM101: Closed Arrow | CO101: 105.332 | CP101: 105.332 | CQ101: 13.07742044 | CR101: 13.07742044 | CS101: 10 | CT101: 90 % Closed 1/2 Constricted γ-dominant Y | CV101: 89.142 | CW101: 89.142 | CX101: 40 | CY101: 21.33392158 | CZ101: 21.33392158 | DA101: 56 % Closed Normal Arrow
CO102: 111.321 | CP102: 111.321 | CQ102: 6.534282612 | CR102: 6.534282612 | CS102: 5 | CT102: 95 % Closed 1/2 Constricted γ-dominant Y | CV102: 92.601 | CW102: 92.601 | CX102: 35 | CY102: 18.73203672 | CZ102: 18.73203672 | DA102: 61 % Closed Normal Arrow
CO103: 117.312 | CP103: 117.312 | CQ103: 0 | CR103: 0 | CS103: 0 | CT103: Closed Arrow | CV103: 96.084 | CW103: 96.084 | CX103: 30 | CY103: 16.10400874 | CZ103: 16.10400874 | DA103: 67 % Closed Normal Arrow
CV104: 99.587 | CW104: 99.587 | CX104: 25 | CY104: 13.45371502 | CZ104: 13.45371502 | DA104: 72 % Closed Normal Arrow
CV105: 103.108 | CW105: 103.108 | CX105: 20 | CY105: 10.78496809 | CZ105: 10.78496809 | DA105: 78 % Closed Normal Arrow
CV106: 106.644 | CW106: 106.644 | CX106: 15 | CY106: 8.101525617 | CZ106: 8.101525617 | DA106: 83 % Closed Normal Arrow
CV107: 110.192 | CW107: 110.192 | CX107: 10 | CY107: 5.407100809 | CZ107: 5.407100809 | DA107: 89 % Closed Normal Arrow
CV108: 113.748 | CW108: 113.748 | CX108: 5 | CY108: 2.70537326 | CZ108: 2.70537326 | DA108: 94 % Closed Normal Arrow
CV109: 117.312 | CW109: 117.312 | CX109: 0 | CY109: 0 | CZ109: 0 | DA109: Closed Arrow
CZ110: b/g-ref
CV111: =IF(CW111=0,0.01,CW111) -> 56.851 | CW111: =ROUND((1/SQRT(3))*SQRT(($A$29-CX111)^2+($A$30-CY111)^2+($A$31-CZ111)^2),3) -> 56.851 | CX111: 90 | CY111: 45 | CZ111: 45 | DA111: Normal Arrow
CV112: =IF(CW112=0,0.01,CW112) -> 63.825 | CW112: =ROUND((1/SQRT(3))*SQRT(($A$29-CX112)^2+($A$30-CY112)^2+($A$31-CZ112)^2),3) -> 63.825 | CX112: =2*DEGREES(ASIN(((SIN(RADIANS(CY112/2))*SIN(RADIANS($CX$111/2))/SIN(RADIANS($CY$111/2)))))) -> 78.39135243 | CY112: 40 | CZ112: 40 | DA112: =ROUND(100*($CY$111-CY112)/$CY$111,0)&" % Closed Normal Arrow" -> 11 % Closed Normal Arrow
CV113: 70.713 | CW113: 70.713 | CX113: =2*DEGREES(ASIN(((SIN(RADIANS(CY113/2))*SIN(RADIANS($CX$111/2))/SIN(RADIANS($CY$111/2)))))) -> 67.50849448 | CY113: 35 | CZ113: 35 | DA113: =ROUND(100*($CY$111-CY113)/$CY$111,0)&" % Closed Normal Arrow" -> 22 % Closed Normal Arrow
CV114: 77.516 | CW114: 77.516 | CX114: 57.1404117 | CY114: 30 | CZ114: 30 | DA114: 33 % Closed Normal Arrow
CV115: 84.245 | CW115: 84.245 | CX115: 47.14738732 | CY115: 25 | CZ115: 25 | DA115: 44 % Closed Normal Arrow
CV116: 90.917 | CW116: 90.917 | CX116: 37.42988334 | CY116: 20 | CZ116: 20 | DA116: 56 % Closed Normal Arrow
CV117: 97.544 | CW117: 97.544 | CX117: 27.9125035 | CY117: 15 | CZ117: 15 | DA117: 67 % Closed Normal Arrow
CV118: 104.143 | CW118: 104.143 | CX118: 18.53486006 | CY118: 10 | CZ118: 10 | DA118: 78 % Closed Normal Arrow
CV119: 110.727 | CW119: 110.727 | CX119: 9.245892837 | CY119: 5 | CZ119: 5 | DA119: 89 % Closed Normal Arrow
CV120: 117.312 | CW120: 117.312 | CX120: 0 | CY120: 0 | CZ120: 0 | DA120: Closed Arrow
CX121: Monoclinic | CY121: Arrow | CZ121: a-ref
CV122: =IF(CW122=0,0.01,CW122) -> 76.433 | CW122: =ROUND((1/SQRT(3))*SQRT(($A$29-CX122)^2+($A$30-CY122)^2+($A$31-CZ122)^2),3) -> 76.433 | CX122: 60 | CY122: 30 | CZ122: 30 | DA122: 1/3 α-Constricted Arrow
CV123: =IF(CW123=0,0.01,CW123) -> 79.687 | CW123: =ROUND((1/SQRT(3))*SQRT(($A$29-CX123)^2+($A$30-CY123)^2+($A$31-CZ123)^2),3) -> 79.687 | CX123: 55 | CY123: =2*DEGREES(ASIN(((SIN(RADIANS(CX123/2))*SIN(RADIANS($CY$122/2))/SIN(RADIANS($CX$122/2)))))) -> 27.65725748 | CZ123: =2*DEGREES(ASIN(((SIN(RADIANS(CX123/2))*SIN(RADIANS($CY$122/2))/SIN(RADIANS($CX$122/2)))))) -> 27.65725748 | DA123: =ROUND(100*($CX$122-CX123)/$CX$122,0)&" % Closed 1/3 α-Constricted Arrow" -> 8 % Closed 1/3 α-Constricted Arrow
CV124: 82.981 | CW124: 82.981 | CX124: 50 | CY124: =2*DEGREES(ASIN(((SIN(RADIANS(CX124/2))*SIN(RADIANS($CY$122/2))/SIN(RADIANS($CX$122/2)))))) -> 25.27281325 | CZ124: =2*DEGREES(ASIN(((SIN(RADIANS(CX124/2))*SIN(RADIANS($CY$122/2))/SIN(RADIANS($CX$122/2)))))) -> 25.27281325 | DA124: =ROUND(100*($CX$122-CX124)/$CX$122,0)&" % Closed 1/3 α-Constricted Arrow" -> 17 % Closed 1/3 α-Constricted Arrow
CV125: 86.312 | CW125: 86.312 | CX125: 45 | CY125: 22.85075704 | CZ125: 22.85075704 | DA125: 25 % Closed 1/3 α-Constricted Arrow
CV126: 89.675 | CW126: 89.675 | CX126: 40 | CY126: 20.39509981 | CZ126: 20.39509981 | DA126: 33 % Closed 1/3 α-Constricted Arrow
CV127: 93.065 | CW127: 93.065 | CX127: 35 | CY127: 17.90977814 | CZ127: 17.90977814 | DA127: 42 % Closed 1/3 α-Constricted Arrow
CV128: 96.481 | CW128: 96.481 | CX128: 30 | CY128: 15.39865989 | CZ128: 15.39865989 | DA128: 50 % Closed 1/3 α-Constricted Arrow
CV129: 99.917 | CW129: 99.917 | CX129: 25 | CY129: 12.86555089 | CZ129: 12.86555089 | DA129: 58 % Closed 1/3 α-Constricted Arrow
CV130: 103.371 | CW130: 103.371 | CX130: 20 | CY130: 10.3142024 | CZ130: 10.3142024 | DA130: 67 % Closed 1/3 α-Constricted Arrow
CV131: 106.841 | CW131: 106.841 | CX131: 15 | CY131: 7.748319288 | CZ131: 7.748319288 | DA131: 75 % Closed 1/3 α-Constricted Arrow
CV132: 110.322 | CW132: 110.322 | CX132: 10 | CY132: 5.171568697 | CZ132: 5.171568697 | DA132: 83 % Closed 1/3 α-Constricted Arrow
CV133: 113.813 | CW133: 113.813 | CX133: 5 | CY133: 2.587589168 | CZ133: 2.587589168 | DA133: 92 % Closed 1/3 α-Constricted Arrow
CV134: 117.312 | CW134: 117.312 | CX134: 0 | CY134: 0 | CZ134: 0 | DA134: Closed Arrow
CZ135: gref
CV136: =IF(CW136=0,0.01,CW136) -> 76.433 | CW136: =ROUND((1/SQRT(3))*SQRT(($A$29-CX136)^2+($A$30-CY136)^2+($A$31-CZ136)^2),3) -> 76.433 | CX136: 60 | CY136: 30 | CZ136: 30 | DA136: 1/3 α-Constricted Arrow
CV137: =IF(CW137=0,0.01,CW137) -> 83.357 | CW137: =ROUND((1/SQRT(3))*SQRT(($A$29-CX137)^2+($A$30-CY137)^2+($A$31-CZ137)^2),3) -> 83.357 | CX137: =2*DEGREES(ASIN(((SIN(RADIANS(CY137/2))*SIN(RADIANS($CX$136/2))/SIN(RADIANS($CY$136/2)))))) -> 49.43306785 | CY137: 25 | CZ137: 25 | DA137: =ROUND(100*($CY$136-CY137)/$CY$136,0)&" % Closed 1/3 α-Constricted Arrow" -> 17 % Closed 1/3 α-Constricted Arrow
CV138: 90.214 | CW138: 90.214 | CX138: =2*DEGREES(ASIN(((SIN(RADIANS(CY138/2))*SIN(RADIANS($CX$136/2))/SIN(RADIANS($CY$136/2)))))) -> 39.20133187 | CY138: 20 | CZ138: 20 | DA138: =ROUND(100*($CY$136-CY138)/$CY$136,0)&" % Closed 1/3 α-Constricted Arrow" -> 33 % Closed 1/3 α-Constricted Arrow
CV139: 97.022 | CW139: 97.022 | CX139: 29.21040668 | CY139: 15 | CZ139: 15 | DA139: 50 % Closed 1/3 α-Constricted Arrow
CV140: 103.796 | CW140: 103.796 | CX140: 19.38635035 | CY140: 10 | CZ140: 10 | DA140: 67 % Closed 1/3 α-Constricted Arrow
CV141: 110.554 | CW141: 110.554 | CX141: 9.667658015 | CY141: 5 | CZ141: 5 | DA141: 83 % Closed 1/3 α-Constricted Arrow
CV142: 117.312 | CW142: 117.312 | CX142: =2*DEGREES(ASIN(((SIN(RADIANS(CY142/2))*SIN(RADIANS($CX$136/2))/SIN(RADIANS($CY$136/2)))))) -> 0 | CY142: 0 | CZ142: 0 | DA142: Closed Arrow
CX143: Monoclinic | CY143: Arrow | CZ143: a-ref
CV144: =IF(CW144=0,0.01,CW144) -> 96.706 | CW144: =ROUND((1/SQRT(3))*SQRT(($A$29-CX144)^2+($A$30-CY144)^2+($A$31-CZ144)^2),3) -> 96.706 | CX144: 30 | CY144: 15 | CZ144: 15 | DA144: 2/3 α-Constricted Arrow
CV145: =IF(CW145=0,0.01,CW145) -> 100.104 | CW145: =ROUND((1/SQRT(3))*SQRT(($A$29-CX145)^2+($A$30-CY145)^2+($A$31-CZ145)^2),3) -> 100.104 | CX145: 25 | CY145: =2*DEGREES(ASIN(((SIN(RADIANS(CX145/2))*SIN(RADIANS($CY$144/2))/SIN(RADIANS($CX$144/2)))))) -> 12.53305688 | CZ145: =2*DEGREES(ASIN(((SIN(RADIANS(CX145/2))*SIN(RADIANS($CY$144/2))/SIN(RADIANS($CX$144/2)))))) -> 12.53305688 | DA145: =ROUND(100*($CX$144-CX145)/$CX$144,0)&" % Closed 2/3 α-Constricted Arrow" -> 17 % Closed 2/3 α-Constricted Arrow
CV146: 103.52 | CW146: 103.52 | CX146: 20 | CY146: =2*DEGREES(ASIN(((SIN(RADIANS(CX146/2))*SIN(RADIANS($CY$144/2))/SIN(RADIANS($CX$144/2)))))) -> 10.0480311 | CZ146: =2*DEGREES(ASIN(((SIN(RADIANS(CX146/2))*SIN(RADIANS($CY$144/2))/SIN(RADIANS($CX$144/2)))))) -> 10.0480311 | DA146: =ROUND(100*($CX$144-CX146)/$CX$144,0)&" % Closed 2/3 α-Constricted Arrow" -> 33 % Closed 2/3 α-Constricted Arrow
CV147: 106.952 | CW147: 106.952 | CX147: 15 | CY147: 7.548590642 | CZ147: 7.548590642 | DA147: 50 % Closed 2/3 α-Constricted Arrow
CV148: 110.396 | CW148: 110.396 | CX148: 10 | CY148: 5.038369481 | CZ148: 5.038369481 | DA148: 67 % Closed 2/3 α-Constricted Arrow
CV149: 113.85 | CW149: 113.85 | CX149: 5 | CY149: 2.520975706 | CZ149: 2.520975706 | DA149: 83 % Closed 2/3 α-Constricted Arrow
CV150: 117.312 | CW150: 117.312 | CX150: 0 | CY150: 0 | CZ150: 0 | DA150: Closed Arrow
CZ151: b/g-ref
CV152: =IF(CW152=0,0.01,CW152) -> 96.706 | CW152: =ROUND((1/SQRT(3))*SQRT(($A$29-CX152)^2+($A$30-CY152)^2+($A$31-CZ152)^2),3) -> 96.706 | CX152: 30 | CY152: 15 | CZ152: 15 | DA152: 2/3 α-Constricted Arrow
CV153: =IF(CW153=0,0.01,CW153) -> 103.586 | CW153: =ROUND((1/SQRT(3))*SQRT(($A$29-CX153)^2+($A$30-CY153)^2+($A$31-CZ153)^2),3) -> 103.586 | CX153: =2*DEGREES(ASIN(((SIN(RADIANS(CY153/2))*SIN(RADIANS($CX$152/2))/SIN(RADIANS($CY$152/2)))))) -> 19.9036673 | CY153: 10 | CZ153: 10 | DA153: =ROUND(100*($CY$152-CY153)/$CY$152,0)&" % Closed 2/3 α-Constricted Arrow" -> 33 % Closed 2/3 α-Constricted Arrow
CV154: 110.449 | CW154: 110.449 | CX154: =2*DEGREES(ASIN(((SIN(RADIANS(CY154/2))*SIN(RADIANS($CX$152/2))/SIN(RADIANS($CY$152/2)))))) -> 9.923702395 | CY154: 5 | CZ154: 5 | DA154: =ROUND(100*($CY$152-CY154)/$CY$152,0)&" % Closed 2/3 α-Constricted Arrow" -> 67 % Closed 2/3 α-Constricted Arrow
CV155: 117.312 | CW155: 117.312 | CX155: =2*DEGREES(ASIN(((SIN(RADIANS(CY155/2))*SIN(RADIANS($CX$152/2))/SIN(RADIANS($CY$152/2)))))) -> 0 | CY155: 0 | CZ155: 0 | DA155: Closed Arrow
